Workbook

Sheet Contents
C3: Sheet Tab | D3: Description | E3: Author
B4: 1 | C4: Contents
B5: 2 | C5: Summary
B6: 3 | C6: Assumptions
B7: 4 | C7: Monthly Model
B8: 5 | C8: Tornado Chart
B9: 6 | C9: Master Scenario
B10: 7 | C10: Audit
B11: 8 | C11: Annual
B12: 9 | C12: Quarterly
B13: 10 | C13: History
B14: 11 | C14: Debt Analysis
B15: 12 | C15: Chart1
B16: 13 | C16: Sheet1

Sheet Summary
A1: Operating Scenario | P1: Plant Size | U1: ='Monthly Model'!G18 -> 250
C2: Contracted Capacity | E2: =Assumptions!G61 -> 180
C3: Contract Term | E3: =Assumptions!G58 -> 3 | K3: Equity Analysis | P3: Sources and Uses of Funds | U3: Cost | V3: Percent | W3: Cost/kW
L4: Pre-Tax Project IRR | N4: ='Monthly Model'!H124 -> 0.05091961742 | P4: Uses of Funds
G5: Graph Item | L5: After-Tax Project IRR | N5: ='Monthly Model'!G151 -> 0.03774705231 | Q5: Capex | U5: =SUM('Monthly Model'!156:156) -> 255000 | V5: =U5/$U$9 -> 0.9547391189 | W5: =U5/$U$1 -> 1020
L6: Equity IRR | N6: ='Monthly Model'!G333 -> 0.04086312354 | Q6: Interest During Construction | U6: =SUM('Monthly Model'!157:157) -> 5788.668454 | V6: =U6/$U$9 -> 0.0216732087 | W6: =U6/$U$1 -> 23.15467382
Q7: Commitment and Upfront Fees | U7: =SUM('Monthly Model'!158:158) -> 1050 | V7: =U7/$U$9 -> 0.003931278725 | W7: =U7/$U$1 -> 4.2
K8: Credit Analysis | N8: Ratio | Q8: Debt Service Reserve Account | U8: =SUM('Monthly Model'!159:159) -> 5250 | V8: =U8/$U$9 -> 0.01965639363 | W8: =U8/$U$1 -> 21
L9: DSCR | N9: ='Monthly Model'!G341 -> 0.4952950658 | R9: Total Uses of Funds | U9: =SUM('Monthly Model'!160:160) -> 267088.6685 | V9: =U9/$U$9 -> 1 | W9: =U9/$U$1 -> 1068.354674
L10: LLCR | N10: ='Monthly Model'!G352 -> 2.059623489
L11: PLCR | N11: ='Monthly Model'!G358 -> 10.4489957 | P11: Sources of Funds
Q12: Debt | U12: =SUM('Monthly Model'!174:174) -> 70000 | V12: =U12/$U$9 -> 0.2620852483 | W12: =U12/$U$1 -> 280
Q13: Equity | U13: =SUM('Monthly Model'!166:166) -> 197088.6685 | V13: =U13/$U$9 -> 0.7379147517 | W13: =U13/$U$1 -> 788.3546738
R14: Total | U14: =SUM(U12:U13) -> 267088.6685 | V14: =U14/$U$9 -> 1 | W14: =U14/$U$1 -> 1068.354674
D23: =Audit!F10 -> Balance Sheet Test

Sheet Assumptions
A1: Timing Assumptions | I1: =Summary!$D$23 -> Balance Sheet Test
B2: Financial Close | F2: Date | G2: 2016-04-01
B3: Construction Period | F3: Months | G3: ='Master Scenario'!D33 -> 30
B4: Commercial Operation Date | F4: Date | G4: =EDATE(G2,G3) -> 2018-10-01
B5: Operating Period | F5: Years | G5: 32
B6: Decommissioning | F6: Date | G6: =EDATE(G4,G5*12) -> 2050-10-01
B8: Months Prior to COD | F8: Months | G8: =DAYS360(G2,G4)/30 -> 30
B9: Months in Period Pre-COD | F9: Months | G9: 1
B10: Months in Period Post-COD | F10: Months | G10: 1
A12: Operating Characteristics
B13: Capacity | F13: MW | G13: 250
B14: Capacity Degradation | F14: % | G14: =1.04^(1/G5)-1 -> 0.001226398699
B16: Heat Rate | F16: BTU/kWh | G16: ='Master Scenario'!$E$33 -> 6700
B17: Heat Rate Efficiency | F17: % | G17: =3412/G16 -> 0.5092537313
B18: Degradation | F18: % | G18: =1.03^(1/G5)-1 -> 0.0009241393239
A20: Economic Capaicty Factor
B21: Year | F21: 0 | G21: 1 | H21: 5 | I21: 10 | J21: 20
B22: Code # | F22: ='Master Scenario'!$F$33 -> 1
B23: Base Case | G23: 0.58 | H23: 0.55 | I23: 0.5 | J23: 0.52
B24: Oversupply Case | G24: 0.5 | H24: 0.45 | I24: 0.44 | J24: 0.48
B25: Constrained Supply Case | G25: 0.6 | H25: 0.6 | I25: 0.6 | J25: 0.6
B26: Capacity Factor | G26: =INDEX(G23:G25,$F$22) -> 0.58 | H26: =INDEX(H23:H25,$F$22) -> 0.55 | I26: =INDEX(I23:I25,$F$22) -> 0.5 | J26: =INDEX(J23:J25,$F$22) -> 0.52
B29: Major Maintenance Overhaul
C30: Hours until overhaul | F30: Hours | G30: 48000
C31: Outage During Maintenance Delay | F31: Days | G31: 10
C32: Heat Rate Recovery | F32: % | G32: 0.98
C33: Capacity Recovery | F33: % | G33: 0.975
B35: Forced Outage | F35: % | G35: 0.01
A37: Capex
B38: Total cost | F38: k USD $ | G38: ='Master Scenario'!$G$33 -> 250000
B40: S curve period | H40: 1 | I40: 2 | J40: 3 | K40: 4 | L40: 5 | M40: 6 | N40: 7 | O40: 8 | P40: 9 | Q40: 10 | R40: 11 | S40: 12 | T40: 13 | U40: 14 | V40: 15 | W40: 16 | X40: 17 | Y40: 18 | Z40: 19 | AA40: 20 | AB40: 21 | AC40: 22 | AD40: 23 | AE40: 24 | AF40: 25 | AG40: 26 | AH40: 27 | AI40: 28 | AJ40: 29 | AK40: 30 | AL40: 31 | AM40: 32 | AN40: 33 | AO40: 34 | AP40: 35 | AQ40: 36 | AR40: 37 | AS40: 38 | AT40: 39 | AU40: 40 | AV40: 41 | AW40: 42 | AX40: 43
H41: =H40<=$G$3 -> TRUE | I41: =I40<=$G$3 -> TRUE | J41: TRUE | K41: TRUE | L41: TRUE | M41: TRUE | N41: TRUE | O41: TRUE | P41: TRUE | Q41: TRUE | R41: TRUE | S41: TRUE | T41: TRUE | U41: TRUE | V41: TRUE | W41: TRUE | X41: TRUE | Y41: TRUE | Z41: TRUE | AA41: TRUE | AB41: TRUE | AC41: TRUE | AD41: TRUE | AE41: TRUE | AF41: TRUE | AG41: TRUE | AH41: TRUE | AI41: TRUE | AJ41: TRUE | AK41: TRUE | AL41: FALSE | AM41: FALSE | AN41: FALSE | AO41: FALSE | AP41: FALSE | AQ41: FALSE | AR41: FALSE | AS41: FALSE | AT41: FALSE | AU41: =AU40<=$G$3 -> FALSE | AV41: =AV40<=$G$3 -> FALSE | AW41: =AW40<=$G$3 -> FALSE | AX41: =AX40<=$G$3 -> FALSE
B42: Normal Distribution
C43: Sigma | F43: months | G43: 5
C44: Average | F44: months | G44: ='Master Scenario'!$H$33 -> 10
C46: Unadjusted distribution | H46: =_xlfn.NORM.DIST(H40,$G$44,$G$43,0) -> 0.01579003166 | I46: =_xlfn.NORM.DIST(I40,$G$44,$G$43,0) -> 0.02218416694 | J46: 0.02994549313 | K46: 0.038837211 | L46: 0.0483941449 | M46: 0.05793831055 | N46: 0.06664492058 | O46: 0.07365402806 | P46: 0.0782085388 | Q46: 0.07978845608 | R46: 0.0782085388 | S46: 0.07365402806 | T46: 0.06664492058 | U46: 0.05793831055 | V46: 0.0483941449 | W46: 0.038837211 | X46: 0.02994549313 | Y46: 0.02218416694 | Z46: 0.01579003166 | AA46: 0.0107981933 | AB46: 0.007094918569 | AC46: 0.004478906059 | AD46: 0.002716593847 | AE46: 0.001583090317 | AF46: 0.0008863696824 | AG46: 0.0004768176403 | AH46: 0.0002464438337 | AI46: 0.000122380386 | AJ46: 5.838938516e-05 | AK46: 2.676604515e-05 | AL46: =_xlfn.NORM.DIST(AL40,$G$44,$G$43,0) -> 1.178861355e-05 | AM46: 4.988494258e-06 | AN46: 2.028170413e-06 | AO46: 7.922598182e-07 | AP46: 2.973439029e-07 | AQ46: 1.072207069e-07 | AR46: 3.714723689e-08 | AS46: 1.2365241e-08 | AT46: 3.954639281e-09 | AU46: =_xlfn.NORM.DIST(AU40,$G$44,$G$43,0) -> 1.21517657e-09 | AV46: =_xlfn.NORM.DIST(AV40,$G$44,$G$43,0) -> 3.587567816e-10 | AW46: =_xlfn.NORM.DIST(AW40,$G$44,$G$43,0) -> 1.017628056e-10 | AX46: =_xlfn.NORM.DIST(AX40,$G$44,$G$43,0) -> 2.773359988e-11
C47: Normalized distribution | F47: =SUM(46:46) -> 0.9714910736 | H47: =H46/$F$47 -> 0.0162533986 | I47: =I46/$F$47 -> 0.02283517321 | J47: 0.03082425968 | K47: 0.03997690977 | L47: 0.04981429703 | M47: 0.05963854134 | N47: 0.0686006515 | O47: 0.075815445 | P47: 0.08050361029 | Q47: 0.0821298911 | R47: 0.08050361029 | S47: 0.075815445 | T47: 0.0686006515 | U47: 0.05963854134 | V47: 0.04981429703 | W47: 0.03997690977 | X47: 0.03082425968 | Y47: 0.02283517321 | Z47: 0.0162533986 | AA47: 0.01111507207 | AB47: 0.007303122758 | AC47: 0.004610341958 | AD47: 0.002796313749 | AE47: 0.001629546951 | AF47: 0.0009123806759 | AG47: 0.0004908101096 | AH47: 0.0002536758601 | AI47: 0.0001259717041 | AJ47: 6.010285297e-05 | AK47: 2.75515091e-05 | AL47: =AL46/$F$47 -> 1.213455674e-05 | AM47: 5.134884296e-06 | AN47: 2.087688161e-06 | AO47: 8.155091073e-07 | AP47: 3.060696192e-07 | AQ47: 1.10367156e-07 | AR47: 3.823734247e-08 | AS47: 1.272810563e-08 | AT47: 4.070690291e-09 | AU47: 1.250836578e-09 | AV47: 3.692846917e-10 | AW47: 1.047490897e-10 | AX47: 2.854745724e-11
C48: Accumulated | H48: =G48+H47 -> 0.0162533986 | I48: =H48+I47 -> 0.03908857181 | J48: 0.06991283149 | K48: 0.1098897413 | L48: 0.1597040383 | M48: 0.2193425796 | N48: 0.2879432311 | O48: 0.3637586761 | P48: 0.4442622864 | Q48: 0.5263921775 | R48: 0.6068957878 | S48: 0.6827112328 | T48: 0.7513118843 | U48: 0.8109504256 | V48: 0.8607647227 | W48: 0.9007416324 | X48: 0.9315658921 | Y48: 0.9544010653 | Z48: 0.9706544639 | AA48: 0.981769536 | AB48: 0.9890726588 | AC48: 0.9936830007 | AD48: 0.9964793145 | AE48: 0.9981088614 | AF48: 0.9990212421 | AG48: 0.9995120522 | AH48: 0.9997657281 | AI48: 0.9998916998 | AJ48: 0.9999518026 | AK48: 0.9999793541 | AL48: =AK48+AL47 -> 0.9999914887 | AM48: 0.9999966236 | AN48: 0.9999987113 | AO48: 0.9999995268 | AP48: 0.9999998328 | AQ48: 0.9999999432 | AR48: 0.9999999814 | AS48: 0.9999999942 | AT48: 0.9999999982 | AU48: 0.9999999995 | AV48: 0.9999999999 | AW48: 1 | AX48: 1
C49: Remainder | H49: =(H40=$G$3)*(1-H48) -> 0 | I49: =(I40=$G$3)*(1-I48) -> 0 | J49: 0 | K49: 0 | L49: 0 | M49: 0 | N49: 0 | O49: 0 | P49: 0 | Q49: 0 | R49: 0 | S49: 0 | T49: 0 | U49: 0 | V49: 0 | W49: 0 | X49: 0 | Y49: 0 | Z49: 0 | AA49: 0 | AB49: 0 | AC49: 0 | AD49: 0 | AE49: 0 | AF49: 0 | AG49: 0 | AH49: 0 | AI49: 0 | AJ49: 0 | AK49: 2.064586463e-05 | AL49: 0 | AM49: 0 | AN49: 0 | AO49: 0 | AP49: 0 | AQ49: 0 | AR49: 0 | AS49: 0 | AT49: 0 | AU49: =(AU40=$G$3)*(1-AU48) -> 0 | AV49: =(AV40=$G$3)*(1-AV48) -> 0 | AW49: =(AW40=$G$3)*(1-AW48) -> 0 | AX49: =(AX40=$G$3)*(1-AX48) -> 0
C50: Final Distribution | H50: =(H47+H49)*H41 -> 0.0162533986 | I50: =(I47+I49)*I41 -> 0.02283517321 | J50: 0.03082425968 | K50: 0.03997690977 | L50: 0.04981429703 | M50: 0.05963854134 | N50: 0.0686006515 | O50: 0.075815445 | P50: 0.08050361029 | Q50: 0.0821298911 | R50: 0.08050361029 | S50: 0.075815445 | T50: 0.0686006515 | U50: 0.05963854134 | V50: 0.04981429703 | W50: 0.03997690977 | X50: 0.03082425968 | Y50: 0.02283517321 | Z50: 0.0162533986 | AA50: 0.01111507207 | AB50: 0.007303122758 | AC50: 0.004610341958 | AD50: 0.002796313749 | AE50: 0.001629546951 | AF50: 0.0009123806759 | AG50: 0.0004908101096 | AH50: 0.0002536758601 | AI50: 0.0001259717041 | AJ50: 6.010285297e-05 | AK50: 4.819737373e-05 | AL50: 0 | AM50: 0 | AN50: 0 | AO50: 0 | AP50: 0 | AQ50: 0 | AR50: 0 | AS50: 0 | AT50: 0 | AU50: =(AU47+AU49)*AU41 -> 0 | AV50: =(AV47+AV49)*AV41 -> 0 | AW50: =(AW47+AW49)*AW41 -> 0 | AX50: =(AX47+AX49)*AX41 -> 0
B52: Development Cost | F52: k USD $ | G52: 5000
B53: Development Fee | F53: k USD $ | G53: 0
A55: Revenue Assumptions
B56: Contract
C57: Start day | F57: Date | G57: =G4 -> 2018-10-01
C58: Term | F58: Years | G58: 3
C59: End day | F59: Date | G59: =EDATE(G57,G58*12) -> 2021-10-01
C61: Capacity | F61: MW | G61: 180
C63: Capacity Charge | F63: $/KWmonth | G63: 12
C64: Energy Charge | F64: $/MWhr | G64: 3.75
B66: Merchant Revenues
C67: Electricity price | F67: ='Master Scenario'!$F$33 -> 1 | I67: 2015 | J67: 2016 | K67: 2017 | L67: 2018 | M67: 2019 | N67: 2020 | O67: 2021 | P67: 2022 | Q67: 2023 | R67: 2024 | S67: 2025
D68: Base case | F68: $/MWhr | I68: 43 | J68: 44 | K68: 45 | L68: 46 | M68: =L68*1.02 -> 46.92 | N68: =M68*1.02 -> 47.8584 | O68: 48.815568 | P68: 49.79187936 | Q68: 50.78771695 | R68: 51.80347129 | S68: 52.83954071
D69: Low case | F69: $/MWhr | I69: 38 | J69: 39 | K69: 41 | L69: 42 | M69: 43 | N69: 43 | O69: 43 | P69: 43 | Q69: 43 | R69: 43 | S69: 43
D70: High case | F70: $/MWhr | I70: 45 | J70: 45 | K70: 47 | L70: 49 | M70: =L70*1.02 -> 49.98 | N70: =M70*1.02 -> 50.9796 | O70: 51.999192 | P70: 53.03917584 | Q70: 54.09995936 | R70: 55.18195854 | S70: 56.28559771
D71: =INDEX(D68:D70,$F$67) -> Base case | I71: =INDEX(I68:I70,$F$67) -> 43 | J71: 44 | K71: 45 | L71: 46 | M71: 46.92 | N71: 47.8584 | O71: 48.815568 | P71: 49.79187936 | Q71: 50.78771695 | R71: 51.80347129 | S71: 52.83954071
C73: Gas price
D74: Base case | F74: $/MMBTU | I74: 3 | J74: 3.1 | K74: 3.3 | L74: 3.4 | M74: 3.5 | N74: 3.5 | O74: 3.5 | P74: 3.5 | Q74: 3.5 | R74: 3.5 | S74: 3.5
D75: Low case | F75: $/MMBTU | I75: 3 | J75: 3.2 | K75: 3.3 | L75: 3.5 | M75: 3.7 | N75: 3.7 | O75: 3.7 | P75: 3.7 | Q75: 3.7 | R75: 3.7 | S75: 3.7
D76: High case | F76: $/MMBTU | I76: 3.5 | J76: 3.75 | K76: 3.9 | L76: 4.1 | M76: 4.2 | N76: 4.2 | O76: 4.2 | P76: 4.2 | Q76: 4.2 | R76: 4.2 | S76: 4.2
D77: =INDEX(D74:D76,$F$67) -> Base case | I77: =INDEX(I74:I76,$F$67) -> 3 | J77: =INDEX(J74:J76,$F$67) -> 3.1 | K77: 3.3 | L77: 3.4 | M77: 3.5 | N77: 3.5 | O77: 3.5 | P77: 3.5 | Q77: 3.5 | R77: 3.5 | S77: 3.5
C79: Delivery Year | J79: 2016 | K79: 2017 | L79: 2018 | M79: 2018 | N79: 2018 | O79: 2018 | P79: 2018 | Q79: 2018 | R79: 2018 | S79: 2018
C80: Capacity Price | J80: 49.64 | K80: 21.67005 | L80: 43.8 | M80: ='Master Scenario'!J33 -> 30 | N80: =M80 -> 30 | O80: 30 | P80: 30 | Q80: 30 | R80: 30 | S80: 30
C82: Ancillary Services Price | J82: 2.5 | K82: 2.7 | L82: 2.9 | M82: 3 | N82: =M82 -> 3 | O82: 3 | P82: 3 | Q82: 3 | R82: 3 | S82: 3
A84: Operating Expenses
B85: General Inflation | F85: % | J85: 0.01 | K85: 0.01 | L85: 0.015 | M85: 0.02 | N85: =M85 -> 0.02 | O85: 0.02 | P85: 0.02 | Q85: 0.02 | R85: 0.02 | S85: 0.02
H86: $ in year
B87: Fixed O&M Expenses | F87: $/kW-year | G87: ='Master Scenario'!L33 -> 37 | H87: 2018-01-01
B88: Variable O&M Expenses | F88: $/MWH | G88: ='Master Scenario'!K33 -> 4 | H88: 2018-01-01
A90: Working Capital
A92: Taxes and Depreciation
B93: Tax Rate
C94: State Tax Rate | F94: % | G94: 0.08
C95: Federal Tax Rate | F95: % | G95: 0.35
C96: Combined Tax Rate | F96: % | G96: =G94+(1-G94)*G95 -> 0.402
C98: Tax Depreciation | F98: Period | I98: 0 | J98: 1 | K98: 2 | L98: 3 | M98: 4 | N98: 5 | O98: 6 | P98: 7 | Q98: 8 | R98: 9 | S98: 10 | T98: 11 | U98: 12 | V98: 13 | W98: 14 | X98: 15 | Y98: 16 | Z98: 17 | AA98: 18 | AB98: 19 | AC98: 20
C99: MACRS Life | F99: Years | G99: 15
C100: Declining Balance Factor | F100: Factor | G100: 1.5
C101: Depreciation Rate | J101: =IF(J98<=$G$99,VDB(1,0,$G$99,I98,J98,$G$100)) -> 0.1 | K101: =IF(K98<=$G$99,VDB(1,0,$G$99,J98,K98,$G$100)) -> 0.09 | L101: 0.081 | M101: 0.0729 | N101: 0.06561 | O101: 0.059049 | P101: 0.059049 | Q101: 0.059049 | R101: 0.059049 | S101: 0.059049 | T101: 0.059049 | U101: 0.059049 | V101: 0.059049 | W101: 0.059049 | X101: 0.059049 | Y101: FALSE | Z101: FALSE | AA101: FALSE | AB101: FALSE | AC101: FALSE
C103: Amortisation Life | F103: Years | G103: 5
A105: Financing Assumptions
B106: Debt Tranche 1
C107: COD Month | G107: =MONTH(G4) -> 10 | H107: =_xlfn.FORMULATEXT(G107) -> =MONTH(G4)
C108: First Repayment Month | G108: =IF($G$107<=7,$G$107+5,G107-7) -> 3 | H108: =_xlfn.FORMULATEXT(G108) -> =IF($G$107<=7,$G$107+5,G107-7)
C109: Second Repayment Month | G109: =IF(G107>1,G107-1,12) -> 9 | H109: =_xlfn.FORMULATEXT(G109) -> =IF(G107>1,G107-1,12)
C111: Debt Size | G111: Criteria | H111: Amount
D112: DSCR | G112: 1.3
D113: Max Debt to project cost | G113: 0.7
D114: Debt Size | G114: =K114*1000 -> 70000 | H114: =G114 -> 70000 | K114: 70
C116: Debt Drawdown
D117: Pro-rata | G117: TRUE
D118: Equity | G118: =NOT(G117) -> FALSE
D120: Capitalized Interest | G120: FALSE
C122: Repayment
E123: Scheduled Repayment
E124: Cash Flow Sweep | F124: Year | G124: 10
E125: COD | G125: =G4 -> 2018-10-01
E126: End of Debt | G126: =EDATE(G125,G124*12) -> 2028-10-01
E127: Cash Sweep Percent | G127: 0.3
C129: Interest & Fees
E130: Base Interest Rate | F130: Annual % | G130: 0.02
E131: Credit Spread | F131: Annual % | G131: 0.03
E132: Upfront Fee | F132: % | G132: 0.015
E133: Commitment Fee | F133: Annual % | G133: 0.01
C135: Credit Enhancements
D136: DSRA Months | F136: Months | G136: 6
D137: Dividend Lock-up | F137: Times | G137: 1.4
C139: Interest Income Rate | F139: Annual % | G139: 0.01

Sheet Monthly Model
A1: Timeline | F1: =Assumptions!I1 -> Balance Sheet Test
B2: Time Period | F2: Units | G2: Input | K2: AUDIT | L2: 1 | M2: 2 | N2: 3 | O2: 4 | P2: 5 | Q2: 6 | R2: 7 | S2: 8 | T2: 9 | U2: 10 | V2: 11 | W2: 12 | X2: 13 | Y2: 14 | Z2: 15 | AA2: 16 | AB2: 17 | AC2: 18 | AD2: 19 | AE2: 20 | AF2: 21 | AG2: 22 | AH2: 23 | AI2: 24 | AJ2: 25 | AK2: 26 | AL2: 27 | AM2: 28 | AN2: 29 | AO2: 30 | AP2: 31 | AQ2: 32 | AR2: 33 | AS2: 34 | AT2: 35 | AU2: 36 | AV2: 37 | AW2: 38 | AX2: 39 | AY2: 40 | AZ2: 41 | BA2: 42 | BB2: 43 | BC2: 44 | BD2: 45 | BE2: 46 | BF2: 47 | BG2: 48 | BH2: 49 | BI2: 50 | BJ2: 51 | BK2: 52 | BL2: 53 | BM2: 54 | BN2: 55 | BO2: 56 | BP2: 57 | BQ2: 58 | BR2: 59 | BS2: 60 | BT2: 61 | BU2: 62 | BV2: 63 | BW2: 64 | BX2: 65 | BY2: 66 | BZ2: 67 | CA2: 68 | CB2: 69 | CC2: 70 | CD2: 71 | CE2: 72 | CF2: 73 | CG2: 74 | CH2: 75 | CI2: 76 | CJ2: 77 | CK2: 78 | CL2: 79 | CM2: 80 | CN2: 81 | CO2: 82 | CP2: 83 | CQ2: 84 | CR2: 85 | CS2: 86 | CT2: 87 | CU2: 88 | CV2: 89 | CW2: 90 | CX2: 91 | CY2: 92 | CZ2: 93 | DA2: 94 | DB2: 95 | DC2: 96 | DD2: 97 | DE2: 98 | DF2: 99 | DG2: 100 | DH2: 101 | DI2: 102 | DJ2: 103 | DK2: 104 | DL2: 105 | DM2: 106 | DN2: 107 | DO2: 108 | DP2: 109 | DQ2: 110 | DR2: 111 | DS2: 112 | DT2: 113 | DU2: 114 | DV2: 115 | DW2: 116 | DX2: 117 | DY2: 118 | DZ2: 119 | EA2: 120 | EB2: 121 | EC2: 122 | ED2: 123 | EE2: 124 | EF2: 125 | EG2: 126 | EH2: 127 | EI2: 128 | EJ2: 129 | EK2: 130 | EL2: 131 | EM2: 132 | EN2: 133 | EO2: 134 | EP2: 135 | EQ2: 136 | ER2: 137 | ES2: 138 | ET2: 139 | EU2: 140 | EV2: 141 | EW2: 142 | EX2: 143 | EY2: 144 | EZ2: 145 | FA2: 146 | FB2: 147 | FC2: 148 | FD2: 149 | FE2: 150 | FF2: 151 | FG2: 152 | FH2: 153 | FI2: 154 | FJ2: 155 | FK2: 156 | FL2: 157 | FM2: 158 | FN2: 159 | FO2: 160 | FP2: 161 | FQ2: 162 | FR2: 163 | FS2: 164 | FT2: 165 | FU2: 166 | FV2: 167 | FW2: 168 | FX2: 169 | FY2: 170 | FZ2: 171 | GA2: 172 | GB2: 173 | GC2: 174 | GD2: 175 | GE2: 176 | GF2: 177 | GG2: 178 | GH2: 179 | GI2: 180 | GJ2: 181 | GK2: 182 | GL2: 183 | GM2: 184 | GN2: 185 | GO2: 186 | GP2: 187 | GQ2: 188 | GR2: 189 | GS2: 190 | GT2: 191 | GU2: 192 | GV2: 193 | GW2: 194 | GX2: 195 | GY2: 196 | GZ2: 197 | HA2: 198 | HB2: 199 | HC2: 200 | HD2: =HC2+1 -> 201 | HE2: =HD2+1 -> 202 | HF2: 203 | HG2: 204 | HH2: 205 | HI2: 206 | HJ2: 207 | HK2: 208 | HL2: 209 | HM2: 210 | HN2: 211 | HO2: 212 | HP2: 213 | HQ2: 214 | HR2: 215 | HS2: 216 | HT2: 217 | HU2: 218 | HV2: 219 | HW2: 220 | HX2: 221 | HY2: 222 | HZ2: 223 | IA2: 224 | IB2: 225 | IC2: 226 | ID2: 227 | IE2: 228 | IF2: 229 | IG2: 230 | IH2: 231 | II2: 232 | IJ2: 233 | IK2: 234 | IL2: 235 | IM2: 236 | IN2: 237 | IO2: 238 | IP2: 239 | IQ2: 240 | IR2: 241 | IS2: 242 | IT2: 243 | IU2: 244 | IV2: 245 | IW2: 246 | IX2: 247 | IY2: 248 | IZ2: 249 | JA2: 250 | JB2: 251 | JC2: 252 | JD2: 253 | JE2: 254 | JF2: 255 | JG2: 256 | JH2: 257 | JI2: 258 | JJ2: 259 | JK2: 260 | JL2: 261 | JM2: 262 | JN2: 263 | JO2: 264 | JP2: 265 | JQ2: =JP2+1 -> 266 | JR2: 267 | JS2: 268 | JT2: 269 | JU2: 270 | JV2: 271 | JW2: 272 | JX2: 273 | JY2: 274 | JZ2: 275 | KA2: 276 | KB2: 277 | KC2: 278 | KD2: 279 | KE2: 280 | KF2: 281 | KG2: 282 | KH2: 283 | KI2: 284 | KJ2: 285 | KK2: 286 | KL2: 287 | KM2: 288 | KN2: 289 | KO2: 290 | KP2: 291 | KQ2: 292 | KR2: 293 | KS2: 294 | KT2: 295 | KU2: 296 | KV2: 297 | KW2: 298 | KX2: 299 | KY2: 300 | KZ2: 301 | LA2: 302 | LB2: 303 | LC2: 304 | LD2: 305 | LE2: 306 | LF2: 307 | LG2: 308 | LH2: 309 | LI2: 310 | LJ2: 311 | LK2: 312 | LL2: 313 | LM2: 314 | LN2: 315 | LO2: 316 | LP2: 317 | LQ2: 318 | LR2: 319 | LS2: 320 | LT2: 321 | LU2: 322 | LV2: 323 | LW2: 324 | LX2: 325 | LY2: 326 | LZ2: 327 | MA2: 328 | MB2: 329 | MC2: =MB2+1 -> 330 | MD2: 331 | ME2: 332 | MF2: 333 | MG2: 334 | MH2: 335 | MI2: 336 | MJ2: 337 | MK2: 338 | ML2: 339 | MM2: 340 | MN2: 341 | MO2: 342 | MP2: 343 | MQ2: 344 | MR2: 345 | MS2: 346 | MT2: 347 | MU2: 348 | MV2: 349 | MW2: 350 | MX2: 351 | MY2: 352 | MZ2: 353 | NA2: 354 | NB2: 355 | NC2: 356 | ND2: 357 | NE2: 358 | NF2: 359 | NG2: 360 | NH2: 361 | NI2: 362 | NJ2: 363 | NK2: 364 | NL2: 365 | NM2: 366 | NN2: 367 | NO2: 368 | NP2: 369 | NQ2: 370 | NR2: 371 | NS2: 372 | NT2: 373 | NU2: 374 | NV2: 375 | NW2: 376 | NX2: 377 | NY2: 378 | NZ2: 379 | OA2: 380 | OB2: 381 | OC2: 382 | OD2: 383 | OE2: 384 | OF2: 385 | OG2: 386 | OH2: 387 | OI2: 388 | OJ2: 389 | OK2: 390 | OL2: 391 | OM2: 392 | ON2: 393 | OO2: =ON2+1 -> 394 | OP2: 395 | OQ2: 396 | OR2: 397 | OS2: 398 | OT2: 399 | OU2: 400 | OV2: 401 | OW2: 402 | OX2: 403 | OY2: 404 | OZ2: 405 | PA2: 406 | PB2: 407 | PC2: 408 | PD2: 409 | PE2: 410 | PF2: 411 | PG2: 412 | PH2: 413 | PI2: 414 | PJ2: 415 | PK2: 416 | PL2: 417 | PM2: 418 | PN2: 419 | PO2: 420 | PP2: 421 | PQ2: 422 | PR2: 423 | PS2: 424 | PT2: 425 | PU2: 426 | PV2: 427 | PW2: 428 | PX2: 429 | PY2: 430 | PZ2: 431 | QA2: 432 | QB2: 433 | QC2: 434 | QD2: 435 | QE2: 436 | QF2: 437 | QG2: 438 | QH2: 439 | QI2: 440 | QJ2: 441 | QK2: 442 | QL2: 443
B3: Pre-COD | F3: Swtch | G3: Months | H3: =Assumptions!G8 -> 30 | L3: =L2<=$H3 -> TRUE | M3: TRUE | N3: TRUE | O3: TRUE | P3: TRUE | Q3: TRUE | R3: TRUE | S3: TRUE | T3: TRUE | U3: TRUE | V3: TRUE | W3: TRUE | X3: TRUE | Y3: TRUE | Z3: TRUE | AA3: TRUE | AB3: TRUE | AC3: TRUE | AD3: TRUE | AE3: TRUE | AF3: TRUE | AG3: TRUE | AH3: TRUE | AI3: TRUE | AJ3: TRUE | AK3: TRUE | AL3: TRUE | AM3: TRUE | AN3: TRUE | AO3: TRUE | AP3: FALSE | AQ3: FALSE | AR3: =AR2<=$H3 -> FALSE | AS3: FALSE | AT3: FALSE | AU3: FALSE | AV3: FALSE | AW3: FALSE | AX3: FALSE | AY3: FALSE | AZ3: FALSE | BA3: FALSE | BB3: FALSE | BC3: FALSE | BD3: FALSE | BE3: FALSE | BF3: FALSE | BG3: FALSE | BH3: FALSE | BI3: FALSE | BJ3: FALSE | BK3: FALSE | BL3: FALSE | BM3: FALSE | BN3: FALSE | BO3: FALSE | BP3: FALSE | BQ3: FALSE | BR3: FALSE | BS3: FALSE | BT3: FALSE | BU3: FALSE | BV3: FALSE | BW3: FALSE | BX3: =BX2<=$H3 -> FALSE | BY3: FALSE | BZ3: FALSE | CA3: FALSE | CB3: FALSE | CC3: FALSE | CD3: FALSE | CE3: FALSE | CF3: FALSE | CG3: FALSE | CH3: FALSE | CI3: FALSE | CJ3: FALSE | CK3: FALSE | CL3: FALSE | CM3: FALSE | CN3: FALSE | CO3: FALSE | CP3: FALSE | CQ3: FALSE | CR3: FALSE | CS3: FALSE | CT3: FALSE | CU3: FALSE | CV3: FALSE | CW3: FALSE | CX3: FALSE | CY3: FALSE | CZ3: FALSE | DA3: FALSE | DB3: FALSE | DC3: FALSE | DD3: =DD2<=$H3 -> FALSE | DE3: FALSE | DF3: FALSE | DG3: FALSE | DH3: FALSE | DI3: FALSE | DJ3: FALSE | DK3: FALSE | DL3: FALSE | DM3: FALSE | DN3: FALSE | DO3: FALSE | DP3: FALSE | DQ3: FALSE | DR3: FALSE | DS3: FALSE | DT3: FALSE | DU3: FALSE | DV3: FALSE | DW3: FALSE | DX3: FALSE | DY3: FALSE | DZ3: FALSE | EA3: FALSE | EB3: FALSE | EC3: FALSE | ED3: FALSE | EE3: FALSE | EF3: FALSE | EG3: FALSE | EH3: FALSE | EI3: FALSE | EJ3: =EJ2<=$H3 -> FALSE | EK3: FALSE | EL3: FALSE | EM3: FALSE | EN3: FALSE | EO3: FALSE | EP3: FALSE | EQ3: FALSE | ER3: FALSE | ES3: FALSE | ET3: FALSE | EU3: FALSE | EV3: FALSE | EW3: FALSE | EX3: FALSE | EY3: FALSE | EZ3: FALSE | FA3: FALSE | FB3: FALSE | FC3: FALSE | FD3: FALSE | FE3: FALSE | FF3: FALSE | FG3: FALSE | FH3: FALSE | FI3: FALSE | FJ3: FALSE | FK3: FALSE | FL3: FALSE | FM3: FALSE | FN3: FALSE | FO3: FALSE | FP3: =FP2<=$H3 -> FALSE | FQ3: FALSE | FR3: FALSE | FS3: FALSE | FT3: FALSE | FU3: FALSE | FV3: FALSE | FW3: FALSE | FX3: FALSE | FY3: FALSE | FZ3: FALSE | GA3: FALSE | GB3: FALSE | GC3: FALSE | GD3: FALSE | GE3: FALSE | GF3: FALSE | GG3: FALSE | GH3: FALSE | GI3: FALSE | GJ3: FALSE | GK3: FALSE | GL3: FALSE | GM3: FALSE | GN3: FALSE | GO3: FALSE | GP3: FALSE | GQ3: FALSE | GR3: FALSE | GS3: FALSE | GT3: FALSE | GU3: FALSE | GV3: =GV2<=$H3 -> FALSE | GW3: FALSE | GX3: FALSE | GY3: FALSE | GZ3: FALSE | HA3: FALSE | HB3: FALSE | HC3: FALSE | HD3: =HD2<=$H3 -> FALSE | HE3: FALSE | HF3: FALSE | HG3: FALSE | HH3: FALSE | HI3: FALSE | HJ3: FALSE | HK3: FALSE | HL3: FALSE | HM3: FALSE | HN3: FALSE | HO3: FALSE | HP3: FALSE | HQ3: FALSE | HR3: FALSE | HS3: FALSE | HT3: FALSE | HU3: FALSE | HV3: FALSE | HW3: FALSE | HX3: FALSE | HY3: FALSE | HZ3: FALSE | IA3: FALSE | IB3: FALSE | IC3: FALSE | ID3: FALSE | IE3: FALSE | IF3: FALSE | IG3: FALSE | IH3: FALSE | II3: FALSE | IJ3: FALSE | IK3: FALSE | IL3: FALSE | IM3: FALSE | IN3: FALSE | IO3: FALSE | IP3: FALSE | IQ3: FALSE | IR3: FALSE | IS3: FALSE | IT3: FALSE | IU3: FALSE | IV3: FALSE | IW3: FALSE | IX3: FALSE | IY3: FALSE | IZ3: FALSE | JA3: FALSE | JB3: FALSE | JC3: FALSE | JD3: FALSE | JE3: FALSE | JF3: FALSE | JG3: FALSE | JH3: FALSE | JI3: FALSE | JJ3: FALSE | JK3: FALSE | JL3: FALSE | JM3: FALSE | JN3: FALSE | JO3: FALSE | JP3: =JP2<=$H3 -> FALSE | JQ3: FALSE | JR3: FALSE | JS3: FALSE | JT3: FALSE | JU3: FALSE | JV3: FALSE | JW3: FALSE | JX3: FALSE | JY3: FALSE | JZ3: FALSE | KA3: FALSE | KB3: FALSE | KC3: FALSE | KD3: FALSE | KE3: FALSE | KF3: FALSE | KG3: FALSE | KH3: FALSE | KI3: FALSE | KJ3: FALSE | KK3: FALSE | KL3: FALSE | KM3: FALSE | KN3: FALSE | KO3: FALSE | KP3: FALSE | KQ3: FALSE | KR3: FALSE | KS3: FALSE | KT3: FALSE | KU3: FALSE | KV3: FALSE | KW3: FALSE | KX3: FALSE | KY3: FALSE | KZ3: FALSE | LA3: FALSE | LB3: FALSE | LC3: FALSE | LD3: FALSE | LE3: FALSE | LF3: FALSE | LG3: FALSE | LH3: FALSE | LI3: FALSE | LJ3: FALSE | LK3: FALSE | LL3: FALSE | LM3: FALSE | LN3: FALSE | LO3: FALSE | LP3: FALSE | LQ3: FALSE | LR3: FALSE | LS3: FALSE | LT3: FALSE | LU3: FALSE | LV3: FALSE | LW3: FALSE | LX3: FALSE | LY3: FALSE | LZ3: FALSE | MA3: FALSE | MB3: =MB2<=$H3 -> FALSE | MC3: FALSE | MD3: FALSE | ME3: FALSE | MF3: FALSE | MG3: FALSE | MH3: FALSE | MI3: FALSE | MJ3: FALSE | MK3: FALSE | ML3: FALSE | MM3: FALSE | MN3: FALSE | MO3: FALSE | MP3: FALSE | MQ3: FALSE | MR3: FALSE | MS3: FALSE | MT3: FALSE | MU3: FALSE | MV3: FALSE | MW3: FALSE | MX3: FALSE | MY3: FALSE | MZ3: FALSE | NA3: FALSE | NB3: FALSE | NC3: FALSE | ND3: FALSE | NE3: FALSE | NF3: FALSE | NG3: FALSE | NH3: FALSE | NI3: FALSE | NJ3: FALSE | NK3: FALSE | NL3: FALSE | NM3: FALSE | NN3: FALSE | NO3: FALSE | NP3: FALSE | NQ3: FALSE | NR3: FALSE | NS3: FALSE | NT3: FALSE | NU3: FALSE | NV3: FALSE | NW3: FALSE | NX3: FALSE | NY3: FALSE | NZ3: FALSE | OA3: FALSE | OB3: FALSE | OC3: FALSE | OD3: FALSE | OE3: FALSE | OF3: FALSE | OG3: FALSE | OH3: FALSE | OI3: FALSE | OJ3: FALSE | OK3: FALSE | OL3: FALSE | OM3: FALSE | ON3: =ON2<=$H3 -> FALSE | OO3: FALSE | OP3: FALSE | OQ3: FALSE | OR3: FALSE | OS3: FALSE | OT3: FALSE | OU3: FALSE | OV3: FALSE | OW3: FALSE | OX3: FALSE | OY3: FALSE | OZ3: FALSE | PA3: FALSE | PB3: FALSE | PC3: FALSE | PD3: FALSE | PE3: FALSE | PF3: FALSE | PG3: FALSE | PH3: FALSE | PI3: FALSE | PJ3: FALSE | PK3: FALSE | PL3: FALSE | PM3: FALSE | PN3: FALSE | PO3: FALSE | PP3: FALSE | PQ3: FALSE | PR3: FALSE | PS3: FALSE | PT3: FALSE | PU3: FALSE | PV3: FALSE | PW3: FALSE | PX3: FALSE | PY3: FALSE | PZ3: FALSE | QA3: FALSE | QB3: FALSE | QC3: FALSE | QD3: FALSE | QE3: FALSE | QF3: FALSE | QG3: FALSE | QH3: FALSE | QI3: FALSE | QJ3: FALSE | QK3: FALSE | QL3: FALSE
B4: Months in Period | F4: Pre-COD | G4: =Assumptions!G9 -> 1 | H4: Post-COD | I4: =Assumptions!G10 -> 1 | L4: =IF(L3,$G$4,$I$4) -> 1 | M4: =IF(M3,$G$4,$I$4) -> 1 | N4: 1 | O4: 1 | P4: 1 | Q4: 1 | R4: 1 | S4: 1 | T4: 1 | U4: 1 | V4: 1 | W4: 1 | X4: 1 | Y4: 1 | Z4: 1 | AA4: 1 | AB4: 1 | AC4: 1 | AD4: 1 | AE4: 1 | AF4: 1 | AG4: 1 | AH4: 1 | AI4: 1 | AJ4: 1 | AK4: 1 | AL4: 1 | AM4: 1 | AN4: 1 | AO4: 1 | AP4: 1 | AQ4: 1 | AR4: 1 | AS4: 1 | AT4: 1 | AU4: 1 | AV4: 1 | AW4: 1 | AX4: 1 | AY4: 1 | AZ4: 1 | BA4: 1 | BB4: 1 | BC4: 1 | BD4: 1 | BE4: 1 | BF4: 1 | BG4: 1 | BH4: 1 | BI4: 1 | BJ4: 1 | BK4: 1 | BL4: 1 | BM4: 1 | BN4: 1 | BO4: 1 | BP4: 1 | BQ4: 1 | BR4: 1 | BS4: 1 | BT4: 1 | BU4: 1 | BV4: 1 | BW4: 1 | BX4: 1 | BY4: =IF(BY3,$G$4,$I$4) -> 1 | BZ4: 1 | CA4: 1 | CB4: 1 | CC4: 1 | CD4: 1 | CE4: 1 | CF4: 1 | CG4: 1 | CH4: 1 | CI4: 1 | CJ4: 1 | CK4: 1 | CL4: 1 | CM4: 1 | CN4: 1 | CO4: 1 | CP4: 1 | CQ4: 1 | CR4: 1 | CS4: 1 | CT4: 1 | CU4: 1 | CV4: 1 | CW4: 1 | CX4: 1 | CY4: 1 | CZ4: 1 | DA4: 1 | DB4: 1 | DC4: 1 | DD4: 1 | DE4: 1 | DF4: 1 | DG4: 1 | DH4: 1 | DI4: 1 | DJ4: 1 | DK4: 1 | DL4: 1 | DM4: 1 | DN4: 1 | DO4: 1 | DP4: 1 | DQ4: 1 | DR4: 1 | DS4: 1 | DT4: 1 | DU4: 1 | DV4: 1 | DW4: 1 | DX4: 1 | DY4: 1 | DZ4: 1 | EA4: 1 | EB4: 1 | EC4: 1 | ED4: 1 | EE4: 1 | EF4: 1 | EG4: 1 | EH4: 1 | EI4: 1 | EJ4: 1 | EK4: =IF(EK3,$G$4,$I$4) -> 1 | EL4: 1 | EM4: 1 | EN4: 1 | EO4: 1 | EP4: 1 | EQ4: 1 | ER4: 1 | ES4: 1 | ET4: 1 | EU4: 1 | EV4: 1 | EW4: 1 | EX4: 1 | EY4: 1 | EZ4: 1 | FA4: 1 | FB4: 1 | FC4: 1 | FD4: 1 | FE4: 1 | FF4: 1 | FG4: 1 | FH4: 1 | FI4: 1 | FJ4: 1 | FK4: 1 | FL4: 1 | FM4: 1 | FN4: 1 | FO4: 1 | FP4: 1 | FQ4: 1 | FR4: 1 | FS4: 1 | FT4: 1 | FU4: 1 | FV4: 1 | FW4: 1 | FX4: 1 | FY4: 1 | FZ4: 1 | GA4: 1 | GB4: 1 | GC4: 1 | GD4: 1 | GE4: 1 | GF4: 1 | GG4: 1 | GH4: 1 | GI4: 1 | GJ4: 1 | GK4: 1 | GL4: 1 | GM4: 1 | GN4: 1 | GO4: 1 | GP4: 1 | GQ4: 1 | GR4: 1 | GS4: 1 | GT4: 1 | GU4: 1 | GV4: 1 | GW4: =IF(GW3,$G$4,$I$4) -> 1 | GX4: 1 | GY4: 1 | GZ4: 1 | HA4: 1 | HB4: 1 | HC4: 1 | HD4: =IF(HD3,$G$4,$I$4) -> 1 | HE4: 1 | HF4: 1 | HG4: 1 | HH4: 1 | HI4: 1 | HJ4: 1 | HK4: 1 | HL4: 1 | HM4: 1 | HN4: 1 | HO4: 1 | HP4: 1 | HQ4: 1 | HR4: 1 | HS4: 1 | HT4: 1 | HU4: 1 | HV4: 1 | HW4: 1 | HX4: 1 | HY4: 1 | HZ4: 1 | IA4: 1 | IB4: 1 | IC4: 1 | ID4: 1 | IE4: 1 | IF4: 1 | IG4: 1 | IH4: 1 | II4: 1 | IJ4: 1 | IK4: 1 | IL4: 1 | IM4: 1 | IN4: 1 | IO4: 1 | IP4: 1 | IQ4: 1 | IR4: 1 | IS4: 1 | IT4: 1 | IU4: 1 | IV4: 1 | IW4: 1 | IX4: 1 | IY4: 1 | IZ4: 1 | JA4: 1 | JB4: 1 | JC4: 1 | JD4: 1 | JE4: 1 | JF4: 1 | JG4: 1 | JH4: 1 | JI4: 1 | JJ4: 1 | JK4: 1 | JL4: 1 | JM4: 1 | JN4: 1 | JO4: 1 | JP4: =IF(JP3,$G$4,$I$4) -> 1 | JQ4: 1 | JR4: 1 | JS4: 1 | JT4: 1 | JU4: 1 | JV4: 1 | JW4: 1 | JX4: 1 | JY4: 1 | JZ4: 1 | KA4: 1 | KB4: 1 | KC4: 1 | KD4: 1 | KE4: 1 | KF4: 1 | KG4: 1 | KH4: 1 | KI4: 1 | KJ4: 1 | KK4: 1 | KL4: 1 | KM4: 1 | KN4: 1 | KO4: 1 | KP4: 1 | KQ4: 1 | KR4: 1 | KS4: 1 | KT4: 1 | KU4: 1 | KV4: 1 | KW4: 1 | KX4: 1 | KY4: 1 | KZ4: 1 | LA4: 1 | LB4: 1 | LC4: 1 | LD4: 1 | LE4: 1 | LF4: 1 | LG4: 1 | LH4: 1 | LI4: 1 | LJ4: 1 | LK4: 1 | LL4: 1 | LM4: 1 | LN4: 1 | LO4: 1 | LP4: 1 | LQ4: 1 | LR4: 1 | LS4: 1 | LT4: 1 | LU4: 1 | LV4: 1 | LW4: 1 | LX4: 1 | LY4: 1 | LZ4: 1 | MA4: 1 | MB4: =IF(MB3,$G$4,$I$4) -> 1 | MC4: 1 | MD4: 1 | ME4: 1 | MF4: 1 | MG4: 1 | MH4: 1 | MI4: 1 | MJ4: 1 | MK4: 1 | ML4: 1 | MM4: 1 | MN4: 1 | MO4: 1 | MP4: 1 | MQ4: 1 | MR4: 1 | MS4: 1 | MT4: 1 | MU4: 1 | MV4: 1 | MW4: 1 | MX4: 1 | MY4: 1 | MZ4: 1 | NA4: 1 | NB4: 1 | NC4: 1 | ND4: 1 | NE4: 1 | NF4: 1 | NG4: 1 | NH4: 1 | NI4: 1 | NJ4: 1 | NK4: 1 | NL4: 1 | NM4: 1 | NN4: 1 | NO4: 1 | NP4: 1 | NQ4: 1 | NR4: 1 | NS4: 1 | NT4: 1 | NU4: 1 | NV4: 1 | NW4: 1 | NX4: 1 | NY4: 1 | NZ4: 1 | OA4: 1 | OB4: 1 | OC4: 1 | OD4: 1 | OE4: 1 | OF4: 1 | OG4: 1 | OH4: 1 | OI4: 1 | OJ4: 1 | OK4: 1 | OL4: 1 | OM4: 1 | ON4: =IF(ON3,$G$4,$I$4) -> 1 | OO4: 1 | OP4: 1 | OQ4: 1 | OR4: 1 | OS4: 1 | OT4: 1 | OU4: 1 | OV4: 1 | OW4: 1 | OX4: 1 | OY4: 1 | OZ4: 1 | PA4: 1 | PB4: 1 | PC4: 1 | PD4: 1 | PE4: 1 | PF4: 1 | PG4: 1 | PH4: 1 | PI4: 1 | PJ4: 1 | PK4: 1 | PL4: 1 | PM4: 1 | PN4: 1 | PO4: 1 | PP4: 1 | PQ4: 1 | PR4: 1 | PS4: 1 | PT4: 1 | PU4: 1 | PV4: 1 | PW4: 1 | PX4: 1 | PY4: 1 | PZ4: 1 | QA4: 1 | QB4: 1 | QC4: 1 | QD4: 1 | QE4: 1 | QF4: 1 | QG4: 1 | QH4: 1 | QI4: 1 | QJ4: 1 | QK4: 1 | QL4: 1
B5: Months to Make Year | F5: Months | L5: =12/L4 -> 12 | M5: =12/M4 -> 12 | N5: 12 | O5: 12 | P5: 12 | Q5: 12 | R5: 12 | S5: 12 | T5: 12 | U5: 12 | V5: 12 | W5: 12 | X5: 12 | Y5: 12 | Z5: 12 | AA5: 12 | AB5: 12 | AC5: 12 | AD5: 12 | AE5: 12 | AF5: 12 | AG5: 12 | AH5: 12 | AI5: 12 | AJ5: 12 | AK5: 12 | AL5: 12 | AM5: 12 | AN5: 12 | AO5: 12 | AP5: 12 | AQ5: 12 | AR5: 12 | AS5: 12 | AT5: 12 | AU5: 12 | AV5: 12 | AW5: 12 | AX5: 12 | AY5: 12 | AZ5: 12 | BA5: 12 | BB5: 12 | BC5: 12 | BD5: 12 | BE5: 12 | BF5: 12 | BG5: 12 | BH5: 12 | BI5: 12 | BJ5: 12 | BK5: 12 | BL5: 12 | BM5: 12 | BN5: 12 | BO5: 12 | BP5: 12 | BQ5: 12 | BR5: 12 | BS5: 12 | BT5: 12 | BU5: 12 | BV5: 12 | BW5: 12 | BX5: 12 | BY5: =12/BY4 -> 12 | BZ5: 12 | CA5: 12 | CB5: 12 | CC5: 12 | CD5: 12 | CE5: 12 | CF5: 12 | CG5: 12 | CH5: 12 | CI5: 12 | CJ5: 12 | CK5: 12 | CL5: 12 | CM5: 12 | CN5: 12 | CO5: 12 | CP5: 12 | CQ5: 12 | CR5: 12 | CS5: 12 | CT5: 12 | CU5: 12 | CV5: 12 | CW5: 12 | CX5: 12 | CY5: 12 | CZ5: 12 | DA5: 12 | DB5: 12 | DC5: 12 | DD5: 12 | DE5: 12 | DF5: 12 | DG5: 12 | DH5: 12 | DI5: 12 | DJ5: 12 | DK5: 12 | DL5: 12 | DM5: 12 | DN5: 12 | DO5: 12 | DP5: 12 | DQ5: 12 | DR5: 12 | DS5: 12 | DT5: 12 | DU5: 12 | DV5: 12 | DW5: 12 | DX5: 12 | DY5: 12 | DZ5: 12 | EA5: 12 | EB5: 12 | EC5: 12 | ED5: 12 | EE5: 12 | EF5: 12 | EG5: 12 | EH5: 12 | EI5: 12 | EJ5: 12 | EK5: =12/EK4 -> 12 | EL5: 12 | EM5: 12 | EN5: 12 | EO5: 12 | EP5: 12 | EQ5: 12 | ER5: 12 | ES5: 12 | ET5: 12 | EU5: 12 | EV5: 12 | EW5: 12 | EX5: 12 | EY5: 12 | EZ5: 12 | FA5: 12 | FB5: 12 | FC5: 12 | FD5: 12 | FE5: 12 | FF5: 12 | FG5: 12 | FH5: 12 | FI5: 12 | FJ5: 12 | FK5: 12 | FL5: 12 | FM5: 12 | FN5: 12 | FO5: 12 | FP5: 12 | FQ5: 12 | FR5: 12 | FS5: 12 | FT5: 12 | FU5: 12 | FV5: 12 | FW5: 12 | FX5: 12 | FY5: 12 | FZ5: 12 | GA5: 12 | GB5: 12 | GC5: 12 | GD5: 12 | GE5: 12 | GF5: 12 | GG5: 12 | GH5: 12 | GI5: 12 | GJ5: 12 | GK5: 12 | GL5: 12 | GM5: 12 | GN5: 12 | GO5: 12 | GP5: 12 | GQ5: 12 | GR5: 12 | GS5: 12 | GT5: 12 | GU5: 12 | GV5: 12 | GW5: =12/GW4 -> 12 | GX5: 12 | GY5: 12 | GZ5: 12 | HA5: 12 | HB5: 12 | HC5: 12 | HD5: =12/HD4 -> 12 | HE5: 12 | HF5: 12 | HG5: 12 | HH5: 12 | HI5: 12 | HJ5: 12 | HK5: 12 | HL5: 12 | HM5: 12 | HN5: 12 | HO5: 12 | HP5: 12 | HQ5: 12 | HR5: 12 | HS5: 12 | HT5: 12 | HU5: 12 | HV5: 12 | HW5: 12 | HX5: 12 | HY5: 12 | HZ5: 12 | IA5: 12 | IB5: 12 | IC5: 12 | ID5: 12 | IE5: 12 | IF5: 12 | IG5: 12 | IH5: 12 | II5: 12 | IJ5: 12 | IK5: 12 | IL5: 12 | IM5: 12 | IN5: 12 | IO5: 12 | IP5: 12 | IQ5: 12 | IR5: 12 | IS5: 12 | IT5: 12 | IU5: 12 | IV5: 12 | IW5: 12 | IX5: 12 | IY5: 12 | IZ5: 12 | JA5: 12 | JB5: 12 | JC5: 12 | JD5: 12 | JE5: 12 | JF5: 12 | JG5: 12 | JH5: 12 | JI5: 12 | JJ5: 12 | JK5: 12 | JL5: 12 | JM5: 12 | JN5: 12 | JO5: 12 | JP5: =12/JP4 -> 12 | JQ5: 12 | JR5: 12 | JS5: 12 | JT5: 12 | JU5: 12 | JV5: 12 | JW5: 12 | JX5: 12 | JY5: 12 | JZ5: 12 | KA5: 12 | KB5: 12 | KC5: 12 | KD5: 12 | KE5: 12 | KF5: 12 | KG5: 12 | KH5: 12 | KI5: 12 | KJ5: 12 | KK5: 12 | KL5: 12 | KM5: 12 | KN5: 12 | KO5: 12 | KP5: 12 | KQ5: 12 | KR5: 12 | KS5: 12 | KT5: 12 | KU5: 12 | KV5: 12 | KW5: 12 | KX5: 12 | KY5: 12 | KZ5: 12 | LA5: 12 | LB5: 12 | LC5: 12 | LD5: 12 | LE5: 12 | LF5: 12 | LG5: 12 | LH5: 12 | LI5: 12 | LJ5: 12 | LK5: 12 | LL5: 12 | LM5: 12 | LN5: 12 | LO5: 12 | LP5: 12 | LQ5: 12 | LR5: 12 | LS5: 12 | LT5: 12 | LU5: 12 | LV5: 12 | LW5: 12 | LX5: 12 | LY5: 12 | LZ5: 12 | MA5: 12 | MB5: =12/MB4 -> 12 | MC5: 12 | MD5: 12 | ME5: 12 | MF5: 12 | MG5: 12 | MH5: 12 | MI5: 12 | MJ5: 12 | MK5: 12 | ML5: 12 | MM5: 12 | MN5: 12 | MO5: 12 | MP5: 12 | MQ5: 12 | MR5: 12 | MS5: 12 | MT5: 12 | MU5: 12 | MV5: 12 | MW5: 12 | MX5: 12 | MY5: 12 | MZ5: 12 | NA5: 12 | NB5: 12 | NC5: 12 | ND5: 12 | NE5: 12 | NF5: 12 | NG5: 12 | NH5: 12 | NI5: 12 | NJ5: 12 | NK5: 12 | NL5: 12 | NM5: 12 | NN5: 12 | NO5: 12 | NP5: 12 | NQ5: 12 | NR5: 12 | NS5: 12 | NT5: 12 | NU5: 12 | NV5: 12 | NW5: 12 | NX5: 12 | NY5: 12 | NZ5: 12 | OA5: 12 | OB5: 12 | OC5: 12 | OD5: 12 | OE5: 12 | OF5: 12 | OG5: 12 | OH5: 12 | OI5: 12 | OJ5: 12 | OK5: 12 | OL5: 12 | OM5: 12 | ON5: =12/ON4 -> 12 | OO5: 12 | OP5: 12 | OQ5: 12 | OR5: 12 | OS5: 12 | OT5: 12 | OU5: 12 | OV5: 12 | OW5: 12 | OX5: 12 | OY5: 12 | OZ5: 12 | PA5: 12 | PB5: 12 | PC5: 12 | PD5: 12 | PE5: 12 | PF5: 12 | PG5: 12 | PH5: 12 | PI5: 12 | PJ5: 12 | PK5: 12 | PL5: 12 | PM5: 12 | PN5: 12 | PO5: 12 | PP5: 12 | PQ5: 12 | PR5: 12 | PS5: 12 | PT5: 12 | PU5: 12 | PV5: 12 | PW5: 12 | PX5: 12 | PY5: 12 | PZ5: 12 | QA5: 12 | QB5: 12 | QC5: 12 | QD5: 12 | QE5: 12 | QF5: 12 | QG5: 12 | QH5: 12 | QI5: 12 | QJ5: 12 | QK5: 12 | QL5: 12
B6: Start of Period | F6: Dates | G6: FC Data | H6: =Assumptions!G2 -> 2016-04-01 | L6: =I7+1 -> 2016-04-01 | M6: =L7+1 -> 2016-05-01 | N6: 2016-06-01 | O6: 2016-07-01 | P6: 2016-08-01 | Q6: 2016-09-01 | R6: 2016-10-01 | S6: 2016-11-01 | T6: 2016-12-01 | U6: 2017-01-01 | V6: 2017-02-01 | W6: 2017-03-01 | X6: 2017-04-01 | Y6: 2017-05-01 | Z6: 2017-06-01 | AA6: 2017-07-01 | AB6: 2017-08-01 | AC6: 2017-09-01 | AD6: 2017-10-01 | AE6: 2017-11-01 | AF6: 2017-12-01 | AG6: 2018-01-01 | AH6: 2018-02-01 | AI6: 2018-03-01 | AJ6: 2018-04-01 | AK6: 2018-05-01 | AL6: 2018-06-01 | AM6: 2018-07-01 | AN6: 2018-08-01 | AO6: 2018-09-01 | AP6: 2018-10-01 | AQ6: 2018-11-01 | AR6: 2018-12-01 | AS6: 2019-01-01 | AT6: 2019-02-01 | AU6: 2019-03-01 | AV6: 2019-04-01 | AW6: 2019-05-01 | AX6: 2019-06-01 | AY6: 2019-07-01 | AZ6: 2019-08-01 | BA6: 2019-09-01 | BB6: 2019-10-01 | BC6: 2019-11-01 | BD6: 2019-12-01 | BE6: 2020-01-01 | BF6: 2020-02-01 | BG6: 2020-03-01 | BH6: 2020-04-01 | BI6: 2020-05-01 | BJ6: 2020-06-01 | BK6: 2020-07-01 | BL6: 2020-08-01 | BM6: 2020-09-01 | BN6: 2020-10-01 | BO6: 2020-11-01 | BP6: 2020-12-01 | BQ6: 2021-01-01 | BR6: 2021-02-01 | BS6: 2021-03-01 | BT6: 2021-04-01 | BU6: 2021-05-01 | BV6: 2021-06-01 | BW6: 2021-07-01 | BX6: 2021-08-01 | BY6: =BX7+1 -> 2021-09-01 | BZ6: 2021-10-01 | CA6: 2021-11-01 | CB6: 2021-12-01 | CC6: 2022-01-01 | CD6: 2022-02-01 | CE6: 2022-03-01 | CF6: 2022-04-01 | CG6: 2022-05-01 | CH6: 2022-06-01 | CI6: 2022-07-01 | CJ6: 2022-08-01 | CK6: 2022-09-01 | CL6: 2022-10-01 | CM6: 2022-11-01 | CN6: 2022-12-01 | CO6: 2023-01-01 | CP6: 2023-02-01 | CQ6: 2023-03-01 | CR6: 2023-04-01 | CS6: 2023-05-01 | CT6: 2023-06-01 | CU6: 2023-07-01 | CV6: 2023-08-01 | CW6: 2023-09-01 | CX6: 2023-10-01 | CY6: 2023-11-01 | CZ6: 2023-12-01 | DA6: 2024-01-01 | DB6: 2024-02-01 | DC6: 2024-03-01 | DD6: 2024-04-01 | DE6: 2024-05-01 | DF6: 2024-06-01 | DG6: 2024-07-01 | DH6: 2024-08-01 | DI6: 2024-09-01 | DJ6: 2024-10-01 | DK6: 2024-11-01 | DL6: 2024-12-01 | DM6: 2025-01-01 | DN6: 2025-02-01 | DO6: 2025-03-01 | DP6: 2025-04-01 | DQ6: 2025-05-01 | DR6: 2025-06-01 | DS6: 2025-07-01 | DT6: 2025-08-01 | DU6: 2025-09-01 | DV6: 2025-10-01 | DW6: 2025-11-01 | DX6: 2025-12-01 | DY6: 2026-01-01 | DZ6: 2026-02-01 | EA6: 2026-03-01 | EB6: 2026-04-01 | EC6: 2026-05-01 | ED6: 2026-06-01 | EE6: 2026-07-01 | EF6: 2026-08-01 | EG6: 2026-09-01 | EH6: 2026-10-01 | EI6: 2026-11-01 | EJ6: 2026-12-01 | EK6: =EJ7+1 -> 2027-01-01 | EL6: 2027-02-01 | EM6: 2027-03-01 | EN6: 2027-04-01 | EO6: 2027-05-01 | EP6: 2027-06-01 | EQ6: 2027-07-01 | ER6: 2027-08-01 | ES6: 2027-09-01 | ET6: 2027-10-01 | EU6: 2027-11-01 | EV6: 2027-12-01 | EW6: 2028-01-01 | EX6: 2028-02-01 | EY6: 2028-03-01 | EZ6: 2028-04-01 | FA6: 2028-05-01 | FB6: 2028-06-01 | FC6: 2028-07-01 | FD6: 2028-08-01 | FE6: 2028-09-01 | FF6: 2028-10-01 | FG6: 2028-11-01 | FH6: 2028-12-01 | FI6: 2029-01-01 | FJ6: 2029-02-01 | FK6: 2029-03-01 | FL6: 2029-04-01 | FM6: 2029-05-01 | FN6: 2029-06-01 | FO6: 2029-07-01 | FP6: 2029-08-01 | FQ6: 2029-09-01 | FR6: 2029-10-01 | FS6: 2029-11-01 | FT6: 2029-12-01 | FU6: 2030-01-01 | FV6: 2030-02-01 | FW6: 2030-03-01 | FX6: 2030-04-01 | FY6: 2030-05-01 | FZ6: 2030-06-01 | GA6: 2030-07-01 | GB6: 2030-08-01 | GC6: 2030-09-01 | GD6: 2030-10-01 | GE6: 2030-11-01 | GF6: 2030-12-01 | GG6: 2031-01-01 | GH6: 2031-02-01 | GI6: 2031-03-01 | GJ6: 2031-04-01 | GK6: 2031-05-01 | GL6: 2031-06-01 | GM6: 2031-07-01 | GN6: 2031-08-01 | GO6: 2031-09-01 | GP6: 2031-10-01 | GQ6: 2031-11-01 | GR6: 2031-12-01 | GS6: 2032-01-01 | GT6: 2032-02-01 | GU6: 2032-03-01 | GV6: 2032-04-01 | GW6: =GV7+1 -> 2032-05-01 | GX6: 2032-06-01 | GY6: 2032-07-01 | GZ6: 2032-08-01 | HA6: 2032-09-01 | HB6: 2032-10-01 | HC6: 2032-11-01 | HD6: =HC7+1 -> 2032-12-01 | HE6: 2033-01-01 | HF6: 2033-02-01 | HG6: 2033-03-01 | HH6: 2033-04-01 | HI6: 2033-05-01 | HJ6: 2033-06-01 | HK6: 2033-07-01 | HL6: 2033-08-01 | HM6: 2033-09-01 | HN6: 2033-10-01 | HO6: 2033-11-01 | HP6: 2033-12-01 | HQ6: 2034-01-01 | HR6: 2034-02-01 | HS6: 2034-03-01 | HT6: 2034-04-01 | HU6: 2034-05-01 | HV6: 2034-06-01 | HW6: 2034-07-01 | HX6: 2034-08-01 | HY6: 2034-09-01 | HZ6: 2034-10-01 | IA6: 2034-11-01 | IB6: 2034-12-01 | IC6: 2035-01-01 | ID6: 2035-02-01 | IE6: 2035-03-01 | IF6: 2035-04-01 | IG6: 2035-05-01 | IH6: 2035-06-01 | II6: 2035-07-01 | IJ6: 2035-08-01 | IK6: 2035-09-01 | IL6: 2035-10-01 | IM6: 2035-11-01 | IN6: 2035-12-01 | IO6: 2036-01-01 | IP6: 2036-02-01 | IQ6: 2036-03-01 | IR6: 2036-04-01 | IS6: 2036-05-01 | IT6: 2036-06-01 | IU6: 2036-07-01 | IV6: 2036-08-01 | IW6: 2036-09-01 | IX6: 2036-10-01 | IY6: 2036-11-01 | IZ6: 2036-12-01 | JA6: 2037-01-01 | JB6: 2037-02-01 | JC6: 2037-03-01 | JD6: 2037-04-01 | JE6: 2037-05-01 | JF6: 2037-06-01 | JG6: 2037-07-01 | JH6: 2037-08-01 | JI6: 2037-09-01 | JJ6: 2037-10-01 | JK6: 2037-11-01 | JL6: 2037-12-01 | JM6: 2038-01-01 | JN6: 2038-02-01 | JO6: 2038-03-01 | JP6: =JO7+1 -> 2038-04-01 | JQ6: 2038-05-01 | JR6: 2038-06-01 | JS6: 2038-07-01 | JT6: 2038-08-01 | JU6: 2038-09-01 | JV6: 2038-10-01 | JW6: 2038-11-01 | JX6: 2038-12-01 | JY6: 2039-01-01 | JZ6: 2039-02-01 | KA6: 2039-03-01 | KB6: 2039-04-01 | KC6: 2039-05-01 | KD6: 2039-06-01 | KE6: 2039-07-01 | KF6: 2039-08-01 | KG6: 2039-09-01 | KH6: 2039-10-01 | KI6: 2039-11-01 | KJ6: 2039-12-01 | KK6: 2040-01-01 | KL6: 2040-02-01 | KM6: 2040-03-01 | KN6: 2040-04-01 | KO6: 2040-05-01 | KP6: 2040-06-01 | KQ6: 2040-07-01 | KR6: 2040-08-01 | KS6: 2040-09-01 | KT6: 2040-10-01 | KU6: 2040-11-01 | KV6: 2040-12-01 | KW6: 2041-01-01 | KX6: 2041-02-01 | KY6: 2041-03-01 | KZ6: 2041-04-01 | LA6: 2041-05-01 | LB6: 2041-06-01 | LC6: 2041-07-01 | LD6: 2041-08-01 | LE6: 2041-09-01 | LF6: 2041-10-01 | LG6: 2041-11-01 | LH6: 2041-12-01 | LI6: 2042-01-01 | LJ6: 2042-02-01 | LK6: 2042-03-01 | LL6: 2042-04-01 | LM6: 2042-05-01 | LN6: 2042-06-01 | LO6: 2042-07-01 | LP6: 2042-08-01 | LQ6: 2042-09-01 | LR6: 2042-10-01 | LS6: 2042-11-01 | LT6: 2042-12-01 | LU6: 2043-01-01 | LV6: 2043-02-01 | LW6: 2043-03-01 | LX6: 2043-04-01 | LY6: 2043-05-01 | LZ6: 2043-06-01 | MA6: 2043-07-01 | MB6: =MA7+1 -> 2043-08-01 | MC6: 2043-09-01 | MD6: 2043-10-01 | ME6: 2043-11-01 | MF6: 2043-12-01 | MG6: 2044-01-01 | MH6: 2044-02-01 | MI6: 2044-03-01 | MJ6: 2044-04-01 | MK6: 2044-05-01 | ML6: 2044-06-01 | MM6: 2044-07-01 | MN6: 2044-08-01 | MO6: 2044-09-01 | MP6: 2044-10-01 | MQ6: 2044-11-01 | MR6: 2044-12-01 | MS6: 2045-01-01 | MT6: 2045-02-01 | MU6: 2045-03-01 | MV6: 2045-04-01 | MW6: 2045-05-01 | MX6: 2045-06-01 | MY6: 2045-07-01 | MZ6: 2045-08-01 | NA6: 2045-09-01 | NB6: 2045-10-01 | NC6: 2045-11-01 | ND6: 2045-12-01 | NE6: 2046-01-01 | NF6: 2046-02-01 | NG6: 2046-03-01 | NH6: 2046-04-01 | NI6: 2046-05-01 | NJ6: 2046-06-01 | NK6: 2046-07-01 | NL6: 2046-08-01 | NM6: 2046-09-01 | NN6: 2046-10-01 | NO6: 2046-11-01 | NP6: 2046-12-01 | NQ6: 2047-01-01 | NR6: 2047-02-01 | NS6: 2047-03-01 | NT6: 2047-04-01 | NU6: 2047-05-01 | NV6: 2047-06-01 | NW6: 2047-07-01 | NX6: 2047-08-01 | NY6: 2047-09-01 | NZ6: 2047-10-01 | OA6: 2047-11-01 | OB6: 2047-12-01 | OC6: 2048-01-01 | OD6: 2048-02-01 | OE6: 2048-03-01 | OF6: 2048-04-01 | OG6: 2048-05-01 | OH6: 2048-06-01 | OI6: 2048-07-01 | OJ6: 2048-08-01 | OK6: 2048-09-01 | OL6: 2048-10-01 | OM6: 2048-11-01 | ON6: =OM7+1 -> 2048-12-01 | OO6: 2049-01-01 | OP6: 2049-02-01 | OQ6: 2049-03-01 | OR6: 2049-04-01 | OS6: 2049-05-01 | OT6: 2049-06-01 | OU6: 2049-07-01 | OV6: 2049-08-01 | OW6: 2049-09-01 | OX6: 2049-10-01 | OY6: 2049-11-01 | OZ6: 2049-12-01 | PA6: 2050-01-01 | PB6: 2050-02-01 | PC6: 2050-03-01 | PD6: 2050-04-01 | PE6: 2050-05-01 | PF6: 2050-06-01 | PG6: 2050-07-01 | PH6: 2050-08-01 | PI6: 2050-09-01 | PJ6: 2050-10-01 | PK6: 2050-11-01 | PL6: 2050-12-01 | PM6: 2051-01-01 | PN6: 2051-02-01 | PO6: 2051-03-01 | PP6: 2051-04-01 | PQ6: 2051-05-01 | PR6: 2051-06-01 | PS6: 2051-07-01 | PT6: 2051-08-01 | PU6: 2051-09-01 | PV6: 2051-10-01 | PW6: 2051-11-01 | PX6: 2051-12-01 | PY6: 2052-01-01 | PZ6: 2052-02-01 | QA6: 2052-03-01 | QB6: 2052-04-01 | QC6: 2052-05-01 | QD6: 2052-06-01 | QE6: 2052-07-01 | QF6: 2052-08-01 | QG6: 2052-09-01 | QH6: 2052-10-01 | QI6: 2052-11-01 | QJ6: 2052-12-01 | QK6: 2053-01-01 | QL6: 2053-02-01
B7: End of Period | F7: Date | G7: =H6-1 -> 2016-03-31 | I7: =G7 -> 2016-03-31 | L7: =EOMONTH(L6,L4-1) -> 2016-04-30 | M7: =EOMONTH(M6,M4-1) -> 2016-05-31 | N7: 2016-06-30 | O7: 2016-07-31 | P7: 2016-08-31 | Q7: 2016-09-30 | R7: 2016-10-31 | S7: 2016-11-30 | T7: 2016-12-31 | U7: 2017-01-31 | V7: 2017-02-28 | W7: 2017-03-31 | X7: 2017-04-30 | Y7: 2017-05-31 | Z7: 2017-06-30 | AA7: 2017-07-31 | AB7: 2017-08-31 | AC7: 2017-09-30 | AD7: 2017-10-31 | AE7: 2017-11-30 | AF7: 2017-12-31 | AG7: 2018-01-31 | AH7: 2018-02-28 | AI7: 2018-03-31 | AJ7: 2018-04-30 | AK7: 2018-05-31 | AL7: 2018-06-30 | AM7: 2018-07-31 | AN7: 2018-08-31 | AO7: 2018-09-30 | AP7: 2018-10-31 | AQ7: 2018-11-30 | AR7: 2018-12-31 | AS7: 2019-01-31 | AT7: 2019-02-28 | AU7: 2019-03-31 | AV7: 2019-04-30 | AW7: 2019-05-31 | AX7: 2019-06-30 | AY7: 2019-07-31 | AZ7: 2019-08-31 | BA7: 2019-09-30 | BB7: 2019-10-31 | BC7: 2019-11-30 | BD7: 2019-12-31 | BE7: 2020-01-31 | BF7: 2020-02-29 | BG7: 2020-03-31 | BH7: 2020-04-30 | BI7: 2020-05-31 | BJ7: 2020-06-30 | BK7: 2020-07-31 | BL7: 2020-08-31 | BM7: 2020-09-30 | BN7: 2020-10-31 | BO7: 2020-11-30 | BP7: 2020-12-31 | BQ7: 2021-01-31 | BR7: 2021-02-28 | BS7: 2021-03-31 | BT7: 2021-04-30 | BU7: 2021-05-31 | BV7: 2021-06-30 | BW7: 2021-07-31 | BX7: 2021-08-31 | BY7: =EOMONTH(BY6,BY4-1) -> 2021-09-30 | BZ7: 2021-10-31 | CA7: 2021-11-30 | CB7: 2021-12-31 | CC7: 2022-01-31 | CD7: 2022-02-28 | CE7: 2022-03-31 | CF7: 2022-04-30 | CG7: 2022-05-31 | CH7: 2022-06-30 | CI7: 2022-07-31 | CJ7: 2022-08-31 | CK7: 2022-09-30 | CL7: 2022-10-31 | CM7: 2022-11-30 | CN7: 2022-12-31 | CO7: 2023-01-31 | CP7: 2023-02-28 | CQ7: 2023-03-31 | CR7: 2023-04-30 | CS7: 2023-05-31 | CT7: 2023-06-30 | CU7: 2023-07-31 | CV7: 2023-08-31 | CW7: 2023-09-30 | CX7: 2023-10-31 | CY7: 2023-11-30 | CZ7: 2023-12-31 | DA7: 2024-01-31 | DB7: 2024-02-29 | DC7: 2024-03-31 | DD7: 2024-04-30 | DE7: 2024-05-31 | DF7: 2024-06-30 | DG7: 2024-07-31 | DH7: 2024-08-31 | DI7: 2024-09-30 | DJ7: 2024-10-31 | DK7: 2024-11-30 | DL7: 2024-12-31 | DM7: 2025-01-31 | DN7: 2025-02-28 | DO7: 2025-03-31 | DP7: 2025-04-30 | DQ7: 2025-05-31 | DR7: 2025-06-30 | DS7: 2025-07-31 | DT7: 2025-08-31 | DU7: 2025-09-30 | DV7: 2025-10-31 | DW7: 2025-11-30 | DX7: 2025-12-31 | DY7: 2026-01-31 | DZ7: 2026-02-28 | EA7: 2026-03-31 | EB7: 2026-04-30 | EC7: 2026-05-31 | ED7: 2026-06-30 | EE7: 2026-07-31 | EF7: 2026-08-31 | EG7: 2026-09-30 | EH7: 2026-10-31 | EI7: 2026-11-30 | EJ7: 2026-12-31 | EK7: =EOMONTH(EK6,EK4-1) -> 2027-01-31 | EL7: 2027-02-28 | EM7: 2027-03-31 | EN7: 2027-04-30 | EO7: 2027-05-31 | EP7: 2027-06-30 | EQ7: 2027-07-31 | ER7: 2027-08-31 | ES7: 2027-09-30 | ET7: 2027-10-31 | EU7: 2027-11-30 | EV7: 2027-12-31 | EW7: 2028-01-31 | EX7: 2028-02-29 | EY7: 2028-03-31 | EZ7: 2028-04-30 | FA7: 2028-05-31 | FB7: 2028-06-30 | FC7: 2028-07-31 | FD7: 2028-08-31 | FE7: 2028-09-30 | FF7: 2028-10-31 | FG7: 2028-11-30 | FH7: 2028-12-31 | FI7: 2029-01-31 | FJ7: 2029-02-28 | FK7: 2029-03-31 | FL7: 2029-04-30 | FM7: 2029-05-31 | FN7: 2029-06-30 | FO7: 2029-07-31 | FP7: 2029-08-31 | FQ7: 2029-09-30 | FR7: 2029-10-31 | FS7: 2029-11-30 | FT7: 2029-12-31 | FU7: 2030-01-31 | FV7: 2030-02-28 | FW7: 2030-03-31 | FX7: 2030-04-30 | FY7: 2030-05-31 | FZ7: 2030-06-30 | GA7: 2030-07-31 | GB7: 2030-08-31 | GC7: 2030-09-30 | GD7: 2030-10-31 | GE7: 2030-11-30 | GF7: 2030-12-31 | GG7: 2031-01-31 | GH7: 2031-02-28 | GI7: 2031-03-31 | GJ7: 2031-04-30 | GK7: 2031-05-31 | GL7: 2031-06-30 | GM7: 2031-07-31 | GN7: 2031-08-31 | GO7: 2031-09-30 | GP7: 2031-10-31 | GQ7: 2031-11-30 | GR7: 2031-12-31 | GS7: 2032-01-31 | GT7: 2032-02-29 | GU7: 2032-03-31 | GV7: 2032-04-30 | GW7: =EOMONTH(GW6,GW4-1) -> 2032-05-31 | GX7: 2032-06-30 | GY7: 2032-07-31 | GZ7: 2032-08-31 | HA7: 2032-09-30 | HB7: 2032-10-31 | HC7: 2032-11-30 | HD7: =EOMONTH(HD6,HD4-1) -> 2032-12-31 | HE7: 2033-01-31 | HF7: 2033-02-28 | HG7: 2033-03-31 | HH7: 2033-04-30 | HI7: 2033-05-31 | HJ7: 2033-06-30 | HK7: 2033-07-31 | HL7: 2033-08-31 | HM7: 2033-09-30 | HN7: 2033-10-31 | HO7: 2033-11-30 | HP7: 2033-12-31 | HQ7: 2034-01-31 | HR7: 2034-02-28 | HS7: 2034-03-31 | HT7: 2034-04-30 | HU7: 2034-05-31 | HV7: 2034-06-30 | HW7: 2034-07-31 | HX7: 2034-08-31 | HY7: 2034-09-30 | HZ7: 2034-10-31 | IA7: 2034-11-30 | IB7: 2034-12-31 | IC7: 2035-01-31 | ID7: 2035-02-28 | IE7: 2035-03-31 | IF7: 2035-04-30 | IG7: 2035-05-31 | IH7: 2035-06-30 | II7: 2035-07-31 | IJ7: 2035-08-31 | IK7: 2035-09-30 | IL7: 2035-10-31 | IM7: 2035-11-30 | IN7: 2035-12-31 | IO7: 2036-01-31 | IP7: 2036-02-29 | IQ7: 2036-03-31 | IR7: 2036-04-30 | IS7: 2036-05-31 | IT7: 2036-06-30 | IU7: 2036-07-31 | IV7: 2036-08-31 | IW7: 2036-09-30 | IX7: 2036-10-31 | IY7: 2036-11-30 | IZ7: 2036-12-31 | JA7: 2037-01-31 | JB7: 2037-02-28 | JC7: 2037-03-31 | JD7: 2037-04-30 | JE7: 2037-05-31 | JF7: 2037-06-30 | JG7: 2037-07-31 | JH7: 2037-08-31 | JI7: 2037-09-30 | JJ7: 2037-10-31 | JK7: 2037-11-30 | JL7: 2037-12-31 | JM7: 2038-01-31 | JN7: 2038-02-28 | JO7: 2038-03-31 | JP7: =EOMONTH(JP6,JP4-1) -> 2038-04-30 | JQ7: 2038-05-31 | JR7: 2038-06-30 | JS7: 2038-07-31 | JT7: 2038-08-31 | JU7: 2038-09-30 | JV7: 2038-10-31 | JW7: 2038-11-30 | JX7: 2038-12-31 | JY7: 2039-01-31 | JZ7: 2039-02-28 | KA7: 2039-03-31 | KB7: 2039-04-30 | KC7: 2039-05-31 | KD7: 2039-06-30 | KE7: 2039-07-31 | KF7: 2039-08-31 | KG7: 2039-09-30 | KH7: 2039-10-31 | KI7: 2039-11-30 | KJ7: 2039-12-31 | KK7: 2040-01-31 | KL7: 2040-02-29 | KM7: 2040-03-31 | KN7: 2040-04-30 | KO7: 2040-05-31 | KP7: 2040-06-30 | KQ7: 2040-07-31 | KR7: 2040-08-31 | KS7: 2040-09-30 | KT7: 2040-10-31 | KU7: 2040-11-30 | KV7: 2040-12-31 | KW7: 2041-01-31 | KX7: 2041-02-28 | KY7: 2041-03-31 | KZ7: 2041-04-30 | LA7: 2041-05-31 | LB7: 2041-06-30 | LC7: 2041-07-31 | LD7: 2041-08-31 | LE7: 2041-09-30 | LF7: 2041-10-31 | LG7: 2041-11-30 | LH7: 2041-12-31 | LI7: 2042-01-31 | LJ7: 2042-02-28 | LK7: 2042-03-31 | LL7: 2042-04-30 | LM7: 2042-05-31 | LN7: 2042-06-30 | LO7: 2042-07-31 | LP7: 2042-08-31 | LQ7: 2042-09-30 | LR7: 2042-10-31 | LS7: 2042-11-30 | LT7: 2042-12-31 | LU7: 2043-01-31 | LV7: 2043-02-28 | LW7: 2043-03-31 | LX7: 2043-04-30 | LY7: 2043-05-31 | LZ7: 2043-06-30 | MA7: 2043-07-31 | MB7: =EOMONTH(MB6,MB4-1) -> 2043-08-31 | MC7: 2043-09-30 | MD7: 2043-10-31 | ME7: 2043-11-30 | MF7: 2043-12-31 | MG7: 2044-01-31 | MH7: 2044-02-29 | MI7: 2044-03-31 | MJ7: 2044-04-30 | MK7: 2044-05-31 | ML7: 2044-06-30 | MM7: 2044-07-31 | MN7: 2044-08-31 | MO7: 2044-09-30 | MP7: 2044-10-31 | MQ7: 2044-11-30 | MR7: 2044-12-31 | MS7: 2045-01-31 | MT7: 2045-02-28 | MU7: 2045-03-31 | MV7: 2045-04-30 | MW7: 2045-05-31 | MX7: 2045-06-30 | MY7: 2045-07-31 | MZ7: 2045-08-31 | NA7: 2045-09-30 | NB7: 2045-10-31 | NC7: 2045-11-30 | ND7: 2045-12-31 | NE7: 2046-01-31 | NF7: 2046-02-28 | NG7: 2046-03-31 | NH7: 2046-04-30 | NI7: 2046-05-31 | NJ7: 2046-06-30 | NK7: 2046-07-31 | NL7: 2046-08-31 | NM7: 2046-09-30 | NN7: 2046-10-31 | NO7: 2046-11-30 | NP7: 2046-12-31 | NQ7: 2047-01-31 | NR7: 2047-02-28 | NS7: 2047-03-31 | NT7: 2047-04-30 | NU7: 2047-05-31 | NV7: 2047-06-30 | NW7: 2047-07-31 | NX7: 2047-08-31 | NY7: 2047-09-30 | NZ7: 2047-10-31 | OA7: 2047-11-30 | OB7: 2047-12-31 | OC7: 2048-01-31 | OD7: 2048-02-29 | OE7: 2048-03-31 | OF7: 2048-04-30 | OG7: 2048-05-31 | OH7: 2048-06-30 | OI7: 2048-07-31 | OJ7: 2048-08-31 | OK7: 2048-09-30 | OL7: 2048-10-31 | OM7: 2048-11-30 | ON7: =EOMONTH(ON6,ON4-1) -> 2048-12-31 | OO7: 2049-01-31 | OP7: 2049-02-28 | OQ7: 2049-03-31 | OR7: 2049-04-30 | OS7: 2049-05-31 | OT7: 2049-06-30 | OU7: 2049-07-31 | OV7: 2049-08-31 | OW7: 2049-09-30 | OX7: 2049-10-31 | OY7: 2049-11-30 | OZ7: 2049-12-31 | PA7: 2050-01-31 | PB7: 2050-02-28 | PC7: 2050-03-31 | PD7: 2050-04-30 | PE7: 2050-05-31 | PF7: 2050-06-30 | PG7: 2050-07-31 | PH7: 2050-08-31 | PI7: 2050-09-30 | PJ7: 2050-10-31 | PK7: 2050-11-30 | PL7: 2050-12-31 | PM7: 2051-01-31 | PN7: 2051-02-28 | PO7: 2051-03-31 | PP7: 2051-04-30 | PQ7: 2051-05-31 | PR7: 2051-06-30 | PS7: 2051-07-31 | PT7: 2051-08-31 | PU7: 2051-09-30 | PV7: 2051-10-31 | PW7: 2051-11-30 | PX7: 2051-12-31 | PY7: 2052-01-31 | PZ7: 2052-02-29 | QA7: 2052-03-31 | QB7: 2052-04-30 | QC7: 2052-05-31 | QD7: 2052-06-30 | QE7: 2052-07-31 | QF7: 2052-08-31 | QG7: 2052-09-30 | QH7: 2052-10-31 | QI7: 2052-11-30 | QJ7: 2052-12-31 | QK7: 2053-01-31 | QL7: 2053-02-28
B8: End of Quarter | L8: =EOQTR(L6) -> 2016-06-30 | M8: =EOQTR(M6) -> 2016-06-30 | N8: 2016-06-30 | O8: =EOQTR(O6) -> 2016-09-30 | P8: 2016-09-30 | Q8: 2016-09-30 | R8: 2016-12-31 | S8: 2016-12-31 | T8: 2016-12-31 | U8: 2017-03-31 | V8: 2017-03-31 | W8: 2017-03-31 | X8: 2017-06-30 | Y8: 2017-06-30 | Z8: 2017-06-30 | AA8: 2017-09-30 | AB8: 2017-09-30 | AC8: 2017-09-30 | AD8: 2017-12-31 | AE8: 2017-12-31 | AF8: 2017-12-31 | AG8: 2018-03-31 | AH8: 2018-03-31 | AI8: 2018-03-31 | AJ8: 2018-06-30 | AK8: 2018-06-30 | AL8: 2018-06-30 | AM8: 2018-09-30 | AN8: 2018-09-30 | AO8: 2018-09-30 | AP8: 2018-12-31 | AQ8: 2018-12-31 | AR8: 2018-12-31 | AS8: 2019-03-31 | AT8: 2019-03-31 | AU8: 2019-03-31 | AV8: 2019-06-30 | AW8: 2019-06-30 | AX8: 2019-06-30 | AY8: 2019-09-30 | AZ8: 2019-09-30 | BA8: 2019-09-30 | BB8: 2019-12-31 | BC8: 2019-12-31 | BD8: 2019-12-31 | BE8: 2020-03-31 | BF8: 2020-03-31 | BG8: 2020-03-31 | BH8: 2020-06-30 | BI8: 2020-06-30 | BJ8: 2020-06-30 | BK8: 2020-09-30 | BL8: 2020-09-30 | BM8: 2020-09-30 | BN8: 2020-12-31 | BO8: 2020-12-31 | BP8: 2020-12-31 | BQ8: 2021-03-31 | BR8: 2021-03-31 | BS8: 2021-03-31 | BT8: 2021-06-30 | BU8: 2021-06-30 | BV8: 2021-06-30 | BW8: 2021-09-30 | BX8: 2021-09-30 | BY8: =EOQTR(BY6) -> 2021-09-30 | BZ8: 2021-12-31 | CA8: 2021-12-31 | CB8: 2021-12-31 | CC8: 2022-03-31 | CD8: 2022-03-31 | CE8: 2022-03-31 | CF8: 2022-06-30 | CG8: 2022-06-30 | CH8: 2022-06-30 | CI8: 2022-09-30 | CJ8: 2022-09-30 | CK8: 2022-09-30 | CL8: 2022-12-31 | CM8: 2022-12-31 | CN8: 2022-12-31 | CO8: 2023-03-31 | CP8: 2023-03-31 | CQ8: 2023-03-31 | CR8: 2023-06-30 | CS8: 2023-06-30 | CT8: 2023-06-30 | CU8: 2023-09-30 | CV8: 2023-09-30 | CW8: 2023-09-30 | CX8: 2023-12-31 | CY8: 2023-12-31 | CZ8: 2023-12-31 | DA8: 2024-03-31 | DB8: 2024-03-31 | DC8: 2024-03-31 | DD8: 2024-06-30 | DE8: 2024-06-30 | DF8: 2024-06-30 | DG8: 2024-09-30 | DH8: 2024-09-30 | DI8: 2024-09-30 | DJ8: 2024-12-31 | DK8: 2024-12-31 | DL8: 2024-12-31 | DM8: 2025-03-31 | DN8: 2025-03-31 | DO8: 2025-03-31 | DP8: 2025-06-30 | DQ8: 2025-06-30 | DR8: 2025-06-30 | DS8: 2025-09-30 | DT8: 2025-09-30 | DU8: 2025-09-30 | DV8: 2025-12-31 | DW8: 2025-12-31 | DX8: 2025-12-31 | DY8: 2026-03-31 | DZ8: 2026-03-31 | EA8: 2026-03-31 | EB8: 2026-06-30 | EC8: 2026-06-30 | ED8: 2026-06-30 | EE8: 2026-09-30 | EF8: 2026-09-30 | EG8: 2026-09-30 | EH8: 2026-12-31 | EI8: 2026-12-31 | EJ8: 2026-12-31 | EK8: =EOQTR(EK6) -> 2027-03-31 | EL8: 2027-03-31 | EM8: 2027-03-31 | EN8: 2027-06-30 | EO8: 2027-06-30 | EP8: 2027-06-30 | EQ8: 2027-09-30 | ER8: 2027-09-30 | ES8: 2027-09-30 | ET8: 2027-12-31 | EU8: 2027-12-31 | EV8: 2027-12-31 | EW8: 2028-03-31 | EX8: 2028-03-31 | EY8: 2028-03-31 | EZ8: 2028-06-30 | FA8: 2028-06-30 | FB8: 2028-06-30 | FC8: 2028-09-30 | FD8: 2028-09-30 | FE8: 2028-09-30 | FF8: 2028-12-31 | FG8: 2028-12-31 | FH8: 2028-12-31 | FI8: 2029-03-31 | FJ8: 2029-03-31 | FK8: 2029-03-31 | FL8: 2029-06-30 | FM8: 2029-06-30 | FN8: 2029-06-30 | FO8: 2029-09-30 | FP8: 2029-09-30 | FQ8: 2029-09-30 | FR8: 2029-12-31 | FS8: 2029-12-31 | FT8: 2029-12-31 | FU8: 2030-03-31 | FV8: 2030-03-31 | FW8: 2030-03-31 | FX8: 2030-06-30 | FY8: 2030-06-30 | FZ8: 2030-06-30 | GA8: 2030-09-30 | GB8: 2030-09-30 | GC8: 2030-09-30 | GD8: 2030-12-31 | GE8: 2030-12-31 | GF8: 2030-12-31 | GG8: 2031-03-31 | GH8: 2031-03-31 | GI8: 2031-03-31 | GJ8: 2031-06-30 | GK8: 2031-06-30 | GL8: 2031-06-30 | GM8: 2031-09-30 | GN8: 2031-09-30 | GO8: 2031-09-30 | GP8: 2031-12-31 | GQ8: 2031-12-31 | GR8: 2031-12-31 | GS8: 2032-03-31 | GT8: 2032-03-31 | GU8: 2032-03-31 | GV8: 2032-06-30 | GW8: =EOQTR(GW6) -> 2032-06-30 | GX8: 2032-06-30 | GY8: 2032-09-30 | GZ8: 2032-09-30 | HA8: 2032-09-30 | HB8: 2032-12-31 | HC8: 2032-12-31 | HD8: 2032-12-31 | HE8: 2033-03-31 | HF8: 2033-03-31 | HG8: 2033-03-31 | HH8: 2033-06-30 | HI8: 2033-06-30 | HJ8: 2033-06-30 | HK8: 2033-09-30 | HL8: 2033-09-30 | HM8: 2033-09-30 | HN8: 2033-12-31 | HO8: 2033-12-31 | HP8: 2033-12-31 | HQ8: 2034-03-31 | HR8: 2034-03-31 | HS8: 2034-03-31 | HT8: 2034-06-30 | HU8: 2034-06-30 | HV8: 2034-06-30 | HW8: 2034-09-30 | HX8: 2034-09-30 | HY8: 2034-09-30 | HZ8: 2034-12-31 | IA8: 2034-12-31 | IB8: 2034-12-31 | IC8: 2035-03-31 | ID8: 2035-03-31 | IE8: 2035-03-31 | IF8: 2035-06-30 | IG8: 2035-06-30 | IH8: 2035-06-30 | II8: 2035-09-30 | IJ8: 2035-09-30 | IK8: 2035-09-30 | IL8: 2035-12-31 | IM8: 2035-12-31 | IN8: 2035-12-31 | IO8: 2036-03-31 | IP8: 2036-03-31 | IQ8: 2036-03-31 | IR8: 2036-06-30 | IS8: 2036-06-30 | IT8: 2036-06-30 | IU8: 2036-09-30 | IV8: 2036-09-30 | IW8: 2036-09-30 | IX8: 2036-12-31 | IY8: 2036-12-31 | IZ8: 2036-12-31 | JA8: 2037-03-31 | JB8: 2037-03-31 | JC8: 2037-03-31 | JD8: 2037-06-30 | JE8: 2037-06-30 | JF8: 2037-06-30 | JG8: 2037-09-30 | JH8: 2037-09-30 | JI8: =EOQTR(JI6) -> 2037-09-30 | JJ8: 2037-12-31 | JK8: 2037-12-31 | JL8: 2037-12-31 | JM8: 2038-03-31 | JN8: 2038-03-31 | JO8: 2038-03-31 | JP8: 2038-06-30 | JQ8: 2038-06-30 | JR8: 2038-06-30 | JS8: 2038-09-30 | JT8: 2038-09-30 | JU8: 2038-09-30 | JV8: 2038-12-31 | JW8: 2038-12-31 | JX8: 2038-12-31 | JY8: 2039-03-31 | JZ8: 2039-03-31 | KA8: 2039-03-31 | KB8: 2039-06-30 | KC8: 2039-06-30 | KD8: 2039-06-30 | KE8: 2039-09-30 | KF8: 2039-09-30 | KG8: 2039-09-30 | KH8: 2039-12-31 | KI8: 2039-12-31 | KJ8: 2039-12-31 | KK8: 2040-03-31 | KL8: 2040-03-31 | KM8: 2040-03-31 | KN8: 2040-06-30 | KO8: 2040-06-30 | KP8: 2040-06-30 | KQ8: 2040-09-30 | KR8: 2040-09-30 | KS8: 2040-09-30 | KT8: 2040-12-31 | KU8: 2040-12-31 | KV8: 2040-12-31 | KW8: 2041-03-31 | KX8: 2041-03-31 | KY8: 2041-03-31 | KZ8: 2041-06-30 | LA8: 2041-06-30 | LB8: 2041-06-30 | LC8: 2041-09-30 | LD8: 2041-09-30 | LE8: 2041-09-30 | LF8: 2041-12-31 | LG8: 2041-12-31 | LH8: 2041-12-31 | LI8: 2042-03-31 | LJ8: 2042-03-31 | LK8: 2042-03-31 | LL8: 2042-06-30 | LM8: 2042-06-30 | LN8: 2042-06-30 | LO8: 2042-09-30 | LP8: 2042-09-30 | LQ8: 2042-09-30 | LR8: 2042-12-31 | LS8: 2042-12-31 | LT8: 2042-12-31 | LU8: =EOQTR(LU6) -> 2043-03-31 | LV8: 2043-03-31 | LW8: 2043-03-31 | LX8: 2043-06-30 | LY8: 2043-06-30 | LZ8: 2043-06-30 | MA8: 2043-09-30 | MB8: 2043-09-30 | MC8: 2043-09-30 | MD8: 2043-12-31 | ME8: 2043-12-31 | MF8: 2043-12-31 | MG8: 2044-03-31 | MH8: 2044-03-31 | MI8: 2044-03-31 | MJ8: 2044-06-30 | MK8: 2044-06-30 | ML8: 2044-06-30 | MM8: 2044-09-30 | MN8: 2044-09-30 | MO8: 2044-09-30 | MP8: 2044-12-31 | MQ8: 2044-12-31 | MR8: 2044-12-31 | MS8: 2045-03-31 | MT8: 2045-03-31 | MU8: 2045-03-31 | MV8: 2045-06-30 | MW8: 2045-06-30 | MX8: 2045-06-30 | MY8: 2045-09-30 | MZ8: 2045-09-30 | NA8: 2045-09-30 | NB8: 2045-12-31 | NC8: 2045-12-31 | ND8: 2045-12-31 | NE8: 2046-03-31 | NF8: 2046-03-31 | NG8: 2046-03-31 | NH8: 2046-06-30 | NI8: 2046-06-30 | NJ8: 2046-06-30 | NK8: 2046-09-30 | NL8: 2046-09-30 | NM8: 2046-09-30 | NN8: 2046-12-31 | NO8: 2046-12-31 | NP8: 2046-12-31 | NQ8: 2047-03-31 | NR8: 2047-03-31 | NS8: 2047-03-31 | NT8: 2047-06-30 | NU8: 2047-06-30 | NV8: 2047-06-30 | NW8: 2047-09-30 | NX8: 2047-09-30 | NY8: 2047-09-30 | NZ8: 2047-12-31 | OA8: 2047-12-31 | OB8: 2047-12-31 | OC8: 2048-03-31 | OD8: 2048-03-31 | OE8: 2048-03-31 | OF8: 2048-06-30 | OG8: =EOQTR(OG6) -> 2048-06-30 | OH8: 2048-06-30 | OI8: 2048-09-30 | OJ8: 2048-09-30 | OK8: 2048-09-30 | OL8: 2048-12-31 | OM8: 2048-12-31 | ON8: 2048-12-31 | OO8: 2049-03-31 | OP8: 2049-03-31 | OQ8: 2049-03-31 | OR8: 2049-06-30 | OS8: 2049-06-30 | OT8: 2049-06-30 | OU8: 2049-09-30 | OV8: 2049-09-30 | OW8: 2049-09-30 | OX8: 2049-12-31 | OY8: 2049-12-31 | OZ8: 2049-12-31 | PA8: 2050-03-31 | PB8: 2050-03-31 | PC8: 2050-03-31 | PD8: 2050-06-30 | PE8: 2050-06-30 | PF8: 2050-06-30 | PG8: 2050-09-30 | PH8: 2050-09-30 | PI8: 2050-09-30 | PJ8: 2050-12-31 | PK8: 2050-12-31 | PL8: 2050-12-31 | PM8: 2051-03-31 | PN8: 2051-03-31 | PO8: 2051-03-31 | PP8: 2051-06-30 | PQ8: 2051-06-30 | PR8: 2051-06-30 | PS8: 2051-09-30 | PT8: 2051-09-30 | PU8: 2051-09-30 | PV8: 2051-12-31 | PW8: 2051-12-31 | PX8: 2051-12-31 | PY8: 2052-03-31 | PZ8: 2052-03-31 | QA8: 2052-03-31 | QB8: 2052-06-30 | QC8: 2052-06-30 | QD8: 2052-06-30 | QE8: 2052-09-30 | QF8: 2052-09-30 | QG8: 2052-09-30 | QH8: 2052-12-31 | QI8: 2052-12-31 | QJ8: 2052-12-31 | QK8: 2053-03-31 | QL8: 2053-03-31
B9: Year | F9: Years | L9: =YEAR(L7) -> 2016 | M9: =YEAR(M7) -> 2016 | N9: 2016 | O9: 2016 | P9: 2016 | Q9: 2016 | R9: 2016 | S9: 2016 | T9: 2016 | U9: 2017 | V9: 2017 | W9: 2017 | X9: 2017 | Y9: 2017 | Z9: 2017 | AA9: 2017 | AB9: 2017 | AC9: 2017 | AD9: 2017 | AE9: 2017 | AF9: 2017 | AG9: 2018 | AH9: 2018 | AI9: 2018 | AJ9: 2018 | AK9: 2018 | AL9: 2018 | AM9: 2018 | AN9: 2018 | AO9: 2018 | AP9: 2018 | AQ9: 2018 | AR9: 2018 | AS9: 2019 | AT9: 2019 | AU9: 2019 | AV9: 2019 | AW9: 2019 | AX9: 2019 | AY9: 2019 | AZ9: 2019 | BA9: 2019 | BB9: 2019 | BC9: 2019 | BD9: 2019 | BE9: 2020 | BF9: 2020 | BG9: 2020 | BH9: 2020 | BI9: 2020 | BJ9: 2020 | BK9: 2020 | BL9: 2020 | BM9: 2020 | BN9: 2020 | BO9: 2020 | BP9: 2020 | BQ9: 2021 | BR9: 2021 | BS9: 2021 | BT9: 2021 | BU9: 2021 | BV9: 2021 | BW9: 2021 | BX9: 2021 | BY9: =YEAR(BY7) -> 2021 | BZ9: 2021 | CA9: 2021 | CB9: 2021 | CC9: 2022 | CD9: 2022 | CE9: 2022 | CF9: 2022 | CG9: 2022 | CH9: 2022 | CI9: 2022 | CJ9: 2022 | CK9: 2022 | CL9: 2022 | CM9: 2022 | CN9: 2022 | CO9: 2023 | CP9: 2023 | CQ9: 2023 | CR9: 2023 | CS9: 2023 | CT9: 2023 | CU9: 2023 | CV9: 2023 | CW9: 2023 | CX9: 2023 | CY9: 2023 | CZ9: 2023 | DA9: 2024 | DB9: 2024 | DC9: 2024 | DD9: 2024 | DE9: 2024 | DF9: 2024 | DG9: 2024 | DH9: 2024 | DI9: 2024 | DJ9: 2024 | DK9: 2024 | DL9: 2024 | DM9: 2025 | DN9: 2025 | DO9: 2025 | DP9: 2025 | DQ9: 2025 | DR9: 2025 | DS9: 2025 | DT9: 2025 | DU9: 2025 | DV9: 2025 | DW9: 2025 | DX9: 2025 | DY9: 2026 | DZ9: 2026 | EA9: 2026 | EB9: 2026 | EC9: 2026 | ED9: 2026 | EE9: 2026 | EF9: 2026 | EG9: 2026 | EH9: 2026 | EI9: 2026 | EJ9: 2026 | EK9: =YEAR(EK7) -> 2027 | EL9: 2027 | EM9: 2027 | EN9: 2027 | EO9: 2027 | EP9: 2027 | EQ9: 2027 | ER9: 2027 | ES9: 2027 | ET9: 2027 | EU9: 2027 | EV9: 2027 | EW9: 2028 | EX9: 2028 | EY9: 2028 | EZ9: 2028 | FA9: 2028 | FB9: 2028 | FC9: 2028 | FD9: 2028 | FE9: 2028 | FF9: 2028 | FG9: 2028 | FH9: 2028 | FI9: 2029 | FJ9: 2029 | FK9: 2029 | FL9: 2029 | FM9: 2029 | FN9: 2029 | FO9: 2029 | FP9: 2029 | FQ9: 2029 | FR9: 2029 | FS9: 2029 | FT9: 2029 | FU9: 2030 | FV9: 2030 | FW9: 2030 | FX9: 2030 | FY9: 2030 | FZ9: 2030 | GA9: 2030 | GB9: 2030 | GC9: 2030 | GD9: 2030 | GE9: 2030 | GF9: 2030 | GG9: 2031 | GH9: 2031 | GI9: 2031 | GJ9: 2031 | GK9: 2031 | GL9: 2031 | GM9: 2031 | GN9: 2031 | GO9: 2031 | GP9: 2031 | GQ9: 2031 | GR9: 2031 | GS9: 2032 | GT9: 2032 | GU9: 2032 | GV9: 2032 | GW9: =YEAR(GW7) -> 2032 | GX9: 2032 | GY9: 2032 | GZ9: 2032 | HA9: 2032 | HB9: 2032 | HC9: 2032 | HD9: =YEAR(HD7) -> 2032 | HE9: 2033 | HF9: 2033 | HG9: 2033 | HH9: 2033 | HI9: 2033 | HJ9: 2033 | HK9: 2033 | HL9: 2033 | HM9: 2033 | HN9: 2033 | HO9: 2033 | HP9: 2033 | HQ9: 2034 | HR9: 2034 | HS9: 2034 | HT9: 2034 | HU9: 2034 | HV9: 2034 | HW9: 2034 | HX9: 2034 | HY9: 2034 | HZ9: 2034 | IA9: 2034 | IB9: 2034 | IC9: 2035 | ID9: 2035 | IE9: 2035 | IF9: 2035 | IG9: 2035 | IH9: 2035 | II9: 2035 | IJ9: 2035 | IK9: 2035 | IL9: 2035 | IM9: 2035 | IN9: 2035 | IO9: 2036 | IP9: 2036 | IQ9: 2036 | IR9: 2036 | IS9: 2036 | IT9: 2036 | IU9: 2036 | IV9: 2036 | IW9: 2036 | IX9: 2036 | IY9: 2036 | IZ9: 2036 | JA9: 2037 | JB9: 2037 | JC9: 2037 | JD9: 2037 | JE9: 2037 | JF9: 2037 | JG9: 2037 | JH9: 2037 | JI9: 2037 | JJ9: 2037 | JK9: 2037 | JL9: 2037 | JM9: 2038 | JN9: 2038 | JO9: 2038 | JP9: =YEAR(JP7) -> 2038 | JQ9: 2038 | JR9: 2038 | JS9: 2038 | JT9: 2038 | JU9: 2038 | JV9: 2038 | JW9: 2038 | JX9: 2038 | JY9: 2039 | JZ9: 2039 | KA9: 2039 | KB9: 2039 | KC9: 2039 | KD9: 2039 | KE9: 2039 | KF9: 2039 | KG9: 2039 | KH9: 2039 | KI9: 2039 | KJ9: 2039 | KK9: 2040 | KL9: 2040 | KM9: 2040 | KN9: 2040 | KO9: 2040 | KP9: 2040 | KQ9: 2040 | KR9: 2040 | KS9: 2040 | KT9: 2040 | KU9: 2040 | KV9: 2040 | KW9: 2041 | KX9: 2041 | KY9: 2041 | KZ9: 2041 | LA9: 2041 | LB9: 2041 | LC9: 2041 | LD9: 2041 | LE9: 2041 | LF9: 2041 | LG9: 2041 | LH9: 2041 | LI9: 2042 | LJ9: 2042 | LK9: 2042 | LL9: 2042 | LM9: 2042 | LN9: 2042 | LO9: 2042 | LP9: 2042 | LQ9: 2042 | LR9: 2042 | LS9: 2042 | LT9: 2042 | LU9: 2043 | LV9: 2043 | LW9: 2043 | LX9: 2043 | LY9: 2043 | LZ9: 2043 | MA9: 2043 | MB9: =YEAR(MB7) -> 2043 | MC9: 2043 | MD9: 2043 | ME9: 2043 | MF9: 2043 | MG9: 2044 | MH9: 2044 | MI9: 2044 | MJ9: 2044 | MK9: 2044 | ML9: 2044 | MM9: 2044 | MN9: 2044 | MO9: 2044 | MP9: 2044 | MQ9: 2044 | MR9: 2044 | MS9: 2045 | MT9: 2045 | MU9: 2045 | MV9: 2045 | MW9: 2045 | MX9: 2045 | MY9: 2045 | MZ9: 2045 | NA9: 2045 | NB9: 2045 | NC9: 2045 | ND9: 2045 | NE9: 2046 | NF9: 2046 | NG9: 2046 | NH9: 2046 | NI9: 2046 | NJ9: 2046 | NK9: 2046 | NL9: 2046 | NM9: 2046 | NN9: 2046 | NO9: 2046 | NP9: 2046 | NQ9: 2047 | NR9: 2047 | NS9: 2047 | NT9: 2047 | NU9: 2047 | NV9: 2047 | NW9: 2047 | NX9: 2047 | NY9: 2047 | NZ9: 2047 | OA9: 2047 | OB9: 2047 | OC9: 2048 | OD9: 2048 | OE9: 2048 | OF9: 2048 | OG9: 2048 | OH9: 2048 | OI9: 2048 | OJ9: 2048 | OK9: 2048 | OL9: 2048 | OM9: 2048 | ON9: =YEAR(ON7) -> 2048 | OO9: 2049 | OP9: 2049 | OQ9: 2049 | OR9: 2049 | OS9: 2049 | OT9: 2049 | OU9: 2049 | OV9: 2049 | OW9: 2049 | OX9: 2049 | OY9: 2049 | OZ9: 2049 | PA9: 2050 | PB9: 2050 | PC9: 2050 | PD9: 2050 | PE9: 2050 | PF9: 2050 | PG9: 2050 | PH9: 2050 | PI9: 2050 | PJ9: 2050 | PK9: 2050 | PL9: 2050 | PM9: 2051 | PN9: 2051 | PO9: 2051 | PP9: 2051 | PQ9: 2051 | PR9: 2051 | PS9: 2051 | PT9: 2051 | PU9: 2051 | PV9: 2051 | PW9: 2051 | PX9: 2051 | PY9: 2052 | PZ9: 2052 | QA9: 2052 | QB9: 2052 | QC9: 2052 | QD9: 2052 | QE9: 2052 | QF9: 2052 | QG9: 2052 | QH9: 2052 | QI9: 2052 | QJ9: 2052 | QK9: 2053 | QL9: 2053
B10: Month | F10: Month | L10: =MONTH(L7) -> 4 | M10: =MONTH(M7) -> 5 | N10: 6 | O10: 7 | P10: 8 | Q10: 9 | R10: 10 | S10: 11 | T10: 12 | U10: 1 | V10: 2 | W10: 3 | X10: 4 | Y10: 5 | Z10: 6 | AA10: 7 | AB10: 8 | AC10: 9 | AD10: 10 | AE10: 11 | AF10: 12 | AG10: 1 | AH10: 2 | AI10: 3 | AJ10: 4 | AK10: 5 | AL10: 6 | AM10: 7 | AN10: 8 | AO10: 9 | AP10: 10 | AQ10: 11 | AR10: 12 | AS10: 1 | AT10: 2 | AU10: 3 | AV10: 4 | AW10: 5 | AX10: 6 | AY10: 7 | AZ10: 8 | BA10: 9 | BB10: 10 | BC10: 11 | BD10: 12 | BE10: 1 | BF10: 2 | BG10: 3 | BH10: 4 | BI10: 5 | BJ10: 6 | BK10: 7 | BL10: 8 | BM10: 9 | BN10: 10 | BO10: 11 | BP10: 12 | BQ10: 1 | BR10: 2 | BS10: 3 | BT10: 4 | BU10: 5 | BV10: 6 | BW10: 7 | BX10: 8 | BY10: =MONTH(BY7) -> 9 | BZ10: 10 | CA10: 11 | CB10: 12 | CC10: 1 | CD10: 2 | CE10: 3 | CF10: 4 | CG10: 5 | CH10: 6 | CI10: 7 | CJ10: 8 | CK10: 9 | CL10: 10 | CM10: 11 | CN10: 12 | CO10: 1 | CP10: 2 | CQ10: 3 | CR10: 4 | CS10: 5 | CT10: 6 | CU10: 7 | CV10: 8 | CW10: 9 | CX10: 10 | CY10: 11 | CZ10: 12 | DA10: 1 | DB10: 2 | DC10: 3 | DD10: 4 | DE10: 5 | DF10: 6 | DG10: 7 | DH10: 8 | DI10: 9 | DJ10: 10 | DK10: 11 | DL10: 12 | DM10: 1 | DN10: 2 | DO10: 3 | DP10: 4 | DQ10: 5 | DR10: 6 | DS10: 7 | DT10: 8 | DU10: 9 | DV10: 10 | DW10: 11 | DX10: 12 | DY10: 1 | DZ10: 2 | EA10: 3 | EB10: 4 | EC10: 5 | ED10: 6 | EE10: 7 | EF10: 8 | EG10: 9 | EH10: 10 | EI10: 11 | EJ10: 12 | EK10: =MONTH(EK7) -> 1 | EL10: 2 | EM10: 3 | EN10: 4 | EO10: 5 | EP10: 6 | EQ10: 7 | ER10: 8 | ES10: 9 | ET10: 10 | EU10: 11 | EV10: 12 | EW10: 1 | EX10: 2 | EY10: 3 | EZ10: 4 | FA10: 5 | FB10: 6 | FC10: 7 | FD10: 8 | FE10: 9 | FF10: 10 | FG10: 11 | FH10: 12 | FI10: 1 | FJ10: 2 | FK10: 3 | FL10: 4 | FM10: 5 | FN10: 6 | FO10: 7 | FP10: 8 | FQ10: 9 | FR10: 10 | FS10: 11 | FT10: 12 | FU10: 1 | FV10: 2 | FW10: 3 | FX10: 4 | FY10: 5 | FZ10: 6 | GA10: 7 | GB10: 8 | GC10: 9 | GD10: 10 | GE10: 11 | GF10: 12 | GG10: 1 | GH10: 2 | GI10: 3 | GJ10: 4 | GK10: 5 | GL10: 6 | GM10: 7 | GN10: 8 | GO10: 9 | GP10: 10 | GQ10: 11 | GR10: 12 | GS10: 1 | GT10: 2 | GU10: 3 | GV10: 4 | GW10: =MONTH(GW7) -> 5 | GX10: 6 | GY10: 7 | GZ10: 8 | HA10: 9 | HB10: 10 | HC10: 11 | HD10: =MONTH(HD7) -> 12 | HE10: 1 | HF10: 2 | HG10: 3 | HH10: 4 | HI10: 5 | HJ10: 6 | HK10: 7 | HL10: 8 | HM10: 9 | HN10: 10 | HO10: 11 | HP10: 12 | HQ10: 1 | HR10: 2 | HS10: 3 | HT10: 4 | HU10: 5 | HV10: 6 | HW10: 7 | HX10: 8 | HY10: 9 | HZ10: 10 | IA10: 11 | IB10: 12 | IC10: 1 | ID10: 2 | IE10: 3 | IF10: 4 | IG10: 5 | IH10: 6 | II10: 7 | IJ10: 8 | IK10: 9 | IL10: 10 | IM10: 11 | IN10: 12 | IO10: 1 | IP10: 2 | IQ10: 3 | IR10: 4 | IS10: 5 | IT10: 6 | IU10: 7 | IV10: 8 | IW10: 9 | IX10: 10 | IY10: 11 | IZ10: 12 | JA10: 1 | JB10: 2 | JC10: 3 | JD10: 4 | JE10: 5 | JF10: 6 | JG10: 7 | JH10: 8 | JI10: 9 | JJ10: 10 | JK10: 11 | JL10: 12 | JM10: 1 | JN10: 2 | JO10: 3 | JP10: =MONTH(JP7) -> 4 | JQ10: 5 | JR10: 6 | JS10: 7 | JT10: 8 | JU10: 9 | JV10: 10 | JW10: 11 | JX10: 12 | JY10: 1 | JZ10: 2 | KA10: 3 | KB10: 4 | KC10: 5 | KD10: 6 | KE10: 7 | KF10: 8 | KG10: 9 | KH10: 10 | KI10: 11 | KJ10: 12 | KK10: 1 | KL10: 2 | KM10: 3 | KN10: 4 | KO10: 5 | KP10: 6 | KQ10: 7 | KR10: 8 | KS10: 9 | KT10: 10 | KU10: 11 | KV10: 12 | KW10: 1 | KX10: 2 | KY10: 3 | KZ10: 4 | LA10: 5 | LB10: 6 | LC10: 7 | LD10: 8 | LE10: 9 | LF10: 10 | LG10: 11 | LH10: 12 | LI10: 1 | LJ10: 2 | LK10: 3 | LL10: 4 | LM10: 5 | LN10: 6 | LO10: 7 | LP10: 8 | LQ10: 9 | LR10: 10 | LS10: 11 | LT10: 12 | LU10: 1 | LV10: 2 | LW10: 3 | LX10: 4 | LY10: 5 | LZ10: 6 | MA10: 7 | MB10: =MONTH(MB7) -> 8 | MC10: 9 | MD10: 10 | ME10: 11 | MF10: 12 | MG10: 1 | MH10: 2 | MI10: 3 | MJ10: 4 | MK10: 5 | ML10: 6 | MM10: 7 | MN10: 8 | MO10: 9 | MP10: 10 | MQ10: 11 | MR10: 12 | MS10: 1 | MT10: 2 | MU10: 3 | MV10: 4 | MW10: 5 | MX10: 6 | MY10: 7 | MZ10: 8 | NA10: 9 | NB10: 10 | NC10: 11 | ND10: 12 | NE10: 1 | NF10: 2 | NG10: 3 | NH10: 4 | NI10: 5 | NJ10: 6 | NK10: 7 | NL10: 8 | NM10: 9 | NN10: 10 | NO10: 11 | NP10: 12 | NQ10: 1 | NR10: 2 | NS10: 3 | NT10: 4 | NU10: 5 | NV10: 6 | NW10: 7 | NX10: 8 | NY10: 9 | NZ10: 10 | OA10: 11 | OB10: 12 | OC10: 1 | OD10: 2 | OE10: 3 | OF10: 4 | OG10: 5 | OH10: 6 | OI10: 7 | OJ10: 8 | OK10: 9 | OL10: 10 | OM10: 11 | ON10: =MONTH(ON7) -> 12 | OO10: 1 | OP10: 2 | OQ10: 3 | OR10: 4 | OS10: 5 | OT10: 6 | OU10: 7 | OV10: 8 | OW10: 9 | OX10: 10 | OY10: 11 | OZ10: 12 | PA10: 1 | PB10: 2 | PC10: 3 | PD10: 4 | PE10: 5 | PF10: 6 | PG10: 7 | PH10: 8 | PI10: 9 | PJ10: 10 | PK10: 11 | PL10: 12 | PM10: 1 | PN10: 2 | PO10: 3 | PP10: 4 | PQ10: 5 | PR10: 6 | PS10: 7 | PT10: 8 | PU10: 9 | PV10: 10 | PW10: 11 | PX10: 12 | PY10: 1 | PZ10: 2 | QA10: 3 | QB10: 4 | QC10: 5 | QD10: 6 | QE10: 7 | QF10: 8 | QG10: 9 | QH10: 10 | QI10: 11 | QJ10: 12 | QK10: 1 | QL10: 2
B11: End of Year | L11: =L10=12 -> FALSE | M11: =M10=12 -> FALSE | N11: FALSE | O11: FALSE | P11: FALSE | Q11: FALSE | R11: FALSE | S11: FALSE | T11: TRUE | U11: FALSE | V11: FALSE | W11: FALSE | X11: FALSE | Y11: FALSE | Z11: FALSE | AA11: FALSE | AB11: FALSE | AC11: FALSE | AD11: FALSE | AE11: FALSE | AF11: TRUE | AG11: FALSE | AH11: FALSE | AI11: FALSE | AJ11: FALSE | AK11: FALSE | AL11: FALSE | AM11: FALSE | AN11: FALSE | AO11: FALSE | AP11: FALSE | AQ11: FALSE | AR11: TRUE | AS11: FALSE | AT11: FALSE | AU11: FALSE | AV11: FALSE | AW11: FALSE | AX11: FALSE | AY11: FALSE | AZ11: FALSE | BA11: FALSE | BB11: FALSE | BC11: FALSE | BD11: TRUE | BE11: FALSE | BF11: FALSE | BG11: FALSE | BH11: FALSE | BI11: FALSE | BJ11: FALSE | BK11: FALSE | BL11: FALSE | BM11: FALSE | BN11: FALSE | BO11: FALSE | BP11: TRUE | BQ11: FALSE | BR11: FALSE | BS11: FALSE | BT11: FALSE | BU11: FALSE | BV11: FALSE | BW11: FALSE | BX11: FALSE | BY11: =BY10=12 -> FALSE | BZ11: FALSE | CA11: FALSE | CB11: TRUE | CC11: FALSE | CD11: FALSE | CE11: FALSE | CF11: FALSE | CG11: FALSE | CH11: FALSE | CI11: FALSE | CJ11: FALSE | CK11: FALSE | CL11: FALSE | CM11: FALSE | CN11: TRUE | CO11: FALSE | CP11: FALSE | CQ11: FALSE | CR11: FALSE | CS11: FALSE | CT11: FALSE | CU11: FALSE | CV11: FALSE | CW11: FALSE | CX11: FALSE | CY11: FALSE | CZ11: TRUE | DA11: FALSE | DB11: FALSE | DC11: FALSE | DD11: FALSE | DE11: FALSE | DF11: FALSE | DG11: FALSE | DH11: FALSE | DI11: FALSE | DJ11: FALSE | DK11: FALSE | DL11: TRUE | DM11: FALSE | DN11: FALSE | DO11: FALSE | DP11: FALSE | DQ11: FALSE | DR11: FALSE | DS11: FALSE | DT11: FALSE | DU11: FALSE | DV11: FALSE | DW11: FALSE | DX11: TRUE | DY11: FALSE | DZ11: FALSE | EA11: FALSE | EB11: FALSE | EC11: FALSE | ED11: FALSE | EE11: FALSE | EF11: FALSE | EG11: FALSE | EH11: FALSE | EI11: FALSE | EJ11: TRUE | EK11: =EK10=12 -> FALSE | EL11: FALSE | EM11: FALSE | EN11: FALSE | EO11: FALSE | EP11: FALSE | EQ11: FALSE | ER11: FALSE | ES11: FALSE | ET11: FALSE | EU11: FALSE | EV11: TRUE | EW11: FALSE | EX11: FALSE | EY11: FALSE | EZ11: FALSE | FA11: FALSE | FB11: FALSE | FC11: FALSE | FD11: FALSE | FE11: FALSE | FF11: FALSE | FG11: FALSE | FH11: TRUE | FI11: FALSE | FJ11: FALSE | FK11: FALSE | FL11: FALSE | FM11: FALSE | FN11: FALSE | FO11: FALSE | FP11: FALSE | FQ11: FALSE | FR11: FALSE | FS11: FALSE | FT11: TRUE | FU11: FALSE | FV11: FALSE | FW11: FALSE | FX11: FALSE | FY11: FALSE | FZ11: FALSE | GA11: FALSE | GB11: FALSE | GC11: FALSE | GD11: FALSE | GE11: FALSE | GF11: TRUE | GG11: FALSE | GH11: FALSE | GI11: FALSE | GJ11: FALSE | GK11: FALSE | GL11: FALSE | GM11: FALSE | GN11: FALSE | GO11: FALSE | GP11: FALSE | GQ11: FALSE | GR11: TRUE | GS11: FALSE | GT11: FALSE | GU11: FALSE | GV11: FALSE | GW11: =GW10=12 -> FALSE | GX11: FALSE | GY11: FALSE | GZ11: FALSE | HA11: FALSE | HB11: FALSE | HC11: FALSE | HD11: TRUE | HE11: FALSE | HF11: FALSE | HG11: FALSE | HH11: FALSE | HI11: FALSE | HJ11: FALSE | HK11: FALSE | HL11: FALSE | HM11: FALSE | HN11: FALSE | HO11: FALSE | HP11: TRUE | HQ11: FALSE | HR11: FALSE | HS11: FALSE | HT11: FALSE | HU11: FALSE | HV11: FALSE | HW11: FALSE | HX11: FALSE | HY11: FALSE | HZ11: FALSE | IA11: FALSE | IB11: TRUE | IC11: FALSE | ID11: FALSE | IE11: FALSE | IF11: FALSE | IG11: FALSE | IH11: FALSE | II11: FALSE | IJ11: FALSE | IK11: FALSE | IL11: FALSE | IM11: FALSE | IN11: TRUE | IO11: FALSE | IP11: FALSE | IQ11: FALSE | IR11: FALSE | IS11: FALSE | IT11: FALSE | IU11: FALSE | IV11: FALSE | IW11: FALSE | IX11: FALSE | IY11: FALSE | IZ11: TRUE | JA11: FALSE | JB11: FALSE | JC11: FALSE | JD11: FALSE | JE11: FALSE | JF11: FALSE | JG11: FALSE | JH11: FALSE | JI11: =JI10=12 -> FALSE | JJ11: FALSE | JK11: FALSE | JL11: TRUE | JM11: FALSE | JN11: FALSE | JO11: FALSE | JP11: FALSE | JQ11: FALSE | JR11: FALSE | JS11: FALSE | JT11: FALSE | JU11: FALSE | JV11: FALSE | JW11: FALSE | JX11: TRUE | JY11: FALSE | JZ11: FALSE | KA11: FALSE | KB11: FALSE | KC11: FALSE | KD11: FALSE | KE11: FALSE | KF11: FALSE | KG11: FALSE | KH11: FALSE | KI11: FALSE | KJ11: TRUE | KK11: FALSE | KL11: FALSE | KM11: FALSE | KN11: FALSE | KO11: FALSE | KP11: FALSE | KQ11: FALSE | KR11: FALSE | KS11: FALSE | KT11: FALSE | KU11: FALSE | KV11: TRUE | KW11: FALSE | KX11: FALSE | KY11: FALSE | KZ11: FALSE | LA11: FALSE | LB11: FALSE | LC11: FALSE | LD11: FALSE | LE11: FALSE | LF11: FALSE | LG11: FALSE | LH11: TRUE | LI11: FALSE | LJ11: FALSE | LK11: FALSE | LL11: FALSE | LM11: FALSE | LN11: FALSE | LO11: FALSE | LP11: FALSE | LQ11: FALSE | LR11: FALSE | LS11: FALSE | LT11: TRUE | LU11: =LU10=12 -> FALSE | LV11: FALSE | LW11: FALSE | LX11: FALSE | LY11: FALSE | LZ11: FALSE | MA11: FALSE | MB11: FALSE | MC11: FALSE | MD11: FALSE | ME11: FALSE | MF11: TRUE | MG11: FALSE | MH11: FALSE | MI11: FALSE | MJ11: FALSE | MK11: FALSE | ML11: FALSE | MM11: FALSE | MN11: FALSE | MO11: FALSE | MP11: FALSE | MQ11: FALSE | MR11: TRUE | MS11: FALSE | MT11: FALSE | MU11: FALSE | MV11: FALSE | MW11: FALSE | MX11: FALSE | MY11: FALSE | MZ11: FALSE | NA11: FALSE | NB11: FALSE | NC11: FALSE | ND11: TRUE | NE11: FALSE | NF11: FALSE | NG11: FALSE | NH11: FALSE | NI11: FALSE | NJ11: FALSE | NK11: FALSE | NL11: FALSE | NM11: FALSE | NN11: FALSE | NO11: FALSE | NP11: TRUE | NQ11: FALSE | NR11: FALSE | NS11: FALSE | NT11: FALSE | NU11: FALSE | NV11: FALSE | NW11: FALSE | NX11: FALSE | NY11: FALSE | NZ11: FALSE | OA11: FALSE | OB11: TRUE | OC11: FALSE | OD11: FALSE | OE11: FALSE | OF11: FALSE | OG11: =OG10=12 -> FALSE | OH11: FALSE | OI11: FALSE | OJ11: FALSE | OK11: FALSE | OL11: FALSE | OM11: FALSE | ON11: TRUE | OO11: FALSE | OP11: FALSE | OQ11: FALSE | OR11: FALSE | OS11: FALSE | OT11: FALSE | OU11: FALSE | OV11: FALSE | OW11: FALSE | OX11: FALSE | OY11: FALSE | OZ11: TRUE | PA11: FALSE | PB11: FALSE | PC11: FALSE | PD11: FALSE | PE11: FALSE | PF11: FALSE | PG11: FALSE | PH11: FALSE | PI11: FALSE | PJ11: FALSE | PK11: FALSE | PL11: TRUE | PM11: FALSE | PN11: FALSE | PO11: FALSE | PP11: FALSE | PQ11: FALSE | PR11: FALSE | PS11: FALSE | PT11: FALSE | PU11: FALSE | PV11: FALSE | PW11: FALSE | PX11: TRUE | PY11: FALSE | PZ11: FALSE | QA11: FALSE | QB11: FALSE | QC11: FALSE | QD11: FALSE | QE11: FALSE | QF11: FALSE | QG11: FALSE | QH11: FALSE | QI11: FALSE | QJ11: TRUE | QK11: FALSE | QL11: FALSE
B12: End of Quarter | L12: =L7=L8 -> FALSE | M12: =M7=M8 -> FALSE | N12: TRUE | O12: FALSE | P12: FALSE | Q12: TRUE | R12: FALSE | S12: FALSE | T12: TRUE | U12: FALSE | V12: FALSE | W12: TRUE | X12: FALSE | Y12: FALSE | Z12: TRUE | AA12: FALSE | AB12: FALSE | AC12: TRUE | AD12: FALSE | AE12: FALSE | AF12: TRUE | AG12: FALSE | AH12: FALSE | AI12: TRUE | AJ12: FALSE | AK12: FALSE | AL12: TRUE | AM12: FALSE | AN12: FALSE | AO12: TRUE | AP12: FALSE | AQ12: FALSE | AR12: TRUE | AS12: FALSE | AT12: FALSE | AU12: TRUE | AV12: FALSE | AW12: FALSE | AX12: TRUE | AY12: FALSE | AZ12: FALSE | BA12: TRUE | BB12: FALSE | BC12: FALSE | BD12: TRUE | BE12: FALSE | BF12: FALSE | BG12: TRUE | BH12: FALSE | BI12: FALSE | BJ12: TRUE | BK12: FALSE | BL12: FALSE | BM12: TRUE | BN12: FALSE | BO12: FALSE | BP12: TRUE | BQ12: FALSE | BR12: FALSE | BS12: TRUE | BT12: FALSE | BU12: FALSE | BV12: TRUE | BW12: FALSE | BX12: FALSE | BY12: =BY7=BY8 -> TRUE | BZ12: FALSE | CA12: FALSE | CB12: TRUE | CC12: FALSE | CD12: FALSE | CE12: TRUE | CF12: FALSE | CG12: FALSE | CH12: TRUE | CI12: FALSE | CJ12: FALSE | CK12: TRUE | CL12: FALSE | CM12: FALSE | CN12: TRUE | CO12: FALSE | CP12: FALSE | CQ12: TRUE | CR12: FALSE | CS12: FALSE | CT12: TRUE | CU12: FALSE | CV12: FALSE | CW12: TRUE | CX12: FALSE | CY12: FALSE | CZ12: TRUE | DA12: FALSE | DB12: FALSE | DC12: TRUE | DD12: FALSE | DE12: FALSE | DF12: TRUE | DG12: FALSE | DH12: FALSE | DI12: TRUE | DJ12: FALSE | DK12: FALSE | DL12: TRUE | DM12: FALSE | DN12: FALSE | DO12: TRUE | DP12: FALSE | DQ12: FALSE | DR12: TRUE | DS12: FALSE | DT12: FALSE | DU12: TRUE | DV12: FALSE | DW12: FALSE | DX12: TRUE | DY12: FALSE | DZ12: FALSE | EA12: TRUE | EB12: FALSE | EC12: FALSE | ED12: TRUE | EE12: FALSE | EF12: FALSE | EG12: TRUE | EH12: FALSE | EI12: FALSE | EJ12: TRUE | EK12: =EK7=EK8 -> FALSE | EL12: FALSE | EM12: TRUE | EN12: FALSE | EO12: FALSE | EP12: TRUE | EQ12: FALSE | ER12: FALSE | ES12: TRUE | ET12: FALSE | EU12: FALSE | EV12: TRUE | EW12: FALSE | EX12: FALSE | EY12: TRUE | EZ12: FALSE | FA12: FALSE | FB12: TRUE | FC12: FALSE | FD12: FALSE | FE12: TRUE | FF12: FALSE | FG12: FALSE | FH12: TRUE | FI12: FALSE | FJ12: FALSE | FK12: TRUE | FL12: FALSE | FM12: FALSE | FN12: TRUE | FO12: FALSE | FP12: FALSE | FQ12: TRUE | FR12: FALSE | FS12: FALSE | FT12: TRUE | FU12: FALSE | FV12: FALSE | FW12: TRUE | FX12: FALSE | FY12: FALSE | FZ12: TRUE | GA12: FALSE | GB12: FALSE | GC12: TRUE | GD12: FALSE | GE12: FALSE | GF12: TRUE | GG12: FALSE | GH12: FALSE | GI12: TRUE | GJ12: FALSE | GK12: FALSE | GL12: TRUE | GM12: FALSE | GN12: FALSE | GO12: TRUE | GP12: FALSE | GQ12: FALSE | GR12: TRUE | GS12: FALSE | GT12: FALSE | GU12: TRUE | GV12: FALSE | GW12: =GW7=GW8 -> FALSE | GX12: TRUE | GY12: FALSE | GZ12: FALSE | HA12: TRUE | HB12: FALSE | HC12: FALSE | HD12: TRUE | HE12: FALSE | HF12: FALSE | HG12: TRUE | HH12: FALSE | HI12: FALSE | HJ12: TRUE | HK12: FALSE | HL12: FALSE | HM12: TRUE | HN12: FALSE | HO12: FALSE | HP12: TRUE | HQ12: FALSE | HR12: FALSE | HS12: TRUE | HT12: FALSE | HU12: FALSE | HV12: TRUE | HW12: FALSE | HX12: FALSE | HY12: TRUE | HZ12: FALSE | IA12: FALSE | IB12: TRUE | IC12: FALSE | ID12: FALSE | IE12: TRUE | IF12: FALSE | IG12: FALSE | IH12: TRUE | II12: FALSE | IJ12: FALSE | IK12: TRUE | IL12: FALSE | IM12: FALSE | IN12: TRUE | IO12: FALSE | IP12: FALSE | IQ12: TRUE | IR12: FALSE | IS12: FALSE | IT12: TRUE | IU12: FALSE | IV12: FALSE | IW12: TRUE | IX12: FALSE | IY12: FALSE | IZ12: TRUE | JA12: FALSE | JB12: FALSE | JC12: TRUE | JD12: FALSE | JE12: FALSE | JF12: TRUE | JG12: FALSE | JH12: FALSE | JI12: =JI7=JI8 -> TRUE | JJ12: FALSE | JK12: FALSE | JL12: TRUE | JM12: FALSE | JN12: FALSE | JO12: TRUE | JP12: FALSE | JQ12: FALSE | JR12: TRUE | JS12: FALSE | JT12: FALSE | JU12: TRUE | JV12: FALSE | JW12: FALSE | JX12: TRUE | JY12: FALSE | JZ12: FALSE | KA12: TRUE | KB12: FALSE | KC12: FALSE | KD12: TRUE | KE12: FALSE | KF12: FALSE | KG12: TRUE | KH12: FALSE | KI12: FALSE | KJ12: TRUE | KK12: FALSE | KL12: FALSE | KM12: TRUE | KN12: FALSE | KO12: FALSE | KP12: TRUE | KQ12: FALSE | KR12: FALSE | KS12: TRUE | KT12: FALSE | KU12: FALSE | KV12: TRUE | KW12: FALSE | KX12: FALSE | KY12: TRUE | KZ12: FALSE | LA12: FALSE | LB12: TRUE | LC12: FALSE | LD12: FALSE | LE12: TRUE | LF12: FALSE | LG12: FALSE | LH12: TRUE | LI12: FALSE | LJ12: FALSE | LK12: TRUE | LL12: FALSE | LM12: FALSE | LN12: TRUE | LO12: FALSE | LP12: FALSE | LQ12: TRUE | LR12: FALSE | LS12: FALSE | LT12: TRUE | LU12: =LU7=LU8 -> FALSE | LV12: FALSE | LW12: TRUE | LX12: FALSE | LY12: FALSE | LZ12: TRUE | MA12: FALSE | MB12: FALSE | MC12: TRUE | MD12: FALSE | ME12: FALSE | MF12: TRUE | MG12: FALSE | MH12: FALSE | MI12: TRUE | MJ12: FALSE | MK12: FALSE | ML12: TRUE | MM12: FALSE | MN12: FALSE | MO12: TRUE | MP12: FALSE | MQ12: FALSE | MR12: TRUE | MS12: FALSE | MT12: FALSE | MU12: TRUE | MV12: FALSE | MW12: FALSE | MX12: TRUE | MY12: FALSE | MZ12: FALSE | NA12: TRUE | NB12: FALSE | NC12: FALSE | ND12: TRUE | NE12: FALSE | NF12: FALSE | NG12: TRUE | NH12: FALSE | NI12: FALSE | NJ12: TRUE | NK12: FALSE | NL12: FALSE | NM12: TRUE | NN12: FALSE | NO12: FALSE | NP12: TRUE | NQ12: FALSE | NR12: FALSE | NS12: TRUE | NT12: FALSE | NU12: FALSE | NV12: TRUE | NW12: FALSE | NX12: FALSE | NY12: TRUE | NZ12: FALSE | OA12: FALSE | OB12: TRUE | OC12: FALSE | OD12: FALSE | OE12: TRUE | OF12: FALSE | OG12: =OG7=OG8 -> FALSE | OH12: TRUE | OI12: FALSE | OJ12: FALSE | OK12: TRUE | OL12: FALSE | OM12: FALSE | ON12: TRUE | OO12: FALSE | OP12: FALSE | OQ12: TRUE | OR12: FALSE | OS12: FALSE | OT12: TRUE | OU12: FALSE | OV12: FALSE | OW12: TRUE | OX12: FALSE | OY12: FALSE | OZ12: TRUE | PA12: FALSE | PB12: FALSE | PC12: TRUE | PD12: FALSE | PE12: FALSE | PF12: TRUE | PG12: FALSE | PH12: FALSE | PI12: TRUE | PJ12: FALSE | PK12: FALSE | PL12: TRUE | PM12: FALSE | PN12: FALSE | PO12: TRUE | PP12: FALSE | PQ12: FALSE | PR12: TRUE | PS12: FALSE | PT12: FALSE | PU12: TRUE | PV12: FALSE | PW12: FALSE | PX12: TRUE | PY12: FALSE | PZ12: FALSE | QA12: TRUE | QB12: FALSE | QC12: FALSE | QD12: TRUE | QE12: FALSE | QF12: FALSE | QG12: TRUE | QH12: FALSE | QI12: FALSE | QJ12: TRUE | QK12: FALSE | QL12: FALSE
B13: Repayment Switch | G13: COD | H13: =Assumptions!G4 -> 2018-10-01 | I13: Debt End | J13: =Assumptions!G126 -> 2028-10-01 | L13: =AND(L6>=$H13,L6<$J$13) -> FALSE | M13: =AND(M6>=$H13,M6<$J$13) -> FALSE | N13: FALSE | O13: FALSE | P13: FALSE | Q13: FALSE | R13: FALSE | S13: FALSE | T13: FALSE | U13: FALSE | V13: FALSE | W13: FALSE | X13: FALSE | Y13: FALSE | Z13: FALSE | AA13: FALSE | AB13: FALSE | AC13: FALSE | AD13: FALSE | AE13: FALSE | AF13: FALSE | AG13: FALSE | AH13: FALSE | AI13: FALSE | AJ13: FALSE | AK13: FALSE | AL13: FALSE | AM13: FALSE | AN13: FALSE | AO13: FALSE | AP13: TRUE | AQ13: TRUE | AR13: TRUE | AS13: TRUE | AT13: TRUE | AU13: TRUE | AV13: TRUE | AW13: TRUE | AX13: TRUE | AY13: TRUE | AZ13: TRUE | BA13: TRUE | BB13: TRUE | BC13: TRUE | BD13: TRUE | BE13: TRUE | BF13: TRUE | BG13: TRUE | BH13: TRUE | BI13: TRUE | BJ13: TRUE | BK13: TRUE | BL13: TRUE | BM13: TRUE | BN13: TRUE | BO13: TRUE | BP13: TRUE | BQ13: TRUE | BR13: TRUE | BS13: TRUE | BT13: TRUE | BU13: TRUE | BV13: TRUE | BW13: TRUE | BX13: TRUE | BY13: =AND(BY6>=$H13,BY6<$J$13) -> TRUE | BZ13: TRUE | CA13: TRUE | CB13: TRUE | CC13: TRUE | CD13: TRUE | CE13: TRUE | CF13: TRUE | CG13: TRUE | CH13: TRUE | CI13: TRUE | CJ13: TRUE | CK13: TRUE | CL13: TRUE | CM13: TRUE | CN13: TRUE | CO13: TRUE | CP13: TRUE | CQ13: TRUE | CR13: TRUE | CS13: TRUE | CT13: TRUE | CU13: TRUE | CV13: TRUE | CW13: TRUE | CX13: TRUE | CY13: TRUE | CZ13: TRUE | DA13: TRUE | DB13: TRUE | DC13: TRUE | DD13: TRUE | DE13: TRUE | DF13: TRUE | DG13: TRUE | DH13: TRUE | DI13: TRUE | DJ13: TRUE | DK13: TRUE | DL13: TRUE | DM13: TRUE | DN13: TRUE | DO13: TRUE | DP13: TRUE | DQ13: TRUE | DR13: TRUE | DS13: TRUE | DT13: TRUE | DU13: TRUE | DV13: TRUE | DW13: TRUE | DX13: TRUE | DY13: TRUE | DZ13: TRUE | EA13: TRUE | EB13: TRUE | EC13: TRUE | ED13: TRUE | EE13: TRUE | EF13: TRUE | EG13: TRUE | EH13: TRUE | EI13: TRUE | EJ13: TRUE | EK13: =AND(EK6>=$H13,EK6<$J$13) -> TRUE | EL13: TRUE | EM13: TRUE | EN13: TRUE | EO13: TRUE | EP13: TRUE | EQ13: TRUE | ER13: TRUE | ES13: TRUE | ET13: TRUE | EU13: TRUE | EV13: TRUE | EW13: TRUE | EX13: TRUE | EY13: TRUE | EZ13: TRUE | FA13: TRUE | FB13: TRUE | FC13: TRUE | FD13: TRUE | FE13: TRUE | FF13: FALSE | FG13: FALSE | FH13: FALSE | FI13: FALSE | FJ13: FALSE | FK13: FALSE | FL13: FALSE | FM13: FALSE | FN13: FALSE | FO13: FALSE | FP13: FALSE | FQ13: FALSE | FR13: FALSE | FS13: FALSE | FT13: FALSE | FU13: FALSE | FV13: FALSE | FW13: FALSE | FX13: FALSE | FY13: FALSE | FZ13: FALSE | GA13: FALSE | GB13: FALSE | GC13: FALSE | GD13: FALSE | GE13: FALSE | GF13: FALSE | GG13: FALSE | GH13: FALSE | GI13: FALSE | GJ13: FALSE | GK13: FALSE | GL13: FALSE | GM13: FALSE | GN13: FALSE | GO13: FALSE | GP13: FALSE | GQ13: FALSE | GR13: FALSE | GS13: FALSE | GT13: FALSE | GU13: FALSE | GV13: FALSE | GW13: =AND(GW6>=$H13,GW6<$J$13) -> FALSE | GX13: FALSE | GY13: FALSE | GZ13: FALSE | HA13: FALSE | HB13: FALSE | HC13: FALSE | HD13: FALSE | HE13: FALSE | HF13: FALSE | HG13: FALSE | HH13: FALSE | HI13: FALSE | HJ13: FALSE | HK13: FALSE | HL13: FALSE | HM13: FALSE | HN13: FALSE | HO13: FALSE | HP13: FALSE | HQ13: FALSE | HR13: FALSE | HS13: FALSE | HT13: FALSE | HU13: FALSE | HV13: FALSE | HW13: FALSE | HX13: FALSE | HY13: FALSE | HZ13: FALSE | IA13: FALSE | IB13: FALSE | IC13: FALSE | ID13: FALSE | IE13: FALSE | IF13: FALSE | IG13: FALSE | IH13: FALSE | II13: FALSE | IJ13: FALSE | IK13: FALSE | IL13: FALSE | IM13: FALSE | IN13: FALSE | IO13: FALSE | IP13: FALSE | IQ13: FALSE | IR13: FALSE | IS13: FALSE | IT13: FALSE | IU13: FALSE | IV13: FALSE | IW13: FALSE | IX13: FALSE | IY13: FALSE | IZ13: FALSE | JA13: FALSE | JB13: FALSE | JC13: FALSE | JD13: FALSE | JE13: FALSE | JF13: FALSE | JG13: FALSE | JH13: FALSE | JI13: =AND(JI6>=$H13,JI6<$J$13) -> FALSE | JJ13: FALSE | JK13: FALSE | JL13: FALSE | JM13: FALSE | JN13: FALSE | JO13: FALSE | JP13: FALSE | JQ13: FALSE | JR13: FALSE | JS13: FALSE | JT13: FALSE | JU13: FALSE | JV13: FALSE | JW13: FALSE | JX13: FALSE | JY13: FALSE | JZ13: FALSE | KA13: FALSE | KB13: FALSE | KC13: FALSE | KD13: FALSE | KE13: FALSE | KF13: FALSE | KG13: FALSE | KH13: FALSE | KI13: FALSE | KJ13: FALSE | KK13: FALSE | KL13: FALSE | KM13: FALSE | KN13: FALSE | KO13: FALSE | KP13: FALSE | KQ13: FALSE | KR13: FALSE | KS13: FALSE | KT13: FALSE | KU13: FALSE | KV13: FALSE | KW13: FALSE | KX13: FALSE | KY13: FALSE | KZ13: FALSE | LA13: FALSE | LB13: FALSE | LC13: FALSE | LD13: FALSE | LE13: FALSE | LF13: FALSE | LG13: FALSE | LH13: FALSE | LI13: FALSE | LJ13: FALSE | LK13: FALSE | LL13: FALSE | LM13: FALSE | LN13: FALSE | LO13: FALSE | LP13: FALSE | LQ13: FALSE | LR13: FALSE | LS13: FALSE | LT13: FALSE | LU13: =AND(LU6>=$H13,LU6<$J$13) -> FALSE | LV13: FALSE | LW13: FALSE | LX13: FALSE | LY13: FALSE | LZ13: FALSE | MA13: FALSE | MB13: FALSE | MC13: FALSE | MD13: FALSE | ME13: FALSE | MF13: FALSE | MG13: FALSE | MH13: FALSE | MI13: FALSE | MJ13: FALSE | MK13: FALSE | ML13: FALSE | MM13: FALSE | MN13: FALSE | MO13: FALSE | MP13: FALSE | MQ13: FALSE | MR13: FALSE | MS13: FALSE | MT13: FALSE | MU13: FALSE | MV13: FALSE | MW13: FALSE | MX13: FALSE | MY13: FALSE | MZ13: FALSE | NA13: FALSE | NB13: FALSE | NC13: FALSE | ND13: FALSE | NE13: FALSE | NF13: FALSE | NG13: FALSE | NH13: FALSE | NI13: FALSE | NJ13: FALSE | NK13: FALSE | NL13: FALSE | NM13: FALSE | NN13: FALSE | NO13: FALSE | NP13: FALSE | NQ13: FALSE | NR13: FALSE | NS13: FALSE | NT13: FALSE | NU13: FALSE | NV13: FALSE | NW13: FALSE | NX13: FALSE | NY13: FALSE | NZ13: FALSE | OA13: FALSE | OB13: FALSE | OC13: FALSE | OD13: FALSE | OE13: FALSE | OF13: FALSE | OG13: =AND(OG6>=$H13,OG6<$J$13) -> FALSE | OH13: FALSE | OI13: FALSE | OJ13: FALSE | OK13: FALSE | OL13: FALSE | OM13: FALSE | ON13: FALSE | OO13: FALSE | OP13: FALSE | OQ13: FALSE | OR13: FALSE | OS13: FALSE | OT13: FALSE | OU13: FALSE | OV13: FALSE | OW13: FALSE | OX13: FALSE | OY13: FALSE | OZ13: FALSE | PA13: FALSE | PB13: FALSE | PC13: FALSE | PD13: FALSE | PE13: FALSE | PF13: FALSE | PG13: FALSE | PH13: FALSE | PI13: FALSE | PJ13: FALSE | PK13: FALSE | PL13: FALSE | PM13: FALSE | PN13: FALSE | PO13: FALSE | PP13: FALSE | PQ13: FALSE | PR13: FALSE | PS13: FALSE | PT13: FALSE | PU13: FALSE | PV13: FALSE | PW13: FALSE | PX13: FALSE | PY13: FALSE | PZ13: FALSE | QA13: FALSE | QB13: FALSE | QC13: FALSE | QD13: FALSE | QE13: FALSE | QF13: FALSE | QG13: FALSE | QH13: FALSE | QI13: FALSE | QJ13: FALSE | QK13: FALSE | QL13: FALSE
B14: Repayment Period | G14: =Assumptions!G108 -> 3 | H14: =Assumptions!G109 -> 9 | K14: =COUNTIF(L14:QL14,TRUE) -> 20 | L14: =IF(L13,OR(L10=$G$14,L10=$H$14)) -> FALSE | M14: =IF(M13,OR(M10=$G$14,M10=$H$14)) -> FALSE | N14: FALSE | O14: FALSE | P14: FALSE | Q14: FALSE | R14: FALSE | S14: FALSE | T14: FALSE | U14: FALSE | V14: FALSE | W14: FALSE | X14: FALSE | Y14: FALSE | Z14: FALSE | AA14: FALSE | AB14: FALSE | AC14: FALSE | AD14: FALSE | AE14: FALSE | AF14: FALSE | AG14: FALSE | AH14: FALSE | AI14: FALSE | AJ14: FALSE | AK14: FALSE | AL14: FALSE | AM14: FALSE | AN14: FALSE | AO14: FALSE | AP14: FALSE | AQ14: FALSE | AR14: FALSE | AS14: FALSE | AT14: FALSE | AU14: TRUE | AV14: FALSE | AW14: FALSE | AX14: FALSE | AY14: FALSE | AZ14: FALSE | BA14: TRUE | BB14: FALSE | BC14: FALSE | BD14: FALSE | BE14: FALSE | BF14: FALSE | BG14: TRUE | BH14: FALSE | BI14: FALSE | BJ14: FALSE | BK14: FALSE | BL14: FALSE | BM14: TRUE | BN14: FALSE | BO14: FALSE | BP14: FALSE | BQ14: FALSE | BR14: FALSE | BS14: TRUE | BT14: FALSE | BU14: FALSE | BV14: FALSE | BW14: FALSE | BX14: FALSE | BY14: =IF(BY13,OR(BY10=$G$14,BY10=$H$14)) -> TRUE | BZ14: FALSE | CA14: FALSE | CB14: FALSE | CC14: FALSE | CD14: FALSE | CE14: TRUE | CF14: FALSE | CG14: FALSE | CH14: FALSE | CI14: FALSE | CJ14: FALSE | CK14: TRUE | CL14: FALSE | CM14: FALSE | CN14: FALSE | CO14: FALSE | CP14: FALSE | CQ14: TRUE | CR14: FALSE | CS14: FALSE | CT14: FALSE | CU14: FALSE | CV14: FALSE | CW14: TRUE | CX14: FALSE | CY14: FALSE | CZ14: FALSE | DA14: FALSE | DB14: FALSE | DC14: TRUE | DD14: FALSE | DE14: FALSE | DF14: FALSE | DG14: FALSE | DH14: FALSE | DI14: TRUE | DJ14: FALSE | DK14: FALSE | DL14: FALSE | DM14: FALSE | DN14: FALSE | DO14: TRUE | DP14: FALSE | DQ14: FALSE | DR14: FALSE | DS14: FALSE | DT14: FALSE | DU14: TRUE | DV14: FALSE | DW14: FALSE | DX14: FALSE | DY14: FALSE | DZ14: FALSE | EA14: TRUE | EB14: FALSE | EC14: FALSE | ED14: FALSE | EE14: FALSE | EF14: FALSE | EG14: TRUE | EH14: FALSE | EI14: FALSE | EJ14: FALSE | EK14: =IF(EK13,OR(EK10=$G$14,EK10=$H$14)) -> FALSE | EL14: FALSE | EM14: TRUE | EN14: FALSE | EO14: FALSE | EP14: FALSE | EQ14: FALSE | ER14: FALSE | ES14: TRUE | ET14: FALSE | EU14: FALSE | EV14: FALSE | EW14: FALSE | EX14: FALSE | EY14: TRUE | EZ14: FALSE | FA14: FALSE | FB14: FALSE | FC14: FALSE | FD14: FALSE | FE14: TRUE | FF14: FALSE | FG14: FALSE | FH14: FALSE | FI14: FALSE | FJ14: FALSE | FK14: FALSE | FL14: FALSE | FM14: FALSE | FN14: FALSE | FO14: FALSE | FP14: FALSE | FQ14: FALSE | FR14: FALSE | FS14: FALSE | FT14: FALSE | FU14: FALSE | FV14: FALSE | FW14: FALSE | FX14: FALSE | FY14: FALSE | FZ14: FALSE | GA14: FALSE | GB14: FALSE | GC14: FALSE | GD14: FALSE | GE14: FALSE | GF14: FALSE | GG14: FALSE | GH14: FALSE | GI14: FALSE | GJ14: FALSE | GK14: FALSE | GL14: FALSE | GM14: FALSE | GN14: FALSE | GO14: FALSE | GP14: FALSE | GQ14: FALSE | GR14: FALSE | GS14: FALSE | GT14: FALSE | GU14: FALSE | GV14: FALSE | GW14: =IF(GW13,OR(GW10=$G$14,GW10=$H$14)) -> FALSE | GX14: FALSE | GY14: FALSE | GZ14: FALSE | HA14: FALSE | HB14: FALSE | HC14: FALSE | HD14: FALSE | HE14: FALSE | HF14: FALSE | HG14: FALSE | HH14: FALSE | HI14: FALSE | HJ14: FALSE | HK14: FALSE | HL14: FALSE | HM14: FALSE | HN14: FALSE | HO14: FALSE | HP14: FALSE | HQ14: FALSE | HR14: FALSE | HS14: FALSE | HT14: FALSE | HU14: FALSE | HV14: FALSE | HW14: FALSE | HX14: FALSE | HY14: FALSE | HZ14: FALSE | IA14: FALSE | IB14: FALSE | IC14: FALSE | ID14: FALSE | IE14: FALSE | IF14: FALSE | IG14: FALSE | IH14: FALSE | II14: FALSE | IJ14: FALSE | IK14: FALSE | IL14: FALSE | IM14: FALSE | IN14: FALSE | IO14: FALSE | IP14: FALSE | IQ14: FALSE | IR14: FALSE | IS14: FALSE | IT14: FALSE | IU14: FALSE | IV14: FALSE | IW14: FALSE | IX14: FALSE | IY14: FALSE | IZ14: FALSE | JA14: FALSE | JB14: FALSE | JC14: FALSE | JD14: FALSE | JE14: FALSE | JF14: FALSE | JG14: FALSE | JH14: FALSE | JI14: =IF(JI13,OR(JI10=$G$14,JI10=$H$14)) -> FALSE | JJ14: FALSE | JK14: FALSE | JL14: FALSE | JM14: FALSE | JN14: FALSE | JO14: FALSE | JP14: FALSE | JQ14: FALSE | JR14: FALSE | JS14: FALSE | JT14: FALSE | JU14: FALSE | JV14: FALSE | JW14: FALSE | JX14: FALSE | JY14: FALSE | JZ14: FALSE | KA14: FALSE | KB14: FALSE | KC14: FALSE | KD14: FALSE | KE14: FALSE | KF14: FALSE | KG14: FALSE | KH14: FALSE | KI14: FALSE | KJ14: FALSE | KK14: FALSE | KL14: FALSE | KM14: FALSE | KN14: FALSE | KO14: FALSE | KP14: FALSE | KQ14: FALSE | KR14: FALSE | KS14: FALSE | KT14: FALSE | KU14: FALSE | KV14: FALSE | KW14: FALSE | KX14: FALSE | KY14: FALSE | KZ14: FALSE | LA14: FALSE | LB14: FALSE | LC14: FALSE | LD14: FALSE | LE14: FALSE | LF14: FALSE | LG14: FALSE | LH14: FALSE | LI14: FALSE | LJ14: FALSE | LK14: FALSE | LL14: FALSE | LM14: FALSE | LN14: FALSE | LO14: FALSE | LP14: FALSE | LQ14: FALSE | LR14: FALSE | LS14: FALSE | LT14: FALSE | LU14: =IF(LU13,OR(LU10=$G$14,LU10=$H$14)) -> FALSE | LV14: FALSE | LW14: FALSE | LX14: FALSE | LY14: FALSE | LZ14: FALSE | MA14: FALSE | MB14: FALSE | MC14: FALSE | MD14: FALSE | ME14: FALSE | MF14: FALSE | MG14: FALSE | MH14: FALSE | MI14: FALSE | MJ14: FALSE | MK14: FALSE | ML14: FALSE | MM14: FALSE | MN14: FALSE | MO14: FALSE | MP14: FALSE | MQ14: FALSE | MR14: FALSE | MS14: FALSE | MT14: FALSE | MU14: FALSE | MV14: FALSE | MW14: FALSE | MX14: FALSE | MY14: FALSE | MZ14: FALSE | NA14: FALSE | NB14: FALSE | NC14: FALSE | ND14: FALSE | NE14: FALSE | NF14: FALSE | NG14: FALSE | NH14: FALSE | NI14: FALSE | NJ14: FALSE | NK14: FALSE | NL14: FALSE | NM14: FALSE | NN14: FALSE | NO14: FALSE | NP14: FALSE | NQ14: FALSE | NR14: FALSE | NS14: FALSE | NT14: FALSE | NU14: FALSE | NV14: FALSE | NW14: FALSE | NX14: FALSE | NY14: FALSE | NZ14: FALSE | OA14: FALSE | OB14: FALSE | OC14: FALSE | OD14: FALSE | OE14: FALSE | OF14: FALSE | OG14: =IF(OG13,OR(OG10=$G$14,OG10=$H$14)) -> FALSE | OH14: FALSE | OI14: FALSE | OJ14: FALSE | OK14: FALSE | OL14: FALSE | OM14: FALSE | ON14: FALSE | OO14: FALSE | OP14: FALSE | OQ14: FALSE | OR14: FALSE | OS14: FALSE | OT14: FALSE | OU14: FALSE | OV14: FALSE | OW14: FALSE | OX14: FALSE | OY14: FALSE | OZ14: FALSE | PA14: FALSE | PB14: FALSE | PC14: FALSE | PD14: FALSE | PE14: FALSE | PF14: FALSE | PG14: FALSE | PH14: FALSE | PI14: FALSE | PJ14: FALSE | PK14: FALSE | PL14: FALSE | PM14: FALSE | PN14: FALSE | PO14: FALSE | PP14: FALSE | PQ14: FALSE | PR14: FALSE | PS14: FALSE | PT14: FALSE | PU14: FALSE | PV14: FALSE | PW14: FALSE | PX14: FALSE | PY14: FALSE | PZ14: FALSE | QA14: FALSE | QB14: FALSE | QC14: FALSE | QD14: FALSE | QE14: FALSE | QF14: FALSE | QG14: FALSE | QH14: FALSE | QI14: FALSE | QJ14: FALSE | QK14: FALSE | QL14: FALSE
B15: Operating Period Switch | F15: Switch | G15: COD | H15: =Assumptions!G4 -> 2018-10-01 | I15: DeComm | J15: =Assumptions!G6 -> 2050-10-01 | K15: =COUNTIF(L15:QL15,TRUE)=Assumptions!G5*(12/Assumptions!G10) -> TRUE | L15: =AND(L6>=$H15,L6<$J$15) -> FALSE | M15: FALSE | N15: FALSE | O15: FALSE | P15: FALSE | Q15: FALSE | R15: FALSE | S15: FALSE | T15: FALSE | U15: FALSE | V15: FALSE | W15: FALSE | X15: FALSE | Y15: FALSE | Z15: FALSE | AA15: FALSE | AB15: FALSE | AC15: FALSE | AD15: FALSE | AE15: FALSE | AF15: FALSE | AG15: FALSE | AH15: FALSE | AI15: FALSE | AJ15: FALSE | AK15: FALSE | AL15: FALSE | AM15: FALSE | AN15: FALSE | AO15: FALSE | AP15: TRUE | AQ15: TRUE | AR15: TRUE | AS15: TRUE | AT15: TRUE | AU15: TRUE | AV15: TRUE | AW15: TRUE | AX15: TRUE | AY15: TRUE | AZ15: TRUE | BA15: TRUE | BB15: TRUE | BC15: TRUE | BD15: TRUE | BE15: TRUE | BF15: TRUE | BG15: TRUE | BH15: TRUE | BI15: TRUE | BJ15: TRUE | BK15: TRUE | BL15: TRUE | BM15: TRUE | BN15: TRUE | BO15: TRUE | BP15: TRUE | BQ15: TRUE | BR15: TRUE | BS15: TRUE | BT15: TRUE | BU15: TRUE | BV15: TRUE | BW15: TRUE | BX15: =AND(BX6>=$H15,BX6<$J$15) -> TRUE | BY15: TRUE | BZ15: TRUE | CA15: TRUE | CB15: TRUE | CC15: TRUE | CD15: TRUE | CE15: TRUE | CF15: TRUE | CG15: TRUE | CH15: TRUE | CI15: TRUE | CJ15: TRUE | CK15: TRUE | CL15: TRUE | CM15: TRUE | CN15: TRUE | CO15: TRUE | CP15: TRUE | CQ15: TRUE | CR15: TRUE | CS15: TRUE | CT15: TRUE | CU15: TRUE | CV15: TRUE | CW15: TRUE | CX15: TRUE | CY15: TRUE | CZ15: TRUE | DA15: TRUE | DB15: TRUE | DC15: TRUE | DD15: TRUE | DE15: TRUE | DF15: TRUE | DG15: TRUE | DH15: TRUE | DI15: TRUE | DJ15: TRUE | DK15: TRUE | DL15: TRUE | DM15: TRUE | DN15: TRUE | DO15: TRUE | DP15: TRUE | DQ15: TRUE | DR15: TRUE | DS15: TRUE | DT15: TRUE | DU15: TRUE | DV15: TRUE | DW15: TRUE | DX15: TRUE | DY15: TRUE | DZ15: TRUE | EA15: TRUE | EB15: TRUE | EC15: TRUE | ED15: TRUE | EE15: TRUE | EF15: TRUE | EG15: TRUE | EH15: TRUE | EI15: TRUE | EJ15: =AND(EJ6>=$H15,EJ6<$J$15) -> TRUE | EK15: TRUE | EL15: TRUE | EM15: TRUE | EN15: TRUE | EO15: TRUE | EP15: TRUE | EQ15: TRUE | ER15: TRUE | ES15: TRUE | ET15: TRUE | EU15: TRUE | EV15: TRUE | EW15: TRUE | EX15: TRUE | EY15: TRUE | EZ15: TRUE | FA15: TRUE | FB15: TRUE | FC15: TRUE | FD15: TRUE | FE15: TRUE | FF15: TRUE | FG15: TRUE | FH15: TRUE | FI15: TRUE | FJ15: TRUE | FK15: TRUE | FL15: TRUE | FM15: TRUE | FN15: TRUE | FO15: TRUE | FP15: TRUE | FQ15: TRUE | FR15: TRUE | FS15: TRUE | FT15: TRUE | FU15: TRUE | FV15: TRUE | FW15: TRUE | FX15: TRUE | FY15: TRUE | FZ15: TRUE | GA15: TRUE | GB15: TRUE | GC15: TRUE | GD15: TRUE | GE15: TRUE | GF15: TRUE | GG15: TRUE | GH15: TRUE | GI15: TRUE | GJ15: TRUE | GK15: TRUE | GL15: TRUE | GM15: TRUE | GN15: TRUE | GO15: TRUE | GP15: TRUE | GQ15: TRUE | GR15: TRUE | GS15: TRUE | GT15: TRUE | GU15: TRUE | GV15: =AND(GV6>=$H15,GV6<$J$15) -> TRUE | GW15: TRUE | GX15: TRUE | GY15: TRUE | GZ15: TRUE | HA15: TRUE | HB15: TRUE | HC15: TRUE | HD15: TRUE | HE15: TRUE | HF15: TRUE | HG15: TRUE | HH15: TRUE | HI15: TRUE | HJ15: TRUE | HK15: TRUE | HL15: TRUE | HM15: TRUE | HN15: TRUE | HO15: TRUE | HP15: TRUE | HQ15: TRUE | HR15: TRUE | HS15: TRUE | HT15: TRUE | HU15: TRUE | HV15: TRUE | HW15: TRUE | HX15: TRUE | HY15: TRUE | HZ15: TRUE | IA15: TRUE | IB15: TRUE | IC15: TRUE | ID15: TRUE | IE15: TRUE | IF15: TRUE | IG15: TRUE | IH15: TRUE | II15: TRUE | IJ15: TRUE | IK15: TRUE | IL15: TRUE | IM15: TRUE | IN15: TRUE | IO15: TRUE | IP15: TRUE | IQ15: TRUE | IR15: TRUE | IS15: TRUE | IT15: TRUE | IU15: TRUE | IV15: TRUE | IW15: TRUE | IX15: TRUE | IY15: TRUE | IZ15: TRUE | JA15: TRUE | JB15: TRUE | JC15: TRUE | JD15: TRUE | JE15: TRUE | JF15: TRUE | JG15: TRUE | JH15: =AND(JH6>=$H15,JH6<$J$15) -> TRUE | JI15: TRUE | JJ15: TRUE | JK15: TRUE | JL15: TRUE | JM15: TRUE | JN15: TRUE | JO15: TRUE | JP15: TRUE | JQ15: TRUE | JR15: TRUE | JS15: TRUE | JT15: TRUE | JU15: TRUE | JV15: TRUE | JW15: TRUE | JX15: TRUE | JY15: TRUE | JZ15: TRUE | KA15: TRUE | KB15: TRUE | KC15: TRUE | KD15: TRUE | KE15: TRUE | KF15: TRUE | KG15: TRUE | KH15: TRUE | KI15: TRUE | KJ15: TRUE | KK15: TRUE | KL15: TRUE | KM15: TRUE | KN15: TRUE | KO15: TRUE | KP15: TRUE | KQ15: TRUE | KR15: TRUE | KS15: TRUE | KT15: TRUE | KU15: TRUE | KV15: TRUE | KW15: TRUE | KX15: TRUE | KY15: TRUE | KZ15: TRUE | LA15: TRUE | LB15: TRUE | LC15: TRUE | LD15: TRUE | LE15: TRUE | LF15: TRUE | LG15: TRUE | LH15: TRUE | LI15: TRUE | LJ15: TRUE | LK15: TRUE | LL15: TRUE | LM15: TRUE | LN15: TRUE | LO15: TRUE | LP15: TRUE | LQ15: TRUE | LR15: TRUE | LS15: TRUE | LT15: =AND(LT6>=$H15,LT6<$J$15) -> TRUE | LU15: TRUE | LV15: TRUE | LW15: TRUE | LX15: TRUE | LY15: TRUE | LZ15: TRUE | MA15: TRUE | MB15: TRUE | MC15: TRUE | MD15: TRUE | ME15: TRUE | MF15: TRUE | MG15: TRUE | MH15: TRUE | MI15: TRUE | MJ15: TRUE | MK15: TRUE | ML15: TRUE | MM15: TRUE | MN15: TRUE | MO15: TRUE | MP15: TRUE | MQ15: TRUE | MR15: TRUE | MS15: TRUE | MT15: TRUE | MU15: TRUE | MV15: TRUE | MW15: TRUE | MX15: TRUE | MY15: TRUE | MZ15: TRUE | NA15: TRUE | NB15: TRUE | NC15: TRUE | ND15: TRUE | NE15: TRUE | NF15: TRUE | NG15: TRUE | NH15: TRUE | NI15: TRUE | NJ15: TRUE | NK15: TRUE | NL15: TRUE | NM15: TRUE | NN15: TRUE | NO15: TRUE | NP15: TRUE | NQ15: TRUE | NR15: TRUE | NS15: TRUE | NT15: TRUE | NU15: TRUE | NV15: TRUE | NW15: TRUE | NX15: TRUE | NY15: TRUE | NZ15: TRUE | OA15: TRUE | OB15: TRUE | OC15: TRUE | OD15: TRUE | OE15: TRUE | OF15: =AND(OF6>=$H15,OF6<$J$15) -> TRUE | OG15: TRUE | OH15: TRUE | OI15: TRUE | OJ15: TRUE | OK15: TRUE | OL15: TRUE | OM15: TRUE | ON15: TRUE | OO15: TRUE | OP15: TRUE | OQ15: TRUE | OR15: TRUE | OS15: TRUE | OT15: TRUE | OU15: TRUE | OV15: TRUE | OW15: TRUE | OX15: TRUE | OY15: TRUE | OZ15: TRUE | PA15: TRUE | PB15: TRUE | PC15: TRUE | PD15: TRUE | PE15: TRUE | PF15: TRUE | PG15: TRUE | PH15: TRUE | PI15: TRUE | PJ15: FALSE | PK15: FALSE | PL15: FALSE | PM15: FALSE | PN15: FALSE | PO15: FALSE | PP15: FALSE | PQ15: FALSE | PR15: FALSE | PS15: FALSE | PT15: FALSE | PU15: FALSE | PV15: FALSE | PW15: FALSE | PX15: FALSE | PY15: FALSE | PZ15: FALSE | QA15: FALSE | QB15: FALSE | QC15: FALSE | QD15: FALSE | QE15: FALSE | QF15: FALSE | QG15: FALSE | QH15: FALSE | QI15: FALSE | QJ15: FALSE | QK15: FALSE | QL15: FALSE
A17: Plant Characteristics
B18: Capacity Before Degradation | F18: MW | G18: =Assumptions!G13 -> 250 | L18: =$G$18*L15 -> 0 | M18: 0 | N18: 0 | O18: 0 | P18: 0 | Q18: 0 | R18: 0 | S18: 0 | T18: 0 | U18: 0 | V18: 0 | W18: 0 | X18: 0 | Y18: 0 | Z18: 0 | AA18: 0 | AB18: 0 | AC18: 0 | AD18: 0 | AE18: 0 | AF18: 0 | AG18: 0 | AH18: 0 | AI18: 0 | AJ18: 0 | AK18: 0 | AL18: 0 | AM18: 0 | AN18: 0 | AO18: 0 | AP18: 250 | AQ18: 250 | AR18: =$G$18*AR15 -> 250 | AS18: 250 | AT18: 250 | AU18: 250 | AV18: 250 | AW18: 250 | AX18: 250 | AY18: 250 | AZ18: 250 | BA18: 250 | BB18: 250 | BC18: 250 | BD18: 250 | BE18: 250 | BF18: 250 | BG18: 250 | BH18: 250 | BI18: 250 | BJ18: 250 | BK18: 250 | BL18: 250 | BM18: 250 | BN18: 250 | BO18: 250 | BP18: 250 | BQ18: 250 | BR18: 250 | BS18: 250 | BT18: 250 | BU18: 250 | BV18: 250 | BW18: 250 | BX18: =$G$18*BX15 -> 250 | BY18: 250 | BZ18: 250 | CA18: 250 | CB18: 250 | CC18: 250 | CD18: 250 | CE18: 250 | CF18: 250 | CG18: 250 | CH18: 250 | CI18: 250 | CJ18: 250 | CK18: 250 | CL18: 250 | CM18: 250 | CN18: 250 | CO18: 250 | CP18: 250 | CQ18: 250 | CR18: 250 | CS18: 250 | CT18: 250 | CU18: 250 | CV18: 250 | CW18: 250 | CX18: 250 | CY18: 250 | CZ18: 250 | DA18: 250 | DB18: 250 | DC18: 250 | DD18: =$G$18*DD15 -> 250 | DE18: 250 | DF18: 250 | DG18: 250 | DH18: 250 | DI18: 250 | DJ18: 250 | DK18: 250 | DL18: 250 | DM18: 250 | DN18: 250 | DO18: 250 | DP18: 250 | DQ18: 250 | DR18: 250 | DS18: 250 | DT18: 250 | DU18: 250 | DV18: 250 | DW18: 250 | DX18: 250 | DY18: 250 | DZ18: 250 | EA18: 250 | EB18: 250 | EC18: 250 | ED18: 250 | EE18: 250 | EF18: 250 | EG18: 250 | EH18: 250 | EI18: 250 | EJ18: =$G$18*EJ15 -> 250 | EK18: 250 | EL18: 250 | EM18: 250 | EN18: 250 | EO18: 250 | EP18: 250 | EQ18: 250 | ER18: 250 | ES18: 250 | ET18: 250 | EU18: 250 | EV18: 250 | EW18: 250 | EX18: 250 | EY18: 250 | EZ18: 250 | FA18: 250 | FB18: 250 | FC18: 250 | FD18: 250 | FE18: 250 | FF18: 250 | FG18: 250 | FH18: 250 | FI18: 250 | FJ18: 250 | FK18: 250 | FL18: 250 | FM18: 250 | FN18: 250 | FO18: 250 | FP18: =$G$18*FP15 -> 250 | FQ18: 250 | FR18: 250 | FS18: 250 | FT18: 250 | FU18: 250 | FV18: 250 | FW18: 250 | FX18: 250 | FY18: 250 | FZ18: 250 | GA18: 250 | GB18: 250 | GC18: 250 | GD18: 250 | GE18: 250 | GF18: 250 | GG18: 250 | GH18: 250 | GI18: 250 | GJ18: 250 | GK18: 250 | GL18: 250 | GM18: 250 | GN18: 250 | GO18: 250 | GP18: 250 | GQ18: 250 | GR18: 250 | GS18: 250 | GT18: 250 | GU18: 250 | GV18: =$G$18*GV15 -> 250 | GW18: 250 | GX18: 250 | GY18: 250 | GZ18: 250 | HA18: 250 | HB18: 250 | HC18: 250 | HD18: =$G$18*HD15 -> 250 | HE18: 250 | HF18: 250 | HG18: 250 | HH18: 250 | HI18: 250 | HJ18: 250 | HK18: 250 | HL18: 250 | HM18: 250 | HN18: 250 | HO18: 250 | HP18: 250 | HQ18: 250 | HR18: 250 | HS18: 250 | HT18: 250 | HU18: 250 | HV18: 250 | HW18: 250 | HX18: 250 | HY18: 250 | HZ18: 250 | IA18: 250 | IB18: 250 | IC18: 250 | ID18: 250 | IE18: 250 | IF18: 250 | IG18: 250 | IH18: 250 | II18: 250 | IJ18: 250 | IK18: 250 | IL18: 250 | IM18: 250 | IN18: 250 | IO18: 250 | IP18: 250 | IQ18: 250 | IR18: 250 | IS18: 250 | IT18: 250 | IU18: 250 | IV18: 250 | IW18: 250 | IX18: 250 | IY18: 250 | IZ18: 250 | JA18: 250 | JB18: 250 | JC18: 250 | JD18: 250 | JE18: 250 | JF18: 250 | JG18: 250 | JH18: 250 | JI18: 250 | JJ18: 250 | JK18: 250 | JL18: 250 | JM18: 250 | JN18: 250 | JO18: 250 | JP18: =$G$18*JP15 -> 250 | JQ18: 250 | JR18: 250 | JS18: 250 | JT18: 250 | JU18: 250 | JV18: 250 | JW18: 250 | JX18: 250 | JY18: 250 | JZ18: 250 | KA18: 250 | KB18: 250 | KC18: 250 | KD18: 250 | KE18: 250 | KF18: 250 | KG18: 250 | KH18: 250 | KI18: 250 | KJ18: 250 | KK18: 250 | KL18: 250 | KM18: 250 | KN18: 250 | KO18: 250 | KP18: 250 | KQ18: 250 | KR18: 250 | KS18: 250 | KT18: 250 | KU18: 250 | KV18: 250 | KW18: 250 | KX18: 250 | KY18: 250 | KZ18: 250 | LA18: 250 | LB18: 250 | LC18: 250 | LD18: 250 | LE18: 250 | LF18: 250 | LG18: 250 | LH18: 250 | LI18: 250 | LJ18: 250 | LK18: 250 | LL18: 250 | LM18: 250 | LN18: 250 | LO18: 250 | LP18: 250 | LQ18: 250 | LR18: 250 | LS18: 250 | LT18: 250 | LU18: 250 | LV18: 250 | LW18: 250 | LX18: 250 | LY18: 250 | LZ18: 250 | MA18: 250 | MB18: =$G$18*MB15 -> 250 | MC18: 250 | MD18: 250 | ME18: 250 | MF18: 250 | MG18: 250 | MH18: 250 | MI18: 250 | MJ18: 250 | MK18: 250 | ML18: 250 | MM18: 250 | MN18: 250 | MO18: 250 | MP18: 250 | MQ18: 250 | MR18: 250 | MS18: 250 | MT18: 250 | MU18: 250 | MV18: 250 | MW18: 250 | MX18: 250 | MY18: 250 | MZ18: 250 | NA18: 250 | NB18: 250 | NC18: 250 | ND18: 250 | NE18: 250 | NF18: 250 | NG18: 250 | NH18: 250 | NI18: 250 | NJ18: 250 | NK18: 250 | NL18: 250 | NM18: 250 | NN18: 250 | NO18: 250 | NP18: 250 | NQ18: 250 | NR18: 250 | NS18: 250 | NT18: 250 | NU18: 250 | NV18: 250 | NW18: 250 | NX18: 250 | NY18: 250 | NZ18: 250 | OA18: 250 | OB18: 250 | OC18: 250 | OD18: 250 | OE18: 250 | OF18: 250 | OG18: 250 | OH18: 250 | OI18: 250 | OJ18: 250 | OK18: 250 | OL18: 250 | OM18: 250 | ON18: =$G$18*ON15 -> 250 | OO18: 250 | OP18: 250 | OQ18: 250 | OR18: 250 | OS18: 250 | OT18: 250 | OU18: 250 | OV18: 250 | OW18: 250 | OX18: 250 | OY18: 250 | OZ18: 250 | PA18: 250 | PB18: 250 | PC18: 250 | PD18: 250 | PE18: 250 | PF18: 250 | PG18: 250 | PH18: 250 | PI18: 250 | PJ18: 0 | PK18: 0 | PL18: 0 | PM18: 0 | PN18: 0 | PO18: 0 | PP18: 0 | PQ18: 0 | PR18: 0 | PS18: 0 | PT18: 0 | PU18: 0 | PV18: 0 | PW18: 0 | PX18: 0 | PY18: 0 | PZ18: 0 | QA18: 0 | QB18: 0 | QC18: 0 | QD18: 0 | QE18: 0 | QF18: 0 | QG18: 0 | QH18: 0 | QI18: 0 | QJ18: 0 | QK18: 0 | QL18: 0
B20: Age of Project | F20: Periods | L20: =K20+L15 -> 0 | M20: 0 | N20: 0 | O20: 0 | P20: 0 | Q20: 0 | R20: 0 | S20: 0 | T20: 0 | U20: 0 | V20: 0 | W20: 0 | X20: 0 | Y20: 0 | Z20: 0 | AA20: 0 | AB20: 0 | AC20: 0 | AD20: 0 | AE20: 0 | AF20: 0 | AG20: 0 | AH20: 0 | AI20: 0 | AJ20: 0 | AK20: 0 | AL20: 0 | AM20: 0 | AN20: 0 | AO20: 0 | AP20: 1 | AQ20: 2 | AR20: =AQ20+AR15 -> 3 | AS20: 4 | AT20: 5 | AU20: 6 | AV20: 7 | AW20: 8 | AX20: 9 | AY20: 10 | AZ20: 11 | BA20: 12 | BB20: 13 | BC20: 14 | BD20: 15 | BE20: 16 | BF20: 17 | BG20: 18 | BH20: 19 | BI20: 20 | BJ20: 21 | BK20: 22 | BL20: 23 | BM20: 24 | BN20: 25 | BO20: 26 | BP20: 27 | BQ20: 28 | BR20: 29 | BS20: 30 | BT20: 31 | BU20: 32 | BV20: 33 | BW20: 34 | BX20: =BW20+BX15 -> 35 | BY20: 36 | BZ20: 37 | CA20: 38 | CB20: 39 | CC20: 40 | CD20: 41 | CE20: 42 | CF20: 43 | CG20: 44 | CH20: 45 | CI20: 46 | CJ20: 47 | CK20: 48 | CL20: 49 | CM20: 50 | CN20: 51 | CO20: 52 | CP20: 53 | CQ20: 54 | CR20: 55 | CS20: 56 | CT20: 57 | CU20: 58 | CV20: 59 | CW20: 60 | CX20: 61 | CY20: 62 | CZ20: 63 | DA20: 64 | DB20: 65 | DC20: 66 | DD20: =DC20+DD15 -> 67 | DE20: 68 | DF20: 69 | DG20: 70 | DH20: 71 | DI20: 72 | DJ20: 73 | DK20: 74 | DL20: 75 | DM20: 76 | DN20: 77 | DO20: 78 | DP20: 79 | DQ20: 80 | DR20: 81 | DS20: 82 | DT20: 83 | DU20: 84 | DV20: 85 | DW20: 86 | DX20: 87 | DY20: 88 | DZ20: 89 | EA20: 90 | EB20: 91 | EC20: 92 | ED20: 93 | EE20: 94 | EF20: 95 | EG20: 96 | EH20: 97 | EI20: 98 | EJ20: =EI20+EJ15 -> 99 | EK20: 100 | EL20: 101 | EM20: 102 | EN20: 103 | EO20: 104 | EP20: 105 | EQ20: 106 | ER20: 107 | ES20: 108 | ET20: 109 | EU20: 110 | EV20: 111 | EW20: 112 | EX20: 113 | EY20: 114 | EZ20: 115 | FA20: 116 | FB20: 117 | FC20: 118 | FD20: 119 | FE20: 120 | FF20: 121 | FG20: 122 | FH20: 123 | FI20: 124 | FJ20: 125 | FK20: 126 | FL20: 127 | FM20: 128 | FN20: 129 | FO20: 130 | FP20: =FO20+FP15 -> 131 | FQ20: 132 | FR20: 133 | FS20: 134 | FT20: 135 | FU20: 136 | FV20: 137 | FW20: 138 | FX20: 139 | FY20: 140 | FZ20: 141 | GA20: 142 | GB20: 143 | GC20: 144 | GD20: 145 | GE20: 146 | GF20: 147 | GG20: 148 | GH20: 149 | GI20: 150 | GJ20: 151 | GK20: 152 | GL20: 153 | GM20: 154 | GN20: 155 | GO20: 156 | GP20: 157 | GQ20: 158 | GR20: 159 | GS20: 160 | GT20: 161 | GU20: 162 | GV20: =GU20+GV15 -> 163 | GW20: 164 | GX20: 165 | GY20: 166 | GZ20: 167 | HA20: 168 | HB20: 169 | HC20: 170 | HD20: =HC20+HD15 -> 171 | HE20: 172 | HF20: 173 | HG20: 174 | HH20: 175 | HI20: 176 | HJ20: 177 | HK20: 178 | HL20: 179 | HM20: 180 | HN20: 181 | HO20: 182 | HP20: 183 | HQ20: 184 | HR20: 185 | HS20: 186 | HT20: 187 | HU20: 188 | HV20: 189 | HW20: 190 | HX20: 191 | HY20: 192 | HZ20: 193 | IA20: 194 | IB20: 195 | IC20: 196 | ID20: 197 | IE20: 198 | IF20: 199 | IG20: 200 | IH20: 201 | II20: 202 | IJ20: 203 | IK20: 204 | IL20: 205 | IM20: 206 | IN20: 207 | IO20: 208 | IP20: 209 | IQ20: 210 | IR20: 211 | IS20: 212 | IT20: 213 | IU20: 214 | IV20: 215 | IW20: 216 | IX20: 217 | IY20: 218 | IZ20: 219 | JA20: 220 | JB20: 221 | JC20: 222 | JD20: 223 | JE20: 224 | JF20: 225 | JG20: 226 | JH20: 227 | JI20: 228 | JJ20: 229 | JK20: 230 | JL20: 231 | JM20: 232 | JN20: 233 | JO20: 234 | JP20: =JO20+JP15 -> 235 | JQ20: 236 | JR20: 237 | JS20: 238 | JT20: 239 | JU20: 240 | JV20: 241 | JW20: 242 | JX20: 243 | JY20: 244 | JZ20: 245 | KA20: 246 | KB20: 247 | KC20: 248 | KD20: 249 | KE20: 250 | KF20: 251 | KG20: 252 | KH20: 253 | KI20: 254 | KJ20: 255 | KK20: 256 | KL20: 257 | KM20: 258 | KN20: 259 | KO20: 260 | KP20: 261 | KQ20: 262 | KR20: 263 | KS20: 264 | KT20: 265 | KU20: 266 | KV20: 267 | KW20: 268 | KX20: 269 | KY20: 270 | KZ20: 271 | LA20: 272 | LB20: 273 | LC20: 274 | LD20: 275 | LE20: 276 | LF20: 277 | LG20: 278 | LH20: 279 | LI20: 280 | LJ20: 281 | LK20: 282 | LL20: 283 | LM20: 284 | LN20: 285 | LO20: 286 | LP20: 287 | LQ20: 288 | LR20: 289 | LS20: 290 | LT20: 291 | LU20: 292 | LV20: 293 | LW20: 294 | LX20: 295 | LY20: 296 | LZ20: 297 | MA20: 298 | MB20: =MA20+MB15 -> 299 | MC20: 300 | MD20: 301 | ME20: 302 | MF20: 303 | MG20: 304 | MH20: 305 | MI20: 306 | MJ20: 307 | MK20: 308 | ML20: 309 | MM20: 310 | MN20: 311 | MO20: 312 | MP20: 313 | MQ20: 314 | MR20: 315 | MS20: 316 | MT20: 317 | MU20: 318 | MV20: 319 | MW20: 320 | MX20: 321 | MY20: 322 | MZ20: 323 | NA20: 324 | NB20: 325 | NC20: 326 | ND20: 327 | NE20: 328 | NF20: 329 | NG20: 330 | NH20: 331 | NI20: 332 | NJ20: 333 | NK20: 334 | NL20: 335 | NM20: 336 | NN20: 337 | NO20: 338 | NP20: 339 | NQ20: 340 | NR20: 341 | NS20: 342 | NT20: 343 | NU20: 344 | NV20: 345 | NW20: 346 | NX20: 347 | NY20: 348 | NZ20: 349 | OA20: 350 | OB20: 351 | OC20: 352 | OD20: 353 | OE20: 354 | OF20: 355 | OG20: 356 | OH20: 357 | OI20: 358 | OJ20: 359 | OK20: 360 | OL20: 361 | OM20: 362 | ON20: =OM20+ON15 -> 363 | OO20: 364 | OP20: 365 | OQ20: 366 | OR20: 367 | OS20: 368 | OT20: 369 | OU20: 370 | OV20: 371 | OW20: 372 | OX20: 373 | OY20: 374 | OZ20: 375 | PA20: 376 | PB20: 377 | PC20: 378 | PD20: 379 | PE20: 380 | PF20: 381 | PG20: 382 | PH20: 383 | PI20: 384 | PJ20: 384 | PK20: 384 | PL20: 384 | PM20: 384 | PN20: 384 | PO20: 384 | PP20: 384 | PQ20: 384 | PR20: 384 | PS20: 384 | PT20: 384 | PU20: 384 | PV20: 384 | PW20: 384 | PX20: 384 | PY20: 384 | PZ20: 384 | QA20: 384 | QB20: 384 | QC20: 384 | QD20: 384 | QE20: 384 | QF20: 384 | QG20: 384 | QH20: 384 | QI20: 384 | QJ20: 384 | QK20: 384 | QL20: 384
B21: Age in Years | F21: Years | L21: =ROUNDUP(L20/L5,0) -> 0 | M21: 0 | N21: 0 | O21: 0 | P21: 0 | Q21: 0 | R21: 0 | S21: 0 | T21: 0 | U21: 0 | V21: 0 | W21: 0 | X21: 0 | Y21: 0 | Z21: 0 | AA21: 0 | AB21: 0 | AC21: 0 | AD21: 0 | AE21: 0 | AF21: 0 | AG21: 0 | AH21: 0 | AI21: 0 | AJ21: 0 | AK21: 0 | AL21: 0 | AM21: 0 | AN21: 0 | AO21: 0 | AP21: 1 | AQ21: 1 | AR21: 1 | AS21: 1 | AT21: 1 | AU21: 1 | AV21: 1 | AW21: 1 | AX21: 1 | AY21: 1 | AZ21: 1 | BA21: 1 | BB21: 2 | BC21: 2 | BD21: 2 | BE21: 2 | BF21: 2 | BG21: 2 | BH21: 2 | BI21: 2 | BJ21: 2 | BK21: 2 | BL21: 2 | BM21: 2 | BN21: 3 | BO21: 3 | BP21: 3 | BQ21: 3 | BR21: 3 | BS21: 3 | BT21: 3 | BU21: 3 | BV21: 3 | BW21: 3 | BX21: =ROUNDUP(BX20/BX5,0) -> 3 | BY21: 3 | BZ21: 4 | CA21: 4 | CB21: 4 | CC21: 4 | CD21: 4 | CE21: 4 | CF21: 4 | CG21: 4 | CH21: 4 | CI21: 4 | CJ21: 4 | CK21: 4 | CL21: 5 | CM21: 5 | CN21: 5 | CO21: 5 | CP21: 5 | CQ21: 5 | CR21: 5 | CS21: 5 | CT21: 5 | CU21: 5 | CV21: 5 | CW21: 5 | CX21: 6 | CY21: 6 | CZ21: 6 | DA21: 6 | DB21: 6 | DC21: 6 | DD21: 6 | DE21: 6 | DF21: 6 | DG21: 6 | DH21: 6 | DI21: 6 | DJ21: 7 | DK21: 7 | DL21: 7 | DM21: 7 | DN21: 7 | DO21: 7 | DP21: 7 | DQ21: 7 | DR21: 7 | DS21: 7 | DT21: 7 | DU21: 7 | DV21: 8 | DW21: 8 | DX21: 8 | DY21: 8 | DZ21: 8 | EA21: 8 | EB21: 8 | EC21: 8 | ED21: 8 | EE21: 8 | EF21: 8 | EG21: 8 | EH21: 9 | EI21: 9 | EJ21: =ROUNDUP(EJ20/EJ5,0) -> 9 | EK21: 9 | EL21: 9 | EM21: 9 | EN21: 9 | EO21: 9 | EP21: 9 | EQ21: 9 | ER21: 9 | ES21: 9 | ET21: 10 | EU21: 10 | EV21: 10 | EW21: 10 | EX21: 10 | EY21: 10 | EZ21: 10 | FA21: 10 | FB21: 10 | FC21: 10 | FD21: 10 | FE21: 10 | FF21: 11 | FG21: 11 | FH21: 11 | FI21: 11 | FJ21: 11 | FK21: 11 | FL21: 11 | FM21: 11 | FN21: 11 | FO21: 11 | FP21: 11 | FQ21: 11 | FR21: 12 | FS21: 12 | FT21: 12 | FU21: 12 | FV21: 12 | FW21: 12 | FX21: 12 | FY21: 12 | FZ21: 12 | GA21: 12 | GB21: 12 | GC21: 12 | GD21: 13 | GE21: 13 | GF21: 13 | GG21: 13 | GH21: 13 | GI21: 13 | GJ21: 13 | GK21: 13 | GL21: 13 | GM21: 13 | GN21: 13 | GO21: 13 | GP21: 14 | GQ21: 14 | GR21: 14 | GS21: 14 | GT21: 14 | GU21: 14 | GV21: =ROUNDUP(GV20/GV5,0) -> 14 | GW21: 14 | GX21: 14 | GY21: 14 | GZ21: 14 | HA21: 14 | HB21: 15 | HC21: 15 | HD21: 15 | HE21: 15 | HF21: 15 | HG21: 15 | HH21: 15 | HI21: 15 | HJ21: 15 | HK21: 15 | HL21: 15 | HM21: 15 | HN21: 16 | HO21: 16 | HP21: 16 | HQ21: 16 | HR21: 16 | HS21: 16 | HT21: 16 | HU21: 16 | HV21: 16 | HW21: 16 | HX21: 16 | HY21: 16 | HZ21: 17 | IA21: 17 | IB21: 17 | IC21: 17 | ID21: 17 | IE21: 17 | IF21: 17 | IG21: 17 | IH21: 17 | II21: 17 | IJ21: 17 | IK21: 17 | IL21: 18 | IM21: 18 | IN21: 18 | IO21: 18 | IP21: 18 | IQ21: 18 | IR21: 18 | IS21: 18 | IT21: 18 | IU21: 18 | IV21: 18 | IW21: 18 | IX21: 19 | IY21: 19 | IZ21: 19 | JA21: 19 | JB21: 19 | JC21: 19 | JD21: 19 | JE21: 19 | JF21: 19 | JG21: 19 | JH21: =ROUNDUP(JH20/JH5,0) -> 19 | JI21: 19 | JJ21: 20 | JK21: 20 | JL21: 20 | JM21: 20 | JN21: 20 | JO21: 20 | JP21: 20 | JQ21: 20 | JR21: 20 | JS21: 20 | JT21: 20 | JU21: 20 | JV21: 21 | JW21: 21 | JX21: 21 | JY21: 21 | JZ21: 21 | KA21: 21 | KB21: 21 | KC21: 21 | KD21: 21 | KE21: 21 | KF21: 21 | KG21: 21 | KH21: 22 | KI21: 22 | KJ21: 22 | KK21: 22 | KL21: 22 | KM21: 22 | KN21: 22 | KO21: 22 | KP21: 22 | KQ21: 22 | KR21: 22 | KS21: 22 | KT21: 23 | KU21: 23 | KV21: 23 | KW21: 23 | KX21: 23 | KY21: 23 | KZ21: 23 | LA21: 23 | LB21: 23 | LC21: 23 | LD21: 23 | LE21: 23 | LF21: 24 | LG21: 24 | LH21: 24 | LI21: 24 | LJ21: 24 | LK21: 24 | LL21: 24 | LM21: 24 | LN21: 24 | LO21: 24 | LP21: 24 | LQ21: 24 | LR21: 25 | LS21: 25 | LT21: =ROUNDUP(LT20/LT5,0) -> 25 | LU21: 25 | LV21: 25 | LW21: 25 | LX21: 25 | LY21: 25 | LZ21: 25 | MA21: 25 | MB21: 25 | MC21: 25 | MD21: 26 | ME21: 26 | MF21: 26 | MG21: 26 | MH21: 26 | MI21: 26 | MJ21: 26 | MK21: 26 | ML21: 26 | MM21: 26 | MN21: 26 | MO21: 26 | MP21: 27 | MQ21: 27 | MR21: 27 | MS21: 27 | MT21: 27 | MU21: 27 | MV21: 27 | MW21: 27 | MX21: 27 | MY21: 27 | MZ21: 27 | NA21: 27 | NB21: 28 | NC21: 28 | ND21: 28 | NE21: 28 | NF21: 28 | NG21: 28 | NH21: 28 | NI21: 28 | NJ21: 28 | NK21: 28 | NL21: 28 | NM21: 28 | NN21: 29 | NO21: 29 | NP21: 29 | NQ21: 29 | NR21: 29 | NS21: 29 | NT21: 29 | NU21: 29 | NV21: 29 | NW21: 29 | NX21: 29 | NY21: 29 | NZ21: 30 | OA21: 30 | OB21: 30 | OC21: 30 | OD21: 30 | OE21: 30 | OF21: =ROUNDUP(OF20/OF5,0) -> 30 | OG21: 30 | OH21: 30 | OI21: 30 | OJ21: 30 | OK21: 30 | OL21: 31 | OM21: 31 | ON21: 31 | OO21: 31 | OP21: 31 | OQ21: 31 | OR21: 31 | OS21: 31 | OT21: 31 | OU21: 31 | OV21: 31 | OW21: 31 | OX21: 32 | OY21: 32 | OZ21: 32 | PA21: 32 | PB21: 32 | PC21: 32 | PD21: 32 | PE21: 32 | PF21: 32 | PG21: 32 | PH21: 32 | PI21: 32 | PJ21: 32 | PK21: 32 | PL21: 32 | PM21: 32 | PN21: 32 | PO21: 32 | PP21: 32 | PQ21: 32 | PR21: 32 | PS21: 32 | PT21: 32 | PU21: 32 | PV21: 32 | PW21: 32 | PX21: 32 | PY21: 32 | PZ21: 32 | QA21: 32 | QB21: 32 | QC21: 32 | QD21: 32 | QE21: 32 | QF21: 32 | QG21: 32 | QH21: 32 | QI21: 32 | QJ21: 32 | QK21: 32 | QL21: 32
B22: Hours in Period | F22: Hours | L22: =(L7-L6+1)*24 -> 720 | M22: 744 | N22: 720 | O22: 744 | P22: 744 | Q22: 720 | R22: 744 | S22: 720 | T22: 744 | U22: 744 | V22: 672 | W22: 744 | X22: 720 | Y22: 744 | Z22: 720 | AA22: 744 | AB22: 744 | AC22: 720 | AD22: 744 | AE22: 720 | AF22: 744 | AG22: 744 | AH22: 672 | AI22: 744 | AJ22: 720 | AK22: 744 | AL22: 720 | AM22: 744 | AN22: 744 | AO22: 720 | AP22: 744 | AQ22: 720 | AR22: 744 | AS22: 744 | AT22: 672 | AU22: 744 | AV22: 720 | AW22: 744 | AX22: 720 | AY22: 744 | AZ22: 744 | BA22: 720 | BB22: 744 | BC22: 720 | BD22: 744 | BE22: 744 | BF22: 696 | BG22: 744 | BH22: 720 | BI22: 744 | BJ22: 720 | BK22: 744 | BL22: 744 | BM22: 720 | BN22: 744 | BO22: 720 | BP22: 744 | BQ22: 744 | BR22: 672 | BS22: 744 | BT22: 720 | BU22: 744 | BV22: 720 | BW22: 744 | BX22: =(BX7-BX6+1)*24 -> 744 | BY22: 720 | BZ22: 744 | CA22: 720 | CB22: 744 | CC22: 744 | CD22: 672 | CE22: 744 | CF22: 720 | CG22: 744 | CH22: 720 | CI22: 744 | CJ22: 744 | CK22: 720 | CL22: 744 | CM22: 720 | CN22: 744 | CO22: 744 | CP22: 672 | CQ22: 744 | CR22: 720 | CS22: 744 | CT22: 720 | CU22: 744 | CV22: 744 | CW22: 720 | CX22: 744 | CY22: 720 | CZ22: 744 | DA22: 744 | DB22: 696 | DC22: 744 | DD22: 720 | DE22: 744 | DF22: 720 | DG22: 744 | DH22: 744 | DI22: 720 | DJ22: 744 | DK22: 720 | DL22: 744 | DM22: 744 | DN22: 672 | DO22: 744 | DP22: 720 | DQ22: 744 | DR22: 720 | DS22: 744 | DT22: 744 | DU22: 720 | DV22: 744 | DW22: 720 | DX22: 744 | DY22: 744 | DZ22: 672 | EA22: 744 | EB22: 720 | EC22: 744 | ED22: 720 | EE22: 744 | EF22: 744 | EG22: 720 | EH22: 744 | EI22: 720 | EJ22: =(EJ7-EJ6+1)*24 -> 744 | EK22: 744 | EL22: 672 | EM22: 744 | EN22: 720 | EO22: 744 | EP22: 720 | EQ22: 744 | ER22: 744 | ES22: 720 | ET22: 744 | EU22: 720 | EV22: 744 | EW22: 744 | EX22: 696 | EY22: 744 | EZ22: 720 | FA22: 744 | FB22: 720 | FC22: 744 | FD22: 744 | FE22: 720 | FF22: 744 | FG22: 720 | FH22: 744 | FI22: 744 | FJ22: 672 | FK22: 744 | FL22: 720 | FM22: 744 | FN22: 720 | FO22: 744 | FP22: 744 | FQ22: 720 | FR22: 744 | FS22: 720 | FT22: 744 | FU22: 744 | FV22: 672 | FW22: 744 | FX22: 720 | FY22: 744 | FZ22: 720 | GA22: 744 | GB22: 744 | GC22: 720 | GD22: 744 | GE22: 720 | GF22: 744 | GG22: 744 | GH22: 672 | GI22: 744 | GJ22: 720 | GK22: 744 | GL22: 720 | GM22: 744 | GN22: 744 | GO22: 720 | GP22: 744 | GQ22: 720 | GR22: 744 | GS22: 744 | GT22: 696 | GU22: 744 | GV22: =(GV7-GV6+1)*24 -> 720 | GW22: 744 | GX22: 720 | GY22: 744 | GZ22: 744 | HA22: 720 | HB22: 744 | HC22: 720 | HD22: 744 | HE22: 744 | HF22: 672 | HG22: 744 | HH22: 720 | HI22: 744 | HJ22: 720 | HK22: 744 | HL22: 744 | HM22: 720 | HN22: 744 | HO22: 720 | HP22: 744 | HQ22: 744 | HR22: 672 | HS22: 744 | HT22: 720 | HU22: 744 | HV22: 720 | HW22: 744 | HX22: 744 | HY22: 720 | HZ22: 744 | IA22: 720 | IB22: 744 | IC22: 744 | ID22: 672 | IE22: 744 | IF22: 720 | IG22: 744 | IH22: 720 | II22: 744 | IJ22: 744 | IK22: 720 | IL22: 744 | IM22: 720 | IN22: 744 | IO22: 744 | IP22: 696 | IQ22: 744 | IR22: 720 | IS22: 744 | IT22: 720 | IU22: 744 | IV22: 744 | IW22: 720 | IX22: 744 | IY22: 720 | IZ22: 744 | JA22: 744 | JB22: 672 | JC22: 744 | JD22: 720 | JE22: 744 | JF22: 720 | JG22: 744 | JH22: =(JH7-JH6+1)*24 -> 744 | JI22: 720 | JJ22: 744 | JK22: 720 | JL22: 744 | JM22: 744 | JN22: 672 | JO22: 744 | JP22: 720 | JQ22: 744 | JR22: 720 | JS22: 744 | JT22: 744 | JU22: 720 | JV22: 744 | JW22: 720 | JX22: 744 | JY22: 744 | JZ22: 672 | KA22: 744 | KB22: 720 | KC22: 744 | KD22: 720 | KE22: 744 | KF22: 744 | KG22: 720 | KH22: 744 | KI22: 720 | KJ22: 744 | KK22: 744 | KL22: 696 | KM22: 744 | KN22: 720 | KO22: 744 | KP22: 720 | KQ22: 744 | KR22: 744 | KS22: 720 | KT22: 744 | KU22: 720 | KV22: 744 | KW22: 744 | KX22: 672 | KY22: 744 | KZ22: 720 | LA22: 744 | LB22: 720 | LC22: 744 | LD22: 744 | LE22: 720 | LF22: 744 | LG22: 720 | LH22: 744 | LI22: 744 | LJ22: 672 | LK22: 744 | LL22: 720 | LM22: 744 | LN22: 720 | LO22: 744 | LP22: 744 | LQ22: 720 | LR22: 744 | LS22: 720 | LT22: =(LT7-LT6+1)*24 -> 744 | LU22: 744 | LV22: 672 | LW22: 744 | LX22: 720 | LY22: 744 | LZ22: 720 | MA22: 744 | MB22: 744 | MC22: 720 | MD22: 744 | ME22: 720 | MF22: 744 | MG22: 744 | MH22: 696 | MI22: 744 | MJ22: 720 | MK22: 744 | ML22: 720 | MM22: 744 | MN22: 744 | MO22: 720 | MP22: 744 | MQ22: 720 | MR22: 744 | MS22: 744 | MT22: 672 | MU22: 744 | MV22: 720 | MW22: 744 | MX22: 720 | MY22: 744 | MZ22: 744 | NA22: 720 | NB22: 744 | NC22: 720 | ND22: 744 | NE22: 744 | NF22: 672 | NG22: 744 | NH22: 720 | NI22: 744 | NJ22: 720 | NK22: 744 | NL22: 744 | NM22: 720 | NN22: 744 | NO22: 720 | NP22: 744 | NQ22: 744 | NR22: 672 | NS22: 744 | NT22: 720 | NU22: 744 | NV22: 720 | NW22: 744 | NX22: 744 | NY22: 720 | NZ22: 744 | OA22: 720 | OB22: 744 | OC22: 744 | OD22: 696 | OE22: 744 | OF22: =(OF7-OF6+1)*24 -> 720 | OG22: 744 | OH22: 720 | OI22: 744 | OJ22: 744 | OK22: 720 | OL22: 744 | OM22: 720 | ON22: 744 | OO22: 744 | OP22: 672 | OQ22: 744 | OR22: 720 | OS22: 744 | OT22: 720 | OU22: 744 | OV22: 744 | OW22: 720 | OX22: 744 | OY22: 720 | OZ22: 744 | PA22: 744 | PB22: 672 | PC22: 744 | PD22: 720 | PE22: 744 | PF22: 720 | PG22: 744 | PH22: 744 | PI22: 720 | PJ22: 744 | PK22: 720 | PL22: 744 | PM22: 744 | PN22: 672 | PO22: 744 | PP22: 720 | PQ22: 744 | PR22: 720 | PS22: 744 | PT22: 744 | PU22: 720 | PV22: 744 | PW22: 720 | PX22: 744 | PY22: 744 | PZ22: 696 | QA22: 744 | QB22: 720 | QC22: 744 | QD22: 720 | QE22: 744 | QF22: 744 | QG22: 720 | QH22: 744 | QI22: 720 | QJ22: 744 | QK22: 744 | QL22: 672
B24: Economic Capacity Factor | L24: =LOOKUP(L21,Assumptions!21:21,Assumptions!26:26) -> 0 | M24: =LOOKUP(M21,Assumptions!21:21,Assumptions!26:26) -> 0 | N24: =LOOKUP(N21,Assumptions!21:21,Assumptions!26:26) -> 0 | O24: =LOOKUP(O21,Assumptions!21:21,Assumptions!26:26) -> 0 | P24: =LOOKUP(P21,Assumptions!21:21,Assumptions!26:26) -> 0 | Q24: =LOOKUP(Q21,Assumptions!21:21,Assumptions!26:26) -> 0 | R24: =LOOKUP(R21,Assumptions!21:21,Assumptions!26:26) -> 0 | S24: =LOOKUP(S21,Assumptions!21:21,Assumptions!26:26) -> 0 | T24: =LOOKUP(T21,Assumptions!21:21,Assumptions!26:26) -> 0 | U24: =LOOKUP(U21,Assumptions!21:21,Assumptions!26:26) -> 0 | V24: =LOOKUP(V21,Assumptions!21:21,Assumptions!26:26) -> 0 | W24: =LOOKUP(W21,Assumptions!21:21,Assumptions!26:26) -> 0 | X24: =LOOKUP(X21,Assumptions!21:21,Assumptions!26:26) -> 0 | Y24: =LOOKUP(Y21,Assumptions!21:21,Assumptions!26:26) -> 0 | Z24: =LOOKUP(Z21,Assumptions!21:21,Assumptions!26:26) -> 0 | AA24: =LOOKUP(AA21,Assumptions!21:21,Assumptions!26:26) -> 0 | AB24: =LOOKUP(AB21,Assumptions!21:21,Assumptions!26:26) -> 0 | AC24: =LOOKUP(AC21,Assumptions!21:21,Assumptions!26:26) -> 0 | AD24: =LOOKUP(AD21,Assumptions!21:21,Assumptions!26:26) -> 0 | AE24: =LOOKUP(AE21,Assumptions!21:21,Assumptions!26:26) -> 0 | AF24: =LOOKUP(AF21,Assumptions!21:21,Assumptions!26:26) -> 0 | AG24: =LOOKUP(AG21,Assumptions!21:21,Assumptions!26:26) -> 0 | AH24: =LOOKUP(AH21,Assumptions!21:21,Assumptions!26:26) -> 0 | AI24: =LOOKUP(AI21,Assumptions!21:21,Assumptions!26:26) -> 0 | AJ24: =LOOKUP(AJ21,Assumptions!21:21,Assumptions!26:26) -> 0 | AK24: =LOOKUP(AK21,Assumptions!21:21,Assumptions!26:26) -> 0 | AL24: =LOOKUP(AL21,Assumptions!21:21,Assumptions!26:26) -> 0 | AM24: =LOOKUP(AM21,Assumptions!21:21,Assumptions!26:26) -> 0 | AN24: =LOOKUP(AN21,Assumptions!21:21,Assumptions!26:26) -> 0 | AO24: =LOOKUP(AO21,Assumptions!21:21,Assumptions!26:26) -> 0 | AP24: =LOOKUP(AP21,Assumptions!21:21,Assumptions!26:26) -> 0.58 | AQ24: =LOOKUP(AQ21,Assumptions!21:21,Assumptions!26:26) -> 0.58 | AR24: =LOOKUP(AR21,Assumptions!21:21,Assumptions!26:26) -> 0.58 | AS24: =LOOKUP(AS21,Assumptions!21:21,Assumptions!26:26) -> 0.58 | AT24: =LOOKUP(AT21,Assumptions!21:21,Assumptions!26:26) -> 0.58 | AU24: =LOOKUP(AU21,Assumptions!21:21,Assumptions!26:26) -> 0.58 | AV24: =LOOKUP(AV21,Assumptions!21:21,Assumptions!26:26) -> 0.58 | AW24: =LOOKUP(AW21,Assumptions!21:21,Assumptions!26:26) -> 0.58 | AX24: =LOOKUP(AX21,Assumptions!21:21,Assumptions!26:26) -> 0.58 | AY24: =LOOKUP(AY21,Assumptions!21:21,Assumptions!26:26) -> 0.58 | AZ24: =LOOKUP(AZ21,Assumptions!21:21,Assumptions!26:26) -> 0.58 | BA24: =LOOKUP(BA21,Assumptions!21:21,Assumptions!26:26) -> 0.58 | BB24: =LOOKUP(BB21,Assumptions!21:21,Assumptions!26:26) -> 0.58 | BC24: =LOOKUP(BC21,Assumptions!21:21,Assumptions!26:26) -> 0.58 | BD24: =LOOKUP(BD21,Assumptions!21:21,Assumptions!26:26) -> 0.58 | BE24: =LOOKUP(BE21,Assumptions!21:21,Assumptions!26:26) -> 0.58 | BF24: =LOOKUP(BF21,Assumptions!21:21,Assumptions!26:26) -> 0.58 | BG24: =LOOKUP(BG21,Assumptions!21:21,Assumptions!26:26) -> 0.58 | BH24: =LOOKUP(BH21,Assumptions!21:21,Assumptions!26:26) -> 0.58 | BI24: =LOOKUP(BI21,Assumptions!21:21,Assumptions!26:26) -> 0.58 | BJ24: =LOOKUP(BJ21,Assumptions!21:21,Assumptions!26:26) -> 0.58 | BK24: =LOOKUP(BK21,Assumptions!21:21,Assumptions!26:26) -> 0.58 | BL24: =LOOKUP(BL21,Assumptions!21:21,Assumptions!26:26) -> 0.58 | BM24: =LOOKUP(BM21,Assumptions!21:21,Assumptions!26:26) -> 0.58 | BN24: =LOOKUP(BN21,Assumptions!21:21,Assumptions!26:26) -> 0.58 | BO24: =LOOKUP(BO21,Assumptions!21:21,Assumptions!26:26) -> 0.58 | BP24: =LOOKUP(BP21,Assumptions!21:21,Assumptions!26:26) -> 0.58 | BQ24: =LOOKUP(BQ21,Assumptions!21:21,Assumptions!26:26) -> 0.58 | BR24: =LOOKUP(BR21,Assumptions!21:21,Assumptions!26:26) -> 0.58 | BS24: =LOOKUP(BS21,Assumptions!21:21,Assumptions!26:26) -> 0.58 | BT24: =LOOKUP(BT21,Assumptions!21:21,Assumptions!26:26) -> 0.58 | BU24: =LOOKUP(BU21,Assumptions!21:21,Assumptions!26:26) -> 0.58 | BV24: =LOOKUP(BV21,Assumptions!21:21,Assumptions!26:26) -> 0.58 | BW24: =LOOKUP(BW21,Assumptions!21:21,Assumptions!26:26) -> 0.58 | BX24: =LOOKUP(BX21,Assumptions!21:21,Assumptions!26:26) -> 0.58 | BY24: =LOOKUP(BY21,Assumptions!21:21,Assumptions!26:26) -> 0.58 | BZ24: =LOOKUP(BZ21,Assumptions!21:21,Assumptions!26:26) -> 0.58 | CA24: =LOOKUP(CA21,Assumptions!21:21,Assumptions!26:26) -> 0.58 | CB24: =LOOKUP(CB21,Assumptions!21:21,Assumptions!26:26) -> 0.58 | CC24: =LOOKUP(CC21,Assumptions!21:21,Assumptions!26:26) -> 0.58 | CD24: =LOOKUP(CD21,Assumptions!21:21,Assumptions!26:26) -> 0.58 | CE24: =LOOKUP(CE21,Assumptions!21:21,Assumptions!26:26) -> 0.58 | CF24: =LOOKUP(CF21,Assumptions!21:21,Assumptions!26:26) -> 0.58 | CG24: =LOOKUP(CG21,Assumptions!21:21,Assumptions!26:26) -> 0.58 | CH24: =LOOKUP(CH21,Assumptions!21:21,Assumptions!26:26) -> 0.58 | CI24: =LOOKUP(CI21,Assumptions!21:21,Assumptions!26:26) -> 0.58 | CJ24: =LOOKUP(CJ21,Assumptions!21:21,Assumptions!26:26) -> 0.58 | CK24: =LOOKUP(CK21,Assumptions!21:21,Assumptions!26:26) -> 0.58 | CL24: =LOOKUP(CL21,Assumptions!21:21,Assumptions!26:26) -> 0.55 | CM24: =LOOKUP(CM21,Assumptions!21:21,Assumptions!26:26) -> 0.55 | CN24: =LOOKUP(CN21,Assumptions!21:21,Assumptions!26:26) -> 0.55 | CO24: =LOOKUP(CO21,Assumptions!21:21,Assumptions!26:26) -> 0.55 | CP24: =LOOKUP(CP21,Assumptions!21:21,Assumptions!26:26) -> 0.55 | CQ24: =LOOKUP(CQ21,Assumptions!21:21,Assumptions!26:26) -> 0.55 | CR24: =LOOKUP(CR21,Assumptions!21:21,Assumptions!26:26) -> 0.55 | CS24: =LOOKUP(CS21,Assumptions!21:21,Assumptions!26:26) -> 0.55 | CT24: =LOOKUP(CT21,Assumptions!21:21,Assumptions!26:26) -> 0.55 | CU24: =LOOKUP(CU21,Assumptions!21:21,Assumptions!26:26) -> 0.55 | CV24: =LOOKUP(CV21,Assumptions!21:21,Assumptions!26:26) -> 0.55 | CW24: =LOOKUP(CW21,Assumptions!21:21,Assumptions!26:26) -> 0.55 | CX24: =LOOKUP(CX21,Assumptions!21:21,Assumptions!26:26) -> 0.55 | CY24: =LOOKUP(CY21,Assumptions!21:21,Assumptions!26:26) -> 0.55 | CZ24: =LOOKUP(CZ21,Assumptions!21:21,Assumptions!26:26) -> 0.55 | DA24: =LOOKUP(DA21,Assumptions!21:21,Assumptions!26:26) -> 0.55 | DB24: =LOOKUP(DB21,Assumptions!21:21,Assumptions!26:26) -> 0.55 | DC24: =LOOKUP(DC21,Assumptions!21:21,Assumptions!26:26) -> 0.55 | DD24: =LOOKUP(DD21,Assumptions!21:21,Assumptions!26:26) -> 0.55 | DE24: =LOOKUP(DE21,Assumptions!21:21,Assumptions!26:26) -> 0.55 | DF24: =LOOKUP(DF21,Assumptions!21:21,Assumptions!26:26) -> 0.55 | DG24: =LOOKUP(DG21,Assumptions!21:21,Assumptions!26:26) -> 0.55 | DH24: =LOOKUP(DH21,Assumptions!21:21,Assumptions!26:26) -> 0.55 | DI24: =LOOKUP(DI21,Assumptions!21:21,Assumptions!26:26) -> 0.55 | DJ24: =LOOKUP(DJ21,Assumptions!21:21,Assumptions!26:26) -> 0.55 | DK24: =LOOKUP(DK21,Assumptions!21:21,Assumptions!26:26) -> 0.55 | DL24: =LOOKUP(DL21,Assumptions!21:21,Assumptions!26:26) -> 0.55 | DM24: =LOOKUP(DM21,Assumptions!21:21,Assumptions!26:26) -> 0.55 | DN24: =LOOKUP(DN21,Assumptions!21:21,Assumptions!26:26) -> 0.55 | DO24: =LOOKUP(DO21,Assumptions!21:21,Assumptions!26:26) -> 0.55 | DP24: =LOOKUP(DP21,Assumptions!21:21,Assumptions!26:26) -> 0.55 | DQ24: =LOOKUP(DQ21,Assumptions!21:21,Assumptions!26:26) -> 0.55 | DR24: =LOOKUP(DR21,Assumptions!21:21,Assumptions!26:26) -> 0.55 | DS24: =LOOKUP(DS21,Assumptions!21:21,Assumptions!26:26) -> 0.55 | DT24: =LOOKUP(DT21,Assumptions!21:21,Assumptions!26:26) -> 0.55 | DU24: =LOOKUP(DU21,Assumptions!21:21,Assumptions!26:26) -> 0.55 | DV24: =LOOKUP(DV21,Assumptions!21:21,Assumptions!26:26) -> 0.55 | DW24: =LOOKUP(DW21,Assumptions!21:21,Assumptions!26:26) -> 0.55 | DX24: =LOOKUP(DX21,Assumptions!21:21,Assumptions!26:26) -> 0.55 | DY24: =LOOKUP(DY21,Assumptions!21:21,Assumptions!26:26) -> 0.55 | DZ24: =LOOKUP(DZ21,Assumptions!21:21,Assumptions!26:26) -> 0.55 | EA24: =LOOKUP(EA21,Assumptions!21:21,Assumptions!26:26) -> 0.55 | EB24: =LOOKUP(EB21,Assumptions!21:21,Assumptions!26:26) -> 0.55 | EC24: =LOOKUP(EC21,Assumptions!21:21,Assumptions!26:26) -> 0.55 | ED24: =LOOKUP(ED21,Assumptions!21:21,Assumptions!26:26) -> 0.55 | EE24: =LOOKUP(EE21,Assumptions!21:21,Assumptions!26:26) -> 0.55 | EF24: =LOOKUP(EF21,Assumptions!21:21,Assumptions!26:26) -> 0.55 | EG24: =LOOKUP(EG21,Assumptions!21:21,Assumptions!26:26) -> 0.55 | EH24: =LOOKUP(EH21,Assumptions!21:21,Assumptions!26:26) -> 0.55 | EI24: =LOOKUP(EI21,Assumptions!21:21,Assumptions!26:26) -> 0.55 | EJ24: =LOOKUP(EJ21,Assumptions!21:21,Assumptions!26:26) -> 0.55 | EK24: =LOOKUP(EK21,Assumptions!21:21,Assumptions!26:26) -> 0.55 | EL24: =LOOKUP(EL21,Assumptions!21:21,Assumptions!26:26) -> 0.55 | EM24: =LOOKUP(EM21,Assumptions!21:21,Assumptions!26:26) -> 0.55 | EN24: =LOOKUP(EN21,Assumptions!21:21,Assumptions!26:26) -> 0.55 | EO24: =LOOKUP(EO21,Assumptions!21:21,Assumptions!26:26) -> 0.55 | EP24: =LOOKUP(EP21,Assumptions!21:21,Assumptions!26:26) -> 0.55 | EQ24: =LOOKUP(EQ21,Assumptions!21:21,Assumptions!26:26) -> 0.55 | ER24: =LOOKUP(ER21,Assumptions!21:21,Assumptions!26:26) -> 0.55 | ES24: =LOOKUP(ES21,Assumptions!21:21,Assumptions!26:26) -> 0.55 | ET24: =LOOKUP(ET21,Assumptions!21:21,Assumptions!26:26) -> 0.5 | EU24: =LOOKUP(EU21,Assumptions!21:21,Assumptions!26:26) -> 0.5 | EV24: =LOOKUP(EV21,Assumptions!21:21,Assumptions!26:26) -> 0.5 | EW24: =LOOKUP(EW21,Assumptions!21:21,Assumptions!26:26) -> 0.5 | EX24: =LOOKUP(EX21,Assumptions!21:21,Assumptions!26:26) -> 0.5 | EY24: =LOOKUP(EY21,Assumptions!21:21,Assumptions!26:26) -> 0.5 | EZ24: =LOOKUP(EZ21,Assumptions!21:21,Assumptions!26:26) -> 0.5 | FA24: =LOOKUP(FA21,Assumptions!21:21,Assumptions!26:26) -> 0.5 | FB24: =LOOKUP(FB21,Assumptions!21:21,Assumptions!26:26) -> 0.5 | FC24: =LOOKUP(FC21,Assumptions!21:21,Assumptions!26:26) -> 0.5 | FD24: =LOOKUP(FD21,Assumptions!21:21,Assumptions!26:26) -> 0.5 | FE24: =LOOKUP(FE21,Assumptions!21:21,Assumptions!26:26) -> 0.5 | FF24: =LOOKUP(FF21,Assumptions!21:21,Assumptions!26:26) -> 0.5 | FG24: =LOOKUP(FG21,Assumptions!21:21,Assumptions!26:26) -> 0.5 | FH24: =LOOKUP(FH21,Assumptions!21:21,Assumptions!26:26) -> 0.5 | FI24: =LOOKUP(FI21,Assumptions!21:21,Assumptions!26:26) -> 0.5 | FJ24: =LOOKUP(FJ21,Assumptions!21:21,Assumptions!26:26) -> 0.5 | FK24: =LOOKUP(FK21,Assumptions!21:21,Assumptions!26:26) -> 0.5 | FL24: =LOOKUP(FL21,Assumptions!21:21,Assumptions!26:26) -> 0.5 | FM24: =LOOKUP(FM21,Assumptions!21:21,Assumptions!26:26) -> 0.5 | FN24: =LOOKUP(FN21,Assumptions!21:21,Assumptions!26:26) -> 0.5 | FO24: =LOOKUP(FO21,Assumptions!21:21,Assumptions!26:26) -> 0.5 | FP24: =LOOKUP(FP21,Assumptions!21:21,Assumptions!26:26) -> 0.5 | FQ24: =LOOKUP(FQ21,Assumptions!21:21,Assumptions!26:26) -> 0.5 | FR24: =LOOKUP(FR21,Assumptions!21:21,Assumptions!26:26) -> 0.5 | FS24: =LOOKUP(FS21,Assumptions!21:21,Assumptions!26:26) -> 0.5 | FT24: =LOOKUP(FT21,Assumptions!21:21,Assumptions!26:26) -> 0.5 | FU24: =LOOKUP(FU21,Assumptions!21:21,Assumptions!26:26) -> 0.5 | FV24: =LOOKUP(FV21,Assumptions!21:21,Assumptions!26:26) -> 0.5 | FW24: =LOOKUP(FW21,Assumptions!21:21,Assumptions!26:26) -> 0.5 | FX24: =LOOKUP(FX21,Assumptions!21:21,Assumptions!26:26) -> 0.5 | FY24: =LOOKUP(FY21,Assumptions!21:21,Assumptions!26:26) -> 0.5 | FZ24: =LOOKUP(FZ21,Assumptions!21:21,Assumptions!26:26) -> 0.5 | GA24: =LOOKUP(GA21,Assumptions!21:21,Assumptions!26:26) -> 0.5 | GB24: =LOOKUP(GB21,Assumptions!21:21,Assumptions!26:26) -> 0.5 | GC24: =LOOKUP(GC21,Assumptions!21:21,Assumptions!26:26) -> 0.5 | GD24: =LOOKUP(GD21,Assumptions!21:21,Assumptions!26:26) -> 0.5 | GE24: =LOOKUP(GE21,Assumptions!21:21,Assumptions!26:26) -> 0.5 | GF24: =LOOKUP(GF21,Assumptions!21:21,Assumptions!26:26) -> 0.5 | GG24: =LOOKUP(GG21,Assumptions!21:21,Assumptions!26:26) -> 0.5 | GH24: =LOOKUP(GH21,Assumptions!21:21,Assumptions!26:26) -> 0.5 | GI24: =LOOKUP(GI21,Assumptions!21:21,Assumptions!26:26) -> 0.5 | GJ24: =LOOKUP(GJ21,Assumptions!21:21,Assumptions!26:26) -> 0.5 | GK24: =LOOKUP(GK21,Assumptions!21:21,Assumptions!26:26) -> 0.5 | GL24: =LOOKUP(GL21,Assumptions!21:21,Assumptions!26:26) -> 0.5 | GM24: =LOOKUP(GM21,Assumptions!21:21,Assumptions!26:26) -> 0.5 | GN24: =LOOKUP(GN21,Assumptions!21:21,Assumptions!26:26) -> 0.5 | GO24: =LOOKUP(GO21,Assumptions!21:21,Assumptions!26:26) -> 0.5 | GP24: =LOOKUP(GP21,Assumptions!21:21,Assumptions!26:26) -> 0.5 | GQ24: =LOOKUP(GQ21,Assumptions!21:21,Assumptions!26:26) -> 0.5 | GR24: =LOOKUP(GR21,Assumptions!21:21,Assumptions!26:26) -> 0.5 | GS24: =LOOKUP(GS21,Assumptions!21:21,Assumptions!26:26) -> 0.5 | GT24: =LOOKUP(GT21,Assumptions!21:21,Assumptions!26:26) -> 0.5 | GU24: =LOOKUP(GU21,Assumptions!21:21,Assumptions!26:26) -> 0.5 | GV24: =LOOKUP(GV21,Assumptions!21:21,Assumptions!26:26) -> 0.5 | GW24: =LOOKUP(GW21,Assumptions!21:21,Assumptions!26:26) -> 0.5 | GX24: =LOOKUP(GX21,Assumptions!21:21,Assumptions!26:26) -> 0.5 | GY24: =LOOKUP(GY21,Assumptions!21:21,Assumptions!26:26) -> 0.5 | GZ24: =LOOKUP(GZ21,Assumptions!21:21,Assumptions!26:26) -> 0.5 | HA24: =LOOKUP(HA21,Assumptions!21:21,Assumptions!26:26) -> 0.5 | HB24: =LOOKUP(HB21,Assumptions!21:21,Assumptions!26:26) -> 0.5 | HC24: =LOOKUP(HC21,Assumptions!21:21,Assumptions!26:26) -> 0.5 | HD24: =LOOKUP(HD21,Assumptions!21:21,Assumptions!26:26) -> 0.5 | HE24: =LOOKUP(HE21,Assumptions!21:21,Assumptions!26:26) -> 0.5 | HF24: =LOOKUP(HF21,Assumptions!21:21,Assumptions!26:26) -> 0.5 | HG24: =LOOKUP(HG21,Assumptions!21:21,Assumptions!26:26) -> 0.5 | HH24: =LOOKUP(HH21,Assumptions!21:21,Assumptions!26:26) -> 0.5 | HI24: =LOOKUP(HI21,Assumptions!21:21,Assumptions!26:26) -> 0.5 | HJ24: =LOOKUP(HJ21,Assumptions!21:21,Assumptions!26:26) -> 0.5 | HK24: =LOOKUP(HK21,Assumptions!21:21,Assumptions!26:26) -> 0.5 | HL24: =LOOKUP(HL21,Assumptions!21:21,Assumptions!26:26) -> 0.5 | HM24: =LOOKUP(HM21,Assumptions!21:21,Assumptions!26:26) -> 0.5 | HN24: =LOOKUP(HN21,Assumptions!21:21,Assumptions!26:26) -> 0.5 | HO24: =LOOKUP(HO21,Assumptions!21:21,Assumptions!26:26) -> 0.5 | HP24: =LOOKUP(HP21,Assumptions!21:21,Assumptions!26:26) -> 0.5 | HQ24: =LOOKUP(HQ21,Assumptions!21:21,Assumptions!26:26) -> 0.5 | HR24: =LOOKUP(HR21,Assumptions!21:21,Assumptions!26:26) -> 0.5 | HS24: =LOOKUP(HS21,Assumptions!21:21,Assumptions!26:26) -> 0.5 | HT24: =LOOKUP(HT21,Assumptions!21:21,Assumptions!26:26) -> 0.5 | HU24: =LOOKUP(HU21,Assumptions!21:21,Assumptions!26:26) -> 0.5 | HV24: =LOOKUP(HV21,Assumptions!21:21,Assumptions!26:26) -> 0.5 | HW24: =LOOKUP(HW21,Assumptions!21:21,Assumptions!26:26) -> 0.5 | HX24: =LOOKUP(HX21,Assumptions!21:21,Assumptions!26:26) -> 0.5 | HY24: =LOOKUP(HY21,Assumptions!21:21,Assumptions!26:26) -> 0.5 | HZ24: =LOOKUP(HZ21,Assumptions!21:21,Assumptions!26:26) -> 0.5 | IA24: =LOOKUP(IA21,Assumptions!21:21,Assumptions!26:26) -> 0.5 | IB24: =LOOKUP(IB21,Assumptions!21:21,Assumptions!26:26) -> 0.5 | IC24: =LOOKUP(IC21,Assumptions!21:21,Assumptions!26:26) -> 0.5 | ID24: =LOOKUP(ID21,Assumptions!21:21,Assumptions!26:26) -> 0.5 | IE24: =LOOKUP(IE21,Assumptions!21:21,Assumptions!26:26) -> 0.5 | IF24: =LOOKUP(IF21,Assumptions!21:21,Assumptions!26:26) -> 0.5 | IG24: =LOOKUP(IG21,Assumptions!21:21,Assumptions!26:26) -> 0.5 | IH24: =LOOKUP(IH21,Assumptions!21:21,Assumptions!26:26) -> 0.5 | II24: =LOOKUP(II21,Assumptions!21:21,Assumptions!26:26) -> 0.5 | IJ24: =LOOKUP(IJ21,Assumptions!21:21,Assumptions!26:26) -> 0.5 | IK24: =LOOKUP(IK21,Assumptions!21:21,Assumptions!26:26) -> 0.5 | IL24: =LOOKUP(IL21,Assumptions!21:21,Assumptions!26:26) -> 0.5 | IM24: =LOOKUP(IM21,Assumptions!21:21,Assumptions!26:26) -> 0.5 | IN24: =LOOKUP(IN21,Assumptions!21:21,Assumptions!26:26) -> 0.5 | IO24: =LOOKUP(IO21,Assumptions!21:21,Assumptions!26:26) -> 0.5 | IP24: =LOOKUP(IP21,Assumptions!21:21,Assumptions!26:26) -> 0.5 | IQ24: =LOOKUP(IQ21,Assumptions!21:21,Assumptions!26:26) -> 0.5 | IR24: =LOOKUP(IR21,Assumptions!21:21,Assumptions!26:26) -> 0.5 | IS24: =LOOKUP(IS21,Assumptions!21:21,Assumptions!26:26) -> 0.5 | IT24: =LOOKUP(IT21,Assumptions!21:21,Assumptions!26:26) -> 0.5 | IU24: =LOOKUP(IU21,Assumptions!21:21,Assumptions!26:26) -> 0.5 | IV24: =LOOKUP(IV21,Assumptions!21:21,Assumptions!26:26) -> 0.5 | IW24: =LOOKUP(IW21,Assumptions!21:21,Assumptions!26:26) -> 0.5 | IX24: =LOOKUP(IX21,Assumptions!21:21,Assumptions!26:26) -> 0.5 | IY24: =LOOKUP(IY21,Assumptions!21:21,Assumptions!26:26) -> 0.5 | IZ24: =LOOKUP(IZ21,Assumptions!21:21,Assumptions!26:26) -> 0.5 | JA24: =LOOKUP(JA21,Assumptions!21:21,Assumptions!26:26) -> 0.5 | JB24: =LOOKUP(JB21,Assumptions!21:21,Assumptions!26:26) -> 0.5 | JC24: =LOOKUP(JC21,Assumptions!21:21,Assumptions!26:26) -> 0.5 | JD24: =LOOKUP(JD21,Assumptions!21:21,Assumptions!26:26) -> 0.5 | JE24: =LOOKUP(JE21,Assumptions!21:21,Assumptions!26:26) -> 0.5 | JF24: =LOOKUP(JF21,Assumptions!21:21,Assumptions!26:26) -> 0.5 | JG24: =LOOKUP(JG21,Assumptions!21:21,Assumptions!26:26) -> 0.5 | JH24: =LOOKUP(JH21,Assumptions!21:21,Assumptions!26:26) -> 0.5 | JI24: =LOOKUP(JI21,Assumptions!21:21,Assumptions!26:26) -> 0.5 | JJ24: =LOOKUP(JJ21,Assumptions!21:21,Assumptions!26:26) -> 0.52 | JK24: =LOOKUP(JK21,Assumptions!21:21,Assumptions!26:26) -> 0.52 | JL24: =LOOKUP(JL21,Assumptions!21:21,Assumptions!26:26) -> 0.52 | JM24: =LOOKUP(JM21,Assumptions!21:21,Assumptions!26:26) -> 0.52 | JN24: =LOOKUP(JN21,Assumptions!21:21,Assumptions!26:26) -> 0.52 | JO24: =LOOKUP(JO21,Assumptions!21:21,Assumptions!26:26) -> 0.52 | JP24: =LOOKUP(JP21,Assumptions!21:21,Assumptions!26:26) -> 0.52 | JQ24: =LOOKUP(JQ21,Assumptions!21:21,Assumptions!26:26) -> 0.52 | JR24: =LOOKUP(JR21,Assumptions!21:21,Assumptions!26:26) -> 0.52 | JS24: =LOOKUP(JS21,Assumptions!21:21,Assumptions!26:26) -> 0.52 | JT24: =LOOKUP(JT21,Assumptions!21:21,Assumptions!26:26) -> 0.52 | JU24: =LOOKUP(JU21,Assumptions!21:21,Assumptions!26:26) -> 0.52 | JV24: =LOOKUP(JV21,Assumptions!21:21,Assumptions!26:26) -> 0.52 | JW24: =LOOKUP(JW21,Assumptions!21:21,Assumptions!26:26) -> 0.52 | JX24: =LOOKUP(JX21,Assumptions!21:21,Assumptions!26:26) -> 0.52 | JY24: =LOOKUP(JY21,Assumptions!21:21,Assumptions!26:26) -> 0.52 | JZ24: =LOOKUP(JZ21,Assumptions!21:21,Assumptions!26:26) -> 0.52 | KA24: =LOOKUP(KA21,Assumptions!21:21,Assumptions!26:26) -> 0.52 | KB24: =LOOKUP(KB21,Assumptions!21:21,Assumptions!26:26) -> 0.52 | KC24: =LOOKUP(KC21,Assumptions!21:21,Assumptions!26:26) -> 0.52 | KD24: =LOOKUP(KD21,Assumptions!21:21,Assumptions!26:26) -> 0.52 | KE24: =LOOKUP(KE21,Assumptions!21:21,Assumptions!26:26) -> 0.52 | KF24: =LOOKUP(KF21,Assumptions!21:21,Assumptions!26:26) -> 0.52 | KG24: =LOOKUP(KG21,Assumptions!21:21,Assumptions!26:26) -> 0.52 | KH24: =LOOKUP(KH21,Assumptions!21:21,Assumptions!26:26) -> 0.52 | KI24: =LOOKUP(KI21,Assumptions!21:21,Assumptions!26:26) -> 0.52 | KJ24: =LOOKUP(KJ21,Assumptions!21:21,Assumptions!26:26) -> 0.52 | KK24: =LOOKUP(KK21,Assumptions!21:21,Assumptions!26:26) -> 0.52 | KL24: =LOOKUP(KL21,Assumptions!21:21,Assumptions!26:26) -> 0.52 | KM24: =LOOKUP(KM21,Assumptions!21:21,Assumptions!26:26) -> 0.52 | KN24: =LOOKUP(KN21,Assumptions!21:21,Assumptions!26:26) -> 0.52 | KO24: =LOOKUP(KO21,Assumptions!21:21,Assumptions!26:26) -> 0.52 | KP24: =LOOKUP(KP21,Assumptions!21:21,Assumptions!26:26) -> 0.52 | KQ24: =LOOKUP(KQ21,Assumptions!21:21,Assumptions!26:26) -> 0.52 | KR24: =LOOKUP(KR21,Assumptions!21:21,Assumptions!26:26) -> 0.52 | KS24: =LOOKUP(KS21,Assumptions!21:21,Assumptions!26:26) -> 0.52 | KT24: =LOOKUP(KT21,Assumptions!21:21,Assumptions!26:26) -> 0.52 | KU24: =LOOKUP(KU21,Assumptions!21:21,Assumptions!26:26) -> 0.52 | KV24: =LOOKUP(KV21,Assumptions!21:21,Assumptions!26:26) -> 0.52 | KW24: =LOOKUP(KW21,Assumptions!21:21,Assumptions!26:26) -> 0.52 | KX24: =LOOKUP(KX21,Assumptions!21:21,Assumptions!26:26) -> 0.52 | KY24: =LOOKUP(KY21,Assumptions!21:21,Assumptions!26:26) -> 0.52 | KZ24: =LOOKUP(KZ21,Assumptions!21:21,Assumptions!26:26) -> 0.52 | LA24: =LOOKUP(LA21,Assumptions!21:21,Assumptions!26:26) -> 0.52 | LB24: =LOOKUP(LB21,Assumptions!21:21,Assumptions!26:26) -> 0.52 | LC24: =LOOKUP(LC21,Assumptions!21:21,Assumptions!26:26) -> 0.52 | LD24: =LOOKUP(LD21,Assumptions!21:21,Assumptions!26:26) -> 0.52 | LE24: =LOOKUP(LE21,Assumptions!21:21,Assumptions!26:26) -> 0.52 | LF24: =LOOKUP(LF21,Assumptions!21:21,Assumptions!26:26) -> 0.52 | LG24: =LOOKUP(LG21,Assumptions!21:21,Assumptions!26:26) -> 0.52 | LH24: =LOOKUP(LH21,Assumptions!21:21,Assumptions!26:26) -> 0.52 | LI24: =LOOKUP(LI21,Assumptions!21:21,Assumptions!26:26) -> 0.52 | LJ24: =LOOKUP(LJ21,Assumptions!21:21,Assumptions!26:26) -> 0.52 | LK24: =LOOKUP(LK21,Assumptions!21:21,Assumptions!26:26) -> 0.52 | LL24: =LOOKUP(LL21,Assumptions!21:21,Assumptions!26:26) -> 0.52 | LM24: =LOOKUP(LM21,Assumptions!21:21,Assumptions!26:26) -> 0.52 | LN24: =LOOKUP(LN21,Assumptions!21:21,Assumptions!26:26) -> 0.52 | LO24: =LOOKUP(LO21,Assumptions!21:21,Assumptions!26:26) -> 0.52 | LP24: =LOOKUP(LP21,Assumptions!21:21,Assumptions!26:26) -> 0.52 | LQ24: =LOOKUP(LQ21,Assumptions!21:21,Assumptions!26:26) -> 0.52 | LR24: =LOOKUP(LR21,Assumptions!21:21,Assumptions!26:26) -> 0.52 | LS24: =LOOKUP(LS21,Assumptions!21:21,Assumptions!26:26) -> 0.52 | LT24: =LOOKUP(LT21,Assumptions!21:21,Assumptions!26:26) -> 0.52 | LU24: =LOOKUP(LU21,Assumptions!21:21,Assumptions!26:26) -> 0.52 | LV24: =LOOKUP(LV21,Assumptions!21:21,Assumptions!26:26) -> 0.52 | LW24: =LOOKUP(LW21,Assumptions!21:21,Assumptions!26:26) -> 0.52 | LX24: =LOOKUP(LX21,Assumptions!21:21,Assumptions!26:26) -> 0.52 | LY24: =LOOKUP(LY21,Assumptions!21:21,Assumptions!26:26) -> 0.52 | LZ24: =LOOKUP(LZ21,Assumptions!21:21,Assumptions!26:26) -> 0.52 | MA24: =LOOKUP(MA21,Assumptions!21:21,Assumptions!26:26) -> 0.52 | MB24: =LOOKUP(MB21,Assumptions!21:21,Assumptions!26:26) -> 0.52 | MC24: =LOOKUP(MC21,Assumptions!21:21,Assumptions!26:26) -> 0.52 | MD24: =LOOKUP(MD21,Assumptions!21:21,Assumptions!26:26) -> 0.52 | ME24: =LOOKUP(ME21,Assumptions!21:21,Assumptions!26:26) -> 0.52 | MF24: =LOOKUP(MF21,Assumptions!21:21,Assumptions!26:26) -> 0.52 | MG24: =LOOKUP(MG21,Assumptions!21:21,Assumptions!26:26) -> 0.52 | MH24: =LOOKUP(MH21,Assumptions!21:21,Assumptions!26:26) -> 0.52 | MI24: =LOOKUP(MI21,Assumptions!21:21,Assumptions!26:26) -> 0.52 | MJ24: =LOOKUP(MJ21,Assumptions!21:21,Assumptions!26:26) -> 0.52 | MK24: =LOOKUP(MK21,Assumptions!21:21,Assumptions!26:26) -> 0.52 | ML24: =LOOKUP(ML21,Assumptions!21:21,Assumptions!26:26) -> 0.52 | MM24: =LOOKUP(MM21,Assumptions!21:21,Assumptions!26:26) -> 0.52 | MN24: =LOOKUP(MN21,Assumptions!21:21,Assumptions!26:26) -> 0.52 | MO24: =LOOKUP(MO21,Assumptions!21:21,Assumptions!26:26) -> 0.52 | MP24: =LOOKUP(MP21,Assumptions!21:21,Assumptions!26:26) -> 0.52 | MQ24: =LOOKUP(MQ21,Assumptions!21:21,Assumptions!26:26) -> 0.52 | MR24: =LOOKUP(MR21,Assumptions!21:21,Assumptions!26:26) -> 0.52 | MS24: =LOOKUP(MS21,Assumptions!21:21,Assumptions!26:26) -> 0.52 | MT24: =LOOKUP(MT21,Assumptions!21:21,Assumptions!26:26) -> 0.52 | MU24: =LOOKUP(MU21,Assumptions!21:21,Assumptions!26:26) -> 0.52 | MV24: =LOOKUP(MV21,Assumptions!21:21,Assumptions!26:26) -> 0.52 | MW24: =LOOKUP(MW21,Assumptions!21:21,Assumptions!26:26) -> 0.52 | MX24: =LOOKUP(MX21,Assumptions!21:21,Assumptions!26:26) -> 0.52 | MY24: =LOOKUP(MY21,Assumptions!21:21,Assumptions!26:26) -> 0.52 | MZ24: =LOOKUP(MZ21,Assumptions!21:21,Assumptions!26:26) -> 0.52 | NA24: =LOOKUP(NA21,Assumptions!21:21,Assumptions!26:26) -> 0.52 | NB24: =LOOKUP(NB21,Assumptions!21:21,Assumptions!26:26) -> 0.52 | NC24: =LOOKUP(NC21,Assumptions!21:21,Assumptions!26:26) -> 0.52 | ND24: =LOOKUP(ND21,Assumptions!21:21,Assumptions!26:26) -> 0.52 | NE24: =LOOKUP(NE21,Assumptions!21:21,Assumptions!26:26) -> 0.52 | NF24: =LOOKUP(NF21,Assumptions!21:21,Assumptions!26:26) -> 0.52 | NG24: =LOOKUP(NG21,Assumptions!21:21,Assumptions!26:26) -> 0.52 | NH24: =LOOKUP(NH21,Assumptions!21:21,Assumptions!26:26) -> 0.52 | NI24: =LOOKUP(NI21,Assumptions!21:21,Assumptions!26:26) -> 0.52 | NJ24: =LOOKUP(NJ21,Assumptions!21:21,Assumptions!26:26) -> 0.52 | NK24: =LOOKUP(NK21,Assumptions!21:21,Assumptions!26:26) -> 0.52 | NL24: =LOOKUP(NL21,Assumptions!21:21,Assumptions!26:26) -> 0.52 | NM24: =LOOKUP(NM21,Assumptions!21:21,Assumptions!26:26) -> 0.52 | NN24: =LOOKUP(NN21,Assumptions!21:21,Assumptions!26:26) -> 0.52 | NO24: =LOOKUP(NO21,Assumptions!21:21,Assumptions!26:26) -> 0.52 | NP24: =LOOKUP(NP21,Assumptions!21:21,Assumptions!26:26) -> 0.52 | NQ24: =LOOKUP(NQ21,Assumptions!21:21,Assumptions!26:26) -> 0.52 | NR24: =LOOKUP(NR21,Assumptions!21:21,Assumptions!26:26) -> 0.52 | NS24: =LOOKUP(NS21,Assumptions!21:21,Assumptions!26:26) -> 0.52 | NT24: =LOOKUP(NT21,Assumptions!21:21,Assumptions!26:26) -> 0.52 | NU24: =LOOKUP(NU21,Assumptions!21:21,Assumptions!26:26) -> 0.52 | NV24: =LOOKUP(NV21,Assumptions!21:21,Assumptions!26:26) -> 0.52 | NW24: =LOOKUP(NW21,Assumptions!21:21,Assumptions!26:26) -> 0.52 | NX24: =LOOKUP(NX21,Assumptions!21:21,Assumptions!26:26) -> 0.52 | NY24: =LOOKUP(NY21,Assumptions!21:21,Assumptions!26:26) -> 0.52 | NZ24: =LOOKUP(NZ21,Assumptions!21:21,Assumptions!26:26) -> 0.52 | OA24: =LOOKUP(OA21,Assumptions!21:21,Assumptions!26:26) -> 0.52 | OB24: =LOOKUP(OB21,Assumptions!21:21,Assumptions!26:26) -> 0.52 | OC24: =LOOKUP(OC21,Assumptions!21:21,Assumptions!26:26) -> 0.52 | OD24: =LOOKUP(OD21,Assumptions!21:21,Assumptions!26:26) -> 0.52 | OE24: =LOOKUP(OE21,Assumptions!21:21,Assumptions!26:26) -> 0.52 | OF24: =LOOKUP(OF21,Assumptions!21:21,Assumptions!26:26) -> 0.52 | OG24: =LOOKUP(OG21,Assumptions!21:21,Assumptions!26:26) -> 0.52 | OH24: =LOOKUP(OH21,Assumptions!21:21,Assumptions!26:26) -> 0.52 | OI24: =LOOKUP(OI21,Assumptions!21:21,Assumptions!26:26) -> 0.52 | OJ24: =LOOKUP(OJ21,Assumptions!21:21,Assumptions!26:26) -> 0.52 | OK24: =LOOKUP(OK21,Assumptions!21:21,Assumptions!26:26) -> 0.52 | OL24: =LOOKUP(OL21,Assumptions!21:21,Assumptions!26:26) -> 0.52 | OM24: =LOOKUP(OM21,Assumptions!21:21,Assumptions!26:26) -> 0.52 | ON24: =LOOKUP(ON21,Assumptions!21:21,Assumptions!26:26) -> 0.52 | OO24: =LOOKUP(OO21,Assumptions!21:21,Assumptions!26:26) -> 0.52 | OP24: =LOOKUP(OP21,Assumptions!21:21,Assumptions!26:26) -> 0.52 | OQ24: =LOOKUP(OQ21,Assumptions!21:21,Assumptions!26:26) -> 0.52 | OR24: =LOOKUP(OR21,Assumptions!21:21,Assumptions!26:26) -> 0.52 | OS24: =LOOKUP(OS21,Assumptions!21:21,Assumptions!26:26) -> 0.52 | OT24: =LOOKUP(OT21,Assumptions!21:21,Assumptions!26:26) -> 0.52 | OU24: =LOOKUP(OU21,Assumptions!21:21,Assumptions!26:26) -> 0.52 | OV24: =LOOKUP(OV21,Assumptions!21:21,Assumptions!26:26) -> 0.52 | OW24: =LOOKUP(OW21,Assumptions!21:21,Assumptions!26:26) -> 0.52 | OX24: =LOOKUP(OX21,Assumptions!21:21,Assumptions!26:26) -> 0.52 | OY24: =LOOKUP(OY21,Assumptions!21:21,Assumptions!26:26) -> 0.52 | OZ24: =LOOKUP(OZ21,Assumptions!21:21,Assumptions!26:26) -> 0.52 | PA24: =LOOKUP(PA21,Assumptions!21:21,Assumptions!26:26) -> 0.52 | PB24: =LOOKUP(PB21,Assumptions!21:21,Assumptions!26:26) -> 0.52 | PC24: =LOOKUP(PC21,Assumptions!21:21,Assumptions!26:26) -> 0.52 | PD24: =LOOKUP(PD21,Assumptions!21:21,Assumptions!26:26) -> 0.52 | PE24: =LOOKUP(PE21,Assumptions!21:21,Assumptions!26:26) -> 0.52 | PF24: =LOOKUP(PF21,Assumptions!21:21,Assumptions!26:26) -> 0.52 | PG24: =LOOKUP(PG21,Assumptions!21:21,Assumptions!26:26) -> 0.52 | PH24: =LOOKUP(PH21,Assumptions!21:21,Assumptions!26:26) -> 0.52 | PI24: =LOOKUP(PI21,Assumptions!21:21,Assumptions!26:26) -> 0.52 | PJ24: =LOOKUP(PJ21,Assumptions!21:21,Assumptions!26:26) -> 0.52 | PK24: =LOOKUP(PK21,Assumptions!21:21,Assumptions!26:26) -> 0.52 | PL24: =LOOKUP(PL21,Assumptions!21:21,Assumptions!26:26) -> 0.52 | PM24: =LOOKUP(PM21,Assumptions!21:21,Assumptions!26:26) -> 0.52 | PN24: =LOOKUP(PN21,Assumptions!21:21,Assumptions!26:26) -> 0.52 | PO24: =LOOKUP(PO21,Assumptions!21:21,Assumptions!26:26) -> 0.52 | PP24: =LOOKUP(PP21,Assumptions!21:21,Assumptions!26:26) -> 0.52 | PQ24: =LOOKUP(PQ21,Assumptions!21:21,Assumptions!26:26) -> 0.52 | PR24: =LOOKUP(PR21,Assumptions!21:21,Assumptions!26:26) -> 0.52 | PS24: =LOOKUP(PS21,Assumptions!21:21,Assumptions!26:26) -> 0.52 | PT24: =LOOKUP(PT21,Assumptions!21:21,Assumptions!26:26) -> 0.52 | PU24: =LOOKUP(PU21,Assumptions!21:21,Assumptions!26:26) -> 0.52 | PV24: =LOOKUP(PV21,Assumptions!21:21,Assumptions!26:26) -> 0.52 | PW24: =LOOKUP(PW21,Assumptions!21:21,Assumptions!26:26) -> 0.52 | PX24: =LOOKUP(PX21,Assumptions!21:21,Assumptions!26:26) -> 0.52 | PY24: =LOOKUP(PY21,Assumptions!21:21,Assumptions!26:26) -> 0.52 | PZ24: =LOOKUP(PZ21,Assumptions!21:21,Assumptions!26:26) -> 0.52 | QA24: =LOOKUP(QA21,Assumptions!21:21,Assumptions!26:26) -> 0.52 | QB24: =LOOKUP(QB21,Assumptions!21:21,Assumptions!26:26) -> 0.52 | QC24: =LOOKUP(QC21,Assumptions!21:21,Assumptions!26:26) -> 0.52 | QD24: =LOOKUP(QD21,Assumptions!21:21,Assumptions!26:26) -> 0.52 | QE24: =LOOKUP(QE21,Assumptions!21:21,Assumptions!26:26) -> 0.52 | QF24: =LOOKUP(QF21,Assumptions!21:21,Assumptions!26:26) -> 0.52 | QG24: =LOOKUP(QG21,Assumptions!21:21,Assumptions!26:26) -> 0.52 | QH24: =LOOKUP(QH21,Assumptions!21:21,Assumptions!26:26) -> 0.52 | QI24: =LOOKUP(QI21,Assumptions!21:21,Assumptions!26:26) -> 0.52 | QJ24: =LOOKUP(QJ21,Assumptions!21:21,Assumptions!26:26) -> 0.52 | QK24: =LOOKUP(QK21,Assumptions!21:21,Assumptions!26:26) -> 0.52 | QL24: =LOOKUP(QL21,Assumptions!21:21,Assumptions!26:26) -> 0.52
B26: Plant Availability
C27: Forced Outages | F27: Days | G27: % Input | H27: =Assumptions!G35 -> 0.01 | L27: =$H$27*L22*L15 -> 0 | M27: 0 | N27: 0 | O27: 0 | P27: 0 | Q27: 0 | R27: 0 | S27: 0 | T27: 0 | U27: 0 | V27: 0 | W27: 0 | X27: 0 | Y27: 0 | Z27: 0 | AA27: 0 | AB27: 0 | AC27: 0 | AD27: 0 | AE27: 0 | AF27: 0 | AG27: 0 | AH27: 0 | AI27: 0 | AJ27: 0 | AK27: 0 | AL27: 0 | AM27: 0 | AN27: 0 | AO27: 0 | AP27: 7.44 | AQ27: 7.2 | AR27: =$H$27*AR22*AR15 -> 7.44 | AS27: 7.44 | AT27: 6.72 | AU27: 7.44 | AV27: 7.2 | AW27: 7.44 | AX27: 7.2 | AY27: 7.44 | AZ27: 7.44 | BA27: 7.2 | BB27: 7.44 | BC27: 7.2 | BD27: 7.44 | BE27: 7.44 | BF27: 6.96 | BG27: 7.44 | BH27: 7.2 | BI27: 7.44 | BJ27: 7.2 | BK27: 7.44 | BL27: 7.44 | BM27: 7.2 | BN27: 7.44 | BO27: 7.2 | BP27: 7.44 | BQ27: 7.44 | BR27: 6.72 | BS27: 7.44 | BT27: 7.2 | BU27: 7.44 | BV27: 7.2 | BW27: 7.44 | BX27: =$H$27*BX22*BX15 -> 7.44 | BY27: 7.2 | BZ27: 7.44 | CA27: 7.2 | CB27: 7.44 | CC27: 7.44 | CD27: 6.72 | CE27: 7.44 | CF27: 7.2 | CG27: 7.44 | CH27: 7.2 | CI27: 7.44 | CJ27: 7.44 | CK27: 7.2 | CL27: 7.44 | CM27: 7.2 | CN27: 7.44 | CO27: 7.44 | CP27: 6.72 | CQ27: 7.44 | CR27: 7.2 | CS27: 7.44 | CT27: 7.2 | CU27: 7.44 | CV27: 7.44 | CW27: 7.2 | CX27: 7.44 | CY27: 7.2 | CZ27: 7.44 | DA27: 7.44 | DB27: 6.96 | DC27: 7.44 | DD27: =$H$27*DD22*DD15 -> 7.2 | DE27: 7.44 | DF27: 7.2 | DG27: 7.44 | DH27: 7.44 | DI27: 7.2 | DJ27: 7.44 | DK27: 7.2 | DL27: 7.44 | DM27: 7.44 | DN27: 6.72 | DO27: 7.44 | DP27: 7.2 | DQ27: 7.44 | DR27: 7.2 | DS27: 7.44 | DT27: 7.44 | DU27: 7.2 | DV27: 7.44 | DW27: 7.2 | DX27: 7.44 | DY27: 7.44 | DZ27: 6.72 | EA27: 7.44 | EB27: 7.2 | EC27: 7.44 | ED27: 7.2 | EE27: 7.44 | EF27: 7.44 | EG27: 7.2 | EH27: 7.44 | EI27: 7.2 | EJ27: =$H$27*EJ22*EJ15 -> 7.44 | EK27: 7.44 | EL27: 6.72 | EM27: 7.44 | EN27: 7.2 | EO27: 7.44 | EP27: 7.2 | EQ27: 7.44 | ER27: 7.44 | ES27: 7.2 | ET27: 7.44 | EU27: 7.2 | EV27: 7.44 | EW27: 7.44 | EX27: 6.96 | EY27: 7.44 | EZ27: 7.2 | FA27: 7.44 | FB27: 7.2 | FC27: 7.44 | FD27: 7.44 | FE27: 7.2 | FF27: 7.44 | FG27: 7.2 | FH27: 7.44 | FI27: 7.44 | FJ27: 6.72 | FK27: 7.44 | FL27: 7.2 | FM27: 7.44 | FN27: 7.2 | FO27: 7.44 | FP27: =$H$27*FP22*FP15 -> 7.44 | FQ27: 7.2 | FR27: 7.44 | FS27: 7.2 | FT27: 7.44 | FU27: 7.44 | FV27: 6.72 | FW27: 7.44 | FX27: 7.2 | FY27: 7.44 | FZ27: 7.2 | GA27: 7.44 | GB27: 7.44 | GC27: 7.2 | GD27: 7.44 | GE27: 7.2 | GF27: 7.44 | GG27: 7.44 | GH27: 6.72 | GI27: 7.44 | GJ27: 7.2 | GK27: 7.44 | GL27: 7.2 | GM27: 7.44 | GN27: 7.44 | GO27: 7.2 | GP27: 7.44 | GQ27: 7.2 | GR27: 7.44 | GS27: 7.44 | GT27: 6.96 | GU27: 7.44 | GV27: =$H$27*GV22*GV15 -> 7.2 | GW27: 7.44 | GX27: 7.2 | GY27: 7.44 | GZ27: 7.44 | HA27: 7.2 | HB27: 7.44 | HC27: 7.2 | HD27: =$H$27*HD22*HD15 -> 7.44 | HE27: 7.44 | HF27: 6.72 | HG27: 7.44 | HH27: 7.2 | HI27: 7.44 | HJ27: 7.2 | HK27: 7.44 | HL27: 7.44 | HM27: 7.2 | HN27: 7.44 | HO27: 7.2 | HP27: 7.44 | HQ27: 7.44 | HR27: 6.72 | HS27: 7.44 | HT27: 7.2 | HU27: 7.44 | HV27: 7.2 | HW27: 7.44 | HX27: 7.44 | HY27: 7.2 | HZ27: 7.44 | IA27: 7.2 | IB27: 7.44 | IC27: 7.44 | ID27: 6.72 | IE27: 7.44 | IF27: 7.2 | IG27: 7.44 | IH27: 7.2 | II27: 7.44 | IJ27: 7.44 | IK27: 7.2 | IL27: 7.44 | IM27: 7.2 | IN27: 7.44 | IO27: 7.44 | IP27: 6.96 | IQ27: 7.44 | IR27: 7.2 | IS27: 7.44 | IT27: 7.2 | IU27: 7.44 | IV27: 7.44 | IW27: 7.2 | IX27: 7.44 | IY27: 7.2 | IZ27: 7.44 | JA27: 7.44 | JB27: 6.72 | JC27: 7.44 | JD27: 7.2 | JE27: 7.44 | JF27: 7.2 | JG27: 7.44 | JH27: 7.44 | JI27: 7.2 | JJ27: 7.44 | JK27: 7.2 | JL27: 7.44 | JM27: 7.44 | JN27: 6.72 | JO27: 7.44 | JP27: =$H$27*JP22*JP15 -> 7.2 | JQ27: 7.44 | JR27: 7.2 | JS27: 7.44 | JT27: 7.44 | JU27: 7.2 | JV27: 7.44 | JW27: 7.2 | JX27: 7.44 | JY27: 7.44 | JZ27: 6.72 | KA27: 7.44 | KB27: 7.2 | KC27: 7.44 | KD27: 7.2 | KE27: 7.44 | KF27: 7.44 | KG27: 7.2 | KH27: 7.44 | KI27: 7.2 | KJ27: 7.44 | KK27: 7.44 | KL27: 6.96 | KM27: 7.44 | KN27: 7.2 | KO27: 7.44 | KP27: 7.2 | KQ27: 7.44 | KR27: 7.44 | KS27: 7.2 | KT27: 7.44 | KU27: 7.2 | KV27: 7.44 | KW27: 7.44 | KX27: 6.72 | KY27: 7.44 | KZ27: 7.2 | LA27: 7.44 | LB27: 7.2 | LC27: 7.44 | LD27: 7.44 | LE27: 7.2 | LF27: 7.44 | LG27: 7.2 | LH27: 7.44 | LI27: 7.44 | LJ27: 6.72 | LK27: 7.44 | LL27: 7.2 | LM27: 7.44 | LN27: 7.2 | LO27: 7.44 | LP27: 7.44 | LQ27: 7.2 | LR27: 7.44 | LS27: 7.2 | LT27: 7.44 | LU27: 7.44 | LV27: 6.72 | LW27: 7.44 | LX27: 7.2 | LY27: 7.44 | LZ27: 7.2 | MA27: 7.44 | MB27: =$H$27*MB22*MB15 -> 7.44 | MC27: 7.2 | MD27: 7.44 | ME27: 7.2 | MF27: 7.44 | MG27: 7.44 | MH27: 6.96 | MI27: 7.44 | MJ27: 7.2 | MK27: 7.44 | ML27: 7.2 | MM27: 7.44 | MN27: 7.44 | MO27: 7.2 | MP27: 7.44 | MQ27: 7.2 | MR27: 7.44 | MS27: 7.44 | MT27: 6.72 | MU27: 7.44 | MV27: 7.2 | MW27: 7.44 | MX27: 7.2 | MY27: 7.44 | MZ27: 7.44 | NA27: 7.2 | NB27: 7.44 | NC27: 7.2 | ND27: 7.44 | NE27: 7.44 | NF27: 6.72 | NG27: 7.44 | NH27: 7.2 | NI27: 7.44 | NJ27: 7.2 | NK27: 7.44 | NL27: 7.44 | NM27: 7.2 | NN27: 7.44 | NO27: 7.2 | NP27: 7.44 | NQ27: 7.44 | NR27: 6.72 | NS27: 7.44 | NT27: 7.2 | NU27: 7.44 | NV27: 7.2 | NW27: 7.44 | NX27: 7.44 | NY27: 7.2 | NZ27: 7.44 | OA27: 7.2 | OB27: 7.44 | OC27: 7.44 | OD27: 6.96 | OE27: 7.44 | OF27: 7.2 | OG27: 7.44 | OH27: 7.2 | OI27: 7.44 | OJ27: 7.44 | OK27: 7.2 | OL27: 7.44 | OM27: 7.2 | ON27: =$H$27*ON22*ON15 -> 7.44 | OO27: 7.44 | OP27: 6.72 | OQ27: 7.44 | OR27: 7.2 | OS27: 7.44 | OT27: 7.2 | OU27: 7.44 | OV27: 7.44 | OW27: 7.2 | OX27: 7.44 | OY27: 7.2 | OZ27: 7.44 | PA27: 7.44 | PB27: 6.72 | PC27: 7.44 | PD27: 7.2 | PE27: 7.44 | PF27: 7.2 | PG27: 7.44 | PH27: 7.44 | PI27: 7.2 | PJ27: 0 | PK27: 0 | PL27: 0 | PM27: 0 | PN27: 0 | PO27: 0 | PP27: 0 | PQ27: 0 | PR27: 0 | PS27: 0 | PT27: 0 | PU27: 0 | PV27: 0 | PW27: 0 | PX27: 0 | PY27: 0 | PZ27: 0 | QA27: 0 | QB27: 0 | QC27: 0 | QD27: 0 | QE27: 0 | QF27: 0 | QG27: 0 | QH27: 0 | QI27: 0 | QJ27: 0 | QK27: 0 | QL27: 0
C28: Scheduled Outages | F28: Days | G28: Days | H28: =Assumptions!G31 -> 10 | L28: =$H$28*24*L37 -> 0 | M28: 0 | N28: 0 | O28: 0 | P28: 0 | Q28: 0 | R28: 0 | S28: 0 | T28: 0 | U28: 0 | V28: 0 | W28: 0 | X28: 0 | Y28: 0 | Z28: 0 | AA28: 0 | AB28: 0 | AC28: 0 | AD28: 0 | AE28: 0 | AF28: 0 | AG28: 0 | AH28: 0 | AI28: 0 | AJ28: 0 | AK28: 0 | AL28: 0 | AM28: 0 | AN28: 0 | AO28: 0 | AP28: 0 | AQ28: 0 | AR28: =$H$28*24*AR37 -> 0 | AS28: 0 | AT28: 0 | AU28: 0 | AV28: 0 | AW28: 0 | AX28: 0 | AY28: 0 | AZ28: 0 | BA28: 0 | BB28: 0 | BC28: 0 | BD28: 0 | BE28: 0 | BF28: 0 | BG28: 0 | BH28: 0 | BI28: 0 | BJ28: 0 | BK28: 0 | BL28: 0 | BM28: 0 | BN28: 0 | BO28: 0 | BP28: 0 | BQ28: 0 | BR28: 0 | BS28: 0 | BT28: 0 | BU28: 0 | BV28: 0 | BW28: 0 | BX28: =$H$28*24*BX37 -> 0 | BY28: 0 | BZ28: 0 | CA28: 0 | CB28: 0 | CC28: 0 | CD28: 0 | CE28: 0 | CF28: 0 | CG28: 0 | CH28: 0 | CI28: 0 | CJ28: 0 | CK28: 0 | CL28: 0 | CM28: 0 | CN28: 0 | CO28: 0 | CP28: 0 | CQ28: 0 | CR28: 0 | CS28: 0 | CT28: 0 | CU28: 0 | CV28: 0 | CW28: 0 | CX28: 0 | CY28: 0 | CZ28: 0 | DA28: 0 | DB28: 0 | DC28: 0 | DD28: =$H$28*24*DD37 -> 0 | DE28: 0 | DF28: 0 | DG28: 0 | DH28: 0 | DI28: 0 | DJ28: 0 | DK28: 0 | DL28: 0 | DM28: 0 | DN28: 0 | DO28: 0 | DP28: 0 | DQ28: 0 | DR28: 0 | DS28: 0 | DT28: 0 | DU28: 0 | DV28: 0 | DW28: 0 | DX28: 0 | DY28: 0 | DZ28: 0 | EA28: 0 | EB28: 0 | EC28: 0 | ED28: 0 | EE28: 0 | EF28: 0 | EG28: 0 | EH28: 0 | EI28: 0 | EJ28: =$H$28*24*EJ37 -> 0 | EK28: 0 | EL28: 0 | EM28: 0 | EN28: 0 | EO28: 0 | EP28: 0 | EQ28: 0 | ER28: 0 | ES28: 0 | ET28: 0 | EU28: 0 | EV28: 0 | EW28: 0 | EX28: 0 | EY28: 0 | EZ28: 0 | FA28: 0 | FB28: 0 | FC28: 0 | FD28: 0 | FE28: 240 | FF28: 0 | FG28: 0 | FH28: 0 | FI28: 0 | FJ28: 0 | FK28: 0 | FL28: 0 | FM28: 0 | FN28: 0 | FO28: 0 | FP28: =$H$28*24*FP37 -> 0 | FQ28: 0 | FR28: 0 | FS28: 0 | FT28: 0 | FU28: 0 | FV28: 0 | FW28: 0 | FX28: 0 | FY28: 0 | FZ28: 0 | GA28: 0 | GB28: 0 | GC28: 0 | GD28: 0 | GE28: 0 | GF28: 0 | GG28: 0 | GH28: 0 | GI28: 0 | GJ28: 0 | GK28: 0 | GL28: 0 | GM28: 0 | GN28: 0 | GO28: 0 | GP28: 0 | GQ28: 0 | GR28: 0 | GS28: 0 | GT28: 0 | GU28: 0 | GV28: =$H$28*24*GV37 -> 0 | GW28: 0 | GX28: 0 | GY28: 0 | GZ28: 0 | HA28: 0 | HB28: 0 | HC28: 0 | HD28: =$H$28*24*HD37 -> 0 | HE28: 0 | HF28: 0 | HG28: 0 | HH28: 0 | HI28: 0 | HJ28: 0 | HK28: 0 | HL28: 0 | HM28: 0 | HN28: 0 | HO28: 0 | HP28: 0 | HQ28: 0 | HR28: 0 | HS28: 0 | HT28: 0 | HU28: 0 | HV28: 0 | HW28: 0 | HX28: 0 | HY28: 0 | HZ28: 0 | IA28: 0 | IB28: 0 | IC28: 0 | ID28: 0 | IE28: 0 | IF28: 0 | IG28: 0 | IH28: 0 | II28: 0 | IJ28: 0 | IK28: 0 | IL28: 0 | IM28: 0 | IN28: 0 | IO28: 0 | IP28: 0 | IQ28: 0 | IR28: 0 | IS28: 0 | IT28: 0 | IU28: 0 | IV28: 0 | IW28: 0 | IX28: 0 | IY28: 0 | IZ28: 0 | JA28: 0 | JB28: 0 | JC28: 0 | JD28: 0 | JE28: 0 | JF28: 0 | JG28: 0 | JH28: 0 | JI28: 0 | JJ28: 0 | JK28: 0 | JL28: 0 | JM28: 0 | JN28: 0 | JO28: 0 | JP28: =$H$28*24*JP37 -> 0 | JQ28: 0 | JR28: 0 | JS28: 0 | JT28: 0 | JU28: 0 | JV28: 0 | JW28: 0 | JX28: 0 | JY28: 0 | JZ28: 0 | KA28: 0 | KB28: 0 | KC28: 0 | KD28: 0 | KE28: 0 | KF28: 0 | KG28: 240 | KH28: 0 | KI28: 0 | KJ28: 0 | KK28: 0 | KL28: 0 | KM28: 0 | KN28: 0 | KO28: 0 | KP28: 0 | KQ28: 0 | KR28: 0 | KS28: 0 | KT28: 0 | KU28: 0 | KV28: 0 | KW28: 0 | KX28: 0 | KY28: 0 | KZ28: 0 | LA28: 0 | LB28: 0 | LC28: 0 | LD28: 0 | LE28: 0 | LF28: 0 | LG28: 0 | LH28: 0 | LI28: 0 | LJ28: 0 | LK28: 0 | LL28: 0 | LM28: 0 | LN28: 0 | LO28: 0 | LP28: 0 | LQ28: 0 | LR28: 0 | LS28: 0 | LT28: 0 | LU28: 0 | LV28: 0 | LW28: 0 | LX28: 0 | LY28: 0 | LZ28: 0 | MA28: 0 | MB28: =$H$28*24*MB37 -> 0 | MC28: 0 | MD28: 0 | ME28: 0 | MF28: 0 | MG28: 0 | MH28: 0 | MI28: 0 | MJ28: 0 | MK28: 0 | ML28: 0 | MM28: 0 | MN28: 0 | MO28: 0 | MP28: 0 | MQ28: 0 | MR28: 0 | MS28: 0 | MT28: 0 | MU28: 0 | MV28: 0 | MW28: 0 | MX28: 0 | MY28: 0 | MZ28: 0 | NA28: 0 | NB28: 0 | NC28: 0 | ND28: 0 | NE28: 0 | NF28: 0 | NG28: 0 | NH28: 0 | NI28: 0 | NJ28: 0 | NK28: 0 | NL28: 0 | NM28: 0 | NN28: 0 | NO28: 0 | NP28: 0 | NQ28: 0 | NR28: 0 | NS28: 0 | NT28: 0 | NU28: 0 | NV28: 0 | NW28: 0 | NX28: 0 | NY28: 0 | NZ28: 0 | OA28: 0 | OB28: 0 | OC28: 0 | OD28: 0 | OE28: 0 | OF28: 0 | OG28: 0 | OH28: 0 | OI28: 0 | OJ28: 0 | OK28: 0 | OL28: 0 | OM28: 0 | ON28: =$H$28*24*ON37 -> 0 | OO28: 0 | OP28: 0 | OQ28: 0 | OR28: 0 | OS28: 0 | OT28: 0 | OU28: 0 | OV28: 0 | OW28: 0 | OX28: 0 | OY28: 0 | OZ28: 0 | PA28: 0 | PB28: 0 | PC28: 0 | PD28: 0 | PE28: 240 | PF28: 0 | PG28: 0 | PH28: 0 | PI28: 0 | PJ28: 0 | PK28: 0 | PL28: 0 | PM28: 0 | PN28: 0 | PO28: 0 | PP28: 0 | PQ28: 0 | PR28: 0 | PS28: 0 | PT28: 0 | PU28: 0 | PV28: 0 | PW28: 0 | PX28: 0 | PY28: 0 | PZ28: 0 | QA28: 0 | QB28: 0 | QC28: 0 | QD28: 0 | QE28: 0 | QF28: 0 | QG28: 0 | QH28: 0 | QI28: 0 | QJ28: 0 | QK28: 0 | QL28: 0
C29: Total Unavailability | F29: Days | L29: =SUM(L27:L28) -> 0 | M29: =SUM(M27:M28) -> 0 | N29: 0 | O29: 0 | P29: 0 | Q29: 0 | R29: 0 | S29: 0 | T29: 0 | U29: 0 | V29: 0 | W29: 0 | X29: 0 | Y29: 0 | Z29: 0 | AA29: 0 | AB29: 0 | AC29: 0 | AD29: 0 | AE29: 0 | AF29: 0 | AG29: 0 | AH29: 0 | AI29: 0 | AJ29: 0 | AK29: 0 | AL29: 0 | AM29: 0 | AN29: 0 | AO29: 0 | AP29: 7.44 | AQ29: 7.2 | AR29: 7.44 | AS29: 7.44 | AT29: 6.72 | AU29: 7.44 | AV29: 7.2 | AW29: 7.44 | AX29: 7.2 | AY29: 7.44 | AZ29: 7.44 | BA29: 7.2 | BB29: 7.44 | BC29: 7.2 | BD29: 7.44 | BE29: 7.44 | BF29: 6.96 | BG29: 7.44 | BH29: 7.2 | BI29: 7.44 | BJ29: 7.2 | BK29: 7.44 | BL29: 7.44 | BM29: 7.2 | BN29: 7.44 | BO29: 7.2 | BP29: 7.44 | BQ29: 7.44 | BR29: 6.72 | BS29: 7.44 | BT29: 7.2 | BU29: 7.44 | BV29: 7.2 | BW29: 7.44 | BX29: 7.44 | BY29: =SUM(BY27:BY28) -> 7.2 | BZ29: 7.44 | CA29: 7.2 | CB29: 7.44 | CC29: 7.44 | CD29: 6.72 | CE29: 7.44 | CF29: 7.2 | CG29: 7.44 | CH29: 7.2 | CI29: 7.44 | CJ29: 7.44 | CK29: 7.2 | CL29: 7.44 | CM29: 7.2 | CN29: 7.44 | CO29: 7.44 | CP29: 6.72 | CQ29: 7.44 | CR29: 7.2 | CS29: 7.44 | CT29: 7.2 | CU29: 7.44 | CV29: 7.44 | CW29: 7.2 | CX29: 7.44 | CY29: 7.2 | CZ29: 7.44 | DA29: 7.44 | DB29: 6.96 | DC29: 7.44 | DD29: 7.2 | DE29: 7.44 | DF29: 7.2 | DG29: 7.44 | DH29: 7.44 | DI29: 7.2 | DJ29: 7.44 | DK29: 7.2 | DL29: 7.44 | DM29: 7.44 | DN29: 6.72 | DO29: 7.44 | DP29: 7.2 | DQ29: 7.44 | DR29: 7.2 | DS29: 7.44 | DT29: 7.44 | DU29: 7.2 | DV29: 7.44 | DW29: 7.2 | DX29: 7.44 | DY29: 7.44 | DZ29: 6.72 | EA29: 7.44 | EB29: 7.2 | EC29: 7.44 | ED29: 7.2 | EE29: 7.44 | EF29: 7.44 | EG29: 7.2 | EH29: 7.44 | EI29: 7.2 | EJ29: 7.44 | EK29: =SUM(EK27:EK28) -> 7.44 | EL29: 6.72 | EM29: 7.44 | EN29: 7.2 | EO29: 7.44 | EP29: 7.2 | EQ29: 7.44 | ER29: 7.44 | ES29: 7.2 | ET29: 7.44 | EU29: 7.2 | EV29: 7.44 | EW29: 7.44 | EX29: 6.96 | EY29: 7.44 | EZ29: 7.2 | FA29: 7.44 | FB29: 7.2 | FC29: 7.44 | FD29: 7.44 | FE29: 247.2 | FF29: 7.44 | FG29: 7.2 | FH29: 7.44 | FI29: 7.44 | FJ29: 6.72 | FK29: 7.44 | FL29: 7.2 | FM29: 7.44 | FN29: 7.2 | FO29: 7.44 | FP29: 7.44 | FQ29: 7.2 | FR29: 7.44 | FS29: 7.2 | FT29: 7.44 | FU29: 7.44 | FV29: 6.72 | FW29: 7.44 | FX29: 7.2 | FY29: 7.44 | FZ29: 7.2 | GA29: 7.44 | GB29: 7.44 | GC29: 7.2 | GD29: 7.44 | GE29: 7.2 | GF29: 7.44 | GG29: 7.44 | GH29: 6.72 | GI29: 7.44 | GJ29: 7.2 | GK29: 7.44 | GL29: 7.2 | GM29: 7.44 | GN29: 7.44 | GO29: 7.2 | GP29: 7.44 | GQ29: 7.2 | GR29: 7.44 | GS29: 7.44 | GT29: 6.96 | GU29: 7.44 | GV29: 7.2 | GW29: =SUM(GW27:GW28) -> 7.44 | GX29: 7.2 | GY29: 7.44 | GZ29: 7.44 | HA29: 7.2 | HB29: 7.44 | HC29: 7.2 | HD29: =SUM(HD27:HD28) -> 7.44 | HE29: 7.44 | HF29: 6.72 | HG29: 7.44 | HH29: 7.2 | HI29: 7.44 | HJ29: 7.2 | HK29: 7.44 | HL29: 7.44 | HM29: 7.2 | HN29: 7.44 | HO29: 7.2 | HP29: 7.44 | HQ29: 7.44 | HR29: 6.72 | HS29: 7.44 | HT29: 7.2 | HU29: 7.44 | HV29: 7.2 | HW29: 7.44 | HX29: 7.44 | HY29: 7.2 | HZ29: 7.44 | IA29: 7.2 | IB29: 7.44 | IC29: 7.44 | ID29: 6.72 | IE29: 7.44 | IF29: 7.2 | IG29: 7.44 | IH29: 7.2 | II29: 7.44 | IJ29: 7.44 | IK29: 7.2 | IL29: 7.44 | IM29: 7.2 | IN29: 7.44 | IO29: 7.44 | IP29: 6.96 | IQ29: 7.44 | IR29: 7.2 | IS29: 7.44 | IT29: 7.2 | IU29: 7.44 | IV29: 7.44 | IW29: 7.2 | IX29: 7.44 | IY29: 7.2 | IZ29: 7.44 | JA29: 7.44 | JB29: 6.72 | JC29: 7.44 | JD29: 7.2 | JE29: 7.44 | JF29: 7.2 | JG29: 7.44 | JH29: 7.44 | JI29: 7.2 | JJ29: 7.44 | JK29: 7.2 | JL29: 7.44 | JM29: 7.44 | JN29: 6.72 | JO29: 7.44 | JP29: =SUM(JP27:JP28) -> 7.2 | JQ29: 7.44 | JR29: 7.2 | JS29: 7.44 | JT29: 7.44 | JU29: 7.2 | JV29: 7.44 | JW29: 7.2 | JX29: 7.44 | JY29: 7.44 | JZ29: 6.72 | KA29: 7.44 | KB29: 7.2 | KC29: 7.44 | KD29: 7.2 | KE29: 7.44 | KF29: 7.44 | KG29: 247.2 | KH29: 7.44 | KI29: 7.2 | KJ29: 7.44 | KK29: 7.44 | KL29: 6.96 | KM29: 7.44 | KN29: 7.2 | KO29: 7.44 | KP29: 7.2 | KQ29: 7.44 | KR29: 7.44 | KS29: 7.2 | KT29: 7.44 | KU29: 7.2 | KV29: 7.44 | KW29: 7.44 | KX29: 6.72 | KY29: 7.44 | KZ29: 7.2 | LA29: 7.44 | LB29: 7.2 | LC29: 7.44 | LD29: 7.44 | LE29: 7.2 | LF29: 7.44 | LG29: 7.2 | LH29: 7.44 | LI29: 7.44 | LJ29: 6.72 | LK29: 7.44 | LL29: 7.2 | LM29: 7.44 | LN29: 7.2 | LO29: 7.44 | LP29: 7.44 | LQ29: 7.2 | LR29: 7.44 | LS29: 7.2 | LT29: 7.44 | LU29: 7.44 | LV29: 6.72 | LW29: 7.44 | LX29: 7.2 | LY29: 7.44 | LZ29: 7.2 | MA29: 7.44 | MB29: =SUM(MB27:MB28) -> 7.44 | MC29: 7.2 | MD29: 7.44 | ME29: 7.2 | MF29: 7.44 | MG29: 7.44 | MH29: 6.96 | MI29: 7.44 | MJ29: 7.2 | MK29: 7.44 | ML29: 7.2 | MM29: 7.44 | MN29: 7.44 | MO29: 7.2 | MP29: 7.44 | MQ29: 7.2 | MR29: 7.44 | MS29: 7.44 | MT29: 6.72 | MU29: 7.44 | MV29: 7.2 | MW29: 7.44 | MX29: 7.2 | MY29: 7.44 | MZ29: 7.44 | NA29: 7.2 | NB29: 7.44 | NC29: 7.2 | ND29: 7.44 | NE29: 7.44 | NF29: 6.72 | NG29: 7.44 | NH29: 7.2 | NI29: 7.44 | NJ29: 7.2 | NK29: 7.44 | NL29: 7.44 | NM29: 7.2 | NN29: 7.44 | NO29: 7.2 | NP29: 7.44 | NQ29: 7.44 | NR29: 6.72 | NS29: 7.44 | NT29: 7.2 | NU29: 7.44 | NV29: 7.2 | NW29: 7.44 | NX29: 7.44 | NY29: 7.2 | NZ29: 7.44 | OA29: 7.2 | OB29: 7.44 | OC29: 7.44 | OD29: 6.96 | OE29: 7.44 | OF29: 7.2 | OG29: 7.44 | OH29: 7.2 | OI29: 7.44 | OJ29: 7.44 | OK29: 7.2 | OL29: 7.44 | OM29: 7.2 | ON29: =SUM(ON27:ON28) -> 7.44 | OO29: 7.44 | OP29: 6.72 | OQ29: 7.44 | OR29: 7.2 | OS29: 7.44 | OT29: 7.2 | OU29: 7.44 | OV29: 7.44 | OW29: 7.2 | OX29: 7.44 | OY29: 7.2 | OZ29: 7.44 | PA29: 7.44 | PB29: 6.72 | PC29: 7.44 | PD29: 7.2 | PE29: 247.44 | PF29: 7.2 | PG29: 7.44 | PH29: 7.44 | PI29: 7.2 | PJ29: 0 | PK29: 0 | PL29: 0 | PM29: 0 | PN29: 0 | PO29: 0 | PP29: 0 | PQ29: 0 | PR29: 0 | PS29: 0 | PT29: 0 | PU29: 0 | PV29: 0 | PW29: 0 | PX29: 0 | PY29: 0 | PZ29: 0 | QA29: 0 | QB29: 0 | QC29: 0 | QD29: 0 | QE29: 0 | QF29: 0 | QG29: 0 | QH29: 0 | QI29: 0 | QJ29: 0 | QK29: 0 | QL29: 0
C30: Unavailability Percentage | F30: % | L30: =IF(L22,L29/L22) -> 0 | M30: =IF(M22,M29/M22) -> 0 | N30: 0 | O30: 0 | P30: 0 | Q30: 0 | R30: 0 | S30: 0 | T30: 0 | U30: 0 | V30: 0 | W30: 0 | X30: 0 | Y30: 0 | Z30: 0 | AA30: 0 | AB30: 0 | AC30: 0 | AD30: 0 | AE30: 0 | AF30: 0 | AG30: 0 | AH30: 0 | AI30: 0 | AJ30: 0 | AK30: 0 | AL30: 0 | AM30: 0 | AN30: 0 | AO30: 0 | AP30: 0.01 | AQ30: 0.01 | AR30: =IF(AR22,AR29/AR22) -> 0.01 | AS30: 0.01 | AT30: 0.01 | AU30: 0.01 | AV30: 0.01 | AW30: 0.01 | AX30: 0.01 | AY30: 0.01 | AZ30: 0.01 | BA30: 0.01 | BB30: 0.01 | BC30: 0.01 | BD30: 0.01 | BE30: 0.01 | BF30: 0.01 | BG30: 0.01 | BH30: 0.01 | BI30: 0.01 | BJ30: 0.01 | BK30: 0.01 | BL30: 0.01 | BM30: 0.01 | BN30: 0.01 | BO30: 0.01 | BP30: 0.01 | BQ30: 0.01 | BR30: 0.01 | BS30: 0.01 | BT30: 0.01 | BU30: 0.01 | BV30: 0.01 | BW30: 0.01 | BX30: =IF(BX22,BX29/BX22) -> 0.01 | BY30: 0.01 | BZ30: 0.01 | CA30: 0.01 | CB30: 0.01 | CC30: 0.01 | CD30: 0.01 | CE30: 0.01 | CF30: 0.01 | CG30: 0.01 | CH30: 0.01 | CI30: 0.01 | CJ30: 0.01 | CK30: 0.01 | CL30: 0.01 | CM30: 0.01 | CN30: 0.01 | CO30: 0.01 | CP30: 0.01 | CQ30: 0.01 | CR30: 0.01 | CS30: 0.01 | CT30: 0.01 | CU30: 0.01 | CV30: 0.01 | CW30: 0.01 | CX30: 0.01 | CY30: 0.01 | CZ30: 0.01 | DA30: 0.01 | DB30: 0.01 | DC30: 0.01 | DD30: =IF(DD22,DD29/DD22) -> 0.01 | DE30: 0.01 | DF30: 0.01 | DG30: 0.01 | DH30: 0.01 | DI30: 0.01 | DJ30: 0.01 | DK30: 0.01 | DL30: 0.01 | DM30: 0.01 | DN30: 0.01 | DO30: 0.01 | DP30: 0.01 | DQ30: 0.01 | DR30: 0.01 | DS30: 0.01 | DT30: 0.01 | DU30: 0.01 | DV30: 0.01 | DW30: 0.01 | DX30: 0.01 | DY30: 0.01 | DZ30: 0.01 | EA30: 0.01 | EB30: 0.01 | EC30: 0.01 | ED30: 0.01 | EE30: 0.01 | EF30: 0.01 | EG30: 0.01 | EH30: 0.01 | EI30: 0.01 | EJ30: =IF(EJ22,EJ29/EJ22) -> 0.01 | EK30: 0.01 | EL30: 0.01 | EM30: 0.01 | EN30: 0.01 | EO30: 0.01 | EP30: 0.01 | EQ30: 0.01 | ER30: 0.01 | ES30: 0.01 | ET30: 0.01 | EU30: 0.01 | EV30: 0.01 | EW30: 0.01 | EX30: 0.01 | EY30: 0.01 | EZ30: 0.01 | FA30: 0.01 | FB30: 0.01 | FC30: 0.01 | FD30: 0.01 | FE30: 0.3433333333 | FF30: 0.01 | FG30: 0.01 | FH30: 0.01 | FI30: 0.01 | FJ30: 0.01 | FK30: 0.01 | FL30: 0.01 | FM30: 0.01 | FN30: 0.01 | FO30: 0.01 | FP30: =IF(FP22,FP29/FP22) -> 0.01 | FQ30: 0.01 | FR30: 0.01 | FS30: 0.01 | FT30: 0.01 | FU30: 0.01 | FV30: 0.01 | FW30: 0.01 | FX30: 0.01 | FY30: 0.01 | FZ30: 0.01 | GA30: 0.01 | GB30: 0.01 | GC30: 0.01 | GD30: 0.01 | GE30: 0.01 | GF30: 0.01 | GG30: 0.01 | GH30: 0.01 | GI30: 0.01 | GJ30: 0.01 | GK30: 0.01 | GL30: 0.01 | GM30: 0.01 | GN30: 0.01 | GO30: 0.01 | GP30: 0.01 | GQ30: 0.01 | GR30: 0.01 | GS30: 0.01 | GT30: 0.01 | GU30: 0.01 | GV30: =IF(GV22,GV29/GV22) -> 0.01 | GW30: 0.01 | GX30: 0.01 | GY30: 0.01 | GZ30: 0.01 | HA30: 0.01 | HB30: 0.01 | HC30: 0.01 | HD30: =IF(HD22,HD29/HD22) -> 0.01 | HE30: 0.01 | HF30: 0.01 | HG30: 0.01 | HH30: 0.01 | HI30: 0.01 | HJ30: 0.01 | HK30: 0.01 | HL30: 0.01 | HM30: 0.01 | HN30: 0.01 | HO30: 0.01 | HP30: 0.01 | HQ30: 0.01 | HR30: 0.01 | HS30: 0.01 | HT30: 0.01 | HU30: 0.01 | HV30: 0.01 | HW30: 0.01 | HX30: 0.01 | HY30: 0.01 | HZ30: 0.01 | IA30: 0.01 | IB30: 0.01 | IC30: 0.01 | ID30: 0.01 | IE30: 0.01 | IF30: 0.01 | IG30: 0.01 | IH30: 0.01 | II30: 0.01 | IJ30: 0.01 | IK30: 0.01 | IL30: 0.01 | IM30: 0.01 | IN30: 0.01 | IO30: 0.01 | IP30: 0.01 | IQ30: 0.01 | IR30: 0.01 | IS30: 0.01 | IT30: 0.01 | IU30: 0.01 | IV30: 0.01 | IW30: 0.01 | IX30: 0.01 | IY30: 0.01 | IZ30: 0.01 | JA30: 0.01 | JB30: 0.01 | JC30: 0.01 | JD30: 0.01 | JE30: 0.01 | JF30: 0.01 | JG30: 0.01 | JH30: 0.01 | JI30: 0.01 | JJ30: 0.01 | JK30: 0.01 | JL30: 0.01 | JM30: 0.01 | JN30: 0.01 | JO30: 0.01 | JP30: =IF(JP22,JP29/JP22) -> 0.01 | JQ30: 0.01 | JR30: 0.01 | JS30: 0.01 | JT30: 0.01 | JU30: 0.01 | JV30: 0.01 | JW30: 0.01 | JX30: 0.01 | JY30: 0.01 | JZ30: 0.01 | KA30: 0.01 | KB30: 0.01 | KC30: 0.01 | KD30: 0.01 | KE30: 0.01 | KF30: 0.01 | KG30: 0.3433333333 | KH30: 0.01 | KI30: 0.01 | KJ30: 0.01 | KK30: 0.01 | KL30: 0.01 | KM30: 0.01 | KN30: 0.01 | KO30: 0.01 | KP30: 0.01 | KQ30: 0.01 | KR30: 0.01 | KS30: 0.01 | KT30: 0.01 | KU30: 0.01 | KV30: 0.01 | KW30: 0.01 | KX30: 0.01 | KY30: 0.01 | KZ30: 0.01 | LA30: 0.01 | LB30: 0.01 | LC30: 0.01 | LD30: 0.01 | LE30: 0.01 | LF30: 0.01 | LG30: 0.01 | LH30: 0.01 | LI30: 0.01 | LJ30: 0.01 | LK30: 0.01 | LL30: 0.01 | LM30: 0.01 | LN30: 0.01 | LO30: 0.01 | LP30: 0.01 | LQ30: 0.01 | LR30: 0.01 | LS30: 0.01 | LT30: 0.01 | LU30: 0.01 | LV30: 0.01 | LW30: 0.01 | LX30: 0.01 | LY30: 0.01 | LZ30: 0.01 | MA30: 0.01 | MB30: =IF(MB22,MB29/MB22) -> 0.01 | MC30: 0.01 | MD30: 0.01 | ME30: 0.01 | MF30: 0.01 | MG30: 0.01 | MH30: 0.01 | MI30: 0.01 | MJ30: 0.01 | MK30: 0.01 | ML30: 0.01 | MM30: 0.01 | MN30: 0.01 | MO30: 0.01 | MP30: 0.01 | MQ30: 0.01 | MR30: 0.01 | MS30: 0.01 | MT30: 0.01 | MU30: 0.01 | MV30: 0.01 | MW30: 0.01 | MX30: 0.01 | MY30: 0.01 | MZ30: 0.01 | NA30: 0.01 | NB30: 0.01 | NC30: 0.01 | ND30: 0.01 | NE30: 0.01 | NF30: 0.01 | NG30: 0.01 | NH30: 0.01 | NI30: 0.01 | NJ30: 0.01 | NK30: 0.01 | NL30: 0.01 | NM30: 0.01 | NN30: 0.01 | NO30: 0.01 | NP30: 0.01 | NQ30: 0.01 | NR30: 0.01 | NS30: 0.01 | NT30: 0.01 | NU30: 0.01 | NV30: 0.01 | NW30: 0.01 | NX30: 0.01 | NY30: 0.01 | NZ30: 0.01 | OA30: 0.01 | OB30: 0.01 | OC30: 0.01 | OD30: 0.01 | OE30: 0.01 | OF30: 0.01 | OG30: 0.01 | OH30: 0.01 | OI30: 0.01 | OJ30: 0.01 | OK30: 0.01 | OL30: 0.01 | OM30: 0.01 | ON30: =IF(ON22,ON29/ON22) -> 0.01 | OO30: 0.01 | OP30: 0.01 | OQ30: 0.01 | OR30: 0.01 | OS30: 0.01 | OT30: 0.01 | OU30: 0.01 | OV30: 0.01 | OW30: 0.01 | OX30: 0.01 | OY30: 0.01 | OZ30: 0.01 | PA30: 0.01 | PB30: 0.01 | PC30: 0.01 | PD30: 0.01 | PE30: 0.3325806452 | PF30: 0.01 | PG30: 0.01 | PH30: 0.01 | PI30: 0.01 | PJ30: 0 | PK30: 0 | PL30: 0 | PM30: 0 | PN30: 0 | PO30: 0 | PP30: 0 | PQ30: 0 | PR30: 0 | PS30: 0 | PT30: 0 | PU30: 0 | PV30: 0 | PW30: 0 | PX30: 0 | PY30: 0 | PZ30: 0 | QA30: 0 | QB30: 0 | QC30: 0 | QD30: 0 | QE30: 0 | QF30: 0 | QG30: 0 | QH30: 0 | QI30: 0 | QJ30: 0 | QK30: 0 | QL30: 0
D31: Net Capacity Factor after Availability | F31: % | L31: =L24*(1-L30) -> 0 | M31: =M24*(1-M30) -> 0 | N31: 0 | O31: 0 | P31: 0 | Q31: 0 | R31: 0 | S31: 0 | T31: 0 | U31: 0 | V31: 0 | W31: 0 | X31: 0 | Y31: 0 | Z31: 0 | AA31: 0 | AB31: 0 | AC31: 0 | AD31: 0 | AE31: 0 | AF31: 0 | AG31: 0 | AH31: 0 | AI31: 0 | AJ31: 0 | AK31: 0 | AL31: 0 | AM31: 0 | AN31: 0 | AO31: 0 | AP31: 0.5742 | AQ31: 0.5742 | AR31: 0.5742 | AS31: 0.5742 | AT31: 0.5742 | AU31: 0.5742 | AV31: 0.5742 | AW31: 0.5742 | AX31: 0.5742 | AY31: 0.5742 | AZ31: 0.5742 | BA31: 0.5742 | BB31: 0.5742 | BC31: 0.5742 | BD31: 0.5742 | BE31: 0.5742 | BF31: 0.5742 | BG31: 0.5742 | BH31: 0.5742 | BI31: 0.5742 | BJ31: 0.5742 | BK31: 0.5742 | BL31: 0.5742 | BM31: 0.5742 | BN31: 0.5742 | BO31: 0.5742 | BP31: 0.5742 | BQ31: 0.5742 | BR31: 0.5742 | BS31: 0.5742 | BT31: 0.5742 | BU31: 0.5742 | BV31: 0.5742 | BW31: 0.5742 | BX31: 0.5742 | BY31: =BY24*(1-BY30) -> 0.5742 | BZ31: 0.5742 | CA31: 0.5742 | CB31: 0.5742 | CC31: 0.5742 | CD31: 0.5742 | CE31: 0.5742 | CF31: 0.5742 | CG31: 0.5742 | CH31: 0.5742 | CI31: 0.5742 | CJ31: 0.5742 | CK31: 0.5742 | CL31: 0.5445 | CM31: 0.5445 | CN31: 0.5445 | CO31: 0.5445 | CP31: 0.5445 | CQ31: 0.5445 | CR31: 0.5445 | CS31: 0.5445 | CT31: 0.5445 | CU31: 0.5445 | CV31: 0.5445 | CW31: 0.5445 | CX31: 0.5445 | CY31: 0.5445 | CZ31: 0.5445 | DA31: 0.5445 | DB31: 0.5445 | DC31: 0.5445 | DD31: 0.5445 | DE31: 0.5445 | DF31: 0.5445 | DG31: 0.5445 | DH31: 0.5445 | DI31: 0.5445 | DJ31: 0.5445 | DK31: 0.5445 | DL31: 0.5445 | DM31: 0.5445 | DN31: 0.5445 | DO31: 0.5445 | DP31: 0.5445 | DQ31: 0.5445 | DR31: 0.5445 | DS31: 0.5445 | DT31: 0.5445 | DU31: 0.5445 | DV31: 0.5445 | DW31: 0.5445 | DX31: 0.5445 | DY31: 0.5445 | DZ31: 0.5445 | EA31: 0.5445 | EB31: 0.5445 | EC31: 0.5445 | ED31: 0.5445 | EE31: 0.5445 | EF31: 0.5445 | EG31: 0.5445 | EH31: 0.5445 | EI31: 0.5445 | EJ31: 0.5445 | EK31: =EK24*(1-EK30) -> 0.5445 | EL31: 0.5445 | EM31: 0.5445 | EN31: 0.5445 | EO31: 0.5445 | EP31: 0.5445 | EQ31: 0.5445 | ER31: 0.5445 | ES31: 0.5445 | ET31: 0.495 | EU31: 0.495 | EV31: 0.495 | EW31: 0.495 | EX31: 0.495 | EY31: 0.495 | EZ31: 0.495 | FA31: 0.495 | FB31: 0.495 | FC31: 0.495 | FD31: 0.495 | FE31: 0.3283333333 | FF31: 0.495 | FG31: 0.495 | FH31: 0.495 | FI31: 0.495 | FJ31: 0.495 | FK31: 0.495 | FL31: 0.495 | FM31: 0.495 | FN31: 0.495 | FO31: 0.495 | FP31: 0.495 | FQ31: 0.495 | FR31: 0.495 | FS31: 0.495 | FT31: 0.495 | FU31: 0.495 | FV31: 0.495 | FW31: 0.495 | FX31: 0.495 | FY31: 0.495 | FZ31: 0.495 | GA31: 0.495 | GB31: 0.495 | GC31: 0.495 | GD31: 0.495 | GE31: 0.495 | GF31: 0.495 | GG31: 0.495 | GH31: 0.495 | GI31: 0.495 | GJ31: 0.495 | GK31: 0.495 | GL31: 0.495 | GM31: 0.495 | GN31: 0.495 | GO31: 0.495 | GP31: 0.495 | GQ31: 0.495 | GR31: 0.495 | GS31: 0.495 | GT31: 0.495 | GU31: 0.495 | GV31: 0.495 | GW31: =GW24*(1-GW30) -> 0.495 | GX31: 0.495 | GY31: 0.495 | GZ31: 0.495 | HA31: 0.495 | HB31: 0.495 | HC31: 0.495 | HD31: =HD24*(1-HD30) -> 0.495 | HE31: 0.495 | HF31: 0.495 | HG31: 0.495 | HH31: 0.495 | HI31: 0.495 | HJ31: 0.495 | HK31: 0.495 | HL31: 0.495 | HM31: 0.495 | HN31: 0.495 | HO31: 0.495 | HP31: 0.495 | HQ31: 0.495 | HR31: 0.495 | HS31: 0.495 | HT31: 0.495 | HU31: 0.495 | HV31: 0.495 | HW31: 0.495 | HX31: 0.495 | HY31: 0.495 | HZ31: 0.495 | IA31: 0.495 | IB31: 0.495 | IC31: 0.495 | ID31: 0.495 | IE31: 0.495 | IF31: 0.495 | IG31: 0.495 | IH31: 0.495 | II31: 0.495 | IJ31: 0.495 | IK31: 0.495 | IL31: 0.495 | IM31: 0.495 | IN31: 0.495 | IO31: 0.495 | IP31: 0.495 | IQ31: 0.495 | IR31: 0.495 | IS31: 0.495 | IT31: 0.495 | IU31: 0.495 | IV31: 0.495 | IW31: 0.495 | IX31: 0.495 | IY31: 0.495 | IZ31: 0.495 | JA31: 0.495 | JB31: 0.495 | JC31: 0.495 | JD31: 0.495 | JE31: 0.495 | JF31: 0.495 | JG31: 0.495 | JH31: 0.495 | JI31: 0.495 | JJ31: 0.5148 | JK31: 0.5148 | JL31: 0.5148 | JM31: 0.5148 | JN31: 0.5148 | JO31: 0.5148 | JP31: =JP24*(1-JP30) -> 0.5148 | JQ31: 0.5148 | JR31: 0.5148 | JS31: 0.5148 | JT31: 0.5148 | JU31: 0.5148 | JV31: 0.5148 | JW31: 0.5148 | JX31: 0.5148 | JY31: 0.5148 | JZ31: 0.5148 | KA31: 0.5148 | KB31: 0.5148 | KC31: 0.5148 | KD31: 0.5148 | KE31: 0.5148 | KF31: 0.5148 | KG31: 0.3414666667 | KH31: 0.5148 | KI31: 0.5148 | KJ31: 0.5148 | KK31: 0.5148 | KL31: 0.5148 | KM31: 0.5148 | KN31: 0.5148 | KO31: 0.5148 | KP31: 0.5148 | KQ31: 0.5148 | KR31: 0.5148 | KS31: 0.5148 | KT31: 0.5148 | KU31: 0.5148 | KV31: 0.5148 | KW31: 0.5148 | KX31: 0.5148 | KY31: 0.5148 | KZ31: 0.5148 | LA31: 0.5148 | LB31: 0.5148 | LC31: 0.5148 | LD31: 0.5148 | LE31: 0.5148 | LF31: 0.5148 | LG31: 0.5148 | LH31: 0.5148 | LI31: 0.5148 | LJ31: 0.5148 | LK31: 0.5148 | LL31: 0.5148 | LM31: 0.5148 | LN31: 0.5148 | LO31: 0.5148 | LP31: 0.5148 | LQ31: 0.5148 | LR31: 0.5148 | LS31: 0.5148 | LT31: 0.5148 | LU31: 0.5148 | LV31: 0.5148 | LW31: 0.5148 | LX31: 0.5148 | LY31: 0.5148 | LZ31: 0.5148 | MA31: 0.5148 | MB31: =MB24*(1-MB30) -> 0.5148 | MC31: 0.5148 | MD31: 0.5148 | ME31: 0.5148 | MF31: 0.5148 | MG31: 0.5148 | MH31: 0.5148 | MI31: 0.5148 | MJ31: 0.5148 | MK31: 0.5148 | ML31: 0.5148 | MM31: 0.5148 | MN31: 0.5148 | MO31: 0.5148 | MP31: 0.5148 | MQ31: 0.5148 | MR31: 0.5148 | MS31: 0.5148 | MT31: 0.5148 | MU31: 0.5148 | MV31: 0.5148 | MW31: 0.5148 | MX31: 0.5148 | MY31: 0.5148 | MZ31: 0.5148 | NA31: 0.5148 | NB31: 0.5148 | NC31: 0.5148 | ND31: 0.5148 | NE31: 0.5148 | NF31: 0.5148 | NG31: 0.5148 | NH31: 0.5148 | NI31: 0.5148 | NJ31: 0.5148 | NK31: 0.5148 | NL31: 0.5148 | NM31: 0.5148 | NN31: 0.5148 | NO31: 0.5148 | NP31: 0.5148 | NQ31: 0.5148 | NR31: 0.5148 | NS31: 0.5148 | NT31: 0.5148 | NU31: 0.5148 | NV31: 0.5148 | NW31: 0.5148 | NX31: 0.5148 | NY31: 0.5148 | NZ31: 0.5148 | OA31: 0.5148 | OB31: 0.5148 | OC31: 0.5148 | OD31: 0.5148 | OE31: 0.5148 | OF31: 0.5148 | OG31: 0.5148 | OH31: 0.5148 | OI31: 0.5148 | OJ31: 0.5148 | OK31: 0.5148 | OL31: 0.5148 | OM31: 0.5148 | ON31: =ON24*(1-ON30) -> 0.5148 | OO31: 0.5148 | OP31: 0.5148 | OQ31: 0.5148 | OR31: 0.5148 | OS31: 0.5148 | OT31: 0.5148 | OU31: 0.5148 | OV31: 0.5148 | OW31: 0.5148 | OX31: 0.5148 | OY31: 0.5148 | OZ31: 0.5148 | PA31: 0.5148 | PB31: 0.5148 | PC31: 0.5148 | PD31: 0.5148 | PE31: 0.3470580645 | PF31: 0.5148 | PG31: 0.5148 | PH31: 0.5148 | PI31: 0.5148 | PJ31: 0.52 | PK31: 0.52 | PL31: 0.52 | PM31: 0.52 | PN31: 0.52 | PO31: 0.52 | PP31: 0.52 | PQ31: 0.52 | PR31: 0.52 | PS31: 0.52 | PT31: 0.52 | PU31: 0.52 | PV31: 0.52 | PW31: 0.52 | PX31: 0.52 | PY31: 0.52 | PZ31: 0.52 | QA31: 0.52 | QB31: 0.52 | QC31: 0.52 | QD31: 0.52 | QE31: 0.52 | QF31: 0.52 | QG31: 0.52 | QH31: 0.52 | QI31: 0.52 | QJ31: 0.52 | QK31: 0.52 | QL31: 0.52
B33: Plant Operation
C34: Hours of Operation | F34: Hours | L34: =L22*L31 -> 0 | M34: =M22*M31 -> 0 | N34: 0 | O34: 0 | P34: 0 | Q34: 0 | R34: 0 | S34: 0 | T34: 0 | U34: 0 | V34: 0 | W34: 0 | X34: 0 | Y34: 0 | Z34: 0 | AA34: 0 | AB34: 0 | AC34: 0 | AD34: 0 | AE34: 0 | AF34: 0 | AG34: 0 | AH34: 0 | AI34: 0 | AJ34: 0 | AK34: 0 | AL34: 0 | AM34: 0 | AN34: 0 | AO34: 0 | AP34: 427.2048 | AQ34: 413.424 | AR34: 427.2048 | AS34: 427.2048 | AT34: 385.8624 | AU34: 427.2048 | AV34: 413.424 | AW34: 427.2048 | AX34: 413.424 | AY34: 427.2048 | AZ34: 427.2048 | BA34: 413.424 | BB34: 427.2048 | BC34: 413.424 | BD34: 427.2048 | BE34: 427.2048 | BF34: 399.6432 | BG34: 427.2048 | BH34: 413.424 | BI34: 427.2048 | BJ34: 413.424 | BK34: 427.2048 | BL34: 427.2048 | BM34: 413.424 | BN34: 427.2048 | BO34: 413.424 | BP34: 427.2048 | BQ34: 427.2048 | BR34: 385.8624 | BS34: 427.2048 | BT34: 413.424 | BU34: 427.2048 | BV34: 413.424 | BW34: 427.2048 | BX34: 427.2048 | BY34: =BY22*BY31 -> 413.424 | BZ34: 427.2048 | CA34: 413.424 | CB34: 427.2048 | CC34: 427.2048 | CD34: 385.8624 | CE34: 427.2048 | CF34: 413.424 | CG34: 427.2048 | CH34: 413.424 | CI34: 427.2048 | CJ34: 427.2048 | CK34: 413.424 | CL34: 405.108 | CM34: 392.04 | CN34: 405.108 | CO34: 405.108 | CP34: 365.904 | CQ34: 405.108 | CR34: 392.04 | CS34: 405.108 | CT34: 392.04 | CU34: 405.108 | CV34: 405.108 | CW34: 392.04 | CX34: 405.108 | CY34: 392.04 | CZ34: 405.108 | DA34: 405.108 | DB34: 378.972 | DC34: 405.108 | DD34: 392.04 | DE34: 405.108 | DF34: 392.04 | DG34: 405.108 | DH34: 405.108 | DI34: 392.04 | DJ34: 405.108 | DK34: 392.04 | DL34: 405.108 | DM34: 405.108 | DN34: 365.904 | DO34: 405.108 | DP34: 392.04 | DQ34: 405.108 | DR34: 392.04 | DS34: 405.108 | DT34: 405.108 | DU34: 392.04 | DV34: 405.108 | DW34: 392.04 | DX34: 405.108 | DY34: 405.108 | DZ34: 365.904 | EA34: 405.108 | EB34: 392.04 | EC34: 405.108 | ED34: 392.04 | EE34: 405.108 | EF34: 405.108 | EG34: 392.04 | EH34: 405.108 | EI34: 392.04 | EJ34: 405.108 | EK34: =EK22*EK31 -> 405.108 | EL34: 365.904 | EM34: 405.108 | EN34: 392.04 | EO34: 405.108 | EP34: 392.04 | EQ34: 405.108 | ER34: 405.108 | ES34: 392.04 | ET34: 368.28 | EU34: 356.4 | EV34: 368.28 | EW34: 368.28 | EX34: 344.52 | EY34: 368.28 | EZ34: 356.4 | FA34: 368.28 | FB34: 356.4 | FC34: 368.28 | FD34: 368.28 | FE34: 236.4 | FF34: 368.28 | FG34: 356.4 | FH34: 368.28 | FI34: 368.28 | FJ34: 332.64 | FK34: 368.28 | FL34: 356.4 | FM34: 368.28 | FN34: 356.4 | FO34: 368.28 | FP34: 368.28 | FQ34: 356.4 | FR34: 368.28 | FS34: 356.4 | FT34: 368.28 | FU34: 368.28 | FV34: 332.64 | FW34: 368.28 | FX34: 356.4 | FY34: 368.28 | FZ34: 356.4 | GA34: 368.28 | GB34: 368.28 | GC34: 356.4 | GD34: 368.28 | GE34: 356.4 | GF34: 368.28 | GG34: 368.28 | GH34: 332.64 | GI34: 368.28 | GJ34: 356.4 | GK34: 368.28 | GL34: 356.4 | GM34: 368.28 | GN34: 368.28 | GO34: 356.4 | GP34: 368.28 | GQ34: 356.4 | GR34: 368.28 | GS34: 368.28 | GT34: 344.52 | GU34: 368.28 | GV34: 356.4 | GW34: =GW22*GW31 -> 368.28 | GX34: 356.4 | GY34: 368.28 | GZ34: 368.28 | HA34: 356.4 | HB34: 368.28 | HC34: 356.4 | HD34: 368.28 | HE34: 368.28 | HF34: 332.64 | HG34: 368.28 | HH34: 356.4 | HI34: 368.28 | HJ34: 356.4 | HK34: 368.28 | HL34: 368.28 | HM34: 356.4 | HN34: 368.28 | HO34: 356.4 | HP34: 368.28 | HQ34: 368.28 | HR34: 332.64 | HS34: 368.28 | HT34: 356.4 | HU34: 368.28 | HV34: 356.4 | HW34: 368.28 | HX34: 368.28 | HY34: 356.4 | HZ34: 368.28 | IA34: 356.4 | IB34: 368.28 | IC34: 368.28 | ID34: 332.64 | IE34: 368.28 | IF34: 356.4 | IG34: 368.28 | IH34: 356.4 | II34: 368.28 | IJ34: 368.28 | IK34: 356.4 | IL34: 368.28 | IM34: 356.4 | IN34: 368.28 | IO34: 368.28 | IP34: 344.52 | IQ34: 368.28 | IR34: 356.4 | IS34: 368.28 | IT34: 356.4 | IU34: 368.28 | IV34: 368.28 | IW34: 356.4 | IX34: 368.28 | IY34: 356.4 | IZ34: 368.28 | JA34: 368.28 | JB34: 332.64 | JC34: 368.28 | JD34: 356.4 | JE34: 368.28 | JF34: 356.4 | JG34: 368.28 | JH34: 368.28 | JI34: =JI22*JI31 -> 356.4 | JJ34: 383.0112 | JK34: 370.656 | JL34: 383.0112 | JM34: 383.0112 | JN34: 345.9456 | JO34: 383.0112 | JP34: 370.656 | JQ34: 383.0112 | JR34: 370.656 | JS34: 383.0112 | JT34: 383.0112 | JU34: 370.656 | JV34: 383.0112 | JW34: 370.656 | JX34: 383.0112 | JY34: 383.0112 | JZ34: 345.9456 | KA34: 383.0112 | KB34: 370.656 | KC34: 383.0112 | KD34: 370.656 | KE34: 383.0112 | KF34: 383.0112 | KG34: 245.856 | KH34: 383.0112 | KI34: 370.656 | KJ34: 383.0112 | KK34: 383.0112 | KL34: 358.3008 | KM34: 383.0112 | KN34: 370.656 | KO34: 383.0112 | KP34: 370.656 | KQ34: 383.0112 | KR34: 383.0112 | KS34: 370.656 | KT34: 383.0112 | KU34: 370.656 | KV34: 383.0112 | KW34: 383.0112 | KX34: 345.9456 | KY34: 383.0112 | KZ34: 370.656 | LA34: 383.0112 | LB34: 370.656 | LC34: 383.0112 | LD34: 383.0112 | LE34: 370.656 | LF34: 383.0112 | LG34: 370.656 | LH34: 383.0112 | LI34: 383.0112 | LJ34: 345.9456 | LK34: 383.0112 | LL34: 370.656 | LM34: 383.0112 | LN34: 370.656 | LO34: 383.0112 | LP34: 383.0112 | LQ34: 370.656 | LR34: 383.0112 | LS34: 370.656 | LT34: 383.0112 | LU34: =LU22*LU31 -> 383.0112 | LV34: 345.9456 | LW34: 383.0112 | LX34: 370.656 | LY34: 383.0112 | LZ34: 370.656 | MA34: 383.0112 | MB34: 383.0112 | MC34: 370.656 | MD34: 383.0112 | ME34: 370.656 | MF34: 383.0112 | MG34: 383.0112 | MH34: 358.3008 | MI34: 383.0112 | MJ34: 370.656 | MK34: 383.0112 | ML34: 370.656 | MM34: 383.0112 | MN34: 383.0112 | MO34: 370.656 | MP34: 383.0112 | MQ34: 370.656 | MR34: 383.0112 | MS34: 383.0112 | MT34: 345.9456 | MU34: 383.0112 | MV34: 370.656 | MW34: 383.0112 | MX34: 370.656 | MY34: 383.0112 | MZ34: 383.0112 | NA34: 370.656 | NB34: 383.0112 | NC34: 370.656 | ND34: 383.0112 | NE34: 383.0112 | NF34: 345.9456 | NG34: 383.0112 | NH34: 370.656 | NI34: 383.0112 | NJ34: 370.656 | NK34: 383.0112 | NL34: 383.0112 | NM34: 370.656 | NN34: 383.0112 | NO34: 370.656 | NP34: 383.0112 | NQ34: 383.0112 | NR34: 345.9456 | NS34: 383.0112 | NT34: 370.656 | NU34: 383.0112 | NV34: 370.656 | NW34: 383.0112 | NX34: 383.0112 | NY34: 370.656 | NZ34: 383.0112 | OA34: 370.656 | OB34: 383.0112 | OC34: 383.0112 | OD34: 358.3008 | OE34: 383.0112 | OF34: 370.656 | OG34: =OG22*OG31 -> 383.0112 | OH34: 370.656 | OI34: 383.0112 | OJ34: 383.0112 | OK34: 370.656 | OL34: 383.0112 | OM34: 370.656 | ON34: 383.0112 | OO34: 383.0112 | OP34: 345.9456 | OQ34: 383.0112 | OR34: 370.656 | OS34: 383.0112 | OT34: 370.656 | OU34: 383.0112 | OV34: 383.0112 | OW34: 370.656 | OX34: 383.0112 | OY34: 370.656 | OZ34: 383.0112 | PA34: 383.0112 | PB34: 345.9456 | PC34: 383.0112 | PD34: 370.656 | PE34: 258.2112 | PF34: 370.656 | PG34: 383.0112 | PH34: 383.0112 | PI34: 370.656 | PJ34: 386.88 | PK34: 374.4 | PL34: 386.88 | PM34: 386.88 | PN34: 349.44 | PO34: 386.88 | PP34: 374.4 | PQ34: 386.88 | PR34: 374.4 | PS34: 386.88 | PT34: 386.88 | PU34: 374.4 | PV34: 386.88 | PW34: 374.4 | PX34: 386.88 | PY34: 386.88 | PZ34: 361.92 | QA34: 386.88 | QB34: 374.4 | QC34: 386.88 | QD34: 374.4 | QE34: 386.88 | QF34: 386.88 | QG34: 374.4 | QH34: 386.88 | QI34: 374.4 | QJ34: 386.88 | QK34: 386.88 | QL34: 349.44
C35: Accumulated Hours of Operation | F35: Hours | L35: =K35+L34 -> 0 | M35: =L35+M34 -> 0 | N35: 0 | O35: 0 | P35: 0 | Q35: 0 | R35: 0 | S35: 0 | T35: 0 | U35: 0 | V35: 0 | W35: 0 | X35: 0 | Y35: 0 | Z35: 0 | AA35: 0 | AB35: 0 | AC35: 0 | AD35: 0 | AE35: 0 | AF35: 0 | AG35: 0 | AH35: 0 | AI35: 0 | AJ35: 0 | AK35: 0 | AL35: 0 | AM35: 0 | AN35: 0 | AO35: 0 | AP35: 427.2048 | AQ35: 840.6288 | AR35: 1267.8336 | AS35: 1695.0384 | AT35: 2080.9008 | AU35: 2508.1056 | AV35: 2921.5296 | AW35: 3348.7344 | AX35: 3762.1584 | AY35: 4189.3632 | AZ35: 4616.568 | BA35: 5029.992 | BB35: 5457.1968 | BC35: 5870.6208 | BD35: 6297.8256 | BE35: 6725.0304 | BF35: 7124.6736 | BG35: 7551.8784 | BH35: 7965.3024 | BI35: 8392.5072 | BJ35: 8805.9312 | BK35: 9233.136 | BL35: 9660.3408 | BM35: 10073.7648 | BN35: 10500.9696 | BO35: 10914.3936 | BP35: 11341.5984 | BQ35: 11768.8032 | BR35: 12154.6656 | BS35: 12581.8704 | BT35: 12995.2944 | BU35: 13422.4992 | BV35: 13835.9232 | BW35: 14263.128 | BX35: 14690.3328 | BY35: =BX35+BY34 -> 15103.7568 | BZ35: 15530.9616 | CA35: 15944.3856 | CB35: 16371.5904 | CC35: 16798.7952 | CD35: 17184.6576 | CE35: 17611.8624 | CF35: 18025.2864 | CG35: 18452.4912 | CH35: 18865.9152 | CI35: 19293.12 | CJ35: 19720.3248 | CK35: 20133.7488 | CL35: 20538.8568 | CM35: 20930.8968 | CN35: 21336.0048 | CO35: 21741.1128 | CP35: 22107.0168 | CQ35: 22512.1248 | CR35: 22904.1648 | CS35: 23309.2728 | CT35: 23701.3128 | CU35: 24106.4208 | CV35: 24511.5288 | CW35: 24903.5688 | CX35: 25308.6768 | CY35: 25700.7168 | CZ35: 26105.8248 | DA35: 26510.9328 | DB35: 26889.9048 | DC35: 27295.0128 | DD35: 27687.0528 | DE35: 28092.1608 | DF35: 28484.2008 | DG35: 28889.3088 | DH35: 29294.4168 | DI35: 29686.4568 | DJ35: 30091.5648 | DK35: 30483.6048 | DL35: 30888.7128 | DM35: 31293.8208 | DN35: 31659.7248 | DO35: 32064.8328 | DP35: 32456.8728 | DQ35: 32861.9808 | DR35: 33254.0208 | DS35: 33659.1288 | DT35: 34064.2368 | DU35: 34456.2768 | DV35: 34861.3848 | DW35: 35253.4248 | DX35: 35658.5328 | DY35: 36063.6408 | DZ35: 36429.5448 | EA35: 36834.6528 | EB35: 37226.6928 | EC35: 37631.8008 | ED35: 38023.8408 | EE35: 38428.9488 | EF35: 38834.0568 | EG35: 39226.0968 | EH35: 39631.2048 | EI35: 40023.2448 | EJ35: 40428.3528 | EK35: =EJ35+EK34 -> 40833.4608 | EL35: 41199.3648 | EM35: 41604.4728 | EN35: 41996.5128 | EO35: 42401.6208 | EP35: 42793.6608 | EQ35: 43198.7688 | ER35: 43603.8768 | ES35: 43995.9168 | ET35: 44364.1968 | EU35: 44720.5968 | EV35: 45088.8768 | EW35: 45457.1568 | EX35: 45801.6768 | EY35: 46169.9568 | EZ35: 46526.3568 | FA35: 46894.6368 | FB35: 47251.0368 | FC35: 47619.3168 | FD35: 47987.5968 | FE35: 48223.9968 | FF35: 48592.2768 | FG35: 48948.6768 | FH35: 49316.9568 | FI35: 49685.2368 | FJ35: 50017.8768 | FK35: 50386.1568 | FL35: 50742.5568 | FM35: 51110.8368 | FN35: 51467.2368 | FO35: 51835.5168 | FP35: 52203.7968 | FQ35: 52560.1968 | FR35: 52928.4768 | FS35: 53284.8768 | FT35: 53653.1568 | FU35: 54021.4368 | FV35: 54354.0768 | FW35: 54722.3568 | FX35: 55078.7568 | FY35: 55447.0368 | FZ35: 55803.4368 | GA35: 56171.7168 | GB35: 56539.9968 | GC35: 56896.3968 | GD35: 57264.6768 | GE35: 57621.0768 | GF35: 57989.3568 | GG35: 58357.6368 | GH35: 58690.2768 | GI35: 59058.5568 | GJ35: 59414.9568 | GK35: 59783.2368 | GL35: 60139.6368 | GM35: 60507.9168 | GN35: 60876.1968 | GO35: 61232.5968 | GP35: 61600.8768 | GQ35: 61957.2768 | GR35: 62325.5568 | GS35: 62693.8368 | GT35: 63038.3568 | GU35: 63406.6368 | GV35: 63763.0368 | GW35: =GV35+GW34 -> 64131.3168 | GX35: 64487.7168 | GY35: 64855.9968 | GZ35: 65224.2768 | HA35: 65580.6768 | HB35: 65948.9568 | HC35: 66305.3568 | HD35: =HC35+HD34 -> 66673.6368 | HE35: 67041.9168 | HF35: 67374.5568 | HG35: 67742.8368 | HH35: 68099.2368 | HI35: 68467.5168 | HJ35: 68823.9168 | HK35: 69192.1968 | HL35: 69560.4768 | HM35: 69916.8768 | HN35: 70285.1568 | HO35: 70641.5568 | HP35: 71009.8368 | HQ35: 71378.1168 | HR35: 71710.7568 | HS35: 72079.0368 | HT35: 72435.4368 | HU35: 72803.7168 | HV35: 73160.1168 | HW35: 73528.3968 | HX35: 73896.6768 | HY35: 74253.0768 | HZ35: 74621.3568 | IA35: 74977.7568 | IB35: 75346.0368 | IC35: 75714.3168 | ID35: 76046.9568 | IE35: 76415.2368 | IF35: 76771.6368 | IG35: 77139.9168 | IH35: 77496.3168 | II35: 77864.5968 | IJ35: 78232.8768 | IK35: 78589.2768 | IL35: 78957.5568 | IM35: 79313.9568 | IN35: 79682.2368 | IO35: 80050.5168 | IP35: 80395.0368 | IQ35: 80763.3168 | IR35: 81119.7168 | IS35: 81487.9968 | IT35: 81844.3968 | IU35: 82212.6768 | IV35: 82580.9568 | IW35: 82937.3568 | IX35: 83305.6368 | IY35: 83662.0368 | IZ35: 84030.3168 | JA35: 84398.5968 | JB35: 84731.2368 | JC35: 85099.5168 | JD35: 85455.9168 | JE35: 85824.1968 | JF35: 86180.5968 | JG35: 86548.8768 | JH35: 86917.1568 | JI35: 87273.5568 | JJ35: 87656.568 | JK35: 88027.224 | JL35: 88410.2352 | JM35: 88793.2464 | JN35: 89139.192 | JO35: 89522.2032 | JP35: =JO35+JP34 -> 89892.8592 | JQ35: 90275.8704 | JR35: 90646.5264 | JS35: 91029.5376 | JT35: 91412.5488 | JU35: 91783.2048 | JV35: 92166.216 | JW35: 92536.872 | JX35: 92919.8832 | JY35: 93302.8944 | JZ35: 93648.84 | KA35: 94031.8512 | KB35: 94402.5072 | KC35: 94785.5184 | KD35: 95156.1744 | KE35: 95539.1856 | KF35: 95922.1968 | KG35: 96168.0528 | KH35: 96551.064 | KI35: 96921.72 | KJ35: 97304.7312 | KK35: 97687.7424 | KL35: 98046.0432 | KM35: 98429.0544 | KN35: 98799.7104 | KO35: 99182.7216 | KP35: 99553.3776 | KQ35: 99936.3888 | KR35: 100319.4 | KS35: 100690.056 | KT35: 101073.0672 | KU35: 101443.7232 | KV35: 101826.7344 | KW35: 102209.7456 | KX35: 102555.6912 | KY35: 102938.7024 | KZ35: 103309.3584 | LA35: 103692.3696 | LB35: 104063.0256 | LC35: 104446.0368 | LD35: 104829.048 | LE35: 105199.704 | LF35: 105582.7152 | LG35: 105953.3712 | LH35: 106336.3824 | LI35: 106719.3936 | LJ35: 107065.3392 | LK35: 107448.3504 | LL35: 107819.0064 | LM35: 108202.0176 | LN35: 108572.6736 | LO35: 108955.6848 | LP35: 109338.696 | LQ35: 109709.352 | LR35: 110092.3632 | LS35: 110463.0192 | LT35: 110846.0304 | LU35: 111229.0416 | LV35: 111574.9872 | LW35: 111957.9984 | LX35: 112328.6544 | LY35: 112711.6656 | LZ35: 113082.3216 | MA35: 113465.3328 | MB35: =MA35+MB34 -> 113848.344 | MC35: 114219 | MD35: 114602.0112 | ME35: 114972.6672 | MF35: 115355.6784 | MG35: 115738.6896 | MH35: 116096.9904 | MI35: 116480.0016 | MJ35: 116850.6576 | MK35: 117233.6688 | ML35: 117604.3248 | MM35: 117987.336 | MN35: 118370.3472 | MO35: 118741.0032 | MP35: 119124.0144 | MQ35: 119494.6704 | MR35: 119877.6816 | MS35: 120260.6928 | MT35: 120606.6384 | MU35: 120989.6496 | MV35: 121360.3056 | MW35: 121743.3168 | MX35: 122113.9728 | MY35: 122496.984 | MZ35: 122879.9952 | NA35: 123250.6512 | NB35: 123633.6624 | NC35: 124004.3184 | ND35: 124387.3296 | NE35: 124770.3408 | NF35: 125116.2864 | NG35: 125499.2976 | NH35: 125869.9536 | NI35: 126252.9648 | NJ35: 126623.6208 | NK35: 127006.632 | NL35: 127389.6432 | NM35: 127760.2992 | NN35: 128143.3104 | NO35: 128513.9664 | NP35: 128896.9776 | NQ35: 129279.9888 | NR35: 129625.9344 | NS35: 130008.9456 | NT35: 130379.6016 | NU35: 130762.6128 | NV35: 131133.2688 | NW35: 131516.28 | NX35: 131899.2912 | NY35: 132269.9472 | NZ35: 132652.9584 | OA35: 133023.6144 | OB35: 133406.6256 | OC35: 133789.6368 | OD35: 134147.9376 | OE35: 134530.9488 | OF35: 134901.6048 | OG35: 135284.616 | OH35: 135655.272 | OI35: 136038.2832 | OJ35: 136421.2944 | OK35: 136791.9504 | OL35: 137174.9616 | OM35: 137545.6176 | ON35: =OM35+ON34 -> 137928.6288 | OO35: 138311.64 | OP35: 138657.5856 | OQ35: 139040.5968 | OR35: 139411.2528 | OS35: 139794.264 | OT35: 140164.92 | OU35: 140547.9312 | OV35: 140930.9424 | OW35: 141301.5984 | OX35: 141684.6096 | OY35: 142055.2656 | OZ35: 142438.2768 | PA35: 142821.288 | PB35: 143167.2336 | PC35: 143550.2448 | PD35: 143920.9008 | PE35: 144179.112 | PF35: 144549.768 | PG35: 144932.7792 | PH35: 145315.7904 | PI35: 145686.4464 | PJ35: 146073.3264 | PK35: 146447.7264 | PL35: 146834.6064 | PM35: 147221.4864 | PN35: 147570.9264 | PO35: 147957.8064 | PP35: 148332.2064 | PQ35: 148719.0864 | PR35: 149093.4864 | PS35: 149480.3664 | PT35: 149867.2464 | PU35: 150241.6464 | PV35: 150628.5264 | PW35: 151002.9264 | PX35: 151389.8064 | PY35: 151776.6864 | PZ35: 152138.6064 | QA35: 152525.4864 | QB35: 152899.8864 | QC35: 153286.7664 | QD35: 153661.1664 | QE35: 154048.0464 | QF35: 154434.9264 | QG35: 154809.3264 | QH35: 155196.2064 | QI35: 155570.6064 | QJ35: 155957.4864 | QK35: 156344.3664 | QL35: 156693.8064
C36: Remaining Hours | F36: Hours | G36: Sch Mnt | H36: =Assumptions!G30 -> 48000 | L36: =MOD(K35+K34,$H$36) -> 0 | M36: 0 | N36: 0 | O36: 0 | P36: 0 | Q36: 0 | R36: 0 | S36: 0 | T36: 0 | U36: 0 | V36: 0 | W36: 0 | X36: 0 | Y36: 0 | Z36: 0 | AA36: 0 | AB36: 0 | AC36: 0 | AD36: 0 | AE36: 0 | AF36: 0 | AG36: 0 | AH36: 0 | AI36: 0 | AJ36: 0 | AK36: 0 | AL36: 0 | AM36: 0 | AN36: 0 | AO36: 0 | AP36: 0 | AQ36: 854.4096 | AR36: =MOD(AQ35+AQ34,$H$36) -> 1254.0528 | AS36: 1695.0384 | AT36: 2122.2432 | AU36: 2466.7632 | AV36: 2935.3104 | AW36: 3334.9536 | AX36: 3775.9392 | AY36: 4175.5824 | AZ36: 4616.568 | BA36: 5043.7728 | BB36: 5443.416 | BC36: 5884.4016 | BD36: 6284.0448 | BE36: 6725.0304 | BF36: 7152.2352 | BG36: 7524.3168 | BH36: 7979.0832 | BI36: 8378.7264 | BJ36: 8819.712 | BK36: 9219.3552 | BL36: 9660.3408 | BM36: 10087.5456 | BN36: 10487.1888 | BO36: 10928.1744 | BP36: 11327.8176 | BQ36: 11768.8032 | BR36: 12196.008 | BS36: 12540.528 | BT36: 13009.0752 | BU36: 13408.7184 | BV36: 13849.704 | BW36: 14249.3472 | BX36: =MOD(BW35+BW34,$H$36) -> 14690.3328 | BY36: 15117.5376 | BZ36: 15517.1808 | CA36: 15958.1664 | CB36: 16357.8096 | CC36: 16798.7952 | CD36: 17226 | CE36: 17570.52 | CF36: 18039.0672 | CG36: 18438.7104 | CH36: 18879.696 | CI36: 19279.3392 | CJ36: 19720.3248 | CK36: 20147.5296 | CL36: 20547.1728 | CM36: 20943.9648 | CN36: 21322.9368 | CO36: 21741.1128 | CP36: 22146.2208 | CQ36: 22472.9208 | CR36: 22917.2328 | CS36: 23296.2048 | CT36: 23714.3808 | CU36: 24093.3528 | CV36: 24511.5288 | CW36: 24916.6368 | CX36: 25295.6088 | CY36: 25713.7848 | CZ36: 26092.7568 | DA36: 26510.9328 | DB36: 26916.0408 | DC36: 27268.8768 | DD36: =MOD(DC35+DC34,$H$36) -> 27700.1208 | DE36: 28079.0928 | DF36: 28497.2688 | DG36: 28876.2408 | DH36: 29294.4168 | DI36: 29699.5248 | DJ36: 30078.4968 | DK36: 30496.6728 | DL36: 30875.6448 | DM36: 31293.8208 | DN36: 31698.9288 | DO36: 32025.6288 | DP36: 32469.9408 | DQ36: 32848.9128 | DR36: 33267.0888 | DS36: 33646.0608 | DT36: 34064.2368 | DU36: 34469.3448 | DV36: 34848.3168 | DW36: 35266.4928 | DX36: 35645.4648 | DY36: 36063.6408 | DZ36: 36468.7488 | EA36: 36795.4488 | EB36: 37239.7608 | EC36: 37618.7328 | ED36: 38036.9088 | EE36: 38415.8808 | EF36: 38834.0568 | EG36: 39239.1648 | EH36: 39618.1368 | EI36: 40036.3128 | EJ36: =MOD(EI35+EI34,$H$36) -> 40415.2848 | EK36: 40833.4608 | EL36: 41238.5688 | EM36: 41565.2688 | EN36: 42009.5808 | EO36: 42388.5528 | EP36: 42806.7288 | EQ36: 43185.7008 | ER36: 43603.8768 | ES36: 44008.9848 | ET36: 44387.9568 | EU36: 44732.4768 | EV36: 45076.9968 | EW36: 45457.1568 | EX36: 45825.4368 | EY36: 46146.1968 | EZ36: 46538.2368 | FA36: 46882.7568 | FB36: 47262.9168 | FC36: 47607.4368 | FD36: 47987.5968 | FE36: 355.8768 | FF36: 460.3968 | FG36: 960.5568 | FH36: 1305.0768 | FI36: 1685.2368 | FJ36: 2053.5168 | FK36: 2350.5168 | FL36: 2754.4368 | FM36: 3098.9568 | FN36: 3479.1168 | FO36: 3823.6368 | FP36: =MOD(FO35+FO34,$H$36) -> 4203.7968 | FQ36: 4572.0768 | FR36: 4916.5968 | FS36: 5296.7568 | FT36: 5641.2768 | FU36: 6021.4368 | FV36: 6389.7168 | FW36: 6686.7168 | FX36: 7090.6368 | FY36: 7435.1568 | FZ36: 7815.3168 | GA36: 8159.8368 | GB36: 8539.9968 | GC36: 8908.2768 | GD36: 9252.7968 | GE36: 9632.9568 | GF36: 9977.4768 | GG36: 10357.6368 | GH36: 10725.9168 | GI36: 11022.9168 | GJ36: 11426.8368 | GK36: 11771.3568 | GL36: 12151.5168 | GM36: 12496.0368 | GN36: 12876.1968 | GO36: 13244.4768 | GP36: 13588.9968 | GQ36: 13969.1568 | GR36: 14313.6768 | GS36: 14693.8368 | GT36: 15062.1168 | GU36: 15382.8768 | GV36: =MOD(GU35+GU34,$H$36) -> 15774.9168 | GW36: 16119.4368 | GX36: 16499.5968 | GY36: 16844.1168 | GZ36: 17224.2768 | HA36: 17592.5568 | HB36: 17937.0768 | HC36: 18317.2368 | HD36: =MOD(HC35+HC34,$H$36) -> 18661.7568 | HE36: 19041.9168 | HF36: 19410.1968 | HG36: 19707.1968 | HH36: 20111.1168 | HI36: 20455.6368 | HJ36: 20835.7968 | HK36: 21180.3168 | HL36: 21560.4768 | HM36: 21928.7568 | HN36: 22273.2768 | HO36: 22653.4368 | HP36: 22997.9568 | HQ36: 23378.1168 | HR36: 23746.3968 | HS36: 24043.3968 | HT36: 24447.3168 | HU36: 24791.8368 | HV36: 25171.9968 | HW36: 25516.5168 | HX36: 25896.6768 | HY36: 26264.9568 | HZ36: 26609.4768 | IA36: 26989.6368 | IB36: 27334.1568 | IC36: 27714.3168 | ID36: 28082.5968 | IE36: 28379.5968 | IF36: 28783.5168 | IG36: 29128.0368 | IH36: 29508.1968 | II36: 29852.7168 | IJ36: 30232.8768 | IK36: 30601.1568 | IL36: 30945.6768 | IM36: 31325.8368 | IN36: 31670.3568 | IO36: 32050.5168 | IP36: 32418.7968 | IQ36: 32739.5568 | IR36: 33131.5968 | IS36: 33476.1168 | IT36: 33856.2768 | IU36: 34200.7968 | IV36: 34580.9568 | IW36: 34949.2368 | IX36: 35293.7568 | IY36: 35673.9168 | IZ36: 36018.4368 | JA36: 36398.5968 | JB36: 36766.8768 | JC36: 37063.8768 | JD36: 37467.7968 | JE36: 37812.3168 | JF36: 38192.4768 | JG36: 38536.9968 | JH36: 38917.1568 | JI36: 39285.4368 | JJ36: 39629.9568 | JK36: 40039.5792 | JL36: 40397.88 | JM36: 40793.2464 | JN36: 41176.2576 | JO36: 41485.1376 | JP36: =MOD(JO35+JO34,$H$36) -> 41905.2144 | JQ36: 42263.5152 | JR36: 42658.8816 | JS36: 43017.1824 | JT36: 43412.5488 | JU36: 43795.56 | JV36: 44153.8608 | JW36: 44549.2272 | JX36: 44907.528 | JY36: 45302.8944 | JZ36: 45685.9056 | KA36: 45994.7856 | KB36: 46414.8624 | KC36: 46773.1632 | KD36: 47168.5296 | KE36: 47526.8304 | KF36: 47922.1968 | KG36: 305.208 | KH36: 413.9088 | KI36: 934.0752 | KJ36: 1292.376 | KK36: 1687.7424 | KL36: 2070.7536 | KM36: 2404.344 | KN36: 2812.0656 | KO36: 3170.3664 | KP36: 3565.7328 | KQ36: 3924.0336 | KR36: 4319.4 | KS36: 4702.4112 | KT36: 5060.712 | KU36: 5456.0784 | KV36: 5814.3792 | KW36: 6209.7456 | KX36: 6592.7568 | KY36: 6901.6368 | KZ36: 7321.7136 | LA36: 7680.0144 | LB36: 8075.3808 | LC36: 8433.6816 | LD36: 8829.048 | LE36: 9212.0592 | LF36: 9570.36 | LG36: 9965.7264 | LH36: 10324.0272 | LI36: 10719.3936 | LJ36: 11102.4048 | LK36: 11411.2848 | LL36: 11831.3616 | LM36: 12189.6624 | LN36: 12585.0288 | LO36: 12943.3296 | LP36: 13338.696 | LQ36: 13721.7072 | LR36: 14080.008 | LS36: 14475.3744 | LT36: 14833.6752 | LU36: 15229.0416 | LV36: 15612.0528 | LW36: 15920.9328 | LX36: 16341.0096 | LY36: 16699.3104 | LZ36: 17094.6768 | MA36: 17452.9776 | MB36: =MOD(MA35+MA34,$H$36) -> 17848.344 | MC36: 18231.3552 | MD36: 18589.656 | ME36: 18985.0224 | MF36: 19343.3232 | MG36: 19738.6896 | MH36: 20121.7008 | MI36: 20455.2912 | MJ36: 20863.0128 | MK36: 21221.3136 | ML36: 21616.68 | MM36: 21974.9808 | MN36: 22370.3472 | MO36: 22753.3584 | MP36: 23111.6592 | MQ36: 23507.0256 | MR36: 23865.3264 | MS36: 24260.6928 | MT36: 24643.704 | MU36: 24952.584 | MV36: 25372.6608 | MW36: 25730.9616 | MX36: 26126.328 | MY36: 26484.6288 | MZ36: 26879.9952 | NA36: 27263.0064 | NB36: 27621.3072 | NC36: 28016.6736 | ND36: 28374.9744 | NE36: 28770.3408 | NF36: 29153.352 | NG36: 29462.232 | NH36: 29882.3088 | NI36: 30240.6096 | NJ36: 30635.976 | NK36: 30994.2768 | NL36: 31389.6432 | NM36: 31772.6544 | NN36: 32130.9552 | NO36: 32526.3216 | NP36: 32884.6224 | NQ36: 33279.9888 | NR36: 33663 | NS36: 33971.88 | NT36: 34391.9568 | NU36: 34750.2576 | NV36: 35145.624 | NW36: 35503.9248 | NX36: 35899.2912 | NY36: 36282.3024 | NZ36: 36640.6032 | OA36: 37035.9696 | OB36: 37394.2704 | OC36: 37789.6368 | OD36: 38172.648 | OE36: 38506.2384 | OF36: 38913.96 | OG36: 39272.2608 | OH36: 39667.6272 | OI36: 40025.928 | OJ36: 40421.2944 | OK36: 40804.3056 | OL36: 41162.6064 | OM36: 41557.9728 | ON36: =MOD(OM35+OM34,$H$36) -> 41916.2736 | OO36: 42311.64 | OP36: 42694.6512 | OQ36: 43003.5312 | OR36: 43423.608 | OS36: 43781.9088 | OT36: 44177.2752 | OU36: 44535.576 | OV36: 44930.9424 | OW36: 45313.9536 | OX36: 45672.2544 | OY36: 46067.6208 | OZ36: 46425.9216 | PA36: 46821.288 | PB36: 47204.2992 | PC36: 47513.1792 | PD36: 47933.256 | PE36: 291.5568 | PF36: 437.3232 | PG36: 920.424 | PH36: 1315.7904 | PI36: 1698.8016 | PJ36: 2057.1024 | PK36: 2460.2064 | PL36: 2822.1264 | PM36: 3221.4864 | PN36: 3608.3664 | PO36: 3920.3664 | PP36: 4344.6864 | PQ36: 4706.6064 | PR36: 5105.9664 | PS36: 5467.8864 | PT36: 5867.2464 | PU36: 6254.1264 | PV36: 6616.0464 | PW36: 7015.4064 | PX36: 7377.3264 | PY36: 7776.6864 | PZ36: 8163.5664 | QA36: 8500.5264 | QB36: 8912.3664 | QC36: 9274.2864 | QD36: 9673.6464 | QE36: 10035.5664 | QF36: 10434.9264 | QG36: 10821.8064 | QH36: 11183.7264 | QI36: 11583.0864 | QJ36: 11945.0064 | QK36: 12344.3664 | QL36: 12731.2464
C37: Maintenance Switch | L37: =L36<K36 -> FALSE | M37: =M36<L36 -> FALSE | N37: FALSE | O37: FALSE | P37: FALSE | Q37: FALSE | R37: FALSE | S37: FALSE | T37: FALSE | U37: FALSE | V37: FALSE | W37: FALSE | X37: FALSE | Y37: FALSE | Z37: FALSE | AA37: FALSE | AB37: FALSE | AC37: FALSE | AD37: FALSE | AE37: FALSE | AF37: FALSE | AG37: FALSE | AH37: FALSE | AI37: FALSE | AJ37: FALSE | AK37: FALSE | AL37: FALSE | AM37: FALSE | AN37: FALSE | AO37: FALSE | AP37: FALSE | AQ37: FALSE | AR37: FALSE | AS37: FALSE | AT37: FALSE | AU37: FALSE | AV37: FALSE | AW37: FALSE | AX37: FALSE | AY37: FALSE | AZ37: FALSE | BA37: FALSE | BB37: FALSE | BC37: FALSE | BD37: FALSE | BE37: FALSE | BF37: FALSE | BG37: FALSE | BH37: FALSE | BI37: FALSE | BJ37: FALSE | BK37: FALSE | BL37: FALSE | BM37: FALSE | BN37: FALSE | BO37: FALSE | BP37: FALSE | BQ37: FALSE | BR37: FALSE | BS37: FALSE | BT37: FALSE | BU37: FALSE | BV37: FALSE | BW37: FALSE | BX37: FALSE | BY37: =BY36<BX36 -> FALSE | BZ37: FALSE | CA37: FALSE | CB37: FALSE | CC37: FALSE | CD37: FALSE | CE37: FALSE | CF37: FALSE | CG37: FALSE | CH37: FALSE | CI37: FALSE | CJ37: FALSE | CK37: FALSE | CL37: FALSE | CM37: FALSE | CN37: FALSE | CO37: FALSE | CP37: FALSE | CQ37: FALSE | CR37: FALSE | CS37: FALSE | CT37: FALSE | CU37: FALSE | CV37: FALSE | CW37: FALSE | CX37: FALSE | CY37: FALSE | CZ37: FALSE | DA37: FALSE | DB37: FALSE | DC37: FALSE | DD37: FALSE | DE37: FALSE | DF37: FALSE | DG37: FALSE | DH37: FALSE | DI37: FALSE | DJ37: FALSE | DK37: FALSE | DL37: FALSE | DM37: FALSE | DN37: FALSE | DO37: FALSE | DP37: FALSE | DQ37: FALSE | DR37: FALSE | DS37: FALSE | DT37: FALSE | DU37: FALSE | DV37: FALSE | DW37: FALSE | DX37: FALSE | DY37: FALSE | DZ37: FALSE | EA37: FALSE | EB37: FALSE | EC37: FALSE | ED37: FALSE | EE37: FALSE | EF37: FALSE | EG37: FALSE | EH37: FALSE | EI37: FALSE | EJ37: FALSE | EK37: =EK36<EJ36 -> FALSE | EL37: FALSE | EM37: FALSE | EN37: FALSE | EO37: FALSE | EP37: FALSE | EQ37: FALSE | ER37: FALSE | ES37: FALSE | ET37: FALSE | EU37: FALSE | EV37: FALSE | EW37: FALSE | EX37: FALSE | EY37: FALSE | EZ37: FALSE | FA37: FALSE | FB37: FALSE | FC37: FALSE | FD37: FALSE | FE37: TRUE | FF37: FALSE | FG37: FALSE | FH37: FALSE | FI37: FALSE | FJ37: FALSE | FK37: FALSE | FL37: FALSE | FM37: FALSE | FN37: FALSE | FO37: FALSE | FP37: FALSE | FQ37: FALSE | FR37: FALSE | FS37: FALSE | FT37: FALSE | FU37: FALSE | FV37: FALSE | FW37: FALSE | FX37: FALSE | FY37: FALSE | FZ37: FALSE | GA37: FALSE | GB37: FALSE | GC37: FALSE | GD37: FALSE | GE37: FALSE | GF37: FALSE | GG37: FALSE | GH37: FALSE | GI37: FALSE | GJ37: FALSE | GK37: FALSE | GL37: FALSE | GM37: FALSE | GN37: FALSE | GO37: FALSE | GP37: FALSE | GQ37: FALSE | GR37: FALSE | GS37: FALSE | GT37: FALSE | GU37: FALSE | GV37: FALSE | GW37: =GW36<GV36 -> FALSE | GX37: FALSE | GY37: FALSE | GZ37: FALSE | HA37: FALSE | HB37: FALSE | HC37: FALSE | HD37: =HD36<HC36 -> FALSE | HE37: FALSE | HF37: FALSE | HG37: FALSE | HH37: FALSE | HI37: FALSE | HJ37: FALSE | HK37: FALSE | HL37: FALSE | HM37: FALSE | HN37: FALSE | HO37: FALSE | HP37: FALSE | HQ37: FALSE | HR37: FALSE | HS37: FALSE | HT37: FALSE | HU37: FALSE | HV37: FALSE | HW37: FALSE | HX37: FALSE | HY37: FALSE | HZ37: FALSE | IA37: FALSE | IB37: FALSE | IC37: FALSE | ID37: FALSE | IE37: FALSE | IF37: FALSE | IG37: FALSE | IH37: FALSE | II37: FALSE | IJ37: FALSE | IK37: FALSE | IL37: FALSE | IM37: FALSE | IN37: FALSE | IO37: FALSE | IP37: FALSE | IQ37: FALSE | IR37: FALSE | IS37: FALSE | IT37: FALSE | IU37: FALSE | IV37: FALSE | IW37: FALSE | IX37: FALSE | IY37: FALSE | IZ37: FALSE | JA37: FALSE | JB37: FALSE | JC37: FALSE | JD37: FALSE | JE37: FALSE | JF37: FALSE | JG37: FALSE | JH37: FALSE | JI37: FALSE | JJ37: FALSE | JK37: FALSE | JL37: FALSE | JM37: FALSE | JN37: FALSE | JO37: FALSE | JP37: =JP36<JO36 -> FALSE | JQ37: FALSE | JR37: FALSE | JS37: FALSE | JT37: FALSE | JU37: FALSE | JV37: FALSE | JW37: FALSE | JX37: FALSE | JY37: FALSE | JZ37: FALSE | KA37: FALSE | KB37: FALSE | KC37: FALSE | KD37: FALSE | KE37: FALSE | KF37: FALSE | KG37: TRUE | KH37: FALSE | KI37: FALSE | KJ37: FALSE | KK37: FALSE | KL37: FALSE | KM37: FALSE | KN37: FALSE | KO37: FALSE | KP37: FALSE | KQ37: FALSE | KR37: FALSE | KS37: FALSE | KT37: FALSE | KU37: FALSE | KV37: FALSE | KW37: FALSE | KX37: FALSE | KY37: FALSE | KZ37: FALSE | LA37: FALSE | LB37: FALSE | LC37: FALSE | LD37: FALSE | LE37: FALSE | LF37: FALSE | LG37: FALSE | LH37: FALSE | LI37: FALSE | LJ37: FALSE | LK37: FALSE | LL37: FALSE | LM37: FALSE | LN37: FALSE | LO37: FALSE | LP37: FALSE | LQ37: FALSE | LR37: FALSE | LS37: FALSE | LT37: FALSE | LU37: FALSE | LV37: FALSE | LW37: FALSE | LX37: FALSE | LY37: FALSE | LZ37: FALSE | MA37: FALSE | MB37: =MB36<MA36 -> FALSE | MC37: FALSE | MD37: FALSE | ME37: FALSE | MF37: FALSE | MG37: FALSE | MH37: FALSE | MI37: FALSE | MJ37: FALSE | MK37: FALSE | ML37: FALSE | MM37: FALSE | MN37: FALSE | MO37: FALSE | MP37: FALSE | MQ37: FALSE | MR37: FALSE | MS37: FALSE | MT37: FALSE | MU37: FALSE | MV37: FALSE | MW37: FALSE | MX37: FALSE | MY37: FALSE | MZ37: FALSE | NA37: FALSE | NB37: FALSE | NC37: FALSE | ND37: FALSE | NE37: FALSE | NF37: FALSE | NG37: FALSE | NH37: FALSE | NI37: FALSE | NJ37: FALSE | NK37: FALSE | NL37: FALSE | NM37: FALSE | NN37: FALSE | NO37: FALSE | NP37: FALSE | NQ37: FALSE | NR37: FALSE | NS37: FALSE | NT37: FALSE | NU37: FALSE | NV37: FALSE | NW37: FALSE | NX37: FALSE | NY37: FALSE | NZ37: FALSE | OA37: FALSE | OB37: FALSE | OC37: FALSE | OD37: FALSE | OE37: FALSE | OF37: FALSE | OG37: FALSE | OH37: FALSE | OI37: FALSE | OJ37: FALSE | OK37: FALSE | OL37: FALSE | OM37: FALSE | ON37: =ON36<OM36 -> FALSE | OO37: FALSE | OP37: FALSE | OQ37: FALSE | OR37: FALSE | OS37: FALSE | OT37: FALSE | OU37: FALSE | OV37: FALSE | OW37: FALSE | OX37: FALSE | OY37: FALSE | OZ37: FALSE | PA37: FALSE | PB37: FALSE | PC37: FALSE | PD37: FALSE | PE37: TRUE | PF37: FALSE | PG37: FALSE | PH37: FALSE | PI37: FALSE | PJ37: FALSE | PK37: FALSE | PL37: FALSE | PM37: FALSE | PN37: FALSE | PO37: FALSE | PP37: FALSE | PQ37: FALSE | PR37: FALSE | PS37: FALSE | PT37: FALSE | PU37: FALSE | PV37: FALSE | PW37: FALSE | PX37: FALSE | PY37: FALSE | PZ37: FALSE | QA37: FALSE | QB37: FALSE | QC37: FALSE | QD37: FALSE | QE37: FALSE | QF37: FALSE | QG37: FALSE | QH37: FALSE | QI37: FALSE | QJ37: FALSE | QK37: FALSE | QL37: FALSE
B39: Adjustment for Capacity Degradation
C40: Capacity Degradation Percent | F40: % | G40: =Assumptions!G14 -> 0.001226398699 | L40: =(1-$G$40*L15)^(1/L5)-1 -> 0 | M40: 0 | N40: 0 | O40: 0 | P40: 0 | Q40: 0 | R40: 0 | S40: 0 | T40: 0 | U40: 0 | V40: 0 | W40: 0 | X40: 0 | Y40: 0 | Z40: 0 | AA40: 0 | AB40: 0 | AC40: 0 | AD40: 0 | AE40: 0 | AF40: 0 | AG40: 0 | AH40: 0 | AI40: 0 | AJ40: 0 | AK40: 0 | AL40: 0 | AM40: 0 | AN40: 0 | AO40: 0 | AP40: -0.0001022573831 | AQ40: -0.0001022573831 | AR40: -0.0001022573831 | AS40: -0.0001022573831 | AT40: -0.0001022573831 | AU40: -0.0001022573831 | AV40: -0.0001022573831 | AW40: -0.0001022573831 | AX40: -0.0001022573831 | AY40: -0.0001022573831 | AZ40: -0.0001022573831 | BA40: -0.0001022573831 | BB40: -0.0001022573831 | BC40: -0.0001022573831 | BD40: -0.0001022573831 | BE40: -0.0001022573831 | BF40: -0.0001022573831 | BG40: -0.0001022573831 | BH40: -0.0001022573831 | BI40: -0.0001022573831 | BJ40: -0.0001022573831 | BK40: -0.0001022573831 | BL40: -0.0001022573831 | BM40: -0.0001022573831 | BN40: -0.0001022573831 | BO40: -0.0001022573831 | BP40: -0.0001022573831 | BQ40: -0.0001022573831 | BR40: -0.0001022573831 | BS40: -0.0001022573831 | BT40: -0.0001022573831 | BU40: -0.0001022573831 | BV40: -0.0001022573831 | BW40: -0.0001022573831 | BX40: =(1-$G$40*BX15)^(1/BX5)-1 -> -0.0001022573831 | BY40: -0.0001022573831 | BZ40: -0.0001022573831 | CA40: -0.0001022573831 | CB40: -0.0001022573831 | CC40: -0.0001022573831 | CD40: -0.0001022573831 | CE40: -0.0001022573831 | CF40: -0.0001022573831 | CG40: -0.0001022573831 | CH40: -0.0001022573831 | CI40: -0.0001022573831 | CJ40: -0.0001022573831 | CK40: -0.0001022573831 | CL40: -0.0001022573831 | CM40: -0.0001022573831 | CN40: -0.0001022573831 | CO40: -0.0001022573831 | CP40: -0.0001022573831 | CQ40: -0.0001022573831 | CR40: -0.0001022573831 | CS40: -0.0001022573831 | CT40: -0.0001022573831 | CU40: -0.0001022573831 | CV40: -0.0001022573831 | CW40: -0.0001022573831 | CX40: -0.0001022573831 | CY40: -0.0001022573831 | CZ40: -0.0001022573831 | DA40: -0.0001022573831 | DB40: -0.0001022573831 | DC40: -0.0001022573831 | DD40: -0.0001022573831 | DE40: -0.0001022573831 | DF40: -0.0001022573831 | DG40: -0.0001022573831 | DH40: -0.0001022573831 | DI40: -0.0001022573831 | DJ40: -0.0001022573831 | DK40: -0.0001022573831 | DL40: -0.0001022573831 | DM40: -0.0001022573831 | DN40: -0.0001022573831 | DO40: -0.0001022573831 | DP40: -0.0001022573831 | DQ40: -0.0001022573831 | DR40: -0.0001022573831 | DS40: -0.0001022573831 | DT40: -0.0001022573831 | DU40: -0.0001022573831 | DV40: -0.0001022573831 | DW40: -0.0001022573831 | DX40: -0.0001022573831 | DY40: -0.0001022573831 | DZ40: -0.0001022573831 | EA40: -0.0001022573831 | EB40: -0.0001022573831 | EC40: -0.0001022573831 | ED40: -0.0001022573831 | EE40: -0.0001022573831 | EF40: -0.0001022573831 | EG40: -0.0001022573831 | EH40: -0.0001022573831 | EI40: -0.0001022573831 | EJ40: =(1-$G$40*EJ15)^(1/EJ5)-1 -> -0.0001022573831 | EK40: -0.0001022573831 | EL40: -0.0001022573831 | EM40: -0.0001022573831 | EN40: -0.0001022573831 | EO40: -0.0001022573831 | EP40: -0.0001022573831 | EQ40: -0.0001022573831 | ER40: -0.0001022573831 | ES40: -0.0001022573831 | ET40: -0.0001022573831 | EU40: -0.0001022573831 | EV40: -0.0001022573831 | EW40: -0.0001022573831 | EX40: -0.0001022573831 | EY40: -0.0001022573831 | EZ40: -0.0001022573831 | FA40: -0.0001022573831 | FB40: -0.0001022573831 | FC40: -0.0001022573831 | FD40: -0.0001022573831 | FE40: -0.0001022573831 | FF40: -0.0001022573831 | FG40: -0.0001022573831 | FH40: -0.0001022573831 | FI40: -0.0001022573831 | FJ40: -0.0001022573831 | FK40: -0.0001022573831 | FL40: -0.0001022573831 | FM40: -0.0001022573831 | FN40: -0.0001022573831 | FO40: -0.0001022573831 | FP40: -0.0001022573831 | FQ40: -0.0001022573831 | FR40: -0.0001022573831 | FS40: -0.0001022573831 | FT40: -0.0001022573831 | FU40: -0.0001022573831 | FV40: -0.0001022573831 | FW40: -0.0001022573831 | FX40: -0.0001022573831 | FY40: -0.0001022573831 | FZ40: -0.0001022573831 | GA40: -0.0001022573831 | GB40: -0.0001022573831 | GC40: -0.0001022573831 | GD40: -0.0001022573831 | GE40: -0.0001022573831 | GF40: -0.0001022573831 | GG40: -0.0001022573831 | GH40: -0.0001022573831 | GI40: -0.0001022573831 | GJ40: -0.0001022573831 | GK40: -0.0001022573831 | GL40: -0.0001022573831 | GM40: -0.0001022573831 | GN40: -0.0001022573831 | GO40: -0.0001022573831 | GP40: -0.0001022573831 | GQ40: -0.0001022573831 | GR40: -0.0001022573831 | GS40: -0.0001022573831 | GT40: -0.0001022573831 | GU40: -0.0001022573831 | GV40: =(1-$G$40*GV15)^(1/GV5)-1 -> -0.0001022573831 | GW40: -0.0001022573831 | GX40: -0.0001022573831 | GY40: -0.0001022573831 | GZ40: -0.0001022573831 | HA40: -0.0001022573831 | HB40: -0.0001022573831 | HC40: -0.0001022573831 | HD40: -0.0001022573831 | HE40: -0.0001022573831 | HF40: -0.0001022573831 | HG40: -0.0001022573831 | HH40: -0.0001022573831 | HI40: -0.0001022573831 | HJ40: -0.0001022573831 | HK40: -0.0001022573831 | HL40: -0.0001022573831 | HM40: -0.0001022573831 | HN40: -0.0001022573831 | HO40: -0.0001022573831 | HP40: -0.0001022573831 | HQ40: -0.0001022573831 | HR40: -0.0001022573831 | HS40: -0.0001022573831 | HT40: -0.0001022573831 | HU40: -0.0001022573831 | HV40: -0.0001022573831 | HW40: -0.0001022573831 | HX40: -0.0001022573831 | HY40: -0.0001022573831 | HZ40: -0.0001022573831 | IA40: -0.0001022573831 | IB40: -0.0001022573831 | IC40: -0.0001022573831 | ID40: -0.0001022573831 | IE40: -0.0001022573831 | IF40: -0.0001022573831 | IG40: -0.0001022573831 | IH40: -0.0001022573831 | II40: -0.0001022573831 | IJ40: -0.0001022573831 | IK40: -0.0001022573831 | IL40: -0.0001022573831 | IM40: -0.0001022573831 | IN40: -0.0001022573831 | IO40: -0.0001022573831 | IP40: -0.0001022573831 | IQ40: -0.0001022573831 | IR40: -0.0001022573831 | IS40: -0.0001022573831 | IT40: -0.0001022573831 | IU40: -0.0001022573831 | IV40: -0.0001022573831 | IW40: -0.0001022573831 | IX40: -0.0001022573831 | IY40: -0.0001022573831 | IZ40: -0.0001022573831 | JA40: -0.0001022573831 | JB40: -0.0001022573831 | JC40: -0.0001022573831 | JD40: -0.0001022573831 | JE40: -0.0001022573831 | JF40: -0.0001022573831 | JG40: -0.0001022573831 | JH40: =(1-$G$40*JH15)^(1/JH5)-1 -> -0.0001022573831 | JI40: -0.0001022573831 | JJ40: -0.0001022573831 | JK40: -0.0001022573831 | JL40: -0.0001022573831 | JM40: -0.0001022573831 | JN40: -0.0001022573831 | JO40: -0.0001022573831 | JP40: -0.0001022573831 | JQ40: -0.0001022573831 | JR40: -0.0001022573831 | JS40: -0.0001022573831 | JT40: -0.0001022573831 | JU40: -0.0001022573831 | JV40: -0.0001022573831 | JW40: -0.0001022573831 | JX40: -0.0001022573831 | JY40: -0.0001022573831 | JZ40: -0.0001022573831 | KA40: -0.0001022573831 | KB40: -0.0001022573831 | KC40: -0.0001022573831 | KD40: -0.0001022573831 | KE40: -0.0001022573831 | KF40: -0.0001022573831 | KG40: -0.0001022573831 | KH40: -0.0001022573831 | KI40: -0.0001022573831 | KJ40: -0.0001022573831 | KK40: -0.0001022573831 | KL40: -0.0001022573831 | KM40: -0.0001022573831 | KN40: -0.0001022573831 | KO40: -0.0001022573831 | KP40: -0.0001022573831 | KQ40: -0.0001022573831 | KR40: -0.0001022573831 | KS40: -0.0001022573831 | KT40: -0.0001022573831 | KU40: -0.0001022573831 | KV40: -0.0001022573831 | KW40: -0.0001022573831 | KX40: -0.0001022573831 | KY40: -0.0001022573831 | KZ40: -0.0001022573831 | LA40: -0.0001022573831 | LB40: -0.0001022573831 | LC40: -0.0001022573831 | LD40: -0.0001022573831 | LE40: -0.0001022573831 | LF40: -0.0001022573831 | LG40: -0.0001022573831 | LH40: -0.0001022573831 | LI40: -0.0001022573831 | LJ40: -0.0001022573831 | LK40: -0.0001022573831 | LL40: -0.0001022573831 | LM40: -0.0001022573831 | LN40: -0.0001022573831 | LO40: -0.0001022573831 | LP40: -0.0001022573831 | LQ40: -0.0001022573831 | LR40: -0.0001022573831 | LS40: -0.0001022573831 | LT40: =(1-$G$40*LT15)^(1/LT5)-1 -> -0.0001022573831 | LU40: -0.0001022573831 | LV40: -0.0001022573831 | LW40: -0.0001022573831 | LX40: -0.0001022573831 | LY40: -0.0001022573831 | LZ40: -0.0001022573831 | MA40: -0.0001022573831 | MB40: -0.0001022573831 | MC40: -0.0001022573831 | MD40: -0.0001022573831 | ME40: -0.0001022573831 | MF40: -0.0001022573831 | MG40: -0.0001022573831 | MH40: -0.0001022573831 | MI40: -0.0001022573831 | MJ40: -0.0001022573831 | MK40: -0.0001022573831 | ML40: -0.0001022573831 | MM40: -0.0001022573831 | MN40: -0.0001022573831 | MO40: -0.0001022573831 | MP40: -0.0001022573831 | MQ40: -0.0001022573831 | MR40: -0.0001022573831 | MS40: -0.0001022573831 | MT40: -0.0001022573831 | MU40: -0.0001022573831 | MV40: -0.0001022573831 | MW40: -0.0001022573831 | MX40: -0.0001022573831 | MY40: -0.0001022573831 | MZ40: -0.0001022573831 | NA40: -0.0001022573831 | NB40: -0.0001022573831 | NC40: -0.0001022573831 | ND40: -0.0001022573831 | NE40: -0.0001022573831 | NF40: -0.0001022573831 | NG40: -0.0001022573831 | NH40: -0.0001022573831 | NI40: -0.0001022573831 | NJ40: -0.0001022573831 | NK40: -0.0001022573831 | NL40: -0.0001022573831 | NM40: -0.0001022573831 | NN40: -0.0001022573831 | NO40: -0.0001022573831 | NP40: -0.0001022573831 | NQ40: -0.0001022573831 | NR40: -0.0001022573831 | NS40: -0.0001022573831 | NT40: -0.0001022573831 | NU40: -0.0001022573831 | NV40: -0.0001022573831 | NW40: -0.0001022573831 | NX40: -0.0001022573831 | NY40: -0.0001022573831 | NZ40: -0.0001022573831 | OA40: -0.0001022573831 | OB40: -0.0001022573831 | OC40: -0.0001022573831 | OD40: -0.0001022573831 | OE40: -0.0001022573831 | OF40: =(1-$G$40*OF15)^(1/OF5)-1 -> -0.0001022573831 | OG40: -0.0001022573831 | OH40: -0.0001022573831 | OI40: -0.0001022573831 | OJ40: -0.0001022573831 | OK40: -0.0001022573831 | OL40: -0.0001022573831 | OM40: -0.0001022573831 | ON40: -0.0001022573831 | OO40: -0.0001022573831 | OP40: -0.0001022573831 | OQ40: -0.0001022573831 | OR40: -0.0001022573831 | OS40: -0.0001022573831 | OT40: -0.0001022573831 | OU40: -0.0001022573831 | OV40: -0.0001022573831 | OW40: -0.0001022573831 | OX40: -0.0001022573831 | OY40: -0.0001022573831 | OZ40: -0.0001022573831 | PA40: -0.0001022573831 | PB40: -0.0001022573831 | PC40: -0.0001022573831 | PD40: -0.0001022573831 | PE40: -0.0001022573831 | PF40: -0.0001022573831 | PG40: -0.0001022573831 | PH40: -0.0001022573831 | PI40: -0.0001022573831 | PJ40: 0 | PK40: 0 | PL40: 0 | PM40: 0 | PN40: 0 | PO40: 0 | PP40: 0 | PQ40: 0 | PR40: 0 | PS40: 0 | PT40: 0 | PU40: 0 | PV40: 0 | PW40: 0 | PX40: 0 | PY40: 0 | PZ40: 0 | QA40: 0 | QB40: 0 | QC40: 0 | QD40: 0 | QE40: 0 | QF40: 0 | QG40: 0 | QH40: 0 | QI40: 0 | QJ40: 0 | QK40: 0 | QL40: 0
C41: Recovery Factor | F41: % | G41: =Assumptions!G33 -> 0.975 | L41: =$G$41*L37*(1-K42) -> 0 | M41: 0 | N41: 0 | O41: 0 | P41: 0 | Q41: 0 | R41: 0 | S41: 0 | T41: 0 | U41: 0 | V41: 0 | W41: 0 | X41: 0 | Y41: 0 | Z41: 0 | AA41: 0 | AB41: 0 | AC41: 0 | AD41: 0 | AE41: 0 | AF41: 0 | AG41: 0 | AH41: 0 | AI41: 0 | AJ41: 0 | AK41: 0 | AL41: 0 | AM41: 0 | AN41: 0 | AO41: 0 | AP41: 0 | AQ41: 0 | AR41: =$G$41*AR37*(1-AQ42) -> 0 | AS41: 0 | AT41: 0 | AU41: 0 | AV41: 0 | AW41: 0 | AX41: 0 | AY41: 0 | AZ41: 0 | BA41: 0 | BB41: 0 | BC41: 0 | BD41: 0 | BE41: 0 | BF41: 0 | BG41: 0 | BH41: 0 | BI41: 0 | BJ41: 0 | BK41: 0 | BL41: 0 | BM41: 0 | BN41: 0 | BO41: 0 | BP41: 0 | BQ41: 0 | BR41: 0 | BS41: 0 | BT41: 0 | BU41: 0 | BV41: 0 | BW41: 0 | BX41: =$G$41*BX37*(1-BW42) -> 0 | BY41: 0 | BZ41: 0 | CA41: 0 | CB41: 0 | CC41: 0 | CD41: 0 | CE41: 0 | CF41: 0 | CG41: 0 | CH41: 0 | CI41: 0 | CJ41: 0 | CK41: 0 | CL41: 0 | CM41: 0 | CN41: 0 | CO41: 0 | CP41: 0 | CQ41: 0 | CR41: 0 | CS41: 0 | CT41: 0 | CU41: 0 | CV41: 0 | CW41: 0 | CX41: 0 | CY41: 0 | CZ41: 0 | DA41: 0 | DB41: 0 | DC41: 0 | DD41: =$G$41*DD37*(1-DC42) -> 0 | DE41: 0 | DF41: 0 | DG41: 0 | DH41: 0 | DI41: 0 | DJ41: 0 | DK41: 0 | DL41: 0 | DM41: 0 | DN41: 0 | DO41: 0 | DP41: 0 | DQ41: 0 | DR41: 0 | DS41: 0 | DT41: 0 | DU41: 0 | DV41: 0 | DW41: 0 | DX41: 0 | DY41: 0 | DZ41: 0 | EA41: 0 | EB41: 0 | EC41: 0 | ED41: 0 | EE41: 0 | EF41: 0 | EG41: 0 | EH41: 0 | EI41: 0 | EJ41: =$G$41*EJ37*(1-EI42) -> 0 | EK41: 0 | EL41: 0 | EM41: 0 | EN41: 0 | EO41: 0 | EP41: 0 | EQ41: 0 | ER41: 0 | ES41: 0 | ET41: 0 | EU41: 0 | EV41: 0 | EW41: 0 | EX41: 0 | EY41: 0 | EZ41: 0 | FA41: 0 | FB41: 0 | FC41: 0 | FD41: 0 | FE41: 0.01179311729 | FF41: 0 | FG41: 0 | FH41: 0 | FI41: 0 | FJ41: 0 | FK41: 0 | FL41: 0 | FM41: 0 | FN41: 0 | FO41: 0 | FP41: =$G$41*FP37*(1-FO42) -> 0 | FQ41: 0 | FR41: 0 | FS41: 0 | FT41: 0 | FU41: 0 | FV41: 0 | FW41: 0 | FX41: 0 | FY41: 0 | FZ41: 0 | GA41: 0 | GB41: 0 | GC41: 0 | GD41: 0 | GE41: 0 | GF41: 0 | GG41: 0 | GH41: 0 | GI41: 0 | GJ41: 0 | GK41: 0 | GL41: 0 | GM41: 0 | GN41: 0 | GO41: 0 | GP41: 0 | GQ41: 0 | GR41: 0 | GS41: 0 | GT41: 0 | GU41: 0 | GV41: =$G$41*GV37*(1-GU42) -> 0 | GW41: 0 | GX41: 0 | GY41: 0 | GZ41: 0 | HA41: 0 | HB41: 0 | HC41: 0 | HD41: =$G$41*HD37*(1-HC42) -> 0 | HE41: 0 | HF41: 0 | HG41: 0 | HH41: 0 | HI41: 0 | HJ41: 0 | HK41: 0 | HL41: 0 | HM41: 0 | HN41: 0 | HO41: 0 | HP41: 0 | HQ41: 0 | HR41: 0 | HS41: 0 | HT41: 0 | HU41: 0 | HV41: 0 | HW41: 0 | HX41: 0 | HY41: 0 | HZ41: 0 | IA41: 0 | IB41: 0 | IC41: 0 | ID41: 0 | IE41: 0 | IF41: 0 | IG41: 0 | IH41: 0 | II41: 0 | IJ41: 0 | IK41: 0 | IL41: 0 | IM41: 0 | IN41: 0 | IO41: 0 | IP41: 0 | IQ41: 0 | IR41: 0 | IS41: 0 | IT41: 0 | IU41: 0 | IV41: 0 | IW41: 0 | IX41: 0 | IY41: 0 | IZ41: 0 | JA41: 0 | JB41: 0 | JC41: 0 | JD41: 0 | JE41: 0 | JF41: 0 | JG41: 0 | JH41: 0 | JI41: 0 | JJ41: 0 | JK41: 0 | JL41: 0 | JM41: 0 | JN41: 0 | JO41: 0 | JP41: =$G$41*JP37*(1-JO42) -> 0 | JQ41: 0 | JR41: 0 | JS41: 0 | JT41: 0 | JU41: 0 | JV41: 0 | JW41: 0 | JX41: 0 | JY41: 0 | JZ41: 0 | KA41: 0 | KB41: 0 | KC41: 0 | KD41: 0 | KE41: 0 | KF41: 0 | KG41: 0.01326529759 | KH41: 0 | KI41: 0 | KJ41: 0 | KK41: 0 | KL41: 0 | KM41: 0 | KN41: 0 | KO41: 0 | KP41: 0 | KQ41: 0 | KR41: 0 | KS41: 0 | KT41: 0 | KU41: 0 | KV41: 0 | KW41: 0 | KX41: 0 | KY41: 0 | KZ41: 0 | LA41: 0 | LB41: 0 | LC41: 0 | LD41: 0 | LE41: 0 | LF41: 0 | LG41: 0 | LH41: 0 | LI41: 0 | LJ41: 0 | LK41: 0 | LL41: 0 | LM41: 0 | LN41: 0 | LO41: 0 | LP41: 0 | LQ41: 0 | LR41: 0 | LS41: 0 | LT41: 0 | LU41: 0 | LV41: 0 | LW41: 0 | LX41: 0 | LY41: 0 | LZ41: 0 | MA41: 0 | MB41: =$G$41*MB37*(1-MA42) -> 0 | MC41: 0 | MD41: 0 | ME41: 0 | MF41: 0 | MG41: 0 | MH41: 0 | MI41: 0 | MJ41: 0 | MK41: 0 | ML41: 0 | MM41: 0 | MN41: 0 | MO41: 0 | MP41: 0 | MQ41: 0 | MR41: 0 | MS41: 0 | MT41: 0 | MU41: 0 | MV41: 0 | MW41: 0 | MX41: 0 | MY41: 0 | MZ41: 0 | NA41: 0 | NB41: 0 | NC41: 0 | ND41: 0 | NE41: 0 | NF41: 0 | NG41: 0 | NH41: 0 | NI41: 0 | NJ41: 0 | NK41: 0 | NL41: 0 | NM41: 0 | NN41: 0 | NO41: 0 | NP41: 0 | NQ41: 0 | NR41: 0 | NS41: 0 | NT41: 0 | NU41: 0 | NV41: 0 | NW41: 0 | NX41: 0 | NY41: 0 | NZ41: 0 | OA41: 0 | OB41: 0 | OC41: 0 | OD41: 0 | OE41: 0 | OF41: 0 | OG41: 0 | OH41: 0 | OI41: 0 | OJ41: 0 | OK41: 0 | OL41: 0 | OM41: 0 | ON41: =$G$41*ON37*(1-OM42) -> 0 | OO41: 0 | OP41: 0 | OQ41: 0 | OR41: 0 | OS41: 0 | OT41: 0 | OU41: 0 | OV41: 0 | OW41: 0 | OX41: 0 | OY41: 0 | OZ41: 0 | PA41: 0 | PB41: 0 | PC41: 0 | PD41: 0 | PE41: 0.01290814872 | PF41: 0 | PG41: 0 | PH41: 0 | PI41: 0 | PJ41: 0 | PK41: 0 | PL41: 0 | PM41: 0 | PN41: 0 | PO41: 0 | PP41: 0 | PQ41: 0 | PR41: 0 | PS41: 0 | PT41: 0 | PU41: 0 | PV41: 0 | PW41: 0 | PX41: 0 | PY41: 0 | PZ41: 0 | QA41: 0 | QB41: 0 | QC41: 0 | QD41: 0 | QE41: 0 | QF41: 0 | QG41: 0 | QH41: 0 | QI41: 0 | QJ41: 0 | QK41: 0 | QL41: 0
C42: Degradation Index | F42: Index | K42: 1 | L42: =IF(L37,K42+L41,K42*(1+L40)) -> 1 | M42: 1 | N42: 1 | O42: 1 | P42: 1 | Q42: 1 | R42: 1 | S42: 1 | T42: 1 | U42: 1 | V42: 1 | W42: 1 | X42: 1 | Y42: 1 | Z42: 1 | AA42: 1 | AB42: 1 | AC42: 1 | AD42: 1 | AE42: 1 | AF42: 1 | AG42: 1 | AH42: 1 | AI42: 1 | AJ42: 1 | AK42: 1 | AL42: 1 | AM42: 1 | AN42: 1 | AO42: 1 | AP42: 0.9998977426 | AQ42: 0.9997954957 | AR42: =IF(AR37,AQ42+AR41,AQ42*(1+AR40)) -> 0.9996932592 | AS42: 0.9995910332 | AT42: 0.9994888176 | AU42: 0.9993866125 | AV42: 0.9992844179 | AW42: 0.9991822337 | AX42: 0.9990800599 | AY42: 0.9989778966 | AZ42: 0.9988757437 | BA42: 0.9987736013 | BB42: 0.9986714693 | BC42: 0.9985693478 | BD42: 0.9984672367 | BE42: 0.9983651361 | BF42: 0.9982630459 | BG42: 0.9981609661 | BH42: 0.9980588968 | BI42: 0.9979568379 | BJ42: 0.9978547894 | BK42: 0.9977527514 | BL42: 0.9976507238 | BM42: 0.9975487067 | BN42: 0.9974466999 | BO42: 0.9973447036 | BP42: 0.9972427178 | BQ42: 0.9971407424 | BR42: 0.9970387774 | BS42: 0.9969368228 | BT42: 0.9968348786 | BU42: 0.9967329449 | BV42: 0.9966310216 | BW42: 0.9965291087 | BX42: =IF(BX37,BW42+BX41,BW42*(1+BX40)) -> 0.9964272063 | BY42: 0.9963253142 | BZ42: 0.9962234326 | CA42: 0.9961215614 | CB42: 0.9960197006 | CC42: 0.9959178502 | CD42: 0.9958160103 | CE42: 0.9957141808 | CF42: 0.9956123616 | CG42: 0.9955105529 | CH42: 0.9954087546 | CI42: 0.9953069667 | CJ42: 0.9952051892 | CK42: 0.9951034222 | CL42: 0.9950016655 | CM42: 0.9948999192 | CN42: 0.9947981834 | CO42: 0.9946964579 | CP42: 0.9945947428 | CQ42: 0.9944930382 | CR42: 0.9943913439 | CS42: 0.9942896601 | CT42: 0.9941879866 | CU42: 0.9940863235 | CV42: 0.9939846709 | CW42: 0.9938830286 | CX42: 0.9937813967 | CY42: 0.9936797752 | CZ42: 0.9935781642 | DA42: 0.9934765635 | DB42: 0.9933749731 | DC42: 0.9932733932 | DD42: =IF(DD37,DC42+DD41,DC42*(1+DD40)) -> 0.9931718237 | DE42: 0.9930702645 | DF42: 0.9929687158 | DG42: 0.9928671774 | DH42: 0.9927656494 | DI42: 0.9926641318 | DJ42: 0.9925626245 | DK42: 0.9924611277 | DL42: 0.9923596412 | DM42: 0.9922581651 | DN42: 0.9921566994 | DO42: 0.992055244 | DP42: 0.991953799 | DQ42: 0.9918523644 | DR42: 0.9917509402 | DS42: 0.9916495264 | DT42: 0.9915481229 | DU42: 0.9914467298 | DV42: 0.991345347 | DW42: 0.9912439746 | DX42: 0.9911426126 | DY42: 0.991041261 | DZ42: 0.9909399197 | EA42: 0.9908385888 | EB42: 0.9907372682 | EC42: 0.990635958 | ED42: 0.9905346582 | EE42: 0.9904333687 | EF42: 0.9903320895 | EG42: 0.9902308208 | EH42: 0.9901295624 | EI42: 0.9900283143 | EJ42: =IF(EJ37,EI42+EJ41,EI42*(1+EJ40)) -> 0.9899270766 | EK42: 0.9898258493 | EL42: 0.9897246323 | EM42: 0.9896234256 | EN42: 0.9895222293 | EO42: 0.9894210433 | EP42: 0.9893198677 | EQ42: 0.9892187025 | ER42: 0.9891175476 | ES42: 0.989016403 | ET42: 0.9889152688 | EU42: 0.9888141449 | EV42: 0.9887130313 | EW42: 0.9886119281 | EX42: 0.9885108352 | EY42: 0.9884097527 | EZ42: 0.9883086805 | FA42: 0.9882076187 | FB42: 0.9881065671 | FC42: 0.9880055259 | FD42: 0.9879044951 | FE42: 0.9996976124 | FF42: 0.9995953859 | FG42: 0.9994931699 | FH42: 0.9993909644 | FI42: 0.9992887692 | FJ42: 0.9991865846 | FK42: 0.9990844104 | FL42: 0.9989822466 | FM42: 0.9988800933 | FN42: 0.9987779505 | FO42: 0.998675818 | FP42: =IF(FP37,FO42+FP41,FO42*(1+FP40)) -> 0.9985736961 | FQ42: 0.9984715845 | FR42: 0.9983694834 | FS42: 0.9982673928 | FT42: 0.9981653126 | FU42: 0.9980632428 | FV42: 0.9979611835 | FW42: 0.9978591346 | FX42: 0.9977570961 | FY42: 0.9976550681 | FZ42: 0.9975530505 | GA42: 0.9974510433 | GB42: 0.9973490466 | GC42: 0.9972470603 | GD42: 0.9971450844 | GE42: 0.997043119 | GF42: 0.9969411639 | GG42: 0.9968392193 | GH42: 0.9967372852 | GI42: 0.9966353614 | GJ42: 0.9965334481 | GK42: 0.9964315452 | GL42: 0.9963296527 | GM42: 0.9962277706 | GN42: 0.996125899 | GO42: 0.9960240378 | GP42: 0.995922187 | GQ42: 0.9958203466 | GR42: 0.9957185166 | GS42: 0.995616697 | GT42: 0.9955148879 | GU42: 0.9954130891 | GV42: =IF(GV37,GU42+GV41,GU42*(1+GV40)) -> 0.9953113008 | GW42: 0.9952095228 | GX42: 0.9951077553 | GY42: 0.9950059982 | GZ42: 0.9949042515 | HA42: 0.9948025152 | HB42: 0.9947007893 | HC42: 0.9945990738 | HD42: =IF(HD37,HC42+HD41,HC42*(1+HD40)) -> 0.9944973687 | HE42: 0.994395674 | HF42: 0.9942939897 | HG42: 0.9941923158 | HH42: 0.9940906523 | HI42: 0.9939889992 | HJ42: 0.9938873565 | HK42: 0.9937857241 | HL42: 0.9936841022 | HM42: 0.9935824907 | HN42: 0.9934808895 | HO42: 0.9933792988 | HP42: 0.9932777184 | HQ42: 0.9931761484 | HR42: 0.9930745888 | HS42: 0.9929730396 | HT42: 0.9928715008 | HU42: 0.9927699724 | HV42: 0.9926684543 | HW42: 0.9925669466 | HX42: 0.9924654493 | HY42: 0.9923639624 | HZ42: 0.9922624859 | IA42: 0.9921610197 | IB42: 0.9920595639 | IC42: 0.9919581185 | ID42: 0.9918566835 | IE42: 0.9917552588 | IF42: 0.9916538445 | IG42: 0.9915524406 | IH42: 0.991451047 | II42: 0.9913496638 | IJ42: 0.991248291 | IK42: 0.9911469285 | IL42: 0.9910455764 | IM42: 0.9909442347 | IN42: 0.9908429034 | IO42: 0.9907415824 | IP42: 0.9906402717 | IQ42: 0.9905389714 | IR42: 0.9904376815 | IS42: 0.9903364019 | IT42: 0.9902351327 | IU42: 0.9901338739 | IV42: 0.9900326254 | IW42: 0.9899313872 | IX42: 0.9898301594 | IY42: 0.989728942 | IZ42: 0.9896277349 | JA42: 0.9895265382 | JB42: 0.9894253518 | JC42: 0.9893241757 | JD42: 0.98922301 | JE42: 0.9891218547 | JF42: 0.9890207097 | JG42: 0.988919575 | JH42: 0.9888184507 | JI42: 0.9887173367 | JJ42: 0.988616233 | JK42: 0.9885151397 | JL42: 0.9884140567 | JM42: 0.9883129841 | JN42: 0.9882119218 | JO42: 0.9881108698 | JP42: =IF(JP37,JO42+JP41,JO42*(1+JP40)) -> 0.9880098282 | JQ42: 0.9879087969 | JR42: 0.9878077759 | JS42: 0.9877067653 | JT42: 0.987605765 | JU42: 0.987504775 | JV42: 0.9874037954 | JW42: 0.987302826 | JX42: 0.987201867 | JY42: 0.9871009183 | JZ42: 0.98699998 | KA42: 0.986899052 | KB42: 0.9867981342 | KC42: 0.9866972268 | KD42: 0.9865963298 | KE42: 0.986495443 | KF42: 0.9863945666 | KG42: 0.9996598642 | KH42: 0.9995576416 | KI42: 0.9994554294 | KJ42: 0.9993532277 | KK42: 0.9992510365 | KL42: 0.9991488557 | KM42: 0.9990466853 | KN42: 0.9989445254 | KO42: 0.998842376 | KP42: 0.998740237 | KQ42: 0.9986381084 | KR42: 0.9985359903 | KS42: 0.9984338826 | KT42: 0.9983317854 | KU42: 0.9982296986 | KV42: 0.9981276222 | KW42: 0.9980255563 | KX42: 0.9979235008 | KY42: 0.9978214558 | KZ42: 0.9977194212 | LA42: 0.997617397 | LB42: 0.9975153832 | LC42: 0.9974133799 | LD42: 0.997311387 | LE42: 0.9972094046 | LF42: 0.9971074326 | LG42: 0.997005471 | LH42: 0.9969035198 | LI42: 0.9968015791 | LJ42: 0.9966996487 | LK42: 0.9965977288 | LL42: 0.9964958194 | LM42: 0.9963939203 | LN42: 0.9962920317 | LO42: 0.9961901535 | LP42: 0.9960882857 | LQ42: 0.9959864283 | LR42: 0.9958845813 | LS42: 0.9957827448 | LT42: 0.9956809186 | LU42: 0.9955791029 | LV42: 0.9954772976 | LW42: 0.9953755027 | LX42: 0.9952737182 | LY42: 0.9951719441 | LZ42: 0.9950701804 | MA42: 0.9949684271 | MB42: =IF(MB37,MA42+MB41,MA42*(1+MB40)) -> 0.9948666843 | MC42: 0.9947649518 | MD42: 0.9946632298 | ME42: 0.9945615181 | MF42: 0.9944598168 | MG42: 0.994358126 | MH42: 0.9942564455 | MI42: 0.9941547755 | MJ42: 0.9940531158 | MK42: 0.9939514665 | ML42: 0.9938498276 | MM42: 0.9937481992 | MN42: 0.9936465811 | MO42: 0.9935449734 | MP42: 0.9934433761 | MQ42: 0.9933417891 | MR42: 0.9932402126 | MS42: 0.9931386465 | MT42: 0.9930370907 | MU42: 0.9929355453 | MV42: 0.9928340103 | MW42: 0.9927324857 | MX42: 0.9926309715 | MY42: 0.9925294677 | MZ42: 0.9924279742 | NA42: 0.9923264911 | NB42: 0.9922250184 | NC42: 0.9921235561 | ND42: 0.9920221041 | NE42: 0.9919206625 | NF42: 0.9918192313 | NG42: 0.9917178105 | NH42: 0.9916164 | NI42: 0.9915149999 | NJ42: 0.9914136102 | NK42: 0.9913122308 | NL42: 0.9912108618 | NM42: 0.9911095032 | NN42: 0.9910081549 | NO42: 0.990906817 | NP42: 0.9908054895 | NQ42: 0.9907041723 | NR42: 0.9906028655 | NS42: 0.990501569 | NT42: 0.9904002829 | NU42: 0.9902990072 | NV42: 0.9901977418 | NW42: 0.9900964868 | NX42: 0.9899952421 | NY42: 0.9898940078 | NZ42: 0.9897927838 | OA42: 0.9896915702 | OB42: 0.9895903669 | OC42: 0.989489174 | OD42: 0.9893879914 | OE42: 0.9892868192 | OF42: 0.9891856573 | OG42: 0.9890845058 | OH42: 0.9889833646 | OI42: 0.9888822337 | OJ42: 0.9887811132 | OK42: 0.9886800031 | OL42: 0.9885789032 | OM42: 0.9884778137 | ON42: =IF(ON37,OM42+ON41,OM42*(1+ON40)) -> 0.9883767346 | OO42: 0.9882756658 | OP42: 0.9881746073 | OQ42: 0.9880735591 | OR42: 0.9879725213 | OS42: 0.9878714938 | OT42: 0.9877704767 | OU42: 0.9876694699 | OV42: 0.9875684734 | OW42: 0.9874674872 | OX42: 0.9873665114 | OY42: 0.9872655458 | OZ42: 0.9871645907 | PA42: 0.9870636458 | PB42: 0.9869627112 | PC42: 0.986861787 | PD42: 0.9867608731 | PE42: 0.9996690218 | PF42: 0.9995667983 | PG42: 0.9994645852 | PH42: 0.9993623826 | PI42: 0.9992601904 | PJ42: 0.9992601904 | PK42: 0.9992601904 | PL42: 0.9992601904 | PM42: 0.9992601904 | PN42: 0.9992601904 | PO42: 0.9992601904 | PP42: 0.9992601904 | PQ42: 0.9992601904 | PR42: 0.9992601904 | PS42: 0.9992601904 | PT42: 0.9992601904 | PU42: 0.9992601904 | PV42: 0.9992601904 | PW42: 0.9992601904 | PX42: 0.9992601904 | PY42: 0.9992601904 | PZ42: 0.9992601904 | QA42: 0.9992601904 | QB42: 0.9992601904 | QC42: 0.9992601904 | QD42: 0.9992601904 | QE42: 0.9992601904 | QF42: 0.9992601904 | QG42: 0.9992601904 | QH42: 0.9992601904 | QI42: 0.9992601904 | QJ42: 0.9992601904 | QK42: 0.9992601904 | QL42: 0.9992601904
C43: Capacity After Degradation | F43: MW | L43: =L18*L42 -> 0 | M43: 0 | N43: 0 | O43: 0 | P43: 0 | Q43: 0 | R43: 0 | S43: 0 | T43: 0 | U43: 0 | V43: 0 | W43: 0 | X43: 0 | Y43: 0 | Z43: 0 | AA43: 0 | AB43: 0 | AC43: 0 | AD43: 0 | AE43: 0 | AF43: 0 | AG43: 0 | AH43: 0 | AI43: 0 | AJ43: 0 | AK43: 0 | AL43: 0 | AM43: 0 | AN43: 0 | AO43: 0 | AP43: 249.9744357 | AQ43: 249.9488739 | AR43: =AR18*AR42 -> 249.9233148 | AS43: 249.8977583 | AT43: 249.8722044 | AU43: 249.8466531 | AV43: 249.8211045 | AW43: 249.7955584 | AX43: 249.770015 | AY43: 249.7444741 | AZ43: 249.7189359 | BA43: 249.6934003 | BB43: 249.6678673 | BC43: 249.6423369 | BD43: 249.6168092 | BE43: 249.591284 | BF43: 249.5657615 | BG43: 249.5402415 | BH43: 249.5147242 | BI43: 249.4892095 | BJ43: 249.4636974 | BK43: 249.4381878 | BL43: 249.412681 | BM43: 249.3871767 | BN43: 249.361675 | BO43: 249.3361759 | BP43: 249.3106794 | BQ43: 249.2851856 | BR43: 249.2596943 | BS43: 249.2342057 | BT43: 249.2087197 | BU43: 249.1832362 | BV43: 249.1577554 | BW43: 249.1322772 | BX43: =BX18*BX42 -> 249.1068016 | BY43: 249.0813286 | BZ43: 249.0558582 | CA43: 249.0303904 | CB43: 249.0049252 | CC43: 248.9794626 | CD43: 248.9540026 | CE43: 248.9285452 | CF43: 248.9030904 | CG43: 248.8776382 | CH43: 248.8521887 | CI43: 248.8267417 | CJ43: 248.8012973 | CK43: 248.7758555 | CL43: 248.7504164 | CM43: 248.7249798 | CN43: 248.6995458 | CO43: 248.6741145 | CP43: 248.6486857 | CQ43: 248.6232595 | CR43: 248.597836 | CS43: 248.572415 | CT43: 248.5469967 | CU43: 248.5215809 | CV43: 248.4961677 | CW43: 248.4707572 | CX43: 248.4453492 | CY43: 248.4199438 | CZ43: 248.394541 | DA43: 248.3691409 | DB43: 248.3437433 | DC43: 248.3183483 | DD43: =DD18*DD42 -> 248.2929559 | DE43: 248.2675661 | DF43: 248.2421789 | DG43: 248.2167943 | DH43: 248.1914123 | DI43: 248.1660329 | DJ43: 248.1406561 | DK43: 248.1152819 | DL43: 248.0899103 | DM43: 248.0645413 | DN43: 248.0391748 | DO43: 248.013811 | DP43: 247.9884498 | DQ43: 247.9630911 | DR43: 247.9377351 | DS43: 247.9123816 | DT43: 247.8870307 | DU43: 247.8616824 | DV43: 247.8363368 | DW43: 247.8109937 | DX43: 247.7856532 | DY43: 247.7603152 | DZ43: 247.7349799 | EA43: 247.7096472 | EB43: 247.684317 | EC43: 247.6589895 | ED43: 247.6336645 | EE43: 247.6083422 | EF43: 247.5830224 | EG43: 247.5577052 | EH43: 247.5323906 | EI43: 247.5070786 | EJ43: =EJ18*EJ42 -> 247.4817692 | EK43: 247.4564623 | EL43: 247.4311581 | EM43: 247.4058564 | EN43: 247.3805573 | EO43: 247.3552608 | EP43: 247.3299669 | EQ43: 247.3046756 | ER43: 247.2793869 | ES43: 247.2541007 | ET43: 247.2288172 | EU43: 247.2035362 | EV43: 247.1782578 | EW43: 247.152982 | EX43: 247.1277088 | EY43: 247.1024382 | EZ43: 247.0771701 | FA43: 247.0519047 | FB43: 247.0266418 | FC43: 247.0013815 | FD43: 246.9761238 | FE43: 249.9244031 | FF43: 249.8988465 | FG43: 249.8732925 | FH43: 249.8477411 | FI43: 249.8221923 | FJ43: 249.7966461 | FK43: 249.7711026 | FL43: 249.7455617 | FM43: 249.7200233 | FN43: 249.6944876 | FO43: 249.6689545 | FP43: =FP18*FP42 -> 249.643424 | FQ43: 249.6178961 | FR43: 249.5923709 | FS43: 249.5668482 | FT43: 249.5413281 | FU43: 249.5158107 | FV43: 249.4902959 | FW43: 249.4647836 | FX43: 249.439274 | FY43: 249.413767 | FZ43: 249.3882626 | GA43: 249.3627608 | GB43: 249.3372616 | GC43: 249.3117651 | GD43: 249.2862711 | GE43: 249.2607797 | GF43: 249.235291 | GG43: 249.2098048 | GH43: 249.1843213 | GI43: 249.1588404 | GJ43: 249.133362 | GK43: 249.1078863 | GL43: 249.0824132 | GM43: 249.0569427 | GN43: 249.0314748 | GO43: 249.0060094 | GP43: 248.9805467 | GQ43: 248.9550866 | GR43: 248.9296291 | GS43: 248.9041743 | GT43: 248.878722 | GU43: 248.8532723 | GV43: =GV18*GV42 -> 248.8278252 | GW43: 248.8023807 | GX43: 248.7769388 | GY43: 248.7514996 | GZ43: 248.7260629 | HA43: 248.7006288 | HB43: 248.6751973 | HC43: 248.6497684 | HD43: =HD18*HD42 -> 248.6243422 | HE43: 248.5989185 | HF43: 248.5734974 | HG43: 248.5480789 | HH43: 248.5226631 | HI43: 248.4972498 | HJ43: 248.4718391 | HK43: 248.446431 | HL43: 248.4210256 | HM43: 248.3956227 | HN43: 248.3702224 | HO43: 248.3448247 | HP43: 248.3194296 | HQ43: 248.2940371 | HR43: 248.2686472 | HS43: 248.2432599 | HT43: 248.2178752 | HU43: 248.1924931 | HV43: 248.1671136 | HW43: 248.1417367 | HX43: 248.1163623 | HY43: 248.0909906 | HZ43: 248.0656215 | IA43: 248.0402549 | IB43: 248.014891 | IC43: 247.9895296 | ID43: 247.9641709 | IE43: 247.9388147 | IF43: 247.9134611 | IG43: 247.8881101 | IH43: 247.8627618 | II43: 247.837416 | IJ43: 247.8120727 | IK43: 247.7867321 | IL43: 247.7613941 | IM43: 247.7360587 | IN43: 247.7107258 | IO43: 247.6853956 | IP43: 247.6600679 | IQ43: 247.6347429 | IR43: 247.6094204 | IS43: 247.5841005 | IT43: 247.5587832 | IU43: 247.5334685 | IV43: 247.5081563 | IW43: 247.4828468 | IX43: 247.4575399 | IY43: 247.4322355 | IZ43: 247.4069337 | JA43: 247.3816345 | JB43: 247.3563379 | JC43: 247.3310439 | JD43: 247.3057525 | JE43: 247.2804637 | JF43: 247.2551774 | JG43: 247.2298937 | JH43: 247.2046127 | JI43: 247.1793342 | JJ43: 247.1540583 | JK43: 247.1287849 | JL43: 247.1035142 | JM43: 247.078246 | JN43: 247.0529805 | JO43: 247.0277175 | JP43: =JP18*JP42 -> 247.0024571 | JQ43: 246.9771992 | JR43: 246.951944 | JS43: 246.9266913 | JT43: 246.9014412 | JU43: 246.8761938 | JV43: 246.8509488 | JW43: 246.8257065 | JX43: 246.8004668 | JY43: 246.7752296 | JZ43: 246.749995 | KA43: 246.724763 | KB43: 246.6995336 | KC43: 246.6743067 | KD43: 246.6490824 | KE43: 246.6238608 | KF43: 246.5986416 | KG43: 249.914966 | KH43: 249.8894104 | KI43: 249.8638574 | KJ43: 249.8383069 | KK43: 249.8127591 | KL43: 249.7872139 | KM43: 249.7616713 | KN43: 249.7361314 | KO43: 249.710594 | KP43: 249.6850592 | KQ43: 249.6595271 | KR43: 249.6339976 | KS43: 249.6084707 | KT43: 249.5829463 | KU43: 249.5574246 | KV43: 249.5319056 | KW43: 249.5063891 | KX43: 249.4808752 | KY43: 249.4553639 | KZ43: 249.4298553 | LA43: 249.4043492 | LB43: 249.3788458 | LC43: 249.353345 | LD43: 249.3278468 | LE43: 249.3023511 | LF43: 249.2768581 | LG43: 249.2513677 | LH43: 249.22588 | LI43: 249.2003948 | LJ43: 249.1749122 | LK43: 249.1494322 | LL43: 249.1239548 | LM43: 249.0984801 | LN43: 249.0730079 | LO43: 249.0475384 | LP43: 249.0220714 | LQ43: 248.9966071 | LR43: 248.9711453 | LS43: 248.9456862 | LT43: 248.9202297 | LU43: 248.8947757 | LV43: 248.8693244 | LW43: 248.8438757 | LX43: 248.8184295 | LY43: 248.792986 | LZ43: 248.7675451 | MA43: 248.7421068 | MB43: =MB18*MB42 -> 248.7166711 | MC43: 248.691238 | MD43: 248.6658074 | ME43: 248.6403795 | MF43: 248.6149542 | MG43: 248.5895315 | MH43: 248.5641114 | MI43: 248.5386939 | MJ43: 248.5132789 | MK43: 248.4878666 | ML43: 248.4624569 | MM43: 248.4370498 | MN43: 248.4116453 | MO43: 248.3862433 | MP43: 248.360844 | MQ43: 248.3354473 | MR43: 248.3100532 | MS43: 248.2846616 | MT43: 248.2592727 | MU43: 248.2338863 | MV43: 248.2085026 | MW43: 248.1831214 | MX43: 248.1577429 | MY43: 248.1323669 | MZ43: 248.1069936 | NA43: 248.0816228 | NB43: 248.0562546 | NC43: 248.030889 | ND43: 248.005526 | NE43: 247.9801656 | NF43: 247.9548078 | NG43: 247.9294526 | NH43: 247.9041 | NI43: 247.87875 | NJ43: 247.8534025 | NK43: 247.8280577 | NL43: 247.8027155 | NM43: 247.7773758 | NN43: 247.7520387 | NO43: 247.7267043 | NP43: 247.7013724 | NQ43: 247.6760431 | NR43: 247.6507164 | NS43: 247.6253923 | NT43: 247.6000707 | NU43: 247.5747518 | NV43: 247.5494355 | NW43: 247.5241217 | NX43: 247.4988105 | NY43: 247.4735019 | NZ43: 247.448196 | OA43: 247.4228926 | OB43: 247.3975917 | OC43: 247.3722935 | OD43: 247.3469979 | OE43: 247.3217048 | OF43: 247.2964143 | OG43: 247.2711264 | OH43: 247.2458411 | OI43: 247.2205584 | OJ43: 247.1952783 | OK43: 247.1700008 | OL43: 247.1447258 | OM43: 247.1194534 | ON43: =ON18*ON42 -> 247.0941836 | OO43: 247.0689164 | OP43: 247.0436518 | OQ43: 247.0183898 | OR43: 246.9931303 | OS43: 246.9678735 | OT43: 246.9426192 | OU43: 246.9173675 | OV43: 246.8921183 | OW43: 246.8668718 | OX43: 246.8416278 | OY43: 246.8163865 | OZ43: 246.7911477 | PA43: 246.7659114 | PB43: 246.7406778 | PC43: 246.7154468 | PD43: 246.6902183 | PE43: 249.9172555 | PF43: 249.8916996 | PG43: 249.8661463 | PH43: 249.8405956 | PI43: 249.8150476 | PJ43: 0 | PK43: 0 | PL43: 0 | PM43: 0 | PN43: 0 | PO43: 0 | PP43: 0 | PQ43: 0 | PR43: 0 | PS43: 0 | PT43: 0 | PU43: 0 | PV43: 0 | PW43: 0 | PX43: 0 | PY43: 0 | PZ43: 0 | QA43: 0 | QB43: 0 | QC43: 0 | QD43: 0 | QE43: 0 | QF43: 0 | QG43: 0 | QH43: 0 | QI43: 0 | QJ43: 0 | QK43: 0 | QL43: 0
B45: Heat Rate
C46: Heat Rate Before Degradation | F46: BTU/kWh | G46: =Assumptions!G16 -> 6700 | L46: =$G$46 -> 6700 | M46: =$G$46 -> 6700 | N46: 6700 | O46: 6700 | P46: 6700 | Q46: 6700 | R46: 6700 | S46: 6700 | T46: 6700 | U46: 6700 | V46: 6700 | W46: 6700 | X46: 6700 | Y46: 6700 | Z46: 6700 | AA46: 6700 | AB46: 6700 | AC46: 6700 | AD46: 6700 | AE46: 6700 | AF46: 6700 | AG46: 6700 | AH46: 6700 | AI46: 6700 | AJ46: 6700 | AK46: 6700 | AL46: 6700 | AM46: 6700 | AN46: 6700 | AO46: 6700 | AP46: 6700 | AQ46: 6700 | AR46: 6700 | AS46: 6700 | AT46: 6700 | AU46: 6700 | AV46: 6700 | AW46: 6700 | AX46: 6700 | AY46: 6700 | AZ46: 6700 | BA46: 6700 | BB46: 6700 | BC46: 6700 | BD46: 6700 | BE46: 6700 | BF46: 6700 | BG46: 6700 | BH46: 6700 | BI46: 6700 | BJ46: 6700 | BK46: 6700 | BL46: 6700 | BM46: 6700 | BN46: 6700 | BO46: 6700 | BP46: 6700 | BQ46: 6700 | BR46: 6700 | BS46: 6700 | BT46: 6700 | BU46: 6700 | BV46: 6700 | BW46: 6700 | BX46: 6700 | BY46: =$G$46 -> 6700 | BZ46: 6700 | CA46: 6700 | CB46: 6700 | CC46: 6700 | CD46: 6700 | CE46: 6700 | CF46: 6700 | CG46: 6700 | CH46: 6700 | CI46: 6700 | CJ46: 6700 | CK46: 6700 | CL46: 6700 | CM46: 6700 | CN46: 6700 | CO46: 6700 | CP46: 6700 | CQ46: 6700 | CR46: 6700 | CS46: 6700 | CT46: 6700 | CU46: 6700 | CV46: 6700 | CW46: 6700 | CX46: 6700 | CY46: 6700 | CZ46: 6700 | DA46: 6700 | DB46: 6700 | DC46: 6700 | DD46: 6700 | DE46: 6700 | DF46: 6700 | DG46: 6700 | DH46: 6700 | DI46: 6700 | DJ46: 6700 | DK46: 6700 | DL46: 6700 | DM46: 6700 | DN46: 6700 | DO46: 6700 | DP46: 6700 | DQ46: 6700 | DR46: 6700 | DS46: 6700 | DT46: 6700 | DU46: 6700 | DV46: 6700 | DW46: 6700 | DX46: 6700 | DY46: 6700 | DZ46: 6700 | EA46: 6700 | EB46: 6700 | EC46: 6700 | ED46: 6700 | EE46: 6700 | EF46: 6700 | EG46: 6700 | EH46: 6700 | EI46: 6700 | EJ46: 6700 | EK46: =$G$46 -> 6700 | EL46: 6700 | EM46: 6700 | EN46: 6700 | EO46: 6700 | EP46: 6700 | EQ46: 6700 | ER46: 6700 | ES46: 6700 | ET46: 6700 | EU46: 6700 | EV46: 6700 | EW46: 6700 | EX46: 6700 | EY46: 6700 | EZ46: 6700 | FA46: 6700 | FB46: 6700 | FC46: 6700 | FD46: 6700 | FE46: 6700 | FF46: 6700 | FG46: 6700 | FH46: 6700 | FI46: 6700 | FJ46: 6700 | FK46: 6700 | FL46: 6700 | FM46: 6700 | FN46: 6700 | FO46: 6700 | FP46: 6700 | FQ46: 6700 | FR46: 6700 | FS46: 6700 | FT46: 6700 | FU46: 6700 | FV46: 6700 | FW46: 6700 | FX46: 6700 | FY46: 6700 | FZ46: 6700 | GA46: 6700 | GB46: 6700 | GC46: 6700 | GD46: 6700 | GE46: 6700 | GF46: 6700 | GG46: 6700 | GH46: 6700 | GI46: 6700 | GJ46: 6700 | GK46: 6700 | GL46: 6700 | GM46: 6700 | GN46: 6700 | GO46: 6700 | GP46: 6700 | GQ46: 6700 | GR46: 6700 | GS46: 6700 | GT46: 6700 | GU46: 6700 | GV46: 6700 | GW46: =$G$46 -> 6700 | GX46: 6700 | GY46: 6700 | GZ46: 6700 | HA46: 6700 | HB46: 6700 | HC46: 6700 | HD46: 6700 | HE46: 6700 | HF46: 6700 | HG46: 6700 | HH46: 6700 | HI46: 6700 | HJ46: 6700 | HK46: 6700 | HL46: 6700 | HM46: 6700 | HN46: 6700 | HO46: 6700 | HP46: 6700 | HQ46: 6700 | HR46: 6700 | HS46: 6700 | HT46: 6700 | HU46: 6700 | HV46: 6700 | HW46: 6700 | HX46: 6700 | HY46: 6700 | HZ46: 6700 | IA46: 6700 | IB46: 6700 | IC46: 6700 | ID46: 6700 | IE46: 6700 | IF46: 6700 | IG46: 6700 | IH46: 6700 | II46: 6700 | IJ46: 6700 | IK46: 6700 | IL46: 6700 | IM46: 6700 | IN46: 6700 | IO46: 6700 | IP46: 6700 | IQ46: 6700 | IR46: 6700 | IS46: 6700 | IT46: 6700 | IU46: 6700 | IV46: 6700 | IW46: 6700 | IX46: 6700 | IY46: 6700 | IZ46: 6700 | JA46: 6700 | JB46: 6700 | JC46: 6700 | JD46: 6700 | JE46: 6700 | JF46: 6700 | JG46: 6700 | JH46: 6700 | JI46: =$G$46 -> 6700 | JJ46: 6700 | JK46: 6700 | JL46: 6700 | JM46: 6700 | JN46: 6700 | JO46: 6700 | JP46: 6700 | JQ46: 6700 | JR46: 6700 | JS46: 6700 | JT46: 6700 | JU46: 6700 | JV46: 6700 | JW46: 6700 | JX46: 6700 | JY46: 6700 | JZ46: 6700 | KA46: 6700 | KB46: 6700 | KC46: 6700 | KD46: 6700 | KE46: 6700 | KF46: 6700 | KG46: 6700 | KH46: 6700 | KI46: 6700 | KJ46: 6700 | KK46: 6700 | KL46: 6700 | KM46: 6700 | KN46: 6700 | KO46: 6700 | KP46: 6700 | KQ46: 6700 | KR46: 6700 | KS46: 6700 | KT46: 6700 | KU46: 6700 | KV46: 6700 | KW46: 6700 | KX46: 6700 | KY46: 6700 | KZ46: 6700 | LA46: 6700 | LB46: 6700 | LC46: 6700 | LD46: 6700 | LE46: 6700 | LF46: 6700 | LG46: 6700 | LH46: 6700 | LI46: 6700 | LJ46: 6700 | LK46: 6700 | LL46: 6700 | LM46: 6700 | LN46: 6700 | LO46: 6700 | LP46: 6700 | LQ46: 6700 | LR46: 6700 | LS46: 6700 | LT46: 6700 | LU46: =$G$46 -> 6700 | LV46: 6700 | LW46: 6700 | LX46: 6700 | LY46: 6700 | LZ46: 6700 | MA46: 6700 | MB46: 6700 | MC46: 6700 | MD46: 6700 | ME46: 6700 | MF46: 6700 | MG46: 6700 | MH46: 6700 | MI46: 6700 | MJ46: 6700 | MK46: 6700 | ML46: 6700 | MM46: 6700 | MN46: 6700 | MO46: 6700 | MP46: 6700 | MQ46: 6700 | MR46: 6700 | MS46: 6700 | MT46: 6700 | MU46: 6700 | MV46: 6700 | MW46: 6700 | MX46: 6700 | MY46: 6700 | MZ46: 6700 | NA46: 6700 | NB46: 6700 | NC46: 6700 | ND46: 6700 | NE46: 6700 | NF46: 6700 | NG46: 6700 | NH46: 6700 | NI46: 6700 | NJ46: 6700 | NK46: 6700 | NL46: 6700 | NM46: 6700 | NN46: 6700 | NO46: 6700 | NP46: 6700 | NQ46: 6700 | NR46: 6700 | NS46: 6700 | NT46: 6700 | NU46: 6700 | NV46: 6700 | NW46: 6700 | NX46: 6700 | NY46: 6700 | NZ46: 6700 | OA46: 6700 | OB46: 6700 | OC46: 6700 | OD46: 6700 | OE46: 6700 | OF46: 6700 | OG46: =$G$46 -> 6700 | OH46: 6700 | OI46: 6700 | OJ46: 6700 | OK46: 6700 | OL46: 6700 | OM46: 6700 | ON46: 6700 | OO46: 6700 | OP46: 6700 | OQ46: 6700 | OR46: 6700 | OS46: 6700 | OT46: 6700 | OU46: 6700 | OV46: 6700 | OW46: 6700 | OX46: 6700 | OY46: 6700 | OZ46: 6700 | PA46: 6700 | PB46: 6700 | PC46: 6700 | PD46: 6700 | PE46: 6700 | PF46: 6700 | PG46: 6700 | PH46: 6700 | PI46: 6700 | PJ46: 6700 | PK46: 6700 | PL46: 6700 | PM46: 6700 | PN46: 6700 | PO46: 6700 | PP46: 6700 | PQ46: 6700 | PR46: 6700 | PS46: 6700 | PT46: 6700 | PU46: 6700 | PV46: 6700 | PW46: 6700 | PX46: 6700 | PY46: 6700 | PZ46: 6700 | QA46: 6700 | QB46: 6700 | QC46: 6700 | QD46: 6700 | QE46: 6700 | QF46: 6700 | QG46: 6700 | QH46: 6700 | QI46: 6700 | QJ46: 6700 | QK46: 6700 | QL46: 6700
C48: Degradation Percentage | F48: % | G48: =Assumptions!G18 -> 0.0009241393239 | L48: =(1+$G$48*L15)^(1/L5)-1 -> 0 | M48: 0 | N48: 0 | O48: 0 | P48: 0 | Q48: 0 | R48: 0 | S48: 0 | T48: 0 | U48: 0 | V48: 0 | W48: 0 | X48: 0 | Y48: 0 | Z48: 0 | AA48: 0 | AB48: 0 | AC48: 0 | AD48: 0 | AE48: 0 | AF48: 0 | AG48: 0 | AH48: 0 | AI48: 0 | AJ48: 0 | AK48: 0 | AL48: 0 | AM48: 0 | AN48: 0 | AO48: 0 | AP48: 7.697901024e-05 | AQ48: 7.697901024e-05 | AR48: 7.697901024e-05 | AS48: 7.697901024e-05 | AT48: 7.697901024e-05 | AU48: 7.697901024e-05 | AV48: 7.697901024e-05 | AW48: 7.697901024e-05 | AX48: 7.697901024e-05 | AY48: 7.697901024e-05 | AZ48: 7.697901024e-05 | BA48: 7.697901024e-05 | BB48: 7.697901024e-05 | BC48: 7.697901024e-05 | BD48: 7.697901024e-05 | BE48: 7.697901024e-05 | BF48: 7.697901024e-05 | BG48: 7.697901024e-05 | BH48: 7.697901024e-05 | BI48: 7.697901024e-05 | BJ48: 7.697901024e-05 | BK48: 7.697901024e-05 | BL48: 7.697901024e-05 | BM48: 7.697901024e-05 | BN48: 7.697901024e-05 | BO48: 7.697901024e-05 | BP48: 7.697901024e-05 | BQ48: 7.697901024e-05 | BR48: 7.697901024e-05 | BS48: 7.697901024e-05 | BT48: 7.697901024e-05 | BU48: 7.697901024e-05 | BV48: 7.697901024e-05 | BW48: 7.697901024e-05 | BX48: =(1+$G$48*BX15)^(1/BX5)-1 -> 7.697901024e-05 | BY48: 7.697901024e-05 | BZ48: 7.697901024e-05 | CA48: 7.697901024e-05 | CB48: 7.697901024e-05 | CC48: 7.697901024e-05 | CD48: 7.697901024e-05 | CE48: 7.697901024e-05 | CF48: 7.697901024e-05 | CG48: 7.697901024e-05 | CH48: 7.697901024e-05 | CI48: 7.697901024e-05 | CJ48: 7.697901024e-05 | CK48: 7.697901024e-05 | CL48: 7.697901024e-05 | CM48: 7.697901024e-05 | CN48: 7.697901024e-05 | CO48: 7.697901024e-05 | CP48: 7.697901024e-05 | CQ48: 7.697901024e-05 | CR48: 7.697901024e-05 | CS48: 7.697901024e-05 | CT48: 7.697901024e-05 | CU48: 7.697901024e-05 | CV48: 7.697901024e-05 | CW48: 7.697901024e-05 | CX48: 7.697901024e-05 | CY48: 7.697901024e-05 | CZ48: 7.697901024e-05 | DA48: 7.697901024e-05 | DB48: 7.697901024e-05 | DC48: 7.697901024e-05 | DD48: 7.697901024e-05 | DE48: 7.697901024e-05 | DF48: 7.697901024e-05 | DG48: 7.697901024e-05 | DH48: 7.697901024e-05 | DI48: 7.697901024e-05 | DJ48: 7.697901024e-05 | DK48: 7.697901024e-05 | DL48: 7.697901024e-05 | DM48: 7.697901024e-05 | DN48: 7.697901024e-05 | DO48: 7.697901024e-05 | DP48: 7.697901024e-05 | DQ48: 7.697901024e-05 | DR48: 7.697901024e-05 | DS48: 7.697901024e-05 | DT48: 7.697901024e-05 | DU48: 7.697901024e-05 | DV48: 7.697901024e-05 | DW48: 7.697901024e-05 | DX48: 7.697901024e-05 | DY48: 7.697901024e-05 | DZ48: 7.697901024e-05 | EA48: 7.697901024e-05 | EB48: 7.697901024e-05 | EC48: 7.697901024e-05 | ED48: 7.697901024e-05 | EE48: 7.697901024e-05 | EF48: 7.697901024e-05 | EG48: 7.697901024e-05 | EH48: 7.697901024e-05 | EI48: 7.697901024e-05 | EJ48: =(1+$G$48*EJ15)^(1/EJ5)-1 -> 7.697901024e-05 | EK48: 7.697901024e-05 | EL48: 7.697901024e-05 | EM48: 7.697901024e-05 | EN48: 7.697901024e-05 | EO48: 7.697901024e-05 | EP48: 7.697901024e-05 | EQ48: 7.697901024e-05 | ER48: 7.697901024e-05 | ES48: 7.697901024e-05 | ET48: 7.697901024e-05 | EU48: 7.697901024e-05 | EV48: 7.697901024e-05 | EW48: 7.697901024e-05 | EX48: 7.697901024e-05 | EY48: 7.697901024e-05 | EZ48: 7.697901024e-05 | FA48: 7.697901024e-05 | FB48: 7.697901024e-05 | FC48: 7.697901024e-05 | FD48: 7.697901024e-05 | FE48: 7.697901024e-05 | FF48: 7.697901024e-05 | FG48: 7.697901024e-05 | FH48: 7.697901024e-05 | FI48: 7.697901024e-05 | FJ48: 7.697901024e-05 | FK48: 7.697901024e-05 | FL48: 7.697901024e-05 | FM48: 7.697901024e-05 | FN48: 7.697901024e-05 | FO48: 7.697901024e-05 | FP48: 7.697901024e-05 | FQ48: 7.697901024e-05 | FR48: 7.697901024e-05 | FS48: 7.697901024e-05 | FT48: 7.697901024e-05 | FU48: 7.697901024e-05 | FV48: 7.697901024e-05 | FW48: 7.697901024e-05 | FX48: 7.697901024e-05 | FY48: 7.697901024e-05 | FZ48: 7.697901024e-05 | GA48: 7.697901024e-05 | GB48: 7.697901024e-05 | GC48: 7.697901024e-05 | GD48: 7.697901024e-05 | GE48: 7.697901024e-05 | GF48: 7.697901024e-05 | GG48: 7.697901024e-05 | GH48: 7.697901024e-05 | GI48: 7.697901024e-05 | GJ48: 7.697901024e-05 | GK48: 7.697901024e-05 | GL48: 7.697901024e-05 | GM48: 7.697901024e-05 | GN48: 7.697901024e-05 | GO48: 7.697901024e-05 | GP48: 7.697901024e-05 | GQ48: 7.697901024e-05 | GR48: 7.697901024e-05 | GS48: 7.697901024e-05 | GT48: 7.697901024e-05 | GU48: 7.697901024e-05 | GV48: =(1+$G$48*GV15)^(1/GV5)-1 -> 7.697901024e-05 | GW48: 7.697901024e-05 | GX48: 7.697901024e-05 | GY48: 7.697901024e-05 | GZ48: 7.697901024e-05 | HA48: 7.697901024e-05 | HB48: 7.697901024e-05 | HC48: 7.697901024e-05 | HD48: 7.697901024e-05 | HE48: 7.697901024e-05 | HF48: 7.697901024e-05 | HG48: 7.697901024e-05 | HH48: 7.697901024e-05 | HI48: 7.697901024e-05 | HJ48: 7.697901024e-05 | HK48: 7.697901024e-05 | HL48: 7.697901024e-05 | HM48: 7.697901024e-05 | HN48: 7.697901024e-05 | HO48: 7.697901024e-05 | HP48: 7.697901024e-05 | HQ48: 7.697901024e-05 | HR48: 7.697901024e-05 | HS48: 7.697901024e-05 | HT48: 7.697901024e-05 | HU48: 7.697901024e-05 | HV48: 7.697901024e-05 | HW48: 7.697901024e-05 | HX48: 7.697901024e-05 | HY48: 7.697901024e-05 | HZ48: 7.697901024e-05 | IA48: 7.697901024e-05 | IB48: 7.697901024e-05 | IC48: 7.697901024e-05 | ID48: 7.697901024e-05 | IE48: 7.697901024e-05 | IF48: 7.697901024e-05 | IG48: 7.697901024e-05 | IH48: 7.697901024e-05 | II48: 7.697901024e-05 | IJ48: 7.697901024e-05 | IK48: 7.697901024e-05 | IL48: 7.697901024e-05 | IM48: 7.697901024e-05 | IN48: 7.697901024e-05 | IO48: 7.697901024e-05 | IP48: 7.697901024e-05 | IQ48: 7.697901024e-05 | IR48: 7.697901024e-05 | IS48: 7.697901024e-05 | IT48: 7.697901024e-05 | IU48: 7.697901024e-05 | IV48: 7.697901024e-05 | IW48: 7.697901024e-05 | IX48: 7.697901024e-05 | IY48: 7.697901024e-05 | IZ48: 7.697901024e-05 | JA48: 7.697901024e-05 | JB48: 7.697901024e-05 | JC48: 7.697901024e-05 | JD48: 7.697901024e-05 | JE48: 7.697901024e-05 | JF48: 7.697901024e-05 | JG48: 7.697901024e-05 | JH48: =(1+$G$48*JH15)^(1/JH5)-1 -> 7.697901024e-05 | JI48: 7.697901024e-05 | JJ48: 7.697901024e-05 | JK48: 7.697901024e-05 | JL48: 7.697901024e-05 | JM48: 7.697901024e-05 | JN48: 7.697901024e-05 | JO48: 7.697901024e-05 | JP48: 7.697901024e-05 | JQ48: 7.697901024e-05 | JR48: 7.697901024e-05 | JS48: 7.697901024e-05 | JT48: 7.697901024e-05 | JU48: 7.697901024e-05 | JV48: 7.697901024e-05 | JW48: 7.697901024e-05 | JX48: 7.697901024e-05 | JY48: 7.697901024e-05 | JZ48: 7.697901024e-05 | KA48: 7.697901024e-05 | KB48: 7.697901024e-05 | KC48: 7.697901024e-05 | KD48: 7.697901024e-05 | KE48: 7.697901024e-05 | KF48: 7.697901024e-05 | KG48: 7.697901024e-05 | KH48: 7.697901024e-05 | KI48: 7.697901024e-05 | KJ48: 7.697901024e-05 | KK48: 7.697901024e-05 | KL48: 7.697901024e-05 | KM48: 7.697901024e-05 | KN48: 7.697901024e-05 | KO48: 7.697901024e-05 | KP48: 7.697901024e-05 | KQ48: 7.697901024e-05 | KR48: 7.697901024e-05 | KS48: 7.697901024e-05 | KT48: 7.697901024e-05 | KU48: 7.697901024e-05 | KV48: 7.697901024e-05 | KW48: 7.697901024e-05 | KX48: 7.697901024e-05 | KY48: 7.697901024e-05 | KZ48: 7.697901024e-05 | LA48: 7.697901024e-05 | LB48: 7.697901024e-05 | LC48: 7.697901024e-05 | LD48: 7.697901024e-05 | LE48: 7.697901024e-05 | LF48: 7.697901024e-05 | LG48: 7.697901024e-05 | LH48: 7.697901024e-05 | LI48: 7.697901024e-05 | LJ48: 7.697901024e-05 | LK48: 7.697901024e-05 | LL48: 7.697901024e-05 | LM48: 7.697901024e-05 | LN48: 7.697901024e-05 | LO48: 7.697901024e-05 | LP48: 7.697901024e-05 | LQ48: 7.697901024e-05 | LR48: 7.697901024e-05 | LS48: 7.697901024e-05 | LT48: =(1+$G$48*LT15)^(1/LT5)-1 -> 7.697901024e-05 | LU48: 7.697901024e-05 | LV48: 7.697901024e-05 | LW48: 7.697901024e-05 | LX48: 7.697901024e-05 | LY48: 7.697901024e-05 | LZ48: 7.697901024e-05 | MA48: 7.697901024e-05 | MB48: 7.697901024e-05 | MC48: 7.697901024e-05 | MD48: 7.697901024e-05 | ME48: 7.697901024e-05 | MF48: 7.697901024e-05 | MG48: 7.697901024e-05 | MH48: 7.697901024e-05 | MI48: 7.697901024e-05 | MJ48: 7.697901024e-05 | MK48: 7.697901024e-05 | ML48: 7.697901024e-05 | MM48: 7.697901024e-05 | MN48: 7.697901024e-05 | MO48: 7.697901024e-05 | MP48: 7.697901024e-05 | MQ48: 7.697901024e-05 | MR48: 7.697901024e-05 | MS48: 7.697901024e-05 | MT48: 7.697901024e-05 | MU48: 7.697901024e-05 | MV48: 7.697901024e-05 | MW48: 7.697901024e-05 | MX48: 7.697901024e-05 | MY48: 7.697901024e-05 | MZ48: 7.697901024e-05 | NA48: 7.697901024e-05 | NB48: 7.697901024e-05 | NC48: 7.697901024e-05 | ND48: 7.697901024e-05 | NE48: 7.697901024e-05 | NF48: 7.697901024e-05 | NG48: 7.697901024e-05 | NH48: 7.697901024e-05 | NI48: 7.697901024e-05 | NJ48: 7.697901024e-05 | NK48: 7.697901024e-05 | NL48: 7.697901024e-05 | NM48: 7.697901024e-05 | NN48: 7.697901024e-05 | NO48: 7.697901024e-05 | NP48: 7.697901024e-05 | NQ48: 7.697901024e-05 | NR48: 7.697901024e-05 | NS48: 7.697901024e-05 | NT48: 7.697901024e-05 | NU48: 7.697901024e-05 | NV48: 7.697901024e-05 | NW48: 7.697901024e-05 | NX48: 7.697901024e-05 | NY48: 7.697901024e-05 | NZ48: 7.697901024e-05 | OA48: 7.697901024e-05 | OB48: 7.697901024e-05 | OC48: 7.697901024e-05 | OD48: 7.697901024e-05 | OE48: 7.697901024e-05 | OF48: =(1+$G$48*OF15)^(1/OF5)-1 -> 7.697901024e-05 | OG48: 7.697901024e-05 | OH48: 7.697901024e-05 | OI48: 7.697901024e-05 | OJ48: 7.697901024e-05 | OK48: 7.697901024e-05 | OL48: 7.697901024e-05 | OM48: 7.697901024e-05 | ON48: 7.697901024e-05 | OO48: 7.697901024e-05 | OP48: 7.697901024e-05 | OQ48: 7.697901024e-05 | OR48: 7.697901024e-05 | OS48: 7.697901024e-05 | OT48: 7.697901024e-05 | OU48: 7.697901024e-05 | OV48: 7.697901024e-05 | OW48: 7.697901024e-05 | OX48: 7.697901024e-05 | OY48: 7.697901024e-05 | OZ48: 7.697901024e-05 | PA48: 7.697901024e-05 | PB48: 7.697901024e-05 | PC48: 7.697901024e-05 | PD48: 7.697901024e-05 | PE48: 7.697901024e-05 | PF48: 7.697901024e-05 | PG48: 7.697901024e-05 | PH48: 7.697901024e-05 | PI48: 7.697901024e-05 | PJ48: 0 | PK48: 0 | PL48: 0 | PM48: 0 | PN48: 0 | PO48: 0 | PP48: 0 | PQ48: 0 | PR48: 0 | PS48: 0 | PT48: 0 | PU48: 0 | PV48: 0 | PW48: 0 | PX48: 0 | PY48: 0 | PZ48: 0 | QA48: 0 | QB48: 0 | QC48: 0 | QD48: 0 | QE48: 0 | QF48: 0 | QG48: 0 | QH48: 0 | QI48: 0 | QJ48: 0 | QK48: 0 | QL48: 0
C49: Heat Rate Recovery Factor | F49: % | G49: =Assumptions!G32 -> 0.98 | L49: =L37*$G$49*(K50-1) -> 0 | M49: 0 | N49: 0 | O49: 0 | P49: 0 | Q49: 0 | R49: 0 | S49: 0 | T49: 0 | U49: 0 | V49: 0 | W49: 0 | X49: 0 | Y49: 0 | Z49: 0 | AA49: 0 | AB49: 0 | AC49: 0 | AD49: 0 | AE49: 0 | AF49: 0 | AG49: 0 | AH49: 0 | AI49: 0 | AJ49: 0 | AK49: 0 | AL49: 0 | AM49: 0 | AN49: 0 | AO49: 0 | AP49: 0 | AQ49: 0 | AR49: =AR37*$G$49*(AQ50-1) -> 0 | AS49: 0 | AT49: 0 | AU49: 0 | AV49: 0 | AW49: 0 | AX49: 0 | AY49: 0 | AZ49: 0 | BA49: 0 | BB49: 0 | BC49: 0 | BD49: 0 | BE49: 0 | BF49: 0 | BG49: 0 | BH49: 0 | BI49: 0 | BJ49: 0 | BK49: 0 | BL49: 0 | BM49: 0 | BN49: 0 | BO49: 0 | BP49: 0 | BQ49: 0 | BR49: 0 | BS49: 0 | BT49: 0 | BU49: 0 | BV49: 0 | BW49: 0 | BX49: =BX37*$G$49*(BW50-1) -> 0 | BY49: 0 | BZ49: 0 | CA49: 0 | CB49: 0 | CC49: 0 | CD49: 0 | CE49: 0 | CF49: 0 | CG49: 0 | CH49: 0 | CI49: 0 | CJ49: 0 | CK49: 0 | CL49: 0 | CM49: 0 | CN49: 0 | CO49: 0 | CP49: 0 | CQ49: 0 | CR49: 0 | CS49: 0 | CT49: 0 | CU49: 0 | CV49: 0 | CW49: 0 | CX49: 0 | CY49: 0 | CZ49: 0 | DA49: 0 | DB49: 0 | DC49: 0 | DD49: =DD37*$G$49*(DC50-1) -> 0 | DE49: 0 | DF49: 0 | DG49: 0 | DH49: 0 | DI49: 0 | DJ49: 0 | DK49: 0 | DL49: 0 | DM49: 0 | DN49: 0 | DO49: 0 | DP49: 0 | DQ49: 0 | DR49: 0 | DS49: 0 | DT49: 0 | DU49: 0 | DV49: 0 | DW49: 0 | DX49: 0 | DY49: 0 | DZ49: 0 | EA49: 0 | EB49: 0 | EC49: 0 | ED49: 0 | EE49: 0 | EF49: 0 | EG49: 0 | EH49: 0 | EI49: 0 | EJ49: =EJ37*$G$49*(EI50-1) -> 0 | EK49: 0 | EL49: 0 | EM49: 0 | EN49: 0 | EO49: 0 | EP49: 0 | EQ49: 0 | ER49: 0 | ES49: 0 | ET49: 0 | EU49: 0 | EV49: 0 | EW49: 0 | EX49: 0 | EY49: 0 | EZ49: 0 | FA49: 0 | FB49: 0 | FC49: 0 | FD49: 0 | FE49: 0.009018187575 | FF49: 0 | FG49: 0 | FH49: 0 | FI49: 0 | FJ49: 0 | FK49: 0 | FL49: 0 | FM49: 0 | FN49: 0 | FO49: 0 | FP49: =FP37*$G$49*(FO50-1) -> 0 | FQ49: 0 | FR49: 0 | FS49: 0 | FT49: 0 | FU49: 0 | FV49: 0 | FW49: 0 | FX49: 0 | FY49: 0 | FZ49: 0 | GA49: 0 | GB49: 0 | GC49: 0 | GD49: 0 | GE49: 0 | GF49: 0 | GG49: 0 | GH49: 0 | GI49: 0 | GJ49: 0 | GK49: 0 | GL49: 0 | GM49: 0 | GN49: 0 | GO49: 0 | GP49: 0 | GQ49: 0 | GR49: 0 | GS49: 0 | GT49: 0 | GU49: 0 | GV49: =GV37*$G$49*(GU50-1) -> 0 | GW49: 0 | GX49: 0 | GY49: 0 | GZ49: 0 | HA49: 0 | HB49: 0 | HC49: 0 | HD49: =HD37*$G$49*(HC50-1) -> 0 | HE49: 0 | HF49: 0 | HG49: 0 | HH49: 0 | HI49: 0 | HJ49: 0 | HK49: 0 | HL49: 0 | HM49: 0 | HN49: 0 | HO49: 0 | HP49: 0 | HQ49: 0 | HR49: 0 | HS49: 0 | HT49: 0 | HU49: 0 | HV49: 0 | HW49: 0 | HX49: 0 | HY49: 0 | HZ49: 0 | IA49: 0 | IB49: 0 | IC49: 0 | ID49: 0 | IE49: 0 | IF49: 0 | IG49: 0 | IH49: 0 | II49: 0 | IJ49: 0 | IK49: 0 | IL49: 0 | IM49: 0 | IN49: 0 | IO49: 0 | IP49: 0 | IQ49: 0 | IR49: 0 | IS49: 0 | IT49: 0 | IU49: 0 | IV49: 0 | IW49: 0 | IX49: 0 | IY49: 0 | IZ49: 0 | JA49: 0 | JB49: 0 | JC49: 0 | JD49: 0 | JE49: 0 | JF49: 0 | JG49: 0 | JH49: 0 | JI49: 0 | JJ49: 0 | JK49: 0 | JL49: 0 | JM49: 0 | JN49: 0 | JO49: 0 | JP49: =JP37*$G$49*(JO50-1) -> 0 | JQ49: 0 | JR49: 0 | JS49: 0 | JT49: 0 | JU49: 0 | JV49: 0 | JW49: 0 | JX49: 0 | JY49: 0 | JZ49: 0 | KA49: 0 | KB49: 0 | KC49: 0 | KD49: 0 | KE49: 0 | KF49: 0 | KG49: 0.01011436989 | KH49: 0 | KI49: 0 | KJ49: 0 | KK49: 0 | KL49: 0 | KM49: 0 | KN49: 0 | KO49: 0 | KP49: 0 | KQ49: 0 | KR49: 0 | KS49: 0 | KT49: 0 | KU49: 0 | KV49: 0 | KW49: 0 | KX49: 0 | KY49: 0 | KZ49: 0 | LA49: 0 | LB49: 0 | LC49: 0 | LD49: 0 | LE49: 0 | LF49: 0 | LG49: 0 | LH49: 0 | LI49: 0 | LJ49: 0 | LK49: 0 | LL49: 0 | LM49: 0 | LN49: 0 | LO49: 0 | LP49: 0 | LQ49: 0 | LR49: 0 | LS49: 0 | LT49: 0 | LU49: 0 | LV49: 0 | LW49: 0 | LX49: 0 | LY49: 0 | LZ49: 0 | MA49: 0 | MB49: =MB37*$G$49*(MA50-1) -> 0 | MC49: 0 | MD49: 0 | ME49: 0 | MF49: 0 | MG49: 0 | MH49: 0 | MI49: 0 | MJ49: 0 | MK49: 0 | ML49: 0 | MM49: 0 | MN49: 0 | MO49: 0 | MP49: 0 | MQ49: 0 | MR49: 0 | MS49: 0 | MT49: 0 | MU49: 0 | MV49: 0 | MW49: 0 | MX49: 0 | MY49: 0 | MZ49: 0 | NA49: 0 | NB49: 0 | NC49: 0 | ND49: 0 | NE49: 0 | NF49: 0 | NG49: 0 | NH49: 0 | NI49: 0 | NJ49: 0 | NK49: 0 | NL49: 0 | NM49: 0 | NN49: 0 | NO49: 0 | NP49: 0 | NQ49: 0 | NR49: 0 | NS49: 0 | NT49: 0 | NU49: 0 | NV49: 0 | NW49: 0 | NX49: 0 | NY49: 0 | NZ49: 0 | OA49: 0 | OB49: 0 | OC49: 0 | OD49: 0 | OE49: 0 | OF49: 0 | OG49: 0 | OH49: 0 | OI49: 0 | OJ49: 0 | OK49: 0 | OL49: 0 | OM49: 0 | ON49: =ON37*$G$49*(OM50-1) -> 0 | OO49: 0 | OP49: 0 | OQ49: 0 | OR49: 0 | OS49: 0 | OT49: 0 | OU49: 0 | OV49: 0 | OW49: 0 | OX49: 0 | OY49: 0 | OZ49: 0 | PA49: 0 | PB49: 0 | PC49: 0 | PD49: 0 | PE49: 0.009831695478 | PF49: 0 | PG49: 0 | PH49: 0 | PI49: 0 | PJ49: 0 | PK49: 0 | PL49: 0 | PM49: 0 | PN49: 0 | PO49: 0 | PP49: 0 | PQ49: 0 | PR49: 0 | PS49: 0 | PT49: 0 | PU49: 0 | PV49: 0 | PW49: 0 | PX49: 0 | PY49: 0 | PZ49: 0 | QA49: 0 | QB49: 0 | QC49: 0 | QD49: 0 | QE49: 0 | QF49: 0 | QG49: 0 | QH49: 0 | QI49: 0 | QJ49: 0 | QK49: 0 | QL49: 0
C50: Heat Rate Degradation Index | F50: Index | K50: 1 | L50: =IF(L37,K50-L49,K50*(1+L48)) -> 1 | M50: 1 | N50: 1 | O50: 1 | P50: 1 | Q50: 1 | R50: 1 | S50: 1 | T50: 1 | U50: 1 | V50: 1 | W50: 1 | X50: 1 | Y50: 1 | Z50: 1 | AA50: 1 | AB50: 1 | AC50: 1 | AD50: 1 | AE50: 1 | AF50: 1 | AG50: 1 | AH50: 1 | AI50: 1 | AJ50: 1 | AK50: 1 | AL50: 1 | AM50: 1 | AN50: 1 | AO50: 1 | AP50: 1.000076979 | AQ50: 1.000153964 | AR50: =IF(AR37,AQ50-AR49,AQ50*(1+AR48)) -> 1.000230955 | AS50: 1.000307952 | AT50: 1.000384954 | AU50: 1.000461963 | AV50: 1.000538978 | AW50: 1.000615998 | AX50: 1.000693024 | AY50: 1.000770057 | AZ50: 1.000847095 | BA50: 1.000924139 | BB50: 1.001001189 | BC50: 1.001078246 | BD50: 1.001155308 | BE50: 1.001232376 | BF50: 1.001309449 | BG50: 1.001386529 | BH50: 1.001463615 | BI50: 1.001540707 | BJ50: 1.001617804 | BK50: 1.001694908 | BL50: 1.001772017 | BM50: 1.001849133 | BN50: 1.001926254 | BO50: 1.002003381 | BP50: 1.002080515 | BQ50: 1.002157654 | BR50: 1.002234799 | BS50: 1.00231195 | BT50: 1.002389107 | BU50: 1.00246627 | BV50: 1.002543439 | BW50: 1.002620613 | BX50: =IF(BX37,BW50-BX49,BW50*(1+BX48)) -> 1.002697794 | BY50: 1.002774981 | BZ50: 1.002852173 | CA50: 1.002929372 | CB50: 1.003006577 | CC50: 1.003083787 | CD50: 1.003161003 | CE50: 1.003238226 | CF50: 1.003315454 | CG50: 1.003392688 | CH50: 1.003469928 | CI50: 1.003547175 | CJ50: 1.003624427 | CK50: 1.003701685 | CL50: 1.003778949 | CM50: 1.003856219 | CN50: 1.003933494 | CO50: 1.004010776 | CP50: 1.004088064 | CQ50: 1.004165358 | CR50: 1.004242657 | CS50: 1.004319963 | CT50: 1.004397274 | CU50: 1.004474592 | CV50: 1.004551915 | CW50: 1.004629245 | CX50: 1.00470658 | CY50: 1.004783922 | CZ50: 1.004861269 | DA50: 1.004938622 | DB50: 1.005015981 | DC50: 1.005093346 | DD50: =IF(DD37,DC50-DD49,DC50*(1+DD48)) -> 1.005170717 | DE50: 1.005248094 | DF50: 1.005325477 | DG50: 1.005402866 | DH50: 1.005480261 | DI50: 1.005557662 | DJ50: 1.005635069 | DK50: 1.005712482 | DL50: 1.005789901 | DM50: 1.005867325 | DN50: 1.005944756 | DO50: 1.006022193 | DP50: 1.006099635 | DQ50: 1.006177084 | DR50: 1.006254538 | DS50: 1.006331999 | DT50: 1.006409465 | DU50: 1.006486938 | DV50: 1.006564416 | DW50: 1.0066419 | DX50: 1.006719391 | DY50: 1.006796887 | DZ50: 1.006874389 | EA50: 1.006951897 | EB50: 1.007029411 | EC50: 1.007106932 | ED50: 1.007184458 | EE50: 1.00726199 | EF50: 1.007339528 | EG50: 1.007417072 | EH50: 1.007494622 | EI50: 1.007572178 | EJ50: =IF(EJ37,EI50-EJ49,EI50*(1+EJ48)) -> 1.00764974 | EK50: 1.007727307 | EL50: 1.007804881 | EM50: 1.007882461 | EN50: 1.007960047 | EO50: 1.008037639 | EP50: 1.008115236 | EQ50: 1.00819284 | ER50: 1.00827045 | ES50: 1.008348066 | ET50: 1.008425687 | EU50: 1.008503315 | EV50: 1.008580948 | EW50: 1.008658588 | EX50: 1.008736233 | EY50: 1.008813885 | EZ50: 1.008891542 | FA50: 1.008969206 | FB50: 1.009046875 | FC50: 1.009124551 | FD50: 1.009202232 | FE50: 1.000184045 | FF50: 1.000261038 | FG50: 1.000338037 | FH50: 1.000415042 | FI50: 1.000492053 | FJ50: 1.00056907 | FK50: 1.000646093 | FL50: 1.000723121 | FM50: 1.000800156 | FN50: 1.000877197 | FO50: 1.000954243 | FP50: =IF(FP37,FO50-FP49,FO50*(1+FP48)) -> 1.001031296 | FQ50: 1.001108354 | FR50: 1.001185418 | FS50: 1.001262489 | FT50: 1.001339565 | FU50: 1.001416647 | FV50: 1.001493735 | FW50: 1.001570829 | FX50: 1.001647929 | FY50: 1.001725035 | FZ50: 1.001802147 | GA50: 1.001879264 | GB50: 1.001956388 | GC50: 1.002033518 | GD50: 1.002110653 | GE50: 1.002187795 | GF50: 1.002264942 | GG50: 1.002342095 | GH50: 1.002419255 | GI50: 1.00249642 | GJ50: 1.002573591 | GK50: 1.002650768 | GL50: 1.002727951 | GM50: 1.00280514 | GN50: 1.002882335 | GO50: 1.002959536 | GP50: 1.003036743 | GQ50: 1.003113956 | GR50: 1.003191175 | GS50: 1.003268399 | GT50: 1.00334563 | GU50: 1.003422866 | GV50: =IF(GV37,GU50-GV49,GU50*(1+GV48)) -> 1.003500109 | GW50: 1.003577357 | GX50: 1.003654612 | GY50: 1.003731872 | GZ50: 1.003809138 | HA50: 1.003886411 | HB50: 1.003963689 | HC50: 1.004040973 | HD50: =IF(HD37,HC50-HD49,HC50*(1+HD48)) -> 1.004118263 | HE50: 1.004195559 | HF50: 1.004272861 | HG50: 1.004350169 | HH50: 1.004427483 | HI50: 1.004504803 | HJ50: 1.004582128 | HK50: 1.00465946 | HL50: 1.004736798 | HM50: 1.004814141 | HN50: 1.004891491 | HO50: 1.004968847 | HP50: 1.005046208 | HQ50: 1.005123576 | HR50: 1.005200949 | HS50: 1.005278328 | HT50: 1.005355714 | HU50: 1.005433105 | HV50: 1.005510502 | HW50: 1.005587905 | HX50: 1.005665315 | HY50: 1.00574273 | HZ50: 1.005820151 | IA50: 1.005897578 | IB50: 1.005975011 | IC50: 1.00605245 | ID50: 1.006129895 | IE50: 1.006207346 | IF50: 1.006284802 | IG50: 1.006362265 | IH50: 1.006439734 | II50: 1.006517209 | IJ50: 1.006594689 | IK50: 1.006672176 | IL50: 1.006749669 | IM50: 1.006827167 | IN50: 1.006904672 | IO50: 1.006982182 | IP50: 1.007059699 | IQ50: 1.007137221 | IR50: 1.00721475 | IS50: 1.007292284 | IT50: 1.007369825 | IU50: 1.007447371 | IV50: 1.007524923 | IW50: 1.007602481 | IX50: 1.007680046 | IY50: 1.007757616 | IZ50: 1.007835192 | JA50: 1.007912774 | JB50: 1.007990362 | JC50: 1.008067957 | JD50: 1.008145557 | JE50: 1.008223163 | JF50: 1.008300775 | JG50: 1.008378393 | JH50: 1.008456017 | JI50: 1.008533647 | JJ50: 1.008611282 | JK50: 1.008688924 | JL50: 1.008766572 | JM50: 1.008844226 | JN50: 1.008921886 | JO50: 1.008999552 | JP50: =IF(JP37,JO50-JP49,JO50*(1+JP48)) -> 1.009077224 | JQ50: 1.009154901 | JR50: 1.009232585 | JS50: 1.009310275 | JT50: 1.00938797 | JU50: 1.009465672 | JV50: 1.00954338 | JW50: 1.009621093 | JX50: 1.009698813 | JY50: 1.009776539 | JZ50: 1.00985427 | KA50: 1.009932008 | KB50: 1.010009751 | KC50: 1.010087501 | KD50: 1.010165257 | KE50: 1.010243018 | KF50: 1.010320786 | KG50: 1.000206416 | KH50: 1.000283411 | KI50: 1.000360411 | KJ50: 1.000437418 | KK50: 1.000514431 | KL50: 1.000591449 | KM50: 1.000668474 | KN50: 1.000745504 | KO50: 1.000822541 | KP50: 1.000899583 | KQ50: 1.000976631 | KR50: 1.001053686 | KS50: 1.001130746 | KT50: 1.001207812 | KU50: 1.001284884 | KV50: 1.001361962 | KW50: 1.001439046 | KX50: 1.001516135 | KY50: 1.001593231 | KZ50: 1.001670333 | LA50: 1.00174744 | LB50: 1.001824554 | LC50: 1.001901673 | LD50: 1.001978799 | LE50: 1.00205593 | LF50: 1.002133067 | LG50: 1.002210211 | LH50: 1.00228736 | LI50: 1.002364515 | LJ50: 1.002441676 | LK50: 1.002518843 | LL50: 1.002596016 | LM50: 1.002673195 | LN50: 1.002750379 | LO50: 1.00282757 | LP50: 1.002904767 | LQ50: 1.002981969 | LR50: 1.003059178 | LS50: 1.003136392 | LT50: 1.003213613 | LU50: 1.003290839 | LV50: 1.003368072 | LW50: 1.00344531 | LX50: 1.003522554 | LY50: 1.003599804 | LZ50: 1.00367706 | MA50: 1.003754322 | MB50: =IF(MB37,MA50-MB49,MA50*(1+MB48)) -> 1.00383159 | MC50: 1.003908864 | MD50: 1.003986144 | ME50: 1.00406343 | MF50: 1.004140722 | MG50: 1.00421802 | MH50: 1.004295323 | MI50: 1.004372633 | MJ50: 1.004449949 | MK50: 1.00452727 | ML50: 1.004604598 | MM50: 1.004681931 | MN50: 1.004759271 | MO50: 1.004836616 | MP50: 1.004913967 | MQ50: 1.004991325 | MR50: 1.005068688 | MS50: 1.005146057 | MT50: 1.005223432 | MU50: 1.005300813 | MV50: 1.0053782 | MW50: 1.005455593 | MX50: 1.005532992 | MY50: 1.005610397 | MZ50: 1.005687808 | NA50: 1.005765225 | NB50: 1.005842648 | NC50: 1.005920077 | ND50: 1.005997511 | NE50: 1.006074952 | NF50: 1.006152399 | NG50: 1.006229851 | NH50: 1.00630731 | NI50: 1.006384775 | NJ50: 1.006462245 | NK50: 1.006539722 | NL50: 1.006617204 | NM50: 1.006694692 | NN50: 1.006772187 | NO50: 1.006849687 | NP50: 1.006927193 | NQ50: 1.007004706 | NR50: 1.007082224 | NS50: 1.007159748 | NT50: 1.007237278 | NU50: 1.007314814 | NV50: 1.007392356 | NW50: 1.007469904 | NX50: 1.007547458 | NY50: 1.007625018 | NZ50: 1.007702584 | OA50: 1.007780156 | OB50: 1.007857734 | OC50: 1.007935318 | OD50: 1.008012908 | OE50: 1.008090504 | OF50: 1.008168106 | OG50: 1.008245714 | OH50: 1.008323327 | OI50: 1.008400947 | OJ50: 1.008478573 | OK50: 1.008556204 | OL50: 1.008633842 | OM50: 1.008711486 | ON50: =IF(ON37,OM50-ON49,OM50*(1+ON48)) -> 1.008789135 | OO50: 1.008866791 | OP50: 1.008944452 | OQ50: 1.00902212 | OR50: 1.009099794 | OS50: 1.009177473 | OT50: 1.009255159 | OU50: 1.00933285 | OV50: 1.009410547 | OW50: 1.009488251 | OX50: 1.00956596 | OY50: 1.009643676 | OZ50: 1.009721397 | PA50: 1.009799124 | PB50: 1.009876858 | PC50: 1.009954597 | PD50: 1.010032342 | PE50: 1.000200647 | PF50: 1.000277641 | PG50: 1.000354642 | PH50: 1.000431648 | PI50: 1.00050866 | PJ50: 1.00050866 | PK50: 1.00050866 | PL50: 1.00050866 | PM50: 1.00050866 | PN50: 1.00050866 | PO50: 1.00050866 | PP50: 1.00050866 | PQ50: 1.00050866 | PR50: 1.00050866 | PS50: 1.00050866 | PT50: 1.00050866 | PU50: 1.00050866 | PV50: 1.00050866 | PW50: 1.00050866 | PX50: 1.00050866 | PY50: 1.00050866 | PZ50: 1.00050866 | QA50: 1.00050866 | QB50: 1.00050866 | QC50: 1.00050866 | QD50: 1.00050866 | QE50: 1.00050866 | QF50: 1.00050866 | QG50: 1.00050866 | QH50: 1.00050866 | QI50: 1.00050866 | QJ50: 1.00050866 | QK50: 1.00050866 | QL50: 1.00050866
C51: Heat Rate After Degradation | F51: BTU/kWh | L51: =L50*L46 -> 6700 | M51: 6700 | N51: 6700 | O51: 6700 | P51: 6700 | Q51: 6700 | R51: 6700 | S51: 6700 | T51: 6700 | U51: 6700 | V51: 6700 | W51: 6700 | X51: 6700 | Y51: 6700 | Z51: 6700 | AA51: 6700 | AB51: 6700 | AC51: 6700 | AD51: 6700 | AE51: 6700 | AF51: 6700 | AG51: 6700 | AH51: 6700 | AI51: 6700 | AJ51: 6700 | AK51: 6700 | AL51: 6700 | AM51: 6700 | AN51: 6700 | AO51: 6700 | AP51: 6700.515759 | AQ51: 6701.031558 | AR51: =AR50*AR46 -> 6701.547397 | AS51: 6702.063276 | AT51: 6702.579194 | AU51: 6703.095152 | AV51: 6703.611149 | AW51: 6704.127187 | AX51: 6704.643264 | AY51: 6705.159381 | AZ51: 6705.675537 | BA51: 6706.191733 | BB51: 6706.707969 | BC51: 6707.224245 | BD51: 6707.740561 | BE51: 6708.256916 | BF51: 6708.773311 | BG51: 6709.289746 | BH51: 6709.80622 | BI51: 6710.322734 | BJ51: 6710.839288 | BK51: 6711.355882 | BL51: 6711.872516 | BM51: 6712.389189 | BN51: 6712.905902 | BO51: 6713.422655 | BP51: 6713.939448 | BQ51: 6714.45628 | BR51: 6714.973152 | BS51: 6715.490064 | BT51: 6716.007016 | BU51: 6716.524007 | BV51: 6717.041039 | BW51: 6717.55811 | BX51: =BX50*BX46 -> 6718.075221 | BY51: 6718.592372 | BZ51: 6719.109562 | CA51: 6719.626793 | CB51: 6720.144063 | CC51: 6720.661373 | CD51: 6721.178723 | CE51: 6721.696113 | CF51: 6722.213542 | CG51: 6722.731011 | CH51: 6723.248521 | CI51: 6723.76607 | CJ51: 6724.283658 | CK51: 6724.801287 | CL51: 6725.318956 | CM51: 6725.836664 | CN51: 6726.354412 | CO51: 6726.8722 | CP51: 6727.390028 | CQ51: 6727.907896 | CR51: 6728.425804 | CS51: 6728.943752 | CT51: 6729.461739 | CU51: 6729.979766 | CV51: 6730.497833 | CW51: 6731.01594 | CX51: 6731.534087 | CY51: 6732.052274 | CZ51: 6732.570501 | DA51: 6733.088768 | DB51: 6733.607074 | DC51: 6734.125421 | DD51: =DD50*DD46 -> 6734.643807 | DE51: 6735.162233 | DF51: 6735.680699 | DG51: 6736.199205 | DH51: 6736.717751 | DI51: 6737.236337 | DJ51: 6737.754963 | DK51: 6738.273629 | DL51: 6738.792334 | DM51: 6739.31108 | DN51: 6739.829865 | DO51: 6740.348691 | DP51: 6740.867556 | DQ51: 6741.386461 | DR51: 6741.905407 | DS51: 6742.424392 | DT51: 6742.943417 | DU51: 6743.462482 | DV51: 6743.981587 | DW51: 6744.500732 | DX51: 6745.019917 | DY51: 6745.539142 | DZ51: 6746.058407 | EA51: 6746.577712 | EB51: 6747.097057 | EC51: 6747.616442 | ED51: 6748.135866 | EE51: 6748.655331 | EF51: 6749.174836 | EG51: 6749.694381 | EH51: 6750.213966 | EI51: 6750.73359 | EJ51: =EJ50*EJ46 -> 6751.253255 | EK51: 6751.77296 | EL51: 6752.292705 | EM51: 6752.81249 | EN51: 6753.332315 | EO51: 6753.852179 | EP51: 6754.372084 | EQ51: 6754.892029 | ER51: 6755.412014 | ES51: 6755.932039 | ET51: 6756.452104 | EU51: 6756.972209 | EV51: 6757.492354 | EW51: 6758.012539 | EX51: 6758.532764 | EY51: 6759.053029 | EZ51: 6759.573334 | FA51: 6760.09368 | FB51: 6760.614065 | FC51: 6761.13449 | FD51: 6761.654956 | FE51: 6701.233099 | FF51: 6701.748953 | FG51: 6702.264847 | FH51: 6702.780781 | FI51: 6703.296755 | FJ51: 6703.812768 | FK51: 6704.328821 | FL51: 6704.844913 | FM51: 6705.361045 | FN51: 6705.877218 | FO51: 6706.393429 | FP51: =FP50*FP46 -> 6706.909681 | FQ51: 6707.425972 | FR51: 6707.942303 | FS51: 6708.458674 | FT51: 6708.975084 | FU51: 6709.491535 | FV51: 6710.008025 | FW51: 6710.524554 | FX51: 6711.041124 | FY51: 6711.557733 | FZ51: 6712.074382 | GA51: 6712.591071 | GB51: 6713.1078 | GC51: 6713.624568 | GD51: 6714.141376 | GE51: 6714.658224 | GF51: 6715.175112 | GG51: 6715.69204 | GH51: 6716.209007 | GI51: 6716.726014 | GJ51: 6717.243061 | GK51: 6717.760148 | GL51: 6718.277274 | GM51: 6718.794441 | GN51: 6719.311647 | GO51: 6719.828893 | GP51: 6720.346178 | GQ51: 6720.863504 | GR51: 6721.38087 | GS51: 6721.898275 | GT51: 6722.41572 | GU51: 6722.933205 | GV51: =GV50*GV46 -> 6723.450729 | GW51: 6723.968294 | GX51: 6724.485898 | GY51: 6725.003543 | GZ51: 6725.521227 | HA51: 6726.038951 | HB51: 6726.556715 | HC51: 6727.074518 | HD51: =HD50*HD46 -> 6727.592362 | HE51: 6728.110245 | HF51: 6728.628169 | HG51: 6729.146132 | HH51: 6729.664135 | HI51: 6730.182178 | HJ51: 6730.70026 | HK51: 6731.218383 | HL51: 6731.736546 | HM51: 6732.254748 | HN51: 6732.77299 | HO51: 6733.291272 | HP51: 6733.809595 | HQ51: 6734.327957 | HR51: 6734.846358 | HS51: 6735.3648 | HT51: 6735.883282 | HU51: 6736.401804 | HV51: 6736.920365 | HW51: 6737.438967 | HX51: 6737.957608 | HY51: 6738.476289 | HZ51: 6738.995011 | IA51: 6739.513772 | IB51: 6740.032573 | IC51: 6740.551414 | ID51: 6741.070295 | IE51: 6741.589216 | IF51: 6742.108177 | IG51: 6742.627177 | IH51: 6743.146218 | II51: 6743.665299 | IJ51: 6744.18442 | IK51: 6744.70358 | IL51: 6745.222781 | IM51: 6745.742021 | IN51: 6746.261302 | IO51: 6746.780622 | IP51: 6747.299983 | IQ51: 6747.819383 | IR51: 6748.338824 | IS51: 6748.858304 | IT51: 6749.377825 | IU51: 6749.897385 | IV51: 6750.416986 | IW51: 6750.936626 | IX51: 6751.456306 | IY51: 6751.976027 | IZ51: 6752.495787 | JA51: 6753.015588 | JB51: 6753.535428 | JC51: 6754.055309 | JD51: 6754.575229 | JE51: 6755.09519 | JF51: 6755.61519 | JG51: 6756.135231 | JH51: 6756.655311 | JI51: 6757.175432 | JJ51: 6757.695593 | JK51: 6758.215793 | JL51: 6758.736034 | JM51: 6759.256315 | JN51: 6759.776636 | JO51: 6760.296997 | JP51: =JP50*JP46 -> 6760.817398 | JQ51: 6761.337839 | JR51: 6761.85832 | JS51: 6762.378841 | JT51: 6762.899402 | JU51: 6763.420004 | JV51: 6763.940645 | JW51: 6764.461326 | JX51: 6764.982048 | JY51: 6765.50281 | JZ51: 6766.023611 | KA51: 6766.544453 | KB51: 6767.065335 | KC51: 6767.586257 | KD51: 6768.107219 | KE51: 6768.628221 | KF51: 6769.149264 | KG51: 6701.382985 | KH51: 6701.898851 | KI51: 6702.414757 | KJ51: 6702.930702 | KK51: 6703.446687 | KL51: 6703.962712 | KM51: 6704.478776 | KN51: 6704.99488 | KO51: 6705.511024 | KP51: 6706.027208 | KQ51: 6706.543431 | KR51: 6707.059694 | KS51: 6707.575997 | KT51: 6708.092339 | KU51: 6708.608722 | KV51: 6709.125144 | KW51: 6709.641606 | KX51: 6710.158107 | KY51: 6710.674648 | KZ51: 6711.19123 | LA51: 6711.70785 | LB51: 6712.224511 | LC51: 6712.741211 | LD51: 6713.257952 | LE51: 6713.774732 | LF51: 6714.291551 | LG51: 6714.808411 | LH51: 6715.32531 | LI51: 6715.842249 | LJ51: 6716.359228 | LK51: 6716.876247 | LL51: 6717.393305 | LM51: 6717.910404 | LN51: 6718.427542 | LO51: 6718.94472 | LP51: 6719.461937 | LQ51: 6719.979195 | LR51: 6720.496492 | LS51: 6721.013829 | LT51: 6721.531206 | LU51: 6722.048623 | LV51: 6722.56608 | LW51: 6723.083576 | LX51: 6723.601113 | LY51: 6724.118689 | LZ51: 6724.636305 | MA51: 6725.153961 | MB51: =MB50*MB46 -> 6725.671656 | MC51: 6726.189392 | MD51: 6726.707167 | ME51: 6727.224982 | MF51: 6727.742838 | MG51: 6728.260733 | MH51: 6728.778667 | MI51: 6729.296642 | MJ51: 6729.814657 | MK51: 6730.332711 | ML51: 6730.850806 | MM51: 6731.36894 | MN51: 6731.887114 | MO51: 6732.405328 | MP51: 6732.923582 | MQ51: 6733.441876 | MR51: 6733.960209 | MS51: 6734.478583 | MT51: 6734.996996 | MU51: 6735.51545 | MV51: 6736.033943 | MW51: 6736.552476 | MX51: 6737.07105 | MY51: 6737.589663 | MZ51: 6738.108316 | NA51: 6738.627008 | NB51: 6739.145741 | NC51: 6739.664514 | ND51: 6740.183327 | NE51: 6740.702179 | NF51: 6741.221072 | NG51: 6741.740005 | NH51: 6742.258977 | NI51: 6742.777989 | NJ51: 6743.297042 | NK51: 6743.816134 | NL51: 6744.335266 | NM51: 6744.854439 | NN51: 6745.373651 | NO51: 6745.892903 | NP51: 6746.412195 | NQ51: 6746.931527 | NR51: 6747.450899 | NS51: 6747.970312 | NT51: 6748.489764 | NU51: 6749.009256 | NV51: 6749.528788 | NW51: 6750.04836 | NX51: 6750.567972 | NY51: 6751.087624 | NZ51: 6751.607316 | OA51: 6752.127048 | OB51: 6752.64682 | OC51: 6753.166632 | OD51: 6753.686484 | OE51: 6754.206376 | OF51: 6754.726308 | OG51: 6755.246281 | OH51: 6755.766293 | OI51: 6756.286345 | OJ51: 6756.806437 | OK51: 6757.326569 | OL51: 6757.846742 | OM51: 6758.366954 | ON51: =ON50*ON46 -> 6758.887206 | OO51: 6759.407499 | OP51: 6759.927831 | OQ51: 6760.448204 | OR51: 6760.968617 | OS51: 6761.489069 | OT51: 6762.009562 | OU51: 6762.530095 | OV51: 6763.050668 | OW51: 6763.571281 | OX51: 6764.091934 | OY51: 6764.612627 | OZ51: 6765.13336 | PA51: 6765.654133 | PB51: 6766.174947 | PC51: 6766.6958 | PD51: 6767.216694 | PE51: 6701.344334 | PF51: 6701.860197 | PG51: 6702.376099 | PH51: 6702.892042 | PI51: 6703.408024 | PJ51: 6703.408024 | PK51: 6703.408024 | PL51: 6703.408024 | PM51: 6703.408024 | PN51: 6703.408024 | PO51: 6703.408024 | PP51: 6703.408024 | PQ51: 6703.408024 | PR51: 6703.408024 | PS51: 6703.408024 | PT51: 6703.408024 | PU51: 6703.408024 | PV51: 6703.408024 | PW51: 6703.408024 | PX51: 6703.408024 | PY51: 6703.408024 | PZ51: 6703.408024 | QA51: 6703.408024 | QB51: 6703.408024 | QC51: 6703.408024 | QD51: 6703.408024 | QE51: 6703.408024 | QF51: 6703.408024 | QG51: 6703.408024 | QH51: 6703.408024 | QI51: 6703.408024 | QJ51: 6703.408024 | QK51: 6703.408024 | QL51: 6703.408024
B53: Generation | F53: MWh | L53: =L34*L43 -> 0 | M53: 0 | N53: 0 | O53: 0 | P53: 0 | Q53: 0 | R53: 0 | S53: 0 | T53: 0 | U53: 0 | V53: 0 | W53: 0 | X53: 0 | Y53: 0 | Z53: 0 | AA53: 0 | AB53: 0 | AC53: 0 | AD53: 0 | AE53: 0 | AF53: 0 | AG53: 0 | AH53: 0 | AI53: 0 | AJ53: 0 | AK53: 0 | AL53: 0 | AM53: 0 | AN53: 0 | AO53: 0 | AP53: 106790.2788 | AQ53: 103334.8633 | AR53: =AR34*AR43 -> 106768.4397 | AS53: 106757.5219 | AT53: 96416.28849 | AU53: 106735.6895 | AV53: 103282.0403 | AW53: 106713.8616 | AX53: 103260.9187 | AY53: 106692.0381 | AZ53: 106681.1281 | BA53: 103229.2443 | BB53: 106659.3113 | BC53: 103208.1335 | BD53: 106637.499 | BE53: 106626.5946 | BF53: 99737.25952 | BG53: 106604.789 | BH53: 103155.3753 | BI53: 106582.9878 | BJ53: 103134.2796 | BK53: 106561.1912 | BL53: 106550.2945 | BM53: 103102.6441 | BN53: 106528.5045 | BO53: 103081.5592 | BP53: 106506.719 | BQ53: 106495.8279 | BR53: 96179.94388 | BS53: 106474.049 | BT53: 103028.8657 | BU53: 106452.2746 | BV53: 103007.7959 | BW53: 106430.5046 | BX53: =BX34*BX43 -> 106419.6213 | BY53: 102976.1992 | BZ53: 106397.8581 | CA53: 102955.1401 | CB53: 106376.0992 | CC53: 106365.2215 | CD53: 96061.98892 | CE53: 106343.4694 | CF53: 102902.5112 | CG53: 106321.7217 | CH53: 102881.4672 | CI53: 106299.9784 | CJ53: 106289.1085 | CK53: 102849.9093 | CL53: 100770.7837 | CM53: 97510.14108 | CN53: 100750.1756 | CO53: 100739.8732 | CP53: 90981.5487 | CQ53: 100719.2714 | CR53: 97460.29562 | CS53: 100698.6739 | CT53: 97440.36457 | CU53: 100678.0806 | CV53: 100667.7855 | CW53: 97410.47563 | CX53: 100647.1985 | CY53: 97390.55477 | CZ53: 100626.6157 | DA53: 100616.3259 | DB53: 94115.32508 | DC53: 100595.7494 | DD53: =DD34*DD43 -> 97340.77044 | DE53: 100575.1772 | DF53: 97320.86383 | DG53: 100554.6091 | DH53: 100544.3267 | DI53: 97291.01155 | DJ53: 100523.7649 | DK53: 97271.11512 | DL53: 100503.2074 | DM53: 100492.9302 | DN53: 90758.52623 | DO53: 100472.3789 | DP53: 97221.39184 | DQ53: 100451.8319 | DR53: 97201.50965 | DS53: 100431.2891 | DT53: 100421.0192 | DU53: 97171.69398 | DV53: 100400.4827 | DW53: 97151.82195 | DX53: 100379.9504 | DY53: 100369.6858 | DZ53: 90647.22009 | EA53: 100349.1598 | EB53: 97102.15966 | EC53: 100328.6379 | ED53: 97082.30185 | EE53: 100308.1203 | EF53: 100297.863 | EG53: 97052.52274 | EH53: 100277.3517 | EI53: 97032.67509 | EJ53: =EJ34*EJ43 -> 100256.8445 | EK53: 100246.5925 | EL53: 90536.05046 | EM53: 100226.0917 | EN53: 96983.07369 | EO53: 100205.595 | EP53: 96963.24024 | EQ53: 100185.1025 | ER53: 100174.8579 | ES53: 96933.49766 | ET53: 91049.42879 | EU53: 88103.34031 | EV53: 91030.80879 | EW53: 91021.50022 | EX53: 85140.43824 | EY53: 91002.88593 | EZ53: 88058.30343 | FA53: 90984.27545 | FB53: 88040.29513 | FC53: 90965.66877 | FD53: 90956.36686 | FE53: 59082.12889 | FF53: 92032.74718 | FG53: 89054.84144 | FH53: 92013.92609 | FI53: 92004.51698 | FJ53: 83092.35637 | FK53: 91985.70166 | FL53: 89009.31817 | FM53: 91966.89019 | FN53: 88991.11539 | FO53: 91948.08257 | FP53: =FP34*FP43 -> 91938.6802 | FQ53: 88963.81818 | FR53: 91919.87834 | FS53: 88945.6247 | FT53: 91901.08033 | FU53: 91891.68276 | FV53: 82990.45202 | FW53: 91872.89052 | FX53: 88900.15726 | FY53: 91854.10212 | FZ53: 88881.9768 | GA53: 91835.31756 | GB53: 91825.92672 | GC53: 88854.71307 | GD53: 91807.14792 | GE53: 88836.5419 | GF53: 91788.37296 | GG53: 91778.98692 | GH53: 82888.67263 | GI53: 91760.21773 | GJ53: 88791.13023 | GK53: 91741.45237 | GL53: 88772.97206 | GM53: 91722.69084 | GN53: 91713.31152 | GO53: 88745.74177 | GP53: 91694.55575 | GQ53: 88727.59288 | GR53: 91675.80382 | GS53: 91666.42929 | GT53: 85743.69729 | GU53: 91647.68311 | GV53: =GV34*GV43 -> 88682.2369 | GW53: 91628.94077 | GX53: 88664.101 | GY53: 91610.20226 | GZ53: 91600.83444 | HA53: 88636.9041 | HB53: 91582.10167 | HC53: 88618.77747 | HD53: =HD34*HD43 -> 91563.37274 | HE53: 91554.0097 | HF53: 82685.48818 | HG53: 91535.28652 | HH53: 88573.47712 | HI53: 91516.56715 | HJ53: 88555.36346 | HK53: 91497.85162 | HL53: 91488.49529 | HM53: 88528.19992 | HN53: 91469.7855 | HO53: 88510.09552 | HP53: 91451.07953 | HQ53: 91441.72799 | HR53: 82584.08281 | HS53: 91423.02776 | HT53: 88464.85072 | HU53: 91404.33136 | HV53: 88446.75928 | HW53: 91385.63878 | HX53: 91376.29392 | HY53: 88419.62905 | HZ53: 91357.60707 | IA53: 88401.54686 | IB53: 91338.92405 | IC53: 91329.58397 | ID53: 82482.8018 | IE53: 91310.90668 | IF53: 88356.35754 | IG53: 91292.2332 | IH53: 88338.28829 | II53: 91273.56355 | IJ53: 91264.23015 | IK53: 88311.19133 | IL53: 91245.56622 | IM53: 88293.13131 | IN53: 91226.90611 | IO53: 91217.57749 | IP53: 85323.8466 | IQ53: 91198.9231 | IR53: 88247.99742 | IS53: 91180.27253 | IT53: 88229.95033 | IU53: 91161.62577 | IV53: 91152.30382 | IW53: 88202.8866 | IX53: 91133.66278 | IY53: 88184.84873 | IZ53: 91115.02555 | JA53: 91105.70837 | JB53: 82280.61225 | JC53: 91087.07686 | JD53: 88139.77019 | JE53: 91068.44916 | JF53: 88121.74523 | JG53: 91049.82527 | JH53: 91040.51475 | JI53: 88094.7147 | JJ53: 94662.77244 | JK53: 91599.76691 | JL53: 94643.41349 | JM53: 94633.7355 | JN53: 85466.89155 | JO53: 94614.3825 | JP53: =JP34*JP43 -> 91552.94272 | JQ53: 94595.03345 | JR53: 91534.21975 | JS53: 94575.68836 | JT53: 94566.01729 | JU53: 91506.14247 | JV53: 94546.67814 | JW53: 91487.42907 | JX53: 94527.34293 | JY53: 94517.67681 | JZ53: 85362.07507 | KA53: 94498.34754 | KB53: 91440.66231 | KC53: 94479.02222 | KD53: 91421.9623 | KE53: 94459.70086 | KF53: 94450.04165 | KG53: 61443.09389 | KH53: 95710.44294 | KI53: 92613.53791 | KJ53: 95690.86974 | KK53: 95681.08465 | KL53: 89498.95858 | KM53: 95661.51745 | KN53: 92566.1955 | KO53: 95641.95426 | KP53: 92547.26532 | KQ53: 95622.39507 | KR53: 95612.61697 | KS53: 92518.8773 | KT53: 95593.06378 | KU53: 92499.95679 | KV53: 95573.51458 | KW53: 95563.74149 | KX53: 86306.81106 | KY53: 95544.19829 | KZ53: 92452.67244 | LA53: 95524.65909 | LB53: 92433.76547 | LC53: 95505.12389 | LD53: 95495.35778 | LE53: 92405.41227 | LF53: 95475.82857 | LG53: 92386.51496 | LH53: 95456.30335 | LI53: 95446.54224 | LJ53: 86200.9645 | LK53: 95427.02301 | LL53: 92339.28861 | LM53: 95407.50777 | LN53: 92320.40482 | LO53: 95387.99653 | LP53: 95378.2424 | LQ53: 92292.08639 | LR53: 95358.73714 | LS53: 92273.21226 | LT53: 95339.23586 | LU53: 95329.48672 | LV53: 86095.24775 | LW53: 95309.99143 | LX53: 92226.04382 | LY53: 95290.50013 | LZ53: 92207.1832 | MA53: 95271.01281 | MB53: =MB34*MB43 -> 95261.27065 | MC53: 92178.8995 | MD53: 95241.78931 | ME53: 92160.04851 | MF53: 95222.31195 | MG53: 95212.57477 | MH53: 89060.71996 | MI53: 95193.10338 | MJ53: 92112.93792 | MK53: 95173.63598 | ML53: 92094.10043 | MM53: 95154.17257 | MN53: 95144.44235 | MO53: 92065.85141 | MP53: 95124.9849 | MQ53: 92047.02355 | MR53: 95105.53143 | MS53: 95095.80619 | MT53: 85884.20304 | MU53: 95076.35869 | MV53: 91999.97073 | MW53: 95056.91516 | MX53: 91981.15634 | MY53: 95037.47561 | MZ53: 95027.75733 | NA53: 91952.94197 | NB53: 95008.32374 | NC53: 91934.1372 | ND53: 94988.89413 | NE53: 94979.18081 | NF53: 85778.87477 | NG53: 94959.75716 | NH53: 91887.14209 | NI53: 94940.33748 | NJ53: 91868.35077 | NK53: 94920.92178 | NL53: 94911.21541 | NM53: 91840.171 | NN53: 94891.80566 | NO53: 91821.38929 | NP53: 94872.39987 | NQ53: 94862.69847 | NR53: 85673.67567 | NS53: 94843.29864 | NT53: 91774.45182 | NU53: 94823.90278 | NV53: 91755.68355 | NW53: 94804.51088 | NX53: 94794.81642 | NY53: 91727.53834 | NZ53: 94775.43047 | OA53: 91708.77966 | OB53: 94756.04849 | OC53: 94746.35898 | OD53: 88624.62721 | OE53: 94726.98294 | OF53: 91661.89975 | OG53: 94707.61087 | OH53: 91643.1545 | OI53: 94688.24275 | OJ53: 94678.56018 | OK53: 91615.0438 | OL53: 94659.19801 | OM53: 91596.30813 | ON53: =ON34*ON43 -> 94639.83979 | OO53: 94630.16217 | OP53: 85463.66436 | OQ53: 94610.80989 | OR53: 91549.48572 | OS53: 94591.46158 | OT53: 91530.76345 | OU53: 94572.11721 | OV53: 94562.44652 | OW53: 91502.68723 | OX53: 94543.10809 | OY53: 91483.97454 | OZ53: 94523.77362 | PA53: 94514.10786 | PB53: 85358.85183 | PC53: 94494.77932 | PD53: 91437.20955 | PE53: 64531.43443 | PF53: 92623.8578 | PG53: 95701.53253 | PH53: 95691.74635 | PI53: 92595.44628 | PJ53: 0 | PK53: 0 | PL53: 0 | PM53: 0 | PN53: 0 | PO53: 0 | PP53: 0 | PQ53: 0 | PR53: 0 | PS53: 0 | PT53: 0 | PU53: 0 | PV53: 0 | PW53: 0 | PX53: 0 | PY53: 0 | PZ53: 0 | QA53: 0 | QB53: 0 | QC53: 0 | QD53: 0 | QE53: 0 | QF53: 0 | QG53: 0 | QH53: 0 | QI53: 0 | QJ53: 0 | QK53: 0 | QL53: 0
B54: Fuel Use | F54: mmBTU | L54: =L53*L51/1000 -> 0 | M54: =M53*M51/1000 -> 0 | N54: 0 | O54: 0 | P54: 0 | Q54: 0 | R54: 0 | S54: 0 | T54: 0 | U54: 0 | V54: 0 | W54: 0 | X54: 0 | Y54: 0 | Z54: 0 | AA54: 0 | AB54: 0 | AC54: 0 | AD54: 0 | AE54: 0 | AF54: 0 | AG54: 0 | AH54: 0 | AI54: 0 | AJ54: 0 | AK54: 0 | AL54: 0 | AM54: 0 | AN54: 0 | AO54: 0 | AP54: 715549.946 | AQ54: 692450.1797 | AR54: 715513.7593 | AS54: 715495.6666 | AT54: 646237.8092 | AU54: 715459.4827 | AV54: 692362.6368 | AW54: 715423.3006 | AX54: 692327.6228 | AY54: 715387.1203 | AZ54: 715369.0308 | BA54: 692275.105 | BB54: 715332.8533 | BC54: 692240.0954 | BD54: 715296.6776 | BE54: 715278.5904 | BF54: 669114.6648 | BG54: 715242.4175 | BH54: 692152.5791 | BI54: 715206.2463 | BJ54: 692117.5756 | BK54: 715170.077 | BL54: 715151.9931 | BM54: 692065.0738 | BN54: 715115.8265 | BO54: 692030.0748 | BP54: 715079.6618 | BQ54: 715061.5801 | BR54: 645845.7409 | BS54: 715025.4181 | BT54: 691942.585 | BU54: 714989.258 | BV54: 691907.5922 | BW54: 714953.0996 | BX54: 714935.0212 | BY54: =BY53*BY51/1000 -> 691855.1063 | BZ54: 714898.8656 | CA54: 691820.1179 | CB54: 714862.7118 | CC54: 714844.6356 | CD54: 645649.796 | CE54: 714808.4846 | CF54: 691732.6546 | CG54: 714772.3354 | CH54: 691697.6724 | CI54: 714736.1881 | CJ54: 714718.1151 | CK54: 691645.2024 | CL54: 677715.6616 | CM54: 655837.282 | CN54: 677681.3883 | CO54: 677664.2523 | CP54: 612068.3635 | CQ54: 677629.9815 | CR54: 655754.3679 | CS54: 677595.7125 | CT54: 655721.2052 | CU54: 677561.4453 | CV54: 677544.3123 | CW54: 655671.4643 | CX54: 677510.0476 | CY54: 655638.3057 | CZ54: 677475.7847 | DA54: 677458.6539 | DB54: 633735.6187 | DC54: 677424.3935 | DD54: 655555.4168 | DE54: 677390.1349 | DF54: 655522.2641 | DG54: 677355.8781 | DH54: 677338.7503 | DI54: 655472.5383 | DJ54: 677304.496 | DK54: 655439.3898 | DL54: 677270.2435 | DM54: 677253.1178 | DN54: 611697.0256 | DO54: 677218.8679 | DP54: 655356.526 | DQ54: 677184.6197 | DR54: 655323.3834 | DS54: 677150.3732 | DT54: 677133.2506 | DU54: 655273.6727 | DV54: 677099.0067 | DW54: 655240.5343 | DX54: 677064.7646 | DY54: 677047.6442 | DZ54: 611511.4412 | EA54: 677013.4046 | EB54: 655157.6956 | EC54: 676979.1668 | ED54: 655124.5631 | EE54: 676944.9307 | EF54: 676927.8133 | EG54: 655074.8674 | EH54: 676893.5798 | EI54: 655041.7391 | EJ54: 676859.348 | EK54: =EK53*EK51/1000 -> 676842.2328 | EL54: 611325.913 | EM54: 676808.0037 | EN54: 654958.9255 | EO54: 676773.7762 | EP54: 654925.8031 | EQ54: 676739.5505 | ER54: 676722.4383 | ES54: 654876.1225 | ET54: 615171.1047 | EU54: 595311.822 | EV54: 615139.9944 | EW54: 615124.4398 | EX54: 575424.4414 | EY54: 615093.3318 | EZ54: 595236.5598 | FA54: 615062.2254 | FB54: 595206.4576 | FC54: 615031.1206 | FD54: 615015.5688 | FE54: 395923.1177 | FF54: 616780.3671 | FG54: 596869.1333 | FH54: 616749.1754 | FI54: 616733.5801 | FJ54: 557035.5996 | FK54: 616702.3907 | FL54: 596793.6742 | FM54: 616671.203 | FN54: 596763.4932 | FO54: 616640.0168 | FP54: 616624.4243 | FQ54: 596718.2247 | FR54: 616593.2404 | FS54: 596688.0475 | FT54: 616562.0582 | FU54: 616546.4676 | FV54: 556866.599 | FW54: 616515.2877 | FX54: 596612.6113 | FY54: 616484.1094 | FZ54: 596582.4395 | GA54: 616452.9327 | GB54: 616437.3449 | GC54: 596537.1847 | GD54: 616406.1705 | GE54: 596507.0167 | GF54: 616374.9977 | GG54: 616359.4119 | GH54: 556697.6497 | GI54: 616328.2415 | GJ54: 596431.6034 | GK54: 616297.0726 | GL54: 596401.4407 | GM54: 616265.9053 | GN54: 616250.3223 | GO54: 596356.1996 | GP54: 616219.1573 | GQ54: 596326.0408 | GR54: 616187.994 | GS54: 616172.4129 | GT54: 576404.7785 | GU54: 616141.2519 | GV54: 596250.6504 | GW54: =GW53*GW51/1000 -> 616110.0925 | GX54: 596220.4969 | GY54: 616078.9347 | GZ54: 616063.3564 | HA54: 596175.2695 | HB54: 616032.2009 | HC54: 596145.1198 | HD54: =HD53*HD51/1000 -> 616001.047 | HE54: 615985.4707 | HF54: 556359.9049 | HG54: 615954.3192 | HH54: 596069.7523 | HI54: 615923.1692 | HJ54: 596039.6079 | HK54: 615892.0208 | HL54: 615876.4472 | HM54: 595994.3942 | HN54: 615845.3012 | HO54: 595964.2537 | HP54: 615814.1568 | HQ54: 615798.5852 | HR54: 556191.1094 | HS54: 615767.4431 | HT54: 595888.909 | HU54: 615736.3026 | HV54: 595858.7738 | HW54: 615705.1637 | HX54: 615689.5948 | HY54: 595813.5739 | HZ54: 615658.4582 | IA54: 595783.4425 | IB54: 615627.3233 | IC54: 615611.7564 | ID54: 556022.365 | IE54: 615580.6237 | IF54: 595708.1207 | IG54: 615549.4927 | IH54: 595677.9946 | II54: 615518.3632 | IJ54: 615502.7991 | IK54: 595632.8084 | IL54: 615471.6719 | IM54: 595602.6861 | IN54: 615440.5464 | IO54: 615424.9842 | IP54: 575705.5887 | IQ54: 615393.861 | IR54: 595527.3871 | IS54: 615362.7394 | IT54: 595497.2702 | IU54: 615331.6194 | IV54: 615316.06 | IW54: 595452.0977 | IX54: 615284.9423 | IY54: 595421.9846 | IZ54: 615253.8262 | JA54: 615238.2687 | JB54: 555685.0299 | JC54: 615207.155 | JD54: 595346.7084 | JE54: 615176.0428 | JF54: 595316.6007 | JG54: 615144.9323 | JH54: 615129.3776 | JI54: 595271.4418 | JJ54: 639702.2001 | JK54: 619050.9914 | JL54: 639669.8492 | JM54: 639653.6743 | JN54: 577737.0967 | JO54: 639621.3259 | JP54: =JP53*JP51/1000 -> 618972.728 | JQ54: 639588.979 | JR54: 618941.4254 | JS54: 639556.6338 | JT54: 639540.4618 | JU54: 618894.4744 | JV54: 639508.1191 | JW54: 618863.1758 | JX54: 639475.778 | JY54: 639459.608 | JZ54: 577561.8154 | KA54: 639427.2694 | KB54: 618784.9361 | KC54: 639394.9324 | KD54: 618753.643 | KE54: 639362.597 | KF54: 639346.4299 | KG54: 411753.704 | KH54: 641441.7076 | KI54: 620734.3432 | KJ54: 641409.2687 | KK54: 641393.0499 | KL54: 599997.681 | KM54: 641360.6134 | KN54: 620655.8669 | KO54: 641328.1786 | KP54: 620624.4792 | KQ54: 641295.7455 | KR54: 641279.5295 | KS54: 620577.4006 | KT54: 641247.0988 | KU54: 620546.0169 | KV54: 641214.6698 | KW54: 641198.4559 | KX54: 579132.3479 | KY54: 641166.0293 | KZ54: 620467.5644 | LA54: 641133.6043 | LB54: 620436.1863 | LC54: 641101.181 | LD54: 641084.97 | LE54: 620389.1219 | LF54: 641052.5491 | LG54: 620357.7477 | LH54: 641020.1299 | LI54: 641003.9209 | LJ54: 578956.6434 | LK54: 640971.5042 | LL54: 620279.3191 | LM54: 640939.089 | LN54: 620247.9504 | LO54: 640906.6756 | LP54: 640890.4694 | LQ54: 620200.9004 | LR54: 640858.0584 | LS54: 620169.5357 | LT54: 640825.6491 | LU54: 640809.445 | LV54: 578780.9922 | LW54: 640777.0381 | LX54: 620091.1309 | LY54: 640744.6328 | LZ54: 620059.7717 | MA54: 640712.2291 | MB54: =MB53*MB51/1000 -> 640696.0279 | MC54: 620012.7359 | MD54: 640663.6267 | ME54: 619981.3807 | MF54: 640631.2272 | MG54: 640615.028 | MH54: 599269.8726 | MI54: 640582.631 | MJ54: 619902.9997 | MK54: 640550.2355 | ML54: 619871.6501 | MM54: 640517.8417 | MN54: 640501.6454 | MO54: 619824.6286 | MP54: 640469.2541 | MQ54: 619793.2829 | MR54: 640436.8643 | MS54: 640420.6701 | MT54: 578429.8495 | MU54: 640388.2828 | MV54: 619714.9256 | MW54: 640355.8972 | MX54: 619683.5855 | MY54: 640323.5132 | MZ54: 640307.3219 | NA54: 619636.5783 | NB54: 640274.9403 | NC54: 619605.2421 | ND54: 640242.5604 | NE54: 640226.3711 | NF54: 578254.3581 | NG54: 640193.9937 | NH54: 619526.9086 | NI54: 640161.6179 | NJ54: 619495.578 | NK54: 640129.2437 | NL54: 640113.0573 | NM54: 619448.585 | NN54: 640080.6856 | NO54: 619417.2584 | NP54: 640048.3155 | NQ54: 640032.1311 | NR54: 578078.9199 | NS54: 639999.7635 | NT54: 619338.9487 | NU54: 639967.3975 | NV54: 619307.6275 | NW54: 639935.0332 | NX54: 639918.8516 | NY54: 619260.6488 | NZ54: 639886.4897 | OA54: 619229.3317 | OB54: 639854.1295 | OC54: 639837.95 | OD54: 598542.947 | OE54: 639805.5922 | OF54: 619151.0457 | OG54: 639773.236 | OH54: 619119.7341 | OI54: 639740.8815 | OJ54: 639724.7049 | OK54: 619072.7697 | OL54: 639692.3528 | OM54: 619041.462 | ON54: =ON53*ON51/1000 -> 639660.0024 | OO54: 639643.8278 | OP54: 577728.2033 | OQ54: 639611.4798 | OR54: 618963.1998 | OS54: 639579.1335 | OT54: 618931.8977 | OU54: 639546.7888 | OV54: 639530.6171 | OW54: 618884.9475 | OX54: 639498.2748 | OY54: 618853.6493 | OZ54: 639465.9342 | PA54: 639449.7645 | PB54: 577552.9247 | PC54: 639417.4263 | PD54: 618775.4109 | PE54: 432447.3625 | PF54: 620752.1458 | PG54: 641427.6643 | PH54: 641411.445 | PI54: 620705.0576 | PJ54: 0 | PK54: 0 | PL54: 0 | PM54: 0 | PN54: 0 | PO54: 0 | PP54: 0 | PQ54: 0 | PR54: 0 | PS54: 0 | PT54: 0 | PU54: 0 | PV54: 0 | PW54: 0 | PX54: 0 | PY54: 0 | PZ54: 0 | QA54: 0 | QB54: 0 | QC54: 0 | QD54: 0 | QE54: 0 | QF54: 0 | QG54: 0 | QH54: 0 | QI54: 0 | QJ54: 0 | QK54: 0 | QL54: 0
A56: Capital Expenditures
B57: Total Cost | F57: k $ | G57: =Assumptions!G38 -> 250000
